Workbook

Sheet DATOS
A1: CONTRATO No.
A2: OBJETO: | B2: CENTRO DE DESARROLLO TECNOLÓGICO PARA LA INNOVACIÓN DE LA INFRAESTRUCTURA VIAL
A3: CONTIENE: | B3: PRESUPUESTO
A5: 2022-05-18

Sheet PRESUPUESTO
D2: =+DATOS!B2 -> CENTRO DE DESARROLLO TECNOLÓGICO PARA LA INNOVACIÓN DE LA INFRAESTRUCTURA VIAL
D7: =+DATOS!B3 -> PRESUPUESTO
B11: Ítem | C11: Descripción | E11: Unidad | F11: Cantidad | G11: Valor unitario | H11: Valor parcial
B13: 1 | C13: Laboratorio | H13: =+SUBTOTAL(9,H14:H158) -> $ 185,637,750
B14: 1.1 | C14: Preliminares | H14: =+ROUND(SUBTOTAL(9,H15:H27),0) -> $ 4,080,421
B15: 1.1.1 | C15: Localización y replanteo | E15: m2 | F15: =+'MEMORIAS CANTIDADES cap 1.1'!I29 -> 7.29 | G15: =+APU!H31 -> $ 4,323 | H15: =+ROUND(G15*F15,0) -> $ 31,515
B16: 1.1.2 | C16: Suministro e instalación cerramiento tela fibra tejida h= 2,10, soporte en madera común, cada 3 metros, para ser instalada en el corredor de laboratorio de materiales y el acceso al de suelos. | E16: ml | F16: =+'MEMORIAS CANTIDADES cap 1.1'!I53 -> 20.00 | G16: =+APU!H53 -> $ 13,013 | H16: $ 260,260
B17: 1.1.3 | C17: Desmonte de cielo raso existente, incluye transporte interno a sitio indicado por la interventoría | E17: m2 | F17: =+'MEMORIAS CANTIDADES cap 1.1'!I71 -> 72.47 | G17: =+APU!H73 -> $ 10,160 | H17: $ 736,307
B18: 1.1.4 | C18: Desmonte de puerta con marco y nave en madera, incluye transporte interno a sitio indicado por la interventoría, correspondiente a la oficina de coordinación de laboratorio de suelos FIC | E18: un | F18: =+'MEMORIAS CANTIDADES cap 1.1'!I94 -> 1.00 | G18: =+APU!H92 -> $ 21,449 | H18: $ 21,449
B19: 1.1.5 | C19: Desmonte de puertas en madera con marco metálico, incluye retiro a un lugar de la obra indicado por la interventoría, correspondientes a la del ingreso al salón Triaxial Dinámico, y entre esta y el almacén. | E19: un | F19: =+'MEMORIAS CANTIDADES cap 1.1'!I113 -> 2.00 | G19: =+APU!H111 -> $ 31,537 | H19: $ 63,074
B20: 1.1.6 | C20: Retiro de ventanas metálicas con vidrio y retiro de la misma a lugar de acopio indicado por la interventoría. | E20: m2 | F20: =+'MEMORIAS CANTIDADES cap 1.1'!I135 -> 9.72 | G20: =+APU!H131 -> $ 18,920 | H20: $ 183,902
B21: 1.1.7 | C21: Demolición de baldosa existente y traslado de escombros a sitio de acopio aprobado por la interventoría | E21: m2 | F21: =+'MEMORIAS CANTIDADES cap 1.1'!I152 -> 114.27 | G21: =+APU!H150 -> $ 13,482 | H21: $ 1,540,584
B22: 1.1.8 | C22: Demolición de guarda escoba existente y traslado de escombros a sitio de acopio aprobado por la interventoría | E22: ml | F22: =+'MEMORIAS CANTIDADES cap 1.1'!I172 -> 50.74 | G22: =+APU!H169 -> $ 1,961 | H22: $ 99,501
B23: 1.1.9 | C23: Demolición de mesón existente de 1.15 x 0.65 x 0.90 m en el salón triaxial dinámico. y traslado de escombros a sitio de acopio aprobado por la interventoría | E23: un | F23: =+'MEMORIAS CANTIDADES cap 1.1'!I193 -> 1.00 | G23: =+APU!H188 -> $ 37,996 | H23: $ 37,996
B24: 1.1.10 | C24: Demolición de mesón existente de 1.90 x 0.70 x 0.90 m en el salón triaxial dinámico y traslado de escombros a sitio de acopio aprobado por la interventoría | E24: un | F24: =+'MEMORIAS CANTIDADES cap 1.1'!I213 -> 1.00 | G24: =+APU!H207 -> $ 70,081 | H24: $ 70,081
B25: 1.1.11 | C25: Demolición bases en concreto de 0.13 m de espesor en los salones y traslado de escombros a sitio de acopio aprobado por la interventoría | E25: m2 | F25: =+'MEMORIAS CANTIDADES cap 1.1'!I233 -> 3.73 | G25: =+APU!H226 -> $ 24,513 | H25: $ 91,433
B26: 1.1.12 | C26: Demolición de muro en ladrillo existente y traslado de escombros a sitio de acopio indicado por la interventoría | E26: m2 | F26: =+'MEMORIAS CANTIDADES cap 1.1'!I252 -> 7.28 | G26: =+APU!H245 -> $ 14,218 | H26: $ 103,507
B27: 1.1.13 | C27: Corte y desenraizado de arboles frutales existentes en la parte trasera del laboratorio. Incluye retiro a la calzada contigua tras de la malla existente para ser recogida y trasladada a una escombrera aprobada por la alcaldía municipal | E27: un | F27: =+'MEMORIAS CANTIDADES cap 1.1'!I273 -> 4.00 | G27: =+APU!H265 -> $ 210,203 | H27: $ 840,812
B28: 1.2 | C28: Cimentación | H28: =+ROUND(SUBTOTAL(9,H29:H32),0) -> $ 1,575,163
B29: 1.2.1 | C29: Excavación manual en material común, hasta 1 m de profundidad, para cimentaciones | E29: m3 | F29: =+'MEMORIAS CANTIDADES cap 1.2'!I29 -> 15.00 | G29: =+APU!H284 -> $ 17,159 | H29: =+ROUND(G29*F29,0) -> $ 257,385
B30: 1.2.2 | C30: Concreto p/solado de limpieza, f'c= 14 Mpa, e=0.05 m para zapatas o vigas de cimentación | E30: m2 | F30: =+'MEMORIAS CANTIDADES cap 1.2'!I53 -> 3.24 | G30: =+APU!H303 -> $ 21,902 | H30: $ 70,962
B31: 1.2.3 | C31: Construcción zapata en concreto reforzado de f'c= 21 Mpa de 0.40 x 0.30 m, refuerzo incluido de acuerdo a planos de diseño. | E31: ml | F31: =+'MEMORIAS CANTIDADES cap 1.2'!I71 -> 10.80 | G31: =+APU!H328 -> $ 91,287 | H31: $ 985,900
B32: 1.2.4 | C32: Relleno compactado con material seleccionado de la misma excavación aprobado por la interventoría | E32: m3 | F32: =+'MEMORIAS CANTIDADES cap 1.2'!I94 -> 12.00 | G32: =+APU!H348 -> $ 21,743 | H32: $ 260,916
B33: 1.3 | C33: Acometidas y domiciliarias | H33: =+ROUND(SUBTOTAL(9,H34:H47),0) -> $ 21,756,801
B34: 1.3.1 | C34: Demolición de carpeta asfáltica para instalaciones domiciliarias - aguas lluvias y residuales | E34: m2 | F34: =+'MEMORIAS CANTIDADES cap 1.3'!I29 -> 28.80 | G34: =+APU!H369 -> $ 35,911 | H34: =+ROUND(G34*F34,0) -> $ 1,034,237
B35: 1.3.2 | C35: Excavación manual en material común, entre uno y 2 m de profundidad, incluye entibado o apuntalamientos en madera y elementos de protección, de acuerdo a recomendaciones de la interventoría. | E35: m3 | F35: =+'MEMORIAS CANTIDADES cap 1.3'!I53 -> 89.45 | G35: =+APU!H388 -> $ 41,828 | H35: $ 3,741,515
B36: 1.3.3 | C36: Suministro e instalación de acometida domiciliaria con reduccion de 3" a 1". | E36: un | F36: =+'MEMORIAS CANTIDADES cap 1.3'!I71 -> 1.00 | G36: =+APU!H414 -> $ 321,539 | H36: $ 321,539
B37: 1.3.4 | C37: Suministro e instalación tubería PVC sanitaria Ø 4", incluye accesorios, para instalaciones interiores de baños | E37: ml | F37: =+'MEMORIAS CANTIDADES cap 1.3'!I94 -> 8.00 | G37: =+APU!H437 -> $ 38,407 | H37: $ 307,256
B38: 1.3.5 | C38: Suministro e instalación tubería Novafort o de similares características ø 4" | E38: ml | F38: =+'MEMORIAS CANTIDADES cap 1.3'!I113 -> 107.50 | G38: =+APU!H456 -> $ 28,127 | H38: $ 3,023,653
B39: 1.3.6 | C39: Suministro e instalación tubería PVC sanitaria Ø 2", incluye accesorios | E39: ml | F39: =+'MEMORIAS CANTIDADES cap 1.3'!I135 -> 16.45 | G39: =+APU!H479 -> $ 21,447 | H39: $ 352,803
B40: 1.3.7 | C40: Suministro e instalación tubería PVC aguas lluvias Ø 4", para bajantes, incluye accesorios | E40: un | F40: =+'MEMORIAS CANTIDADES cap 1.3'!I152 -> 8.00 | G40: =+APU!H504 -> $ 233,370 | H40: $ 1,866,960
B41: 1.3.8 | C41: Construcción caja de inspección en concreto reforzado, f'c= 21 Mpa de 0,60 x 0,60 m libres, altura= 0,60 m, incluye cañuela y tapa en concreto reforzado, f'c= 21 Mpa, e= 0,10 m, varillas d= 3/8", fy= 420 Mpa, según diseño y planos | E41: un | F41: =+'MEMORIAS CANTIDADES cap 1.3'!I172 -> 6.00 | G41: =+APU!H530 -> $ 414,341 | H41: $ 2,486,046
B42: 1.3.9 | C42: Relleno compactado con material seleccionado de la misma excavación aprobado por la interventoría | E42: m3 | F42: =ROUND(+F35*0.5,0) -> 45.00 | G42: =+APU!H550 -> $ 21,743 | H42: $ 978,435
B43: 1.3.10 | C43: Relleno Tipo II, con material importado suministrado por el contratista, compactado con equipo mecánico al 95% p.m. compactado en capas de máximo 0.30 m de espesor, según norma INVIAS E-220; CBR≥5%, LL<40%, pasa 200 ≤ 35%, tamaño máximo 2"; contenido de materia orgánica < 1% | E43: m3 | F43: =+F42 -> 45.00 | G43: =+APU!H572 -> $ 79,043 | H43: $ 3,556,935
B44: 1.3.11 | C44: Suministro, riego y compactación de subbase mecánico clase a | E44: m3 | F44: =+'MEMORIAS CANTIDADES cap 1.3'!I193 -> 8.40 | G44: =+APU!H592 -> $ 130,172 | H44: $ 1,093,445
B45: 1.3.12 | C45: Suministro, riego y compactación de base mecánico clase a | E45: m3 | F45: =+'MEMORIAS CANTIDADES cap 1.3'!I213 -> 5.88 | G45: =+APU!H612 -> $ 126,275 | H45: $ 742,497
B46: 1.3.13 | C46: Imprimación con emulsión asfáltica tipo crl-1 | E46: m2 | F46: =+'MEMORIAS CANTIDADES cap 1.3'!I233 -> 33.60 | G46: =+APU!H631 -> $ 7,945 | H46: $ 266,952
B47: 1.3.14 | C47: Suministro, riego y compactación de mezcla asfáltica tipo mdc-19 | E47: m3 | F47: =+'MEMORIAS CANTIDADES cap 1.3'!I252 -> 2.52 | G47: =+APU!H652 -> $ 787,511 | H47: $ 1,984,528
B48: 1.4 | C48: Estructura en concreto | H48: =+ROUND(SUBTOTAL(9,H49:H50),0) -> $ 1,958,268
B49: 1.4.1 | C49: Construcción columna en ccto de 21 Mpa de (0.20 x 0.20) m, incluye acero de refuerzo de acuerdo a diseño- | E49: ml | F49: =+'MEMORIAS CANTIDADES cap 1.4'!I29 -> 14.25 | G49: =+APU!H677 -> $ 73,027 | H49: =+ROUND(G49*F49,0) -> $ 1,040,635
B50: 1.4.2 | C50: Construcción de viga de amarre de 0,20 x 0,20 m, incluye acero, formaleta y andamios, , según diseño y planos. | E50: ml | F50: =+'MEMORIAS CANTIDADES cap 1.4'!I53 -> 10.80 | G50: =+APU!H702 -> $ 84,966 | H50: $ 917,633
B51: 1.5 | C51: Mampostería y repellos | H51: =+ROUND(SUBTOTAL(9,H52:H54),0) -> $ 9,719,309
B52: 1.5.1 | C52: Mampostería en ladrillo común con mortero de pega 1:4 en sitios donde se desmontaron ventanas y en cuarto de compresores | E52: m2 | F52: =+'MEMORIAS CANTIDADES cap 1.5'!I29 -> 37.13 | G52: =+APU!H722 -> $ 58,393 | H52: =+ROUND(G52*F52,0) -> $ 2,168,132
B53: 1.5.2 | C53: Repello en muros con mortero 1:3, incluye filos y dilataciones donde hubiere. | E53: m2 | F53: =+'MEMORIAS CANTIDADES cap 1.5'!I53 -> 91.32 | G53: =+APU!H741 -> $ 17,411 | H53: $ 1,590,042
B54: 1.5.3 | C54: Construcción de muro en superboard doble cara, e= 8 mm, espesor de muro= 0,15 m, según diseño, planos y recomendaciones del proveedor. | E54: m2 | F54: =+'MEMORIAS CANTIDADES cap 1.5'!I78 -> 54.17 | G54: =+APU!H764 -> $ 110,048 | H54: $ 5,961,135
B55: 1.6 | C55: Estructura metalica y Cubiertas | H55: =+ROUND(SUBTOTAL(9,H56:H59),0) -> $ 13,992,060
B56: 1.6.1 | C56: Suministro e instalación teja termoacústica Max trapezoidal a360 de 12 x 0.82 m del color que se defina en obra con la interventoría. Incluye todos los accesorios indispensables para su correcta fijación. | E56: m2 | F56: =+'MEMORIAS CANTIDADES cap 1.6'!I29 -> 13.36 | G56: =+APU!H786 -> $ 86,266 | H56: =+ROUND(G56*F56,0) -> $ 1,152,514
B57: 1.6.2 | C57: Suministro e instalación de canal en lámina cal 22, longitud de desarrollo= 0,40 m. de acuerdo a plano | E57: ml | F57: =+'MEMORIAS CANTIDADES cap 1.6'!I53 -> 14.60 | G57: =+APU!H810 -> $ 79,585 | H57: $ 1,161,941
B58: 1.6.3 | C58: Suministro e instalación de cubierta en teja policarbonato alveolar, e= 6mm sobre pérgola de acuerdo a diseño y recomendaciones de instalación del del fabricante. | E58: m2 | F58: =+'MEMORIAS CANTIDADES cap 1.6'!I71 -> 23.65 | G58: =+APU!H835 -> $ 95,163 | H58: $ 2,250,605
B59: 1.6.4 | C59: Suministro e instalación de estructura metálica según diseño para cubierta del cuarto de compresores y estructura de la pérgola. | E59: kg | F59: =+'MEMORIAS CANTIDADES cap 1.6'!I89 -> 500.00 | G59: =+APU!H860 -> $ 18,854 | H59: $ 9,427,000
B60: 1.7 | C60: Carpintería metálica y de madera | H60: =+ROUND(SUBTOTAL(9,H61:H62),0) -> $ 6,782,754
B61: 1.7.1 | C61: Suministro e instalación de puerta de madera entamborada y pintada con esmalte domestico para baños oficina o entrada principal. Incluye marco en lamina pintado o aluminio cuando el muro sea superboard, bisagras, cerradura de pomo para oficinas y baño, y de seguridad en entrada principal, y los elementos que se requieran para su correcta instalación y funcionamiento, previos visto bueno de la interventoría | E61: un | F61: =+'MEMORIAS CANTIDADES cap 1.7'!I29 -> 5.00 | G61: =+APU!H884 -> $ 536,928 | H61: =+ROUND(G61*F61,0) -> $ 2,684,640
B62: 1.7.2 | C62: Puerta cortafuego hoja sencilla rf-120 min - según normas: nfpa 80: standard for Firedoors and Other Opening Protectives Nsr 10. Fabricación: hoja con sistema estructural tipo cortafuego fabricado en lámina de acero calibre 16 . Acabado: pintura electrostática color a definir. Marco batiente metálico en lámina de acero cal.16. Aislante térmico para trabajo continúo a 1200°c. Bisagras tipo cápsula trabajo pesado acero calibrado. Sello perimetral intumescente importado y certificado UL. Brazo hidráulico cierra puertas: trabajo pesado tipo 1 certificado UL para 3 horas de incendio idóneo para puertas cortafuego hasta 150kg. Operador, manija exterior UL barra antipánico certificada con cilindro y 03 llaves. cerradura cortafuego antipánico cortafuego hoja activa con 01 mecanismo horizontal tipo push bar con resistencia al fuego de 03 horas, certificada y aprobada por organismos internacionales UL-ANSI- BHMA | E62: un | F62: =+'MEMORIAS CANTIDADES cap 1.7'!I53 -> 1.00 | G62: =+APU!H904 -> $ 4,098,114 | H62: $ 4,098,114
B63: 1.8 | C63: Ventaneria en aluminio | H63: =+ROUND(SUBTOTAL(9,H64:H66),0) -> $ 2,050,000
B64: 1.8.1 | C64: Suministro e instalación de ventana en aluminio ref. 5020 anoloc bronce con vidrio incoloro de 4 mm de 1.40 x 1.50 de acuerdo a diseño | E64: un | F64: =+'MEMORIAS CANTIDADES cap 1.8'!I29 -> 1.00 | G64: =+APU!H923 -> $ 450,000 | H64: =+ROUND(G64*F64,0) -> $ 450,000
B65: 1.8.2 | C65: Suministro e instalación de ventana en aluminio ref. 5020 anoloc bronce con vidrio incoloro de 4 mm de 1.00 x 1.40 de acuerdo a diseño | E65: un | F65: =+'MEMORIAS CANTIDADES cap 1.8'!I53 -> 3.00 | G65: =+APU!H942 -> $ 400,000 | H65: $ 1,200,000
B66: 1.8.3 | C66: Suministro e instalación de ventana persiana en aluminio anoloc bronce de 1.00 x 0.50 m | E66: un | F66: =+'MEMORIAS CANTIDADES cap 1.8'!I71 -> 1.00 | G66: =+APU!H961 -> $ 400,000 | H66: $ 400,000
B67: 1.9 | C67: Instalaciones hidráulicas y sanitarias internas | H67: =+ROUND(SUBTOTAL(9,H68:H75),0) -> $ 1,619,072
B68: 1.9.1 | C68: Excavación manual en material común, hasta 1 m de profundidad, para instalaciones interiores, hidrosanitarias | E68: m3 | F68: =+'MEMORIAS CANTIDADES cap 1.9'!I29 -> 15.00 | G68: =+APU!H980 -> $ 18,386 | H68: =+ROUND(G68*F68,0) -> $ 275,790
B69: 1.9.2 | C69: Suministro e instalación tubería PVC presión ø1", rde 21, incluye accesorios | E69: ml | F69: =+'MEMORIAS CANTIDADES cap 1.9'!I53 -> 18.53 | G69: =+APU!H1002 -> $ 8,988 | H69: $ 166,548
B70: 1.9.3 | C70: Suministro e instalación tubería PVC presión ø3/4", rde 21, incluye accesorios | E70: ml | F70: =+'MEMORIAS CANTIDADES cap 1.9'!I71 -> 19.88 | G70: =+APU!H1024 -> $ 7,424 | H70: $ 147,589
B71: 1.9.4 | C71: Suministro e instalación tubería PVC presión ø1/2'', rde 21, incluye accesorios | E71: ml | F71: =+'MEMORIAS CANTIDADES cap 1.9'!I94 -> 9.86 | G71: =+APU!H1046 -> $ 6,245 | H71: $ 61,576
B72: 1.9.5 | C72: Punto hidráulico 1/2" en hg | E72: un | F72: =+'MEMORIAS CANTIDADES cap 1.9'!I113 -> 5.00 | G72: =+APU!H1073 -> $ 39,669 | H72: $ 198,345
B73: 1.9.6 | C73: Suministro e instalación de llave de paso directo ø3/4" | E73: un | F73: =+'MEMORIAS CANTIDADES cap 1.9'!I135 -> 5.00 | G73: =+APU!H1094 -> $ 54,861 | H73: $ 274,305
B74: 1.9.7 | C74: Punto sanitario en PVC de ø2" | E74: un | F74: =+'MEMORIAS CANTIDADES cap 1.9'!I152 -> 8.00 | G74: =+APU!H1117 -> $ 47,049 | H74: $ 376,392
B75: 1.9.8 | C75: Punto sanitario en PVC de ø4" | E75: un | F75: =+'MEMORIAS CANTIDADES cap 1.9'!I172 -> 1.00 | G75: =+APU!H1140 -> $ 118,527 | H75: $ 118,527
B76: 1.10 | C76: Instalaciones eléctricas | H76: =+ROUND(SUBTOTAL(9,H77:H122),0) -> $ 66,218,036
B77: 1.10.1 | C77: Alimentadores
B78: 1.10.1.1 | C78: Alimentador trifásico desde el tablero de distribución general ubicado en el cuarto eléctrico de la facultad de ingenierías hasta el tablero general de potencia diseñado a ubicar en el laboratorio, tablero gral de 42 circuitos.. Conductores en cable de cobre aislado 3#2/0 F + 1#2/0 N + 1#6 T AWG libre de halógenos. Incluye bandeja tipo escalera de 80 x 150x 240 mm, con sus respectivos accesorios. Mano de obra donde sea necesario de: regata, entubado, resane, cableado, aparateado, aseo. | E78: un | F78: 1.00 | G78: =+APU!H1172 -> $ 8,877,002 | H78: =+ROUND(G78*F78,0) -> $ 8,877,002
B79: 1.10.1.2 | C79: Alimentador trifásico desde el tablero de distribución general del laboratorio hasta el tablero de compresores. Conductores en cable de cobre aislado 3#8 F + 1#8/0 N + 1#10 T AWG libre de halógenos. Incluye ductos, tubería IMC y PVC Ø1", con sus respectivos accesorios. Mano de obra donde sea necesario de: regata, entubado, resane, cableado, aparateado, aseo. Incluir totalizador industrial 3x40 A en el tablero de distribución general del laboratorio. | E79: un | F79: 1.00 | G79: =+APU!H1201 -> $ 2,091,796 | H79: $ 2,091,796
B80: 1.10.1.3 | C80: Alimentador bifasico desde tablero Gral trifasico del Laboratorio hasta tomacorriente de alimentación de UPS. Conductores en cable de cobre aislado 2#10 F + 1#10 N + 1#10 T AWG libre de halógenos. Incluye tubería PVC Ø3/4", con sus respectivos accesorios. Mano de obra donde sea necesario de: regata, entubado, resane, cableado, aparateado, aseo. Incluir tomacorriente de acuerdo a la clavija de salida de la UPS. | E80: ml | F80: 14.00 | G80: =+APU!H1229 -> $ 252,685 | H80: $ 3,537,590
B81: 1.10.1.4 | C81: Alimentador bifasico desde tomacorriente de alimentación de UPS hasta tablero Regulado de UPS. Conductores en cable de cobre aislado 2#10 F + 1#10 N + 1#10 T AWG libre de halógenos. Incluye tubería PVC Ø3/4", con sus respectivos accesorios. Mano de obra donde sea necesario de: regata, entubado, resane, cableado, aparateado, aseo. Incluir tomacorriente de acuerdo a la clavija de salida de la UPS. | E81: ml | F81: 4.00 | G81: =+APU!H1257 -> $ 252,685 | H81: $ 1,010,740
B82: 1.10.2 | C82: Tableros de distribución
B83: 1.10.2.1 | C83: Suministro e instalación tablero distribución trifásico 42 ctos (tls) tq-cp-225 AMP Schneider con puerta y espacio para totalizador. Incluye protecciones termomagnéticas según diseño (2-1X15 A, 5-1x20A, 1-1X25 A, 6-1x30A, 1-2X20A, 4-3x20A, 2-3x30A, 1-3X40). Totalizador industrial Schneider 3x150A. Debe entregarse etiquetado indicando los circuitos que maneja y demás normas Retie. | E83: un | F83: 1.00 | G83: =+APU!H1288 -> $ 2,731,845 | H83: =+ROUND(G83*F83,0) -> $ 2,731,845
B84: 1.10.2.2 | C84: Suministro e instalación tablero distribución trifásico Tablero trifásico 240 V 18 CTOS con puerta sin espacio para totalizador 10KA 200 A, Retie acorde a IEC 60439-3Schneider . Incluye protecciones termomagnéticas según diseño (2-1X15 A, 3-3x20A). Debe entregarse etiquetado indicando los circuitos que maneja y demás normas Retie. | E84: un | F84: 1.00 | G84: =+APU!H1311 -> $ 1,001,954 | H84: $ 1,001,954
B85: 1.10.2.3 | C85: Suministro e instalación tablero distribución bifásico 6 ctos (trls) tq-cp-125a con puerta Schneider para red regulada. Incluye protecciones termomagnéticas según diseño (4-1x20A).Debe entregarse etiquetado indicando los circuitos que maneja y demás normas Retie. | E85: un | F85: 1.00 | G85: =+APU!H1333 -> $ 314,604 | H85: $ 314,604
B86: 1.10.3 | C86: Salidas de iluminación y tomas
B87: 1.10.3.1 | C87: Salida de iluminación 120 voltios en tubería Conduit emt ø 1/2" (PVC o EMT donde se requiera) y demás accesorios. Conductores en cable de cobre #12 AWG libre de halógenos. Incluye empalmes con conectores de resorte tipo 3M, tapa ciega circular, prensa estopa, cola en cable encauchetado 3x16 (±1.5m), tomacorriente y clavija aérea con polo a tierra para conexión de la luminaria. Mano de obra donde sea necesario de: regata, entubado, resane, cableado, aparateado, aseo. | E87: un | F87: 29.00 | G87: =+APU!H1361 -> $ 163,328 | H87: =+ROUND(G87*F87,0) -> $ 4,736,512
B88: 1.10.3.2 | C88: Salida para interruptor sencillo en tubería Conduit PVC ø 1/2’’ (y emt ø1/2’’ donde se requiera). Incluye interruptor sencillo 15 Amp con polo a tierra. Conductores en cable de cobre #12 AWG libre de halógenos (utilizar color negro para retornos), accesorios. Mano de obra donde sea necesario de: regata, entubado, resane, cableado, aparateado, aseo. | E88: un | F88: 8.00 | G88: =+APU!H1387 -> $ 105,761 | H88: $ 846,088
B89: 1.10.3.3 | C89: Salida para interruptor doble en tubería Conduit PVC ø 1/2’’ (y emt ø1/2’’ donde se requiera). Incluye interruptor doble 15 Amp con polo a tierra. Conductores en cable de cobre #12 AWG libre de halógenos (utilizar color negro para retornos), accesorios. Mano de obra donde sea necesario de: regata, entubado, resane, cableado, aparateado, aseo. | E89: un | F89: 1.00 | G89: =+APU!H1413 -> $ 144,395 | H89: $ 144,395
B90: 1.10.3.4 | C90: Salida para interruptor conmutable sencillo en tubería Conduit PVC ø 1/2’’ (y emt ø1/2’’ donde se requiera). Incluye interruptor conmutable sencillo 15 Amp con polo a tierra. Conductores en cable de cobre #12 AWG libre de halógenos (utilizar color negro para retornos), accesorios. Mano de obra donde sea necesario de: regata, entubado, resane, cableado, aparateado, aseo | E90: un | F90: 2.00 | G90: =+APU!H1439 -> $ 196,228 | H90: $ 392,456
B91: 1.10.3.5 | C91: Salida para toma normal doble monofásico con polo a tierra en tubería Conduit PVC ø 1/2’’. Incluye tomacorriente de acuerdo a las características de la clavija de los equipos a instalar, caja PVC de 2x4" y demás accesorios. Conductores en cable de cobre #12 AWG libre de halógenos. El toma debe quedar etiquetado con banda plástica indicando el circuito al cual pertenece. Mano de obra donde sea necesario de: regata, entubado, resane, cableado, aparateado, aseo. | E91: un | F91: 14.00 | G91: =+APU!H1465 -> $ 166,859 | H91: $ 2,336,026
B92: 1.10.3.6 | C92: Salida para toma gfci doble monofásico con polo a tierra en tubería Conduit PVC ø 1/2’’. Incluye tomacorriente doble GFCI 20A con polo a tierra Leviton, caja PVC de 2x4" y demás accesorios. Conductores en cable de cobre #12 AWG libre de halógenos. El toma debe quedar etiquetado con banda plástica indicando el circuito al cual pertenece. Mano de obra donde sea necesario de: regata, entubado, resane, cableado, aparateado, aseo. | E92: un | F92: 1.00 | G92: =+APU!H1491 -> $ 157,638 | H92: $ 157,638
B93: 1.10.3.7 | C93: Salida para toma regulado monofásico en tubería PVC ø 1/2". incluye toma 15a levitón tierra aislada IG debidamente instalado, caja PVC de 2x4" y demás accesorios. Conductores trenzado de fábrica 3x12 AWG/THHN, color de fase según circuito. El toma debe quedar etiquetado con banda plástica indicando el circuito al cual pertenece. Mano de obra donde sea necesario de: regata, entubado, resane, cableado, aparateado, aseo. | E93: un | F93: 17.00 | G93: =+APU!H1517 -> $ 148,586 | H93: $ 2,525,962
B94: 1.10.4 | C94: UPS
B95: 1.10.4.1 | C95: Suministro e instalación UPS APC smart-ups srt, 4250watts / 5000 va, con transformador Reductor De 208/240V A 120 V, Incluye: DC Con Software, CD De Documentación, Guía De Instalación, Gestión De Redes Integrada, Pies Desmontables , Sonda De Temperatura.3 Años De Garantía. Incluye Servicio De Instalación A 0 Metros. | E95: un | F95: 1.00 | G95: =+APU!H1543 -> $ 15,376,802 | H95: =+ROUND(G95*F95,0) -> $ 15,376,802
B96: 1.10.5 | C96: Salidas alimentación equipos de prueba
B97: 1.10.5.1 | C97: Salida para Equipos laboratorio Mufla contenido de asfaltoBitumax " Controls", toma 30 AMP. trifásico con polo a tierra de acuerdo al equipo, en tubería Conduit PVC Ø ½’’ y 3/4". Incluye tomacorriente de acuerdo al equipo, con polo a tierra, caja PVC de 4x4" y demás accesorios. Conductores en cable de cobre #12 AWG libre de halógenos, El toma debe quedar etiquetado con banda plástica indicando el circuito al cual pertenece. Mano de obra donde sea necesario de: regata, entubado, resane, cableado, aparateado, aseo. | E97: und | F97: 1.00 | G97: =+APU!H1569 -> $ 586,154 | H97: $ 586,154
B98: 1.10.5.2 | C98: Salida para Equipos laboratorio Compactador de rodillo electromecánico " Controls", toma 30 AMP. trifásico con polo a tierra de acuerdo al equipo, en tubería Conduit PVC Ø ½’’ y 3/4". Incluye tomacorriente de acuerdo al equipo, con polo a tierra, caja PVC de 4x4" y demás accesorios. Conductores en cable de cobre #12 AWG libre de halógenos, El toma debe quedar etiquetado con banda plástica indicando el circuito al cual pertenece. Mano de obra donde sea necesario de: regata, entubado, resane, cableado, aparateado, aseo. | E98: und | F98: 1.00 | G98: =+APU!H1595 -> $ 633,506 | H98: $ 633,506
B99: 1.10.5.3 | C99: Salida para Equipos laboratorio Compactador giratorio toma 30 AMP. monofásico con polo a tierra de acuerdo al equipo, en tubería Conduit PVC Ø ½’’ y 3/4". Incluye tomacorriente de acuerdo al equipo, con polo a tierra, caja PVC de 4x4" y demás accesorios. Conductores en cable de cobre #12 AWG libre de halógenos, El toma debe quedar etiquetado con banda plástica indicando el circuito al cual pertenece. Mano de obra donde sea necesario de: regata, entubado, resane, cableado, aparateado, aseo. | E99: und | F99: 1.00 | G99: =+APU!H1621 -> $ 462,942 | H99: $ 462,942
B100: 1.10.5.4 | C100: Salida para Equipos laboratorio HORNO 198 L " HUMBOLT" toma 20 AMP. monofásico con polo a tierra de acuerdo al equipo, en tubería Conduit PVC Ø ½’’ y 3/4". Incluye tomacorriente de acuerdo al equipo, con polo a tierra, caja PVC de 4x4" y demás accesorios. Conductores en cable de cobre #12 AWG libre de halógenos, El toma debe quedar etiquetado con banda plástica indicando el circuito al cual pertenece. Mano de obra donde sea necesario de: regata, entubado, resane, cableado, aparateado, aseo. | E100: und | F100: 1.00 | G100: =+APU!H1647 -> $ 642,437 | H100: $ 642,437
B101: 1.10.5.5 | C101: Salida para Equipos laboratorio Rueda doble de Hamburgo DWT " Controls", toma 30 AMP. trifásico con polo a tierra de acuerdo al equipo, en tubería Conduit PVC Ø ½’’ y 3/4". Incluye tomacorriente de acuerdo al equipo, con polo a tierra, caja PVC de 4x4" y demás accesorios. Conductores en cable de cobre #12 AWG libre de halógenos, El toma debe quedar etiquetado con banda plástica indicando el circuito al cual pertenece. Mano de obra donde sea necesario de: regata, entubado, resane, cableado, aparateado, aseo. | E101: und | F101: 1.00 | G101: =+APU!H1673 -> $ 537,791 | H101: $ 537,791
B102: 1.10.5.6 | C102: Salida para Equipos laboratorio Sistemas de ensayos dinamicos UTM 30 " Controls", toma 30 AMP. trifásico con polo a tierra de acuerdo al equipo, en tubería Conduit PVC Ø ½’’ y 3/4". Incluye tomacorriente de acuerdo al equipo, con polo a tierra, caja PVC de 4x4" y demás accesorios. Conductores en cable de cobre #12 AWG libre de halógenos, El toma debe quedar etiquetado con banda plástica indicando el circuito al cual pertenece. Mano de obra donde sea necesario de: regata, entubado, resane, cableado, aparateado, aseo. | E102: und | F102: 1.00 | G102: =+APU!H1699 -> $ 303,117 | H102: $ 303,117
B103: 1.10.5.7 | C103: Salida para Equipos laboratorio Sistema triaxial dinamico DYNATRIAX "Controls" , toma 30 AMP. monofásico con polo a tierra de acuerdo al equipo, en tubería Conduit PVC Ø ½’’ y 3/4". Incluye tomacorriente de acuerdo al equipo, con polo a tierra, caja PVC de 4x4" y demás accesorios. Conductores en cable de cobre #10 AWG libre de halógenos, El toma debe quedar etiquetado con banda plástica indicando el circuito al cual pertenece. Mano de obra donde sea necesario de: regata, entubado, resane, cableado, aparateado, aseo. | E103: und | F103: 1.00 | G103: =+APU!H1725 -> $ 421,299 | H103: $ 421,299
B104: 1.10.5.8 | C104: Salida para Equipos laboratorio Reómetro de corte dinámico DSR " controls" toma 30 AMP. monofásico con polo a tierra de acuerdo al equipo, en tubería Conduit PVC Ø 3/4’’. Incluye tomacorriente de acuerdo al equipo, con polo a tierra, caja PVC de 4x4" y demás accesorios. Conductores en cable de cobre #12 AWG libre de halógenos. El toma debe quedar etiquetado con banda plástica indicando el circuito al cual pertenece. Mano de obra donde sea necesario de: regata, entubado, resane, cableado, aparateado, aseo. | E104: und | F104: 1.00 | G104: =+APU!H1751 -> $ 656,082 | H104: $ 656,082
B105: 1.10.5.9 | C105: Salida para Equipos laboratorio Marco master loader " Humbldt", toma 30 AMP. monofásico con polo a tierra de acuerdo al equipo, en tubería Conduit PVC Ø ½’’ y 3/4". Incluye tomacorriente de acuerdo al equipo, con polo a tierra, caja PVC de 4x4" y demás accesorios. Conductores en cable de cobre #10 AWG libre de halógenos, El toma debe quedar etiquetado con banda plástica indicando el circuito al cual pertenece. Mano de obra donde sea necesario de: regata, entubado, resane, cableado, aparateado, aseo. | E105: und | F105: 1.00 | G105: =+APU!H1777 -> $ 388,030 | H105: $ 388,030
B106: 1.10.5.10 | C106: Salida para Equipos laboratorio Baño termostatico " Humboldt" toma 30 AMP. monofásico con polo a tierra de acuerdo al equipo, en tubería Conduit PVC Ø ½’’ y 3/4". Incluye tomacorriente de acuerdo al equipo, con polo a tierra, caja PVC de 4x4" y demás accesorios. Conductores en cable de cobre #12 AWG libre de halógenos, El toma debe quedar etiquetado con banda plástica indicando el circuito al cual pertenece. Mano de obra donde sea necesario de: regata, entubado, resane, cableado, aparateado, aseo. | E106: und | F106: 1.00 | G106: =+APU!H1803 -> $ 354,761 | H106: $ 354,761
B107: 1.10.5.11 | C107: Salida para Equipos laboratorio Balanzas, toma 30 AMP. monofásico con polo a tierra de acuerdo al equipo, en tubería Conduit PVC Ø ½’’y 3/4". Incluye tomacorriente de acuerdo al equipo, con polo a tierra, caja PVC de 4x4" y demás accesorios. Conductores en cable de cobre #12 AWG libre de halógenos, El toma debe quedar etiquetado con banda plástica indicando el circuito al cual pertenece. Mano de obra donde sea necesario de: regata, entubado, resane, cableado, aparateado, aseo. | E107: und | F107: 1.00 | G107: =+APU!H1829 -> $ 381,366 | H107: $ 381,366
B108: 1.10.5.12 | C108: Salida para Equipos laboratorio Viscometro rotacional DV2T " Brookfield" toma 30 AMP. monofásico con polo a tierra de acuerdo al equipo, en tubería Conduit PVC Ø ½’’ y 3/4". Incluye tomacorriente de acuerdo al equipo, con polo a tierra, caja PVC de 4x4" y demás accesorios. Conductores en cable de cobre #12 AWG libre de halógenos, El toma debe quedar etiquetado con banda plástica indicando el circuito al cual pertenece. Mano de obra donde sea necesario de: regata, entubado, resane, cableado, aparateado, aseo. | E108: und | F108: 1.00 | G108: =+APU!H1855 -> $ 346,953 | H108: $ 346,953
B109: 1.10.5.13 | C109: Salida para Equipos laboratorio Camara de temperatura y humadad " Controls", toma 30 AMP. monofásico con polo a tierra de acuerdo al equipo, en tubería Conduit PVC Ø ½’’ y 3/4". Incluye tomacorriente de acuerdo al equipo, con polo a tierra, caja PVC de 4x4" y demás accesorios. Conductores en cable de cobre #10 AWG libre de halógenos, El toma debe quedar etiquetado con banda plástica indicando el circuito al cual pertenece. Mano de obra donde sea necesario de: regata, entubado, resane, cableado, aparateado, aseo. | E109: und | F109: 1.00 | G109: =+APU!H1881 -> $ 388,070 | H109: $ 388,070
B110: 1.10.5.14 | C110: Salida para Equipos laboratorio Campana productos quimicos, toma 30 AMP. monofásico con polo a tierra de acuerdo al equipo, en tubería Conduit PVC Ø ½’’ y 3/4". Incluye tomacorriente de acuerdo al equipo, con polo a tierra, caja PVC de 4x4" y demás accesorios. Conductores en cable de cobre #12 AWG libre de halógenos, El toma debe quedar etiquetado con banda plástica indicando el circuito al cual pertenece. Mano de obra donde sea necesario de: regata, entubado, resane, cableado, aparateado, aseo. | E110: und | F110: 1.00 | G110: =+APU!H1907 -> $ 450,316 | H110: $ 450,316
B111: 1.10.6 | C111: Luminarias
B112: 1.10.6.1 | C112: Suministro e instalación de luminaria ilte clea owen lens L11X610 X95 CON MARCO- LED 4 1R2FT 1100 Lm 6.2 W REFERENCIA 210502E3006 TIPO CL, con sus respectivos accesorios de soporte y fijación. | E112: un | F112: 9.00 | G112: =+APU!H1927 -> $ 516,918 | H112: $ 4,652,262
B113: 1.10.6.2 | C113: Suministro e instalación de luminaria ilte Albar lens L11605X605X70 CON MARCO - 2 1R2FT 3200Lm 18.3W REF: 02410E3000 TIPO AL1, con sus respectivos accesorios de soporte y fijación. | E113: un | F113: 4.00 | G113: =+APU!H1947 -> $ 336,918 | H113: $ 1,347,672
B114: 1.10.6.3 | C114: Suministro e instalación de luminaria ilte Albar lens L11605X605X70 CON MARCO - 2 1R2FT 2200Lm 13.4W REF: 024102E3000 TIPO AL2, con sus respectivos accesorios de soporte y fijación. | E114: un | F114: 4.00 | G114: =+APU!H1967 -> $ 376,918 | H114: $ 1,507,672
B115: 1.10.6.4 | C115: Suministro e instalación de luminaria ilte IT 100AQ LENS E10 1260X 120X92 SOBREPONER- 2LPT8 2100 Lm 18W Ref: 250403E3000 TIPO IT, con sus respectivos accesorios de soporte y fijación. | E115: un | F115: 4.00 | G115: =+APU!H1987 -> $ 186,918 | H115: $ 747,672
B116: 1.10.6.5 | C116: Suministro e instalación de luminaria de emergencia SATURNO TEC LENS 146X46 LED-MODCIRCULAR 1307 Lm GSCL15WN143 TIPO S, con sus respectivos accesorios de soporte y fijación. | E116: un | F116: 8.00 | G116: =+APU!H2007 -> $ 194,918 | H116: $ 1,559,344
B117: 1.10.6.6 | C117: Suministro e instalación de luminaria de emergencia EMERGENCIA ALENA 600L 90E 185X50X108 SOBREPONE 2-BL 2W ( circuito independiente), con sus respectivos accesorios de soporte y fijación. | E117: un | F117: 6.00 | G117: =+APU!H2027 -> $ 131,918 | H117: $ 791,508
B118: 1.10.6.7 | C118: Suministro e instalación de aviso luminoso "salida", iltec, EMERGENCIA SALIDA 90 E 300X185X 45 SOBREPONER (circuito independiente), REF : 5U0703E3000 TIPO E2, con sus respectivos accesorios de soporte y fijación. | E118: un | F118: 3.00 | G118: =+APU!H2047 -> $ 116,918 | H118: $ 350,754
B119: 1.10.7 | C119: Cajas de derivación | H119: 0
B120: 1.10.7.1 | C120: Suministro e instalación de cajas de derivación de 10" x 10" x5" de PVC para los alimentadores de equipos y de redes de vos y datos | E120: un | F120: 18.00 | G120: =+APU!H2067 -> $ 44,145 | H120: $ 794,610
B121: 1.10.8 | C121: Ductos para red de datos | H121: 0
B122: 1.10.8.1 | C122: Suministro e instalación de los ductos y rack para red de datos | E122: un | F122: 1.00 | G122: =+APU!H2092 -> $ 1,832,308 | H122: $ 1,832,308
B123: 1.11 | C123: Pisos | H123: =+ROUND(SUBTOTAL(9,H124:H127),0) -> $ 19,451,508
B124: 1.11.1 | C124: Suministro e instalación de piso en baldosa grano de mármol blanco huila de 33x33 cm, de acuerdo a distribución de planos e indicaciones de la interventoría. incluye destronque, pulida, brillada y sellada, y dilataciones de bronce | E124: m2 | F124: =+'MEMORIAS CANTIDADES cap 1.11'!I29 -> 110.00 | G124: =+APU!H2117 -> $ 105,310 | H124: =+ROUND(G124*F124,0) -> $ 11,584,100
B125: 1.11.2 | C125: Suministro e instalación de guarda escoba recto en granito pulido | E125: ml | F125: =+'MEMORIAS CANTIDADES cap 1.11'!I53 -> 65.00 | G125: =+APU!H2141 -> $ 26,660 | H125: $ 1,732,900
B126: 1.11.3 | C126: Suministro y colocación de subbase granular, e= 0.15 m, tipo invias | E126: m2 | F126: =+'MEMORIAS CANTIDADES cap 1.11'!I71 -> 47.90 | G126: =+APU!H2162 -> $ 23,586 | H126: $ 1,129,769
B127: 1.11.4 | C127: Construcción de piso en concreto de f'c= 21 Mpa, afinado, e=0.12 m, para cuarto de compresores y zona de manipulación de muestras | E127: m2 | F127: =+'MEMORIAS CANTIDADES cap 1.11'!I94 -> 64.70 | G127: =+APU!H2182 -> $ 77,353 | H127: $ 5,004,739
B128: 1.12 | C128: Mesones y enchapes | H128: =+ROUND(SUBTOTAL(9,H129:H133),0) -> $ 3,826,263
B129: 1.12.1 | C129: Construcción de mesón en concreto f´c=210 k/cm2 reforzado de dimensiones 1.20 x 4.80 m, acabado superficie de e= 0,10 m en granito pulido, soportada en muro soga pañete y pintados, de acuerdo a planos | E129: un | F129: =+'MEMORIAS CANTIDADES cap 1.12'!I29 -> 1.50 | G129: =+APU!H2211 -> $ 1,595,293 | H129: =+ROUND(G129*F129,0) -> $ 2,392,940
B130: 1.12.2 | C130: Suministro e instalación de poceta de empotrar en acero inoxidable de 0.53 x 0.43 x 0.16 | E130: un | F130: =+'MEMORIAS CANTIDADES cap 1.12'!I53 -> 2.00 | G130: =+APU!H2233 -> $ 279,561 | H130: $ 559,122
B131: 1.12.3 | C131: Suministro e instalación de grifería cuello de ganso de 8" con mezclador | E131: un | F131: =+'MEMORIAS CANTIDADES cap 1.12'!I71 -> 2.00 | G131: =+APU!H2252 -> $ 101,122 | H131: $ 202,244
B132: 1.12.4 | C132: Suministro e instalación de canastilla y sifón para pozuelo de acuerdo a especificaciones | E132: un | F132: =+'MEMORIAS CANTIDADES cap 1.12'!I94 -> 2.00 | G132: =+APU!H2271 -> $ 43,477 | H132: $ 86,954
B133: 1.12.5 | C133: Enchape de muro en cerámica de 25 x 30 cm para baño mixto y de discapacitados | E133: m2 | F133: =+'MEMORIAS CANTIDADES cap 1.12'!I117 -> 7.90 | G133: =+APU!H2295 -> $ 74,051 | H133: $ 585,003
B134: 1.13 | C134: Cielos | H134: =+ROUND(SUBTOTAL(9,H135:H135),0) -> $ 7,059,175
B135: 1.13.1 | C135: Suministro e instalación de cielo raso en PVC color mate, incluye estructura de fijación | E135: m2 | F135: =+'MEMORIAS CANTIDADES cap 1.13'!I29 -> 88.20 | G135: =+APU!H2324 -> $ 80,036 | H135: =+ROUND(G135*F135,0) -> $ 7,059,175
B136: 1.14 | C136: Pintura muros y cielos | H136: =+ROUND(SUBTOTAL(9,H137:H140),0) -> $ 8,352,208
B137: 1.14.1 | C137: Suministro y aplicación de estuco plástico sobre pañete en muros, incluye filos, dilat. | E137: m2 | F137: =+'MEMORIAS CANTIDADES cap 1.15'!I29 -> 81.00 | G137: =+APU!H2347 -> $ 18,735 | H137: =+ROUND(G137*F137,0) -> $ 1,517,535
B138: 1.14.2 | C138: Suministro y aplicación de pintura tipo 1, tres manos para muros y cielos internos. Incluye resanes donde se requiera | E138: m3 | F138: =+'MEMORIAS CANTIDADES cap 1.15'!I53 -> 307.00 | G138: =+APU!H2371 -> $ 12,997 | H138: $ 3,990,079
B139: 1.14.3 | C139: Suministro y aplicación de pintura tipo 1, dos manos p/muros en superboard internos. Incluye resanes donde se requiera | E139: m3 | F139: =+'MEMORIAS CANTIDADES cap 1.15'!I71 -> 108.00 | G139: =+APU!H2395 -> $ 9,568 | H139: $ 1,033,344
B140: 1.14.4 | C140: Suministro y aplicación de pintura para exteriores resistente a la intemperie, tipo Koraza Suministro y aplicación de pintura para exteriores resistente a la intemperie, tipo Koraza, en fachadas exteriores hasta laboratorio de suelos, y cuarto de compresores sobre pañete. | E140: m2 | F140: 112.50 | G140: =+APU!H2415 -> $ 16,100 | H140: $ 1,811,250
B141: 1.15 | C141: Aparatos y accesorios sanitarios | H141: =+ROUND(SUBTOTAL(9,H142:H149),0) -> $ 7,230,873
B142: 1.15.1 | C142: Suministro e instalación de aparato sanitario línea blanca movilidad reducida, incluye fluxómetro, barras de apoyo, accesorios y refuerzo para barras apoyadas en muro superboard | E142: un | F142: =+'MEMORIAS CANTIDADES cap 1.16'!I29 -> 1.00 | G142: =+APU!H2439 -> $ 2,324,998 | H142: =+G142*F142 -> $ 2,324,998
B143: 1.15.2 | C143: Suministro e instalación de orinal línea blanca movilidad reducida, incluye barras de apoyo, accesorios y refuerzo para barras apoyadas en muro superboard | E143: un | F143: =+'MEMORIAS CANTIDADES cap 1.16'!I53 -> 2.00 | G143: =+APU!H2463 -> $ 845,309 | H143: $ 1,690,618
B144: 1.15.3 | C144: Suministro e instalación de lavamanos línea blanca, (incluye accesorios) | E144: un | F144: =+'MEMORIAS CANTIDADES cap 1.16'!I71 -> 1.00 | G144: =+APU!H2486 -> $ 152,505 | H144: $ 152,505
B145: 1.15.4 | C145: Suministro e instalación de ducha lava-ojos y accesorios de acuerdo a especificaciones | E145: un | F145: =+'MEMORIAS CANTIDADES cap 1.16'!I94 -> 1.00 | G145: =+APU!H2505 -> $ 1,902,244 | H145: $ 1,902,244
B146: 1.15.5 | C146: Suministro e instalación de dosificador en acero inoxidable para jabón líquido. | E146: un | F146: =+'MEMORIAS CANTIDADES cap 1.16'!I120 -> 1.00 | G146: =+APU!H2524 -> $ 306,782 | H146: $ 306,782
B147: 1.15.6 | C147: Suministro e instalación de dispensador en acero inoxidable para papel higiénico | E147: un | F147: =+'MEMORIAS CANTIDADES cap 1.16'!I144 -> 1.00 | G147: =+APU!H2543 -> $ 316,039 | H147: $ 316,039
B148: 1.15.7 | C148: Suministro e instalación de dispensador plástico para toallas papel tipo familia rollo | E148: un | F148: =+'MEMORIAS CANTIDADES cap 1.16'!I162 -> 1.00 | G148: =+APU!H2562 -> $ 448,289 | H148: $ 448,289
B149: 1.15.8 | C149: Suministro e instalación de espejo flotado biselado 0.5 x 0.60 moldura en madera pintado. | E149: un | F149: =+'MEMORIAS CANTIDADES cap 1.16'!I185 -> 1.00 | G149: =+APU!H2581 -> $ 89,398 | H149: $ 89,398
B150: 1.16 | C150: Rampas | H150: =+ROUND(SUBTOTAL(9,H151:H153),0) -> $ 7,804,498
B151: 1.16.1 | C151: Construcción de rampa en concreto de f´c=21 Mpa espesor 0.12 m, escobillado con estrías como se indica en planos. . | E151: m2 | F151: =+'MEMORIAS CANTIDADES cap 1.17'!I29 -> 14.95 | G151: =+APU!H2605 -> $ 84,273 | H151: =+ROUND(G151*F151,0) -> $ 1,259,881
B152: 1.16.2 | C152: Cordón en concreto 0.12x0.12 f´c 21 Mpa para bordes de rampa, incluye corte, flejado e instalación de acero de refuerzo de 1/4" en U de L=0.40 m y 2 varillas longitudinales. Este bordillo se construye sobre los bordes de la rampa. Las úes en acero de 1/4" deben quedar ancladas a la losa de la rampa antes de que esta fragüe. | E152: ml | F152: =+'MEMORIAS CANTIDADES cap 1.17'!I53 -> 24.90 | G152: =+APU!H2627 -> $ 16,234 | H152: $ 404,227
B153: 1.16.3 | C153: Suministro e instalación de pasamanos en tubería de acero inoxidable ornamental 304 de diámetro 1 1/4" cal 18. de acuerdo a diseño | E153: ml | F153: =+'MEMORIAS CANTIDADES cap 1.17'!I71 -> 24.90 | G153: =+APU!H2649 -> $ 246,602 | H153: $ 6,140,390
B154: 1.17 | C154: Obras exteriores | H154: =+ROUND(SUBTOTAL(9,H155:H155),0) -> $ 1,446,380
B155: 1.17.1 | C155: Suministro e instalación de tapa para canal de aguas lluvias de 0.80 x 0.50 en lamina Alfajor de 1/8" y dos rieles guía en ángulo de 1 x 1/8", pintado con anticorrosivo color gris plomo. Incluye corte en el anden con pulidora para que esta calce y quede a nivel del mismo. | E155: un | F155: =+'MEMORIAS CANTIDADES cap 1.18'!I29 -> 10.00 | G155: =+APU!H2673 -> $ 144,638 | H155: =+ROUND(G155*F155,0) -> $ 1,446,380
B156: 1.18 | C156: Aseo y limpieza de la obra | H156: =+ROUND(SUBTOTAL(9,H157:H158),0) -> $ 714,961
B157: 1.18.1 | C157: Aseo general de la obra, incluye, pisos ventanas, vidrios, cuardescobas, exteriores etc. | E157: un | F157: =+'MEMORIAS CANTIDADES cap 1.19'!I29 -> 1.00 | G157: =+APU!H2692 -> $ 231,106 | H157: =+ROUND(G157*F157,0) -> $ 231,106
B158: 1.18.2 | C158: Cargue a mano y retiro de sobrantes de obra a escombrera autorizada por el municipio de Popayán | E158: m3 | F158: =+'MEMORIAS CANTIDADES cap 1.19'!I53 -> 15.00 | G158: =+APU!H2712 -> $ 32,257 | H158: $ 483,855
B159: 2 | C159: Sala de juntas - Segundo nivel | H159: =+ROUND(SUBTOTAL(9,H160:H188),0) -> $ 12,343,384
B160: 2.1 | C160: Preliminares | H160: =+ROUND(SUBTOTAL(9,H161:H166),0) -> $ 801,618
B161: 2.1.1 | C161: Retiro de ventana metálica con vidrio y retiro de la misma a lugar de acopio indicado por la interventoría. (2.80 x 1.60 | E161: m2 | F161: =+'MEMORIAS CANTIDADES cap 2.1'!I29 -> 4.48 | G161: =+APU!H2733 -> $ 18,920 | H161: =+ROUND(G161*F161,0) -> $ 84,762
B162: 2.1.2 | C162: Desmonte de cielo raso existente, incluye transporte interno a sitio indicado por la interventoría. | E162: m2 | F162: =+'MEMORIAS CANTIDADES cap 2.1'!I53 -> 21.98 | G162: =+APU!H2753 -> $ 10,160 | H162: $ 223,317
B163: 2.1.3 | C163: Desmonte de puerta en madera con marco metálico, incluye retiro a un lugar de la obra | E163: un | F163: =+'MEMORIAS CANTIDADES cap 2.1'!I76 -> 1.00 | G163: =+APU!H2772 -> $ 31,537 | H163: $ 31,537
B164: 2.1.4 | C164: Demolición de baldosa existente y traslado de escombros a sitio de acopio aprobado por la interventoría. | E164: m2 | F164: =+'MEMORIAS CANTIDADES cap 2.1'!I99 -> 25.12 | G164: =+APU!H2791 -> $ 13,482 | H164: $ 338,668
B165: 2.1.5 | C165: Demolición de guarda escoba existente y traslado de escombros a sitio de acopio aprobado aprobado por la interventoría. | E165: ml | F165: =+'MEMORIAS CANTIDADES cap 2.1'!I122 -> 19.14 | G165: =+APU!H2810 -> $ 1,961 | H165: $ 37,534
B166: 2.1.6 | C166: Demolición pañete que se encuentre deteriorado por la humedad y retiro de escombros a un lugar aprobado por la interventoría. | E166: m2 | F166: =+'MEMORIAS CANTIDADES cap 2.1'!I145 -> 10.00 | G166: =+APU!H2829 -> $ 8,580 | H166: $ 85,800
B167: 2.2 | C167: Puertas y ventanas | H167: =+ROUND(SUBTOTAL(9,H168:H170),0) -> $ 2,139,345
B168: 2.2.1 | C168: Suministro e instalación de puerta de madera entamborada y pintada con esmalte domestico. Incluye marco en lamina pintado con anticorrosivo y pintura en esmalte domestico, bisagras, cerradura de seguridad, y los elementos que se requieran para su correcta instalación y funcionamiento, previos visto bueno de la interventoría | E168: un | F168: =+'MEMORIAS CANTIDADES cap 2.2'!I29 -> 1.00 | G168: =+APU!H2853 -> $ 536,928 | H168: =+ROUND(G168*F168,0) -> $ 536,928
B169: 2.2.2 | C169: Suministro e instalación de ventana en aluminio de 2.80 x 1.60 m sistema 744 anoloc bronce. Tres cuerpos, uno de ellos corredera con vidrio de 5 mm incoloro templado. | E169: un | F169: =+'MEMORIAS CANTIDADES cap 2.2'!I53 -> 1.00 | G169: =+APU!H2872 -> $ 1,350,000 | H169: $ 1,350,000
B170: 2.2.3 | C170: Mantenimiento a reja de seguridad. Limpieza, pintura y reinstalación. | E170: un | F170: =+'MEMORIAS CANTIDADES cap 2.2'!I76 -> 1.00 | G170: =+APU!H2895 -> $ 252,417 | H170: $ 252,417
B171: 2.3 | C171: Instalaciones eléctricas | H171: =+ROUND(SUBTOTAL(9,H172:H173),0) -> $ 1,451,019
B172: 2.3.1 | C172: Salida de iluminación 120 voltios en tubería Conduit emt ø 1/2" (PVC o EMT donde se requiera) y demás accesorios. Conductores en cable de cobre #12 AWG libre de halógenos. Incluye empalmes con conectores de resorte tipo 3M, tapa ciega circular, prensa estopa, cola en cable encauchetado 3x16 (±1.5m), tomacorriente y clavija aérea con polo a tierra para conexión de la luminaria. Mano de obra donde sea necesario de: regata, entubado, resane, cableado, aparateado, aseo. | E172: un | F172: 8.00 | G172: =+APU!H2923 -> $ 163,328 | H172: =+ROUND(G172*F172,0) -> $ 1,306,624
B173: 2.3.2 | C173: Salida para interruptor doble en tubería Conduit PVC ø 1/2’’ (y emt ø1/2’’ donde se requiera). Incluye interruptor doble 15 Amp con polo a tierra. Conductores en cable de cobre #12 AWG libre de halógenos (utilizar color negro para retornos), accesorios. Mano de obra donde sea necesario de: regata, entubado, resane, cableado, aparateado, aseo. | E173: un | F173: 1.00 | G173: =+APU!H2949 -> $ 144,395 | H173: $ 144,395
B174: 2.4 | C174: Repello muros y pintura | H174: =+ROUND(SUBTOTAL(9,H175:H177),0) -> $ 822,776
B175: 2.4.1 | C175: Repello en muros con mortero 1:3 impermeabilizado en reemplazo del retirado a causa de la humedad. | E175: m2 | F175: =+'MEMORIAS CANTIDADES cap 2.4'!I29 -> 10.00 | G175: =+APU!H2970 -> $ 18,651 | H175: =+ROUND(G175*F175,0) -> $ 186,510
B176: 2.4.2 | C176: Suministro y aplicación estuco plástico s/repello en muros, incluye filos, dilat., etc. | E176: m2 | F176: =+'MEMORIAS CANTIDADES cap 2.4'!I53 -> 10.00 | G176: =+APU!H2993 -> $ 18,735 | H176: $ 187,350
B177: 2.4.3 | C177: Suministro y aplicación de pintura tipo 1, tres manos para muros Incluye resanes donde se requiera | E177: m2 | F177: =+'MEMORIAS CANTIDADES cap 2.4'!I76 -> 34.54 | G177: =+APU!H3017 -> $ 12,997 | H177: $ 448,916
B178: 2.5 | C178: Pisos | H178: =+ROUND(SUBTOTAL(9,H179:H181),0) -> $ 2,578,128
B179: 2.5.1 | C179: Mortero 1:3 de nivelación espesor 0,04m para enchape en piso | E179: m2 | F179: =+'MEMORIAS CANTIDADES cap 2.5'!I29 -> 25.12 | G179: =+APU!H3036 -> $ 29,427 | H179: =+ROUND(G179*F179,0) -> $ 739,206
B180: 2.5.2 | C180: Suministro e instalación de piso cerámica antideslizante T5 primera calidad, color y textura serán escogidas por la interventoría. | E180: m2 | F180: =+'MEMORIAS CANTIDADES cap 2.5'!I53 -> 25.12 | G180: =+APU!H3058 -> $ 65,220 | H180: $ 1,638,334
B181: 2.5.3 | C181: Suministro e instalación de guardaescoba como producto del corte de las tabletas del enchape del piso. | E181: ml | F181: =+'MEMORIAS CANTIDADES cap 2.5'!I76 -> 19.10 | G181: =+APU!H3079 -> $ 10,502 | H181: $ 200,588
B182: 2.6 | C182: Cielo raso | H182: =+ROUND(SUBTOTAL(9,H183),0) -> $ 1,759,191
B183: 2.6.1 | C183: Suministro e instalación de cielo raso en PVC color mate, incluye estructura y todo de acuerdo con los manuales de instalación del fabricante | E183: m2 | F183: =+'MEMORIAS CANTIDADES cap 2.6'!I29 -> 21.98 | G183: =+APU!H3107 -> $ 80,036 | H183: =+ROUND(G183*F183,0) -> $ 1,759,191
B184: 2.7 | C184: Luminarias | H184: =+ROUND(SUBTOTAL(9,H185),0) -> $ 2,695,344
B185: 2.7.1 | C185: Suministro e instalación de luminaria ilte Albar lens L11605X605X70 CON MARCO - 2 1R2FT 3200Lm 18.3W REF: 02410E3000 TIPO AL1, con sus respectivos accesorios de soporte y fijación. | E185: un | F185: 8.00 | G185: =+APU!H3127 -> $ 336,918 | H185: =+ROUND(G185*F185,0) -> $ 2,695,344
B186: 2.8 | C186: Aseo y limpieza de salón de juntas | H186: =+ROUND(SUBTOTAL(9,H187:H188),0) -> $ 95,963
B187: 2.8.1 | C187: Aseo general de la obra, incluye, pisos ventanas, vidrios, cuardescobas, cielos muros, me | E187: un | F187: =+'MEMORIAS CANTIDADES cap 2.8'!I29 -> 1.00 | G187: =+APU!H3147 -> $ 71,770 | H187: =+ROUND(G187*F187,0) -> $ 71,770
B188: 2.8.2 | C188: Cargue a mano y retiro de sobrantes de obra a escombrera autorizada por el municipio de Popayan | E188: m3 | F188: =+'MEMORIAS CANTIDADES cap 2.8'!I56 -> 0.75 | G188: =+APU!H3167 -> $ 32,257 | H188: $ 24,193
B189: 3 | C189: Oficinas - Primer nivel | H189: =+ROUND(SUBTOTAL(9,H190:H200),0) -> $ 5,997,029
B190: 3.1 | C190: Instalaciones eléctricas | H190: =+ROUND(SUBTOTAL(9,H191:H192),0) -> $ 1,451,019
B191: 3.1.1 | C191: Salida de iluminación 120 voltios en tubería Conduit emt ø 1/2" (PVC o EMT donde se requiera) y demás accesorios. Conductores en cable de cobre #12 AWG libre de halógenos. Incluye empalmes con conectores de resorte tipo 3M, tapa ciega circular, prensa estopa, cola en cable encauchetado 3x16 (±1.5m), tomacorriente y clavija aérea con polo a tierra para conexión de la luminaria. Mano de obra donde sea necesario de: regata, entubado, resane, cableado, aparateado, aseo. | E191: un | F191: 8.00 | G191: =+APU!H3196 -> $ 163,328 | H191: =+ROUND(G191*F191,0) -> $ 1,306,624
B192: 3.1.2 | C192: Salida para interruptor doble en tubería Conduit PVC ø 1/2’’ (y emt ø1/2’’ donde se requiera). Incluye interruptor doble 15 Amp con polo a tierra. Conductores en cable de cobre #12 AWG libre de halógenos (utilizar color negro para retornos), accesorios. Mano de obra donde sea necesario de: regata, entubado, resane, cableado, aparateado, aseo. | E192: un | F192: 1.00 | G192: =+APU!H3222 -> $ 144,395 | H192: $ 144,395
B193: 3.2 | C193: Pintura y mantenimiento | H193: =+ROUND(SUBTOTAL(9,H194:H195),0) -> $ 1,760,831
B194: 3.2.1 | C194: Suministro y aplicación de pintura tipo 1, tres manos para muros y cielos internos. Incluye resanes donde se requiera | E194: m3 | F194: 109.80 | G194: =+APU!H3247 -> $ 12,997 | H194: $ 1,427,071
B195: 3.2.2 | C195: Mantenimiento ventanas, consistente en rasqueteado de pintura antigua, masillado y pintura | E195: un | F195: =+'MEMORIAS CANTIDADES cap 3.2'!I56 -> 2.00 | G195: =+APU!H3269 -> $ 166,880 | H195: $ 333,760
B196: 3.3 | C196: Luminarias | H196: =+ROUND(SUBTOTAL(9,H197),0) -> $ 2,695,344
B197: 3.3.1 | C197: Suministro e instalación de luminaria ilte Albar lens L11605X605X70 CON MARCO - 2 1R2FT 3200Lm 18.3W REF: 02410E3000 TIPO AL1, con sus respectivos accesorios de soporte y fijación. | E197: un | F197: 8.00 | G197: =+APU!H3289 -> $ 336,918 | H197: =+ROUND(G197*F197,0) -> $ 2,695,344
B198: 3.4 | C198: Aseo y limpieza de oficinas | H198: =+ROUND(SUBTOTAL(9,H199:H200),0) -> $ 89,835
B199: 3.4.1 | C199: Aseo general de la obra, incluye, pisos ventanas, vidrios, cuardescobas, cielos muros, etc. | E199: un | F199: =+'MEMORIAS CANTIDADES cap 3.4'!I29 -> 1.00 | G199: =+APU!H3309 -> $ 65,642 | H199: =+ROUND(G199*F199,0) -> $ 65,642
B200: 3.4.2 | C200: Cargue a mano y retiro de sobrantes de obra a escombrera autorizada por el municipio de popayan | E200: m3 | F200: =+'MEMORIAS CANTIDADES cap 3.4'!I56 -> 0.75 | G200: =+APU!H3329 -> $ 32,257 | H200: $ 24,193
E202: TOTAL COSTO DIRECTO | H202: =+ROUND(SUBTOTAL(9,H13:H200),0) -> $ 203,978,163
E204: Administración | G204: =+AUI!G64 -> $ 0 | H204: =+ROUND($H$202*G204,0) -> $47,424,923
E205: Imprevistos | G205: 3% | H205: =+ROUND($H$202*G205,0)-1 -> $6,119,344
E206: Utilidad | G206: 5% | H206: =+ROUND($H$202*G206,0) -> $10,198,908
E207: Subtotal AIU | G207: =SUM(G204:G206) -> $ 0 | H207: =+SUM(H204:H206) -> $63,743,175
E209: Valor antes de IVA | H209: =+H207+H202 -> $267,721,338
E211: IVA ( 19% sobre Utilidad) | G211: 19% | H211: =+ROUND(G211*H206,0) -> $1,937,793
E213: Total | H213: =ROUND(+H211+H207+H202,0) -> $269,659,131
H214: ajustes al peso
... 8 more rows

Sheet AUI
C2: =DATOS!B2 -> CENTRO DE DESARROLLO TECNOLÓGICO PARA LA INNOVACIÓN DE LA INFRAESTRUCTURA VIAL
C3: CÁLCULO DETALLADO DEL VALOR PORCENTUAL DEL A.I.U.
I5: =+G67 -> $ 0
A6: Duración estimada del Proyecto en meses | G6: 4 | I6: $ 0 | J6: =+ROUND(I6*G$7,0) -> $ 46,914,977 | L6: $ 0
A7: Costo directo total del Proyecto | G7: =+PRESUPUESTO!H202 -> $ 203,978,163 | I7: $ 0 | J7: =+ROUND(I7*G$7,0) -> $ 6,119,345
I8: $ 0 | J8: =+ROUND(I8*G$7,0) -> $ 10,198,908
A9: A.I.U. Asumido para el cálculo | C9: =+I9 -> $ 0 | G9: =+ROUND(G7*C9,0) -> $ 63,233,231.0 | I9: =SUM(I6:I8) -> $ 0 | J9: =SUM(J6:J8) -> $ 63,233,230
A10: IVA | C10: $ 0 | G10: =+ROUND(J8*C10,0) -> $ 1,937,793 | J10: =+J8*0.19*0 -> $ 0
A11: Presupuesto elementos de protección COVID | G11: =+PRESUPUESTO!H218 -> $ 0
A12: Certificación RETIE | G12: =+PRESUPUESTO!H219 -> $ 2,000,000
A13: Valor Total del proyecto | G13: =+PRESUPUESTO!#REF! -> 
A14: Valor total estimado del Proyecto | G14: =+G7+G9+G10+G11+G12 -> $ 271,149,187.0 | I14: =+PRESUPUESTO!H226 -> $ 271,659,131.00 | J14: =+I14-G14 -> $ 509,944.0
A16: DESCRIPCIÓN | C16: UN | D16: CANTIDAD ó PORCENTEJE | E16: VR UNITARIO ó VR DE REFERENCIA | F16: DEDICACIÓN ó PORCENTAJE DE UTILIZACIÓN | G16: CÁLCULO DETALLADO DEL VALOR PORCENTUAL DEL A.I.U.
A17: GASTOS DE ALQUILER, TRANSPORTE, ARRENDAMIENTO Y OFICINA
A18: Valla Informativa General del Proyecto | C18: Gl | D18: 0.0 | E18: $ 200,000 | F18: 100% | G18: =+ROUND(D18*E18*F18,0) -> 0
A19: Servicios públicos de la Obra | C19: Mes | D19: 4.0 | E19: $ 0 | F19: 100% | G19: =+ROUND(D19*E19*F19,0) -> 0
A20: Transportes en Obra | C20: Gl | D20: 0.0 | E20: $ 0 | F20: 100% | G20: 0
A21: Arrendamiento Almacén | C21: Mes | D21: 4.0 | F21: 100% | G21: 0
A22: Gastos oficina principal | C22: Mes | D22: 4.0 | E22: $ 300,000 | F22: 40% | G22: $ 480,000.00
A23: Costo de Comunicaciones | C23: Mes | D23: 4.0 | E23: $ 150,000 | F23: 100% | G23: $ 600,000.00
A24: Oficina en obra | C24: Mes | D24: 0.0 | E24: $ 200,000 | F24: 0% | G24: 0
A25: Vehiculo | C25: Mes | D25: =+D23 -> 4.0 | E25: $ 1,500,000 | F25: 0% | G25: 0
A26: Equipo de topografía | C26: Mes | D26: =+D24 -> 0.0 | E26: $ 0 | F26: 100% | G26: 0
A27: Ensayos de Laboratorio | C27: Mes | D27: 4.0 | E27: $ 0 | F27: 100% | G27: 0
A28: Transporte y Viáticos de especialistas y Director | C28: Mes | D28: =+D26 -> 0.0 | E28: $ 0 | F28: 100% | G28: 0
A29: Ensayo de granulometría | C29: Mes | D29: 3.0 | E29: $ 11,000 | F29: 0 | G29: 0
A30: Ensayo de dureza (micro- Deval) | C30: Mes | D30: 3.0 | E30: $ 70,000 | F30: 0 | G30: 0
A31: Ensayo de durabilidad (solidez en sulfato de sodio) | C31: Mes | D31: 3.0 | E31: $ 70,000 | F31: 0 | G31: 0
A32: Ensayo de Indice de plasticidad | C32: Mes | D32: 3.0 | E32: $ 10,800 | F32: 0 | G32: 0
A33: Ensayo de Equivalente de arena | C33: Mes | D33: 3.0 | E33: $ 34,500 | F33: 0 | G33: 0
A34: Dotación Almacen y Oficina | C34: Mes | D34: 3.0 | E34: $ 130,000 | F34: 100% | G34: $ 390,000.00
A35: POLIZAS
A36: Póliza de Anticipo | C36: % | D36: 0.045% | E36: =+G$14 -> $ 271,149,187 | F36: 100% | G36: =+ROUND(D36*E36*F36,0) -> $ 122,017.00
A37: Póliza de Cumplimiento | C37: % | D37: 0.042% | E37: =+G$14 -> $ 271,149,187 | F37: 100% | G37: $ 113,883.00
A38: Póliza de Salarios y Prestaciones Sociales | C38: % | D38: 0.355% | E38: $ 271,149,187 | F38: 100% | G38: $ 962,580.00
A39: Póliza de Estabilidad | C39: % | D39: 0.187% | E39: $ 271,149,187 | F39: 100% | G39: $ 507,049.00
A40: Póliza de Responsabilidad Civil | C40: % | D40: 0.071% | E40: $ 271,149,187 | F40: 100% | G40: $ 192,516.00
A41: IMPUESTOS
A42: Impuestos departamentales y nacionales | C42: % | D42: $ 0 | E42: $ 271,149,187 | F42: 100% | G42: $ 8,324,280.00
A43: PERSONAL ADMINISTRATIVO
A44: SecretarÍa de la Oficina Ppal (Incluye Prestaciones) | C44: Mes | D44: 4.0 | E44: =+G82 -> $ 1,511,696.00 | F44: $ 1 | G44: =+D44*E44*F44 -> $ 6,046,784.00
A45: Secretaria de la Oficina en obra | C45: Gl | D45: 1.0 | E45: =+G82 -> $ 1,511,696.00 | F45: 0% | G45: =+D45*E45*F45 -> 0
A46: Almacenista de la Obra (Incluye Prestaciones) | C46: Mes | D46: 3.5 | E46: =+G84 -> $ 1,303,500.00 | F46: 80% | G46: =+D46*E46*F46 -> $ 3,649,800.00
A47: Celador de la Obra (Incluye Prestaciones) | C47: Mes | D47: 3.5 | E47: =+G85 -> 0 | F47: 100% | G47: 0
A48: Cuadrilla tipo 1 por administración | C48: Gl | D48: 1.0 | E48: 0 | F48: 100% | G48: 0
A49: PERSONAL TÉCNICO
A50: INGENIERO DIRECTOR (Con Prestac. Sociales) | C50: Mes | D50: 4.0 | E50: =+G70 -> $ 5,770,450.00 | F50: 40% | G50: $ 9,232,720.00
A51: INGENIERO RESIDENTE (Con Prestac. Sociales) | C51: Mes | D51: 3.5 | E51: =+G71 -> $ 4,159,750.00 | F51: 100% | G51: =+D51*E51*F51 -> $ 14,559,125.00
A52: SG-SST | C52: Mes | D52: 3.0 | E52: =+G72 -> $ 2,495,850.00 | F52: 30% | G52: $ 2,246,265.00
A53: INGENIERO HIDRAULICO | C53: Gl | D53: =+G$6 -> 4.0 | E53: 0 | F53: 0% | G53: 0
A54: ESPECIALISTA AMBIENTAL | C54: Mes | D54: 4.0 | E54: 0 | F54: 0% | G54: 0
A55: ESPECIALISTA EN ESTRUCTURAS | C55: Gl | D55: 4.0 | E55: 0 | F55: 0% | G55: 0
A56: ESPECIALISTA GEOTECNIA | C56: Mes | D56: 0.0 | E56: 0 | G56: 0
A57: INSPECTOR DE OBRA (Con Prestac. Sociales) | C57: Mes | D57: 0.0 | E57: 0 | F57: 50% | G57: 0
A58: TOPOGRAFO | C58: Gl | D58: 4.0 | E58: =+G79 -> 0 | F58: 0% | G58: 0
A59: CADENERO PRIMERO | C59: Gl | D59: 4.0 | E59: =+G80 -> 0 | F59: 0% | G59: 0
A60: CADENERO SEGUNDO | C60: Gl | D60: 4.0 | E60: =+G81 -> 0 | F60: 0% | G60: 0
A61: CONDUCTOR (Con Prestac. Sociales) | C61: Mes | D61: 4.0 | E61: =+G86 -> 0 | F61: =+F25 -> 0% | G61: 0
A63: Valor total de los Costos de Administración | G63: =SUM(G18:G62) -> $ 47,427,019.00
A64: Valor porcentual de la Administración | G64: =ROUND(G63/G7,4) -> $ 0
A65: Valor porcentual de los Imprevistos | G65: $ 0
A66: Valor porcentual de la Utilidad estimada | G66: =+I8 -> $ 0
A67: Valor Total porcentual del A.I.U. Calculado | G67: =SUM(G64:G66) -> $ 0
A69: CANT | B69: CARGO | E69: VR SALARIO | F69: % PREST. | G69: VALOR TOTAL
A70: 1 | B70: INGENIERO DIRECTOR | E70: $ 3,500,000.00 | F70: 1.65 | G70: =+F70*E70*A70 -> $ 5,770,450.00
A71: 1 | B71: INGENIERO RESIDENTE | E71: $ 2,500,000.00 | F71: 1.66 | G71: =+F71*E71*A71 -> $ 4,159,750.00
A72: 1 | B72: =+A52 -> SG-SST | E72: $ 1,500,000.00 | F72: 1.66 | G72: =+F72*E72*A72 -> $ 2,495,850.00
A73: 0 | B73: INGENIERO HIDRAULICO | D73: =ROUND(E73/535600,2) -> 6 | E73: $ 3,000,000.00 | F73: =IF(E73>2*H$70,1.58,1.71) -> 1.58 | G73: 0
A74: 0 | B74: INGENIERO AMBIENTAL | D74: 6 | E74: =+E73 -> $ 3,000,000.00 | F74: =IF(E74>2*H$70,1.58,1.71) -> 1.58 | G74: 0
A75: 0 | B75: ESPECIALISTA EN ESTRUCTURAS | D75: 6 | E75: =+E73 -> $ 3,000,000.00 | F75: =IF(E75>2*H$70,1.58,1.71) -> 1.58 | G75: 0
A76: 0 | B76: INGENIERO GEOTECNISTA | D76: 2 | E76: $ 1,200,000.00 | F76: 1.65 | G76: =+F76*E76*A76 -> 0
A77: 0 | B77: INSPECTOR DE OBRA | D77: 3 | E77: $ 1,500,000.00 | F77: =IF(E77>2*H$70,1.58,1.71) -> 1.58 | G77: 0
A78: 0 | B78: PROFESIONAL GESTION SOCIAL | D78: 3 | E78: $ 1,800,000.00 | F78: =IF(E78>2*H$70,1.58,1.71) -> 1.58 | G78: 0
A79: 0 | B79: TOPOGRAFO | E79: $ 2,000,000.00 | F79: =IF(E79>2*H$70,1.58,1.71) -> 1.58 | G79: 0
A80: 0 | B80: CADENERO PRIMERO | E80: $ 1,200,000.00 | F80: =IF(E80>2*H$70,1.58,1.71) -> 1.58 | G80: 0
A81: 0 | B81: CADENERO SEGUNDO | E81: $ 800,000.00 | F81: =IF(E81>2*H$70,1.58,1.71) -> 1.58 | G81: 0
A82: 1 | B82: SECRETARIA | D82: 2 | E82: $ 908,526.00 | F82: 1.66 | G82: =ROUND(+F82*E82*A82,0) -> $ 1,511,696.00
A83: 0 | B83: MENSAJERO | D83: 1 | E83: =+E$81 -> $ 800,000.00 | F83: =IF(E83>2*H$70,1.58,1.71) -> 1.58 | G83: 0
A84: 1 | B84: ALMACENISTA | D84: 2 | E84: $ 825,000.00 | F84: =IF(E84>2*H$70,1.58,1.71) -> 1.58 | G84: $ 1,303,500.00
A85: 0 | B85: CELADOR | D85: 1 | E85: =+E$81 -> $ 800,000.00 | F85: =IF(E85>2*H$70,1.58,1.71) -> 1.58 | G85: 0
A86: 0 | B86: CONDUCTOR | E86: =+E$81 -> $ 800,000.00 | F86: =IF(E86>2*H$70,1.58,1.71) -> 1.58 | G86: 0
B91: FIRMA

Sheet SALARIOS Y PRESTACIONES
D2: =[1]DATOS!B2 -> CENTRO DE DESARROLLO TECNOLÓGICO PARA LA INNOVACIÓN DE LA INFRAESTRUCTURA VIAL FECULTAD DE INGENIERIA CIVIL UNIVERSIDAD DEL CAUCA
D3: SUELDOS Y PARAFISCALES PERSONAL POR SALARIO MINIMO
B7: ENERO DE 2022
B8: SALARIO ANUAL SMMLV | C8: 1.00 | D8: 1.20 | E8: 1.50 | F8: 1.80 | G8: 2.00 | H8: 2.50 | I8: 3.00 | J8: 3.50 | K8: 4.00
B9: AUX TRANS ANUAL SIN DESC (B*12) | C9: =+C10*12 -> 1,406,064.00 | D9: 1,277,448.00 | E9: 1,277,448.00 | F9: 1,277,448.00 | G9: 1,277,448.00 | H9: 0.00 | I9: 0.00 | J9: 0.00 | K9: 0.00
B10: (B) AUX TRANS MES | C10: 117,172.00 | D10: 106,454.00 | E10: 106,454.00 | F10: 106,454.00 | G10: 106,454.00 | H10: 0.00 | I10: 0.00 | J10: 0.00 | K10: 0.00
B11: (A) SALARIO MES | C11: 1,000,000.00 | D11: =ROUND(908526*D8,0) -> 1,090,231.00 | E11: 1,362,789.00 | F11: 1,635,347.00 | G11: 1,817,052.00 | H11: 2,271,315.00 | I11: 2,725,578.00 | J11: 3,179,841.00 | K11: 3,634,104.00
B12: SUELDO ANUAL (Ax 12) | C12: =+ROUND(C11*12,0) -> 12,000,000.00 | D12: 13,082,772.00 | E12: 16,353,468.00 | F12: 19,624,164.00 | G12: 21,804,624.00 | H12: 27,255,780.00 | I12: 32,706,936.00 | J12: 38,158,092.00 | K12: 43,609,248.00
B13: (C ) CESANTIAS (A+B)*10% | C13: =+ROUND((C12+C9)*0.1,0) -> 1,340,606.00 | D13: 1,436,022.00 | E13: 1,763,092.00 | F13: 2,090,161.00 | G13: 2,308,207.00 | H13: 2,725,578.00 | I13: 3,270,694.00 | J13: 3,815,809.00 | K13: 4,360,925.00
B14: VACACIONES (A+B) | C14: =+ROUND(C11/2,0) -> 500,000.00 | D14: 545,116.00 | E14: 681,395.00 | F14: 817,674.00 | G14: 908,526.00 | H14: 1,135,658.00 | I14: 1,362,789.00 | J14: 1,589,921.00 | K14: 1,817,052.00
B15: PRIMA (A+B) | C15: =+C11+C10 -> 1,117,172.00 | D15: 1,196,685.00 | E15: 1,469,243.00 | F15: 1,741,801.00 | G15: 1,923,506.00 | H15: 2,271,315.00 | I15: 2,725,578.00 | J15: 3,179,841.00 | K15: 3,634,104.00
B16: INTERÉS DE CESANTÍA (CX12%) | C16: =+ROUND(C13*(1%*12),0) -> 160,873.00 | D16: 172,323.00 | E16: 211,571.00 | F16: 250,819.00 | G16: 276,985.00 | H16: 327,069.00 | I16: 392,483.00 | J16: 457,897.00 | K16: 523,311.00
B17: FONDO FORMACIÓN PROFESIONAL DEL SENA (A+12/40) | C17: =+ROUND((C11*12)/40,0) -> 300,000.00 | D17: =+ROUND((C11*12)/40,0) -> 300,000.00 | E17: =+ROUND((C11*12)/40,0) -> 300,000.00 | F17: =+ROUND((C11*12)/40,0) -> 300,000.00 | G17: =+ROUND((C11*12)/40,0) -> 300,000.00 | H17: =+ROUND((C11*12)/40,0) -> 300,000.00 | I17: =+ROUND(($C$11*12)/40,0) -> 300,000.00 | J17: =+ROUND(($C$11*12)/40,0) -> 300,000.00 | K17: =+ROUND(($C$11*12)/40,0) -> 300,000.00
B18: AUX TRANSP CON DESC (B/30)-(360-18) | C18: =(C10/30)*(360-18) -> 1,335,760.80 | D18: 1,213,575.60 | E18: 1,213,575.60 | F18: 1,213,575.60 | G18: 1,213,575.60 | H18: 0.00 | I18: 0.00 | J18: 0.00 | K18: 0.00
B19: SALUD, ENFERMEDAD GENERAL Y MUERTE SEGÚN CREE | C19: =+ROUND(C12*16.5%,0) -> 1,980,000.00 | D19: 2,158,657.00 | E19: 2,698,322.00 | F19: 3,237,987.00 | G19: 3,597,763.00 | H19: 4,497,204.00 | I19: 5,396,644.00 | J19: 6,296,085.00 | K19: 7,195,526.00
B20: PENSION ((A*12)*12%) | C20: =+ROUND(C12*12%,0) -> 1,440,000.00 | D20: 1,569,933.00 | E20: 1,962,416.00 | F20: 2,354,900.00 | G20: 2,616,555.00 | H20: 3,270,694.00 | I20: 3,924,832.00 | J20: 4,578,971.00 | K20: 5,233,110.00
B21: RIESGOS PROFESIONALES ((A*12)*6,96) | C21: =+ROUND((C11*12)*6.96%,0) -> 835,200.00 | D21: 910,561.00 | E21: 1,138,201.00 | F21: 1,365,842.00 | G21: 1,517,602.00 | H21: 1,897,002.00 | I21: 2,276,403.00 | J21: 2,655,803.00 | K21: 3,035,204.00
B22: CAJA DE COMPENSACIÓN (A*12)*4%) | C22: =+ROUND((C11*12)*4%,0) -> 480,000.00 | D22: 523,311.00 | E22: 654,139.00 | F22: 784,967.00 | G22: 872,185.00 | H22: 1,090,231.00 | I22: 1,308,277.00 | J22: 1,526,324.00 | K22: 1,744,370.00
B23: SENA SEGÚN CREE | C23: 0.00 | D23: 0.00 | E23: 0.00 | F23: 0.00 | G23: 0.00 | H23: 0.00 | I23: 0.00 | J23: 0.00 | K23: 0.00
B24: ICBF SEGÚN CREE | C24: 0.00 | D24: 0.00 | E24: 0.00 | F24: 0.00 | G24: 0.00 | H24: 0.00 | I24: 0.00 | J24: 0.00 | K24: 0.00
B25: DOTACIÓN | C25: 405,900.00 | D25: 405,900.00 | E25: 405,900.00 | F25: 405,900.00 | G25: 405,900.00 | H25: 0.00 | I25: 0.00 | J25: 0.00 | K25: 0.00
B26: EXAMEN MÉDICO | C26: 336,280.00 | D26: 336,280.00 | E26: 336,280.00 | F26: 336,280.00 | G26: 336,280.00 | H26: 336,280.00 | I26: 336,280.00 | J26: 336,280.00 | K26: 336,280.00
B27: Total (X) | C27: =SUM(C12:C26) -> 22,231,791.80 | D27: 23,851,135.60 | E27: 29,187,602.60 | F27: 34,524,070.60 | G27: 38,081,708.60 | H27: 45,106,811.00 | I27: 54,000,916.00 | J27: 62,895,023.00 | K27: 71,789,130.00
B29: SALARIO NOMINAL
B30: ANUAL | C30: =+C9+C12 -> 13,406,064 | D30: 14,360,220 | E30: 17,630,916 | F30: 20,901,612 | G30: 23,082,072 | H30: 27,255,780 | I30: 32,706,936 | J30: 38,158,092 | K30: 43,609,248
B31: MENSUAL | C31: =+C10+C11 -> 1,117,172 | D31: 1,196,685 | E31: 1,469,243 | F31: 1,741,801 | G31: 1,923,506 | H31: 2,271,315 | I31: 2,725,578 | J31: 3,179,841 | K31: 3,634,104
B32: DIA | C32: =+C31/30 -> 37,239 | D32: 39,890 | E32: 48,975 | F32: 58,060 | G32: 64,117 | H32: 75,711 | I32: 90,853 | J32: 105,995 | K32: 121,137
B33: HORA | C33: =+ROUND(C32/8,0) -> 4,655 | D33: 4,986 | E33: 6,122 | F33: 7,258 | G33: 8,015 | H33: 9,464 | I33: 11,357 | J33: 13,249 | K33: 15,142
B36: CALCULO DEL SOBRECOSTO PARA HORAS EFECTIVAS TRABAJADAS
B37: (F) SALARIO MÍNIMO ANUAL CON PRESTACIONES | D37: =+C27 -> 22,231,791.80
B38: (G) HORAS CALENDARIO ANUALES | C38: 360 x 8 HORAS | D38: =360*8 -> 2,880.00
B39: (H) HORAS LABORALES ANUALES | C39: 52 SEMANAS X 48 HORAS | D39: =48*52 -> 2,496.00
B40: (I) HORAS EFECTIVAS ANUALES | C40: 2920-((52 DOMINGOS+15 FESTIVOS+3 PERMISOS+15 DÍAS VACACIONES)X8 HORAS) | D40: =2920-((52+15+3+15)*8) -> 2,240.00
B41: (J) VALOR HORA CALENDARIO (F/G) | D41: =+D37/D38 -> 7,719.37 | E41: $ 1
B42: (K) VALOR HORA LABORAL (F/H) | D42: =+D37/D39 -> 8,906.97 | E42: =+(D42*E41)/D41 -> $ 1
B43: (L) VALOR HORA EFECTIVA (F/I) | D43: =+D37/D40 -> 9,924.91 | E43: =+(D43*E42)/D42 -> $ 1
B46: SALARIO ANUAL SMMLV | C46: PORCENTAJE SALARIO VS SALARIO MÁS ADICIONES ((Total ANUALX100%)/(SUELDO ANUAL+AUXILIO Transporte ANUAL) | E46: PORCENTAJE HORA EFECTIVA BASE HORA CALENDARIO
B47: 1.00 | C47: $ 2 | E47: $ 2
B48: 1.20 | C48: $ 2 | E48: $ 2 | H48: $ 1
B49: 1.50 | C49: $ 2 | E49: $ 2
B50: 1.80 | C50: $ 2 | E50: $ 2
B51: 2.00 | C51: $ 2 | E51: $ 2 | H51: $ 1
B52: 2.50 | C52: $ 2 | E52: $ 2
B53: 3.00 | C53: $ 2 | E53: $ 2
B54: 3.50 | C54: $ 2 | E54: $ 2
B55: 4.00 | C55: $ 2 | E55: $ 2
B60: SUELDOS Y PARAFISCALES PERSONAL DE OBRA POR ADMINISTRACION
C62: DIRECTOR DE OBRA | D62: RESIDENTE DE OBRA | E62: VIGILANTE | F62: MAESTRO GENERAL | G62: ALMACENISTA | H62: OFICIALES | I62: AYUDANTES
C64: 10 | D64: 5.5 | E64: 1.2 | F64: 3 | G64: 1.8 | H64: 2 | I64: 1.2
B65: SALARIO ANUAL SMMLV | C65: 4.00 | D65: 2.00 | E65: 1 | F65: 3 | G65: 1 | H65: 2 | I65: 1.2
B66: AUX TRANS ANUAL SIN DESC (B*12) | C66: 1 | D66: =+D67*12 -> 0 | E66: 932,400 | F66: 932,400 | G66: 932,400 | H66: 932,400 | I66: 932,400
B67: (B) AUX TRANS MES | C67: 0 | D67: 0 | E67: 77,700 | F67: 77,700 | G67: 77,700 | H67: 77,700 | I67: 77,700
B68: (A) SAL MES | C68: =ROUND(689455*C65,0) -> 2,757,820 | D68: 1,378,910 | E68: 689,455 | F68: 2,068,365 | G68: 689,455 | H68: 1,378,910 | I68: 827,346
B69: SUELDO ANUAL (Ax 12) | C69: =+ROUND(C68*12,0) -> 33,093,840 | D69: 16,546,920 | E69: 8,273,460 | F69: 24,820,380 | G69: 8,273,460 | H69: 16,546,920 | I69: 9,928,152
B70: (C ) CESANTÍAS (A+B)*10% | C70: =+ROUND((C69+C66)*0.1,0) -> 3,309,384 | D70: 1,654,692 | E70: 920,586 | F70: 2,575,278 | G70: 920,586 | H70: 1,747,932 | I70: 1,086,055
B71: VACACIONES (A+B) | C71: =+ROUND(C68/2,0) -> 1,378,910 | D71: 689,455 | E71: 344,728 | F71: 1,034,183 | G71: 344,728 | H71: 689,455 | I71: 413,673
B72: PRIMA (A+B) | C72: =+C68+C67 -> 2,757,820 | D72: 1,378,910 | E72: 767,155 | F72: 2,146,065 | G72: 767,155 | H72: 1,456,610 | I72: 905,046
B73: INTERÉS DE CESANTÍA (CX12%) | C73: =+ROUND(C70*(1%*12),0) -> 397,126 | D73: 198,563 | E73: 110,470 | F73: 309,033 | G73: 110,470 | H73: 209,752 | I73: 130,327
B74: FONDO FORMACIÓN PROFESIONAL DEL SENA (908526+12/40) | C74: =+ROUND((908526*12)/40,0) -> 272,558 | D74: =+ROUND((908526*12)/40,0) -> 272,558 | E74: =+ROUND((908526*12)/40,0) -> 272,558 | F74: =+ROUND((689455*12)/40,0) -> 206,837 | G74: =+ROUND((689455*12)/40,0) -> 206,837 | H74: =+ROUND((689455*12)/40,0) -> 206,837 | I74: =+ROUND((689455*12)/40,0) -> 206,837
B75: AUX TRANSP CON DESC (B/30)-(360-18) | C75: =(C67/30)*(360-18) -> 0 | D75: 0 | E75: 885,780 | F75: 885,780 | G75: 885,780 | H75: 885,780 | I75: 885,780
B76: SALUD, ENFERMEDAD GENERAL Y MUERTE SEGÚN CREE | C76: =+ROUND(C69*16.5%,0) -> 5,460,484 | D76: 2,730,242 | E76: 1,365,121 | F76: 4,095,363 | G76: 1,365,121 | H76: 2,730,242 | I76: 1,638,145
B77: PENSIÓN ((A*12)*12%) | C77: =+ROUND(C69*12%,0) -> 3,971,261 | D77: 1,985,630 | E77: 992,815 | F77: 2,978,446 | G77: 992,815 | H77: 1,985,630 | I77: 1,191,378
B78: RIESGOS PROFESIONALES ((A*12)*6,96) | C78: =+ROUND((C68*12)*6.96%,0) -> 2,303,331 | D78: 1,151,666 | E78: 575,833 | F78: 1,727,498 | G78: 575,833 | H78: 1,151,666 | I78: 690,999
B79: CAJA DE COMPENSACIÓN (A*12)*4%) | C79: =+ROUND((C68*12)*4%,0) -> 1,323,754 | D79: 661,877 | E79: 330,938 | F79: 992,815 | G79: 330,938 | H79: 661,877 | I79: 397,126
B80: SENA SEGÚN CREE | C80: 0 | D80: 0 | E80: 0 | F80: 0 | G80: 0 | H80: 0 | I80: 0
B81: ICBF SEGUN CREE | C81: 0 | D81: 0 | E81: 0 | F81: 0 | G81: 0 | H81: 0 | I81: 0
B82: DOTACIÓN | C82: 0 | D82: 0 | E82: 405,900 | F82: 405,900 | G82: 405,900 | H82: 405,900 | I82: 405,900
B83: EXAMEN MÉDICO | C83: 336,280 | D83: 336,280 | E83: 336,280 | F83: 336,280 | G83: 336,280 | H83: 336,280 | I83: 336,280
B84: Total (X) | C84: =SUM(C69:C83)-6 -> 54,604,742 | D84: =SUM(D69:D83)+3 -> 27,606,796.00 | E84: =SUM(E69:E83) -> 15,581,624.00 | F84: =SUM(F69:F83) -> 42,513,858 | G84: =SUM(G69:G83) -> 15,515,903 | H84: =SUM(H69:H83) -> 29,014,881 | I84: =SUM(I69:I83) -> 18,215,698
B85: Total MES | C85: =ROUND(C84/12,0) -> 4,550,395.000 | D85: =D84/12 -> 2,300,566.33 | E85: 1,298,468.67 | F85: 3,542,822 | G85: 1,292,992 | H85: 2,417,907 | I85: 1,517,975
C91: FIRMA

Sheet CUADRILLAS
E2: =[1]DATOS!B2 -> CENTRO DE DESARROLLO TECNOLÓGICO PARA LA INNOVACIÓN DE LA INFRAESTRUCTURA VIAL FECULTAD DE INGENIERIA CIVIL UNIVERSIDAD DEL CAUCA
E6: CÁLCULO DE CUADRILLAS
E9: No. en salarios mínimos
C10: Ayudante A | D10: SALARIO MIN | E10: (1,2SMMLV+1 AT) | F10: día | G10: h-H
B11: Ayudante A | C11: 2022 | D11: $ 1,000,000.00 | E11: =1.2*D11+117172 -> $ 1,317,172.00 | F11: =+ROUND(E11/30,0) -> $ 43,906.00 | G11: =+F11/8 -> $ 5,488.25
C13: Ayudante B | E13: (1,5SMMLV+1 AT) | F13: día
B14: Ayudante B | C14: 2022 | D14: $ 1,000,000.00 | E14: =1.5*D14+117172 -> $ 1,617,172.00 | F14: =+ROUND(E14/30,0) -> $ 53,906.00 | G14: =+F14/8 -> $ 6,738.25
C16: Oficial A | E16: (2MMLV+1 AT) | F16: día
B17: Oficial A | C17: =+C11 -> 2022 | D17: $ 1,000,000.00 | E17: =2*D17+117172 -> $ 2,117,172.00 | F17: =+ROUND(E17/30,0) -> $ 70,572.00 | G17: =+F17/8 -> $ 8,821.50
C19: Oficial B | E19: (3MMLV) | F19: día
B20: Oficial B | C20: =+C17 -> 2022 | D20: $ 1,000,000.00 | E20: =3*D20 -> $ 3,000,000.00 | F20: =+ROUND(E20/30,0) -> $ 100,000.00 | G20: =+F20/8 -> $ 12,500.00
C23: CALCULO DE CUADRILLAS 2021
C25: Clave | E25: Descripción | F25: Unidad | G25: Cantidad | H25: VALOR | I25: (F.P) | J25: Total
C27: =+D131 -> CUAD-01 | E27: Cuadrilla AA (Albañilería) 1Of y 1 Ay | F27: h-C | J27: =SUM(J28:J29) -> 30,338.64
E28: Ayudante A | F28: h-H | G28: 1 | H28: =+VLOOKUP(E28,$B$11:$G$20,6) -> 5,488.25 | I28: =+H28*G31 -> 6,184.87 | J28: =(+I28+H28)*G28 -> 11,673.12
E29: Oficial A | F29: h-H | G29: 1 | H29: =+VLOOKUP(E29,$B$11:$G$20,6) -> 8,821.50 | I29: =+H29*G32 -> 9,844.02 | J29: =(+I29+H29)*G29 -> 18,665.52
C31: O00901 | D31: 1,2 SMMLV | E31: Factor prestacional de ingreso por hora efectiva / base hora laboral | F31: % | G31: =+'[1]SALARIOS Y PRESTACIONES'!$D$47-100% -> $ 1
D32: 2 SMMLV | G32: =+'[1]SALARIOS Y PRESTACIONES'!$G$47-100% -> $ 1
C34: =+D132 -> CUAD-02 | E34: Cuadrilla AA 1Of+2Ay (Albañilería) | F34: h-C | J34: =SUM(J35:J36) -> 42,011.76
C35: O00001 | E35: Ayudante A | F35: h-H | G35: 2 | H35: =+VLOOKUP(E35,$B$11:$G$20,6) -> 5,488.25 | I35: =+H35*G38 -> 6,184.87 | J35: =(+I35+H35)*G35 -> 23,346.24
C36: O00002 | E36: Oficial A | F36: h-H | G36: 1 | H36: =+VLOOKUP(E36,$B$11:$G$20,6) -> 8,821.50 | I36: =+H36*G39 -> 9,844.02 | J36: =(+I36+H36)*G36 -> 18,665.52
C38: O00901 | D38: 1,2 SMMLV | E38: Factor prestacional de ingreso por hora efectiva / base hora laboral (F.P) | F38: % | G38: =+'[1]SALARIOS Y PRESTACIONES'!$D$47-100% -> $ 1
D39: 2 SMMLV | G39: =+'[1]SALARIOS Y PRESTACIONES'!$G$47-100% -> $ 1
C41: =+D133 -> CUAD-03 | E41: Cuadrilla AA (Albañilería) 1 Ay | F41: h-C | J41: =SUM(J42:J43) -> 11,673.12
E42: Ayudante A | F42: h-H | G42: 1 | H42: =+VLOOKUP(E42,$B$11:$G$20,6) -> 5,488.25 | I42: =+H42*G45 -> 6,184.87 | J42: =(+I42+H42)*G42 -> 11,673.12
E43: Oficial A | F43: h-H | G43: 1
C45: O00901 | D45: 1,2 SMMLV | E45: Factor prestacional de ingreso por hora efectiva / base hora laboral | F45: % | G45: =+'[1]SALARIOS Y PRESTACIONES'!$D$47-100% -> $ 1
D46: 2 SMMLV | G46: =+'[1]SALARIOS Y PRESTACIONES'!$G$47-100% -> $ 1
C48: =+D134 -> CUAD-04 | E48: Cuadrilla AA (Albañilería) 1 Oficial | F48: h-C | J48: =SUM(J49:J50) -> 18,665.52
E49: Ayudante A | F49: h-H
E50: Oficial A | F50: h-H | G50: 1 | H50: =+VLOOKUP(E50,$B$11:$G$20,6) -> 8,821.50 | I50: =+H50*G53 -> 9,844.02 | J50: =(+I50+H50)*G50 -> 18,665.52
C52: O00901 | D52: 1,2 SMMLV | E52: Factor prestacional de ingreso por hora efectiva / base hora laboral | F52: % | G52: =+'[1]SALARIOS Y PRESTACIONES'!$D$47-100% -> $ 1
D53: 2 SMMLV | G53: =+'[1]SALARIOS Y PRESTACIONES'!$G$47-100% -> $ 1
C55: =+D135 -> CUAD-05 | E55: Cuadrilla BB (Instalaciones) 1 Of y 1 Ay | F55: h-C | G55: $ 0 | J55: =SUM(J56:J57) -> 30,338.64
E56: Ayudante A Instalaciones | F56: h-H | G56: 1 | H56: =+VLOOKUP(E56,$B$11:$G$20,6) -> 5,488.25 | I56: =+H56*G59 -> 6,184.87 | J56: =(+I56+H56)*G56 -> 11,673.12
E57: Oficial A Instalaciones | F57: h-H | G57: 1 | H57: =+VLOOKUP(E57,$B$11:$G$20,6) -> 8,821.50 | I57: =+H57*G60 -> 9,844.02 | J57: 18,665.52
D59: 1,2 SMMLV | E59: Factor prestacional de ingreso por hora efectiva / base hora laboral | F59: % | G59: =+'[1]SALARIOS Y PRESTACIONES'!$D$47-100% -> $ 1
D60: 2 SMMLV | G60: =+'[1]SALARIOS Y PRESTACIONES'!$G$47-100% -> $ 1
C62: =+D136 -> CUAD-06 | E62: Cuadrilla CC (Pintura) 1 Of Y 3 Ay | F62: h-C | G62: $ 0 | J62: =SUM(J63:J64) -> 61,660.86
E63: Ayudantes A Pinturas | F63: h-H | G63: 3 | H63: =+VLOOKUP(E63,$B$11:$G$20,6) -> 6,738.25 | I63: =+H63*G66 -> 7,593.53 | J63: =(+I63+H63)*G63 -> 42,995.35
E64: Oficial A Pinturas | F64: h-H | G64: 1 | H64: =+VLOOKUP(E64,$B$11:$G$20,6) -> 8,821.50 | I64: =+H64*G67 -> 9,844.02 | J64: 18,665.52
D66: 1,2 SMMLV | E66: Factor prestacional de ingreso por hora efectiva / base hora laboral | F66: % | G66: =+'[1]SALARIOS Y PRESTACIONES'!$D$47-100% -> $ 1
D67: 2 SMMLV | G67: =+'[1]SALARIOS Y PRESTACIONES'!$G$47-100% -> $ 1
C69: =+D137 -> CUAD-07 | E69: Cuadrilla DD (Carpintería) 2 Of y 1 Ay | F69: h-C | G69: $ 0 | J69: =SUM(J70:J72) -> 59,467.05
E70: Ayudante B Carpintería | F70: h-H | G70: 1 | H70: =+VLOOKUP(E70,$B$11:$G$20,6) -> 6,738.25 | I70: =+H70*G74 -> 7,557.08 | J70: =+I70+H70 -> 14,295.33
E71: Oficial A Carpintería | F71: h-H | G71: 1 | H71: =+VLOOKUP(E71,$B$11:$G$20,6) -> 8,821.50 | I71: =+H71*G75 -> 9,844.02 | J71: =+I71+H71 -> 18,665.52
E72: Oficial B Carpintería | F72: h-H | G72: 1 | H72: =+VLOOKUP(E72,$B$11:$G$20,6) -> 12,500.00 | I72: =+H72*G76 -> 14,006.20 | J72: =+I72+H72 -> 26,506.20
D74: 1,5 SMMLV | E74: Factor prestacional de ingreso por hora efectiva / base hora laboral | F74: % | G74: =+'[1]SALARIOS Y PRESTACIONES'!$E$47-100% -> $ 1
D75: 2 SMMLV | G75: =+'[1]SALARIOS Y PRESTACIONES'!$G$47-100% -> $ 1
D76: 3 SMMLV | G76: =+'[1]SALARIOS Y PRESTACIONES'!$I$47-100% -> $ 1
C78: =+D138 -> CUAD-08 | E78: Cuadrilla EE (Cableado estructural) 1 Of y 1 Ay | F78: h-C | G78: $ 0 | J78: =SUM(J79:J80) -> 37,049.58
E79: Ayudante B Cableado estructural | F79: h-H | G79: 1 | H79: =+VLOOKUP(E79,$B$11:$G$20,6) -> 6,738.25 | I79: =+H79*G82 -> 6,389.29 | J79: =+I79+H79 -> 13,127.54
E80: Oficial B Cableado estructural | F80: h-H | G80: 1 | H80: =+VLOOKUP(E80,$B$11:$G$20,6) -> 12,500.00 | I80: =+H80*G83 -> 11,422.03 | J80: =+I80+H80 -> 23,922.03
F81: h-H
D82: 1,5 SMMLV | E82: Factor prestacional de ingreso por hora efectiva / base hora laboral | F82: % | G82: $ 1
D83: 3 SMMLV | G83: $ 1
C85: =+D139 -> CUAD-09 | E85: Cuadrilla FF (Electrico) 1 je, 1 Of y 1 Ay | F85: h-C | G85: $ 0 | J85: =SUM(J86:J88) -> 40,780.68
E86: jefe de obra | F86: h-H | G86: $ 0 | I86: =+H86*G90 -> 0.00 | J86: =+I86+H86 -> 0.00
E87: Ayudante B Electrico | F87: h-H | G87: $ 0 | H87: =+VLOOKUP(E87,$B$11:$G$20,6) -> 6,738.25 | I87: =+H87*G91 -> 7,593.53 | J87: =+I87+H87 -> 14,331.78
E88: Oficial B Electrico | F88: h-H | G88: $ 0 | H88: =+VLOOKUP(E88,$B$11:$G$20,6) -> 12,500.00 | I88: =+H88*G92 -> 13,948.90 | J88: =+I88+H88 -> 26,448.90
D90: 3,5 SMMLV | E90: Factor prestacional de ingreso por hora efectiva / base hora laboral | F90: % | G90: =+'[1]SALARIOS Y PRESTACIONES'!$J$47-100% -> $ 1
D91: 1,2 SMMLV | G91: =+'[1]SALARIOS Y PRESTACIONES'!$D$47-100% -> $ 1
D92: 2 SMMLV | G92: =+'[1]SALARIOS Y PRESTACIONES'!$G$47-100% -> $ 1
C94: =+D140 -> CUAD-10 | E94: Cuadrilla FF (Electrico especializado)1 je, 1 Of y 1 Ay | F94: h-C | G94: $ 0 | J94: =SUM(J95:J97) -> 92,689.52
E95: Jefe de obra | F95: h-H | G95: 1 | H95: 22,752.00 | I95: =+H95*G99 -> 25,419.66 | J95: =+I95+H95 -> 48,171.66
E96: Ayudante B Electrico especializado | F96: h-H | G96: 1 | H96: 7,346.25 | I96: =+H96*G100 -> 8,211.67 | J96: =+I96+H96 -> 15,557.92
E97: Oficial B Electrico especializado | F97: h-H | G97: 1 | H97: 13,627.95 | I97: =+H97*G101 -> 15,332.00 | J97: =+I97+H97 -> 28,959.95
D99: 3,5 SMMLV | E99: Factor prestacional de ingreso por hora efectiva / base hora laboral | F99: % | G99: =+'[1]SALARIOS Y PRESTACIONES'!$J$47-100% -> $ 1
D100: 1,8 SMMLV | G100: =+'[1]SALARIOS Y PRESTACIONES'!$F$47-100% -> $ 1
D101: 2,5 SMMLV | G101: =+'[1]SALARIOS Y PRESTACIONES'!$H$47-100% -> $ 1
C103: =+D141 -> CUAD-11 | E103: Cuadrilla GG (Drywall) 1 Of y 1 Ay | F103: h-C | G103: $ 0 | J103: =SUM(J104:J105) -> 43,193.34
E104: Ayudante B drywall | F104: h-H | G104: 1 | H104: =+VLOOKUP(E104,$B$11:$G$20,6) -> 6,738.25 | I104: =+H104*G107 -> 7,557.08 | J104: =+I104+H104 -> 14,295.33
E105: Oficial B drywall | F105: h-H | G105: 1 | H105: 13,627.95 | I105: =+H105*G108 -> 15,270.06 | J105: =+I105+H105 -> 28,898.01
D107: 1,5 SMMLV | E107: Factor prestacional de ingreso por hora efectiva / base hora laboral | F107: % | G107: =+'[1]SALARIOS Y PRESTACIONES'!$E$47-100% -> $ 1
D108: 3 SMMLV | G108: =+'[1]SALARIOS Y PRESTACIONES'!$I$47-100% -> $ 1
C110: =+D142 -> CUAD-12 | E110: Cuadrilla HH (Est. metálica) 1 sold, 1 Of y 1 Ay | F110: h-C | G110: $ 0 | J110: =SUM(J111:J113) -> 74,469.56
E111: Soldador | F111: h-H | G111: 1 | H111: 14,761.76 | I111: =+H111*G115 -> 16,540.48 | J111: =+I111+H111 -> 31,302.24
E112: Ayudante B estructura metalica | F112: h-H | G112: 1 | H112: =+VLOOKUP(E112,$B$11:$G$20,6) -> 6,738.25 | I112: =+H112*G116 -> 7,593.53 | J112: =+I112+H112 -> 14,331.78
E113: Oficial B estructura metalica | F113: h-H | G113: 1 | H113: 13,627.95 | I113: =+H113*G117 -> 15,207.59 | J113: =+I113+H113 -> 28,835.54
D115: 3 SMMLV | E115: Factor prestacional de ingreso por hora efectiva / base hora laboral | F115: % | G115: =+'[1]SALARIOS Y PRESTACIONES'!$I$47-100% -> $ 1
D116: 1,2 SMMLV | G116: =+'[1]SALARIOS Y PRESTACIONES'!$D$47-100% -> $ 1
D117: 2 SMMLV | G117: =+'[1]SALARIOS Y PRESTACIONES'!$G$47-100% -> $ 1
C119: =+D143 -> CUAD-13 | E119: Cuadrilla CC (Preparacion concretos) 1 Of Y 4 Ay | F119: h-C | G119: $ 0 | J119: =SUM(J120:J121) -> 14,331.78
E120: Ayudantes A | F120: h-H | G120: 4 | H120: =+VLOOKUP(E120,$B$11:$G$20,6) -> 6,738.25 | I120: =+H120*G123 -> 7,593.53 | J120: =+I120+H120 -> 14,331.78
E121: Oficial A | F121: h-H | G121: 1 | H121: =+H114 -> 0.00 | I121: =+H121*G124 -> 0.00 | J121: =+I121+H121 -> 0.00
D123: 1,2 SMMLV | E123: Factor prestacional de ingreso por hora efectiva / base hora laboral | F123: % | G123: =+'[1]SALARIOS Y PRESTACIONES'!$D$47-100% -> $ 1
D124: 2 SMMLV | G124: =+'[1]SALARIOS Y PRESTACIONES'!$G$47-100% -> $ 1
D130: NOMBRE | E130: TIPO Y COMPOSICION | F130: UND
D131: CUAD-01 | E131: Cuadrilla AA (Albañilería) 1 Ayudante | F131: h-C
D132: CUAD-02 | E132: Cuadrilla AA (Albañilería) 1 Oficial | F132: h-C
D133: CUAD-03 | E133: Cuadrilla AA (Albañilería) 1Of y 1 Ay | F133: h-C
D134: CUAD-04 | E134: Cuadrilla AA (Albañilería) 1Of+2Ay | F134: h-C
D135: CUAD-05 | E135: Cuadrilla BB (Instalaciones) 1 Of y 1 Ay | F135: h-C
D136: CUAD-06 | E136: Cuadrilla CC (Pintura) 1 Of Y 3 Ay | F136: h-C
D137: CUAD-07 | E137: Cuadrilla DD (Carpintería) 2 Of y 1 Ay | F137: h-C
D138: CUAD-08 | E138: Cuadrilla GG (Drywall) 1 Of y 1 Ay | F138: h-C
D139: CUAD-09 | E139: Cuadrilla HH (Est. metálica) 1 sold, 1 Of y 1 Ay | F139: h-C
D140: CUAD-10 | E140: Cuadrilla FF (Electrico) 1 je, 1 Of y 1 Ay | F140: h-C
D141: CUAD-11 | E141: Cuadrilla FF (Electrico especializado)1 je, 1 Of y 1 Ay | F141: h-C
D142: CUAD-12 | E142: Cuadrilla EE (Cableado estructural) 1 Of y 1 Ay | F142: h-C
D143: CUAD-13 | E143: Cuadrilla CC (Preparacion Concretos) 1 Of Y 4 Ay | F143: h-C
D146: NOMBRE | E146: TIPO Y COMPOSICION | F146: UND | G146: UNITARIO
D147: CUAD-01 | E147: Cuadrilla AA (Albañilería) 1 Ayudante | F147: h-C | G147: =+'[1]CUADRILLAS (2)'!$F$153 -> $ 11,673.00
D148: CUAD-02 | E148: Cuadrilla AA (Albañilería) 1 Oficial | F148: h-C | G148: =+'[1]CUADRILLAS (2)'!$F$154 -> $ 18,666.00
D149: CUAD-03 | E149: Cuadrilla AA (Albañilería) 1Of y 1 Ay | F149: h-C | G149: =+'[1]CUADRILLAS (2)'!$F$155 -> $ 33,372.00
D150: CUAD-04 | E150: Cuadrilla AA (Albañilería) 1Of+2Ay | F150: h-C | G150: =+'[1]CUADRILLAS (2)'!$F$152 -> $ 42,012.00
D151: CUAD-05 | E151: Cuadrilla BB (Instalaciones) 1 Of y 1 Ay | F151: h-C | G151: =+'[1]CUADRILLAS (2)'!$F$151 -> $ 30,339.00
D152: CUAD-06 | E152: Cuadrilla CC (Pintura) 1 Of Y 3 Ay | F152: h-C | G152: =+'[1]CUADRILLAS (2)'!$F$156 -> $ 61,738.00
D153: CUAD-07 | E153: Cuadrilla DD (Carpintería) 2 Of y 1 Ay | F153: h-C | G153: =+'[1]CUADRILLAS (2)'!$F$157 -> $ 71,360.00
D154: CUAD-08 | E154: Cuadrilla GG (Drywall) 1 Of y 1 Ay | F154: h-C | G154: =+'[1]CUADRILLAS (2)'!$F$161 -> $ 48,961.84
D155: CUAD-09 | E155: Cuadrilla HH (Est. metálica) 1 sold, 1 Of y 1 Ay | F155: h-C | G155: =+'[1]CUADRILLAS (2)'!$F$162 -> $ 77,048.66
D156: CUAD-10 | E156: Cuadrilla FF (Electrico) 1 je, 1 Of y 1 Ay | F156: h-C | G156: =+'[1]CUADRILLAS (2)'!$F$159 -> $ 39,440.23
D157: CUAD-11 | E157: Cuadrilla FF (Electrico especializado)1 je, 1 Of y 1 Ay | F157: h-C | G157: =+'[1]CUADRILLAS (2)'!$F$160 -> $ 91,466.80
D158: CUAD-12 | E158: Cuadrilla EE (Cableado estructural) 1 Of y 1 Ay | F158: h-C | G158: =+'[1]CUADRILLAS (2)'!$F$158 -> $ 48,164.45
D159: CUAD-13 | E159: Cuadrilla CC (Preparacion Concretos) 1 Of Y 4 Ay | F159: h-C | G159: =+J119 -> $ 14,331.78

Sheet INSUMOS
C2: =DATOS!B2 -> CENTRO DE DESARROLLO TECNOLÓGICO PARA LA INNOVACIÓN DE LA INFRAESTRUCTURA VIAL
C5: INSUMOS
B8: codigo | C8: descripcion | D8: unidad | E8: vr/unitario
B9: M-001 | C9: Abrazadera metálica Ø 1/2"" | D9: un | E9: $ 176
B10: M-002 | C10: Accesorios para instalación pasamanos (bases parales, pernos, curvas, topos, tornillos) | D10: un | E10: $ 30,000
B11: M-003 | C11: Acero fy=420 mpa | D11: kg | E11: $ 6,000
B12: M-004 | C12: Acero para estructura metálica | D12: kg | E12: $ 7,500
B13: M-005 | C13: Acople para lavamanos | D13: un | E13: $ 15,000
B14: M-006 | C14: Acronal | D14: gal | E14: $ 17,000
B15: M-007 | C15: Adaptador bucin EMT Ø 3/4"" | D15: un | E15: $ 960
B16: M-008 | C16: Adaptador IMC Ø 2"" | D16: un | E16: $ 5,100
B17: M-009 | C17: Adaptador macho de Ø 1" | D17: un | E17: $ 1,550
B18: M-010 | C18: Adaptador pvc presión macho de Ø 1/2"" | D18: un | E18: $ 460
B19: M-011 | C19: Adaptador pvc presión macho de Ø 3/4" | D19: un | E19: $ 850
B20: M-012 | C20: Adaptador terminal pvc Ø 1/2"" | D20: un | E20: $ 72
B21: M-013 | C21: Adaptador terminal pvc Ø 2" | D21: un | E21: $ 3,200
B22: M-014 | C22: Adaptador terminal pvc Ø 3/4" | D22: un | E22: $ 72
B23: M-015 | C23: Agua | D23: lt | E23: $ 20
B24: M-016 | C24: Alambre galvanizado No. 18 | D24: kg | E24: $ 8,122
B25: M-017 | C25: Alambre negro N° 18 para amarre de acero de refuerzo | D25: kg | E25: $ 6,300
B26: M-018 | C26: Alambre soldadura mig para acero inoxidable | D26: 5 K | E26: $ 90,000
B27: M-019 | C27: Angulo 1" x 1/8" | D27: ml | E27: $ 8,300
B28: M-020 | C28: Angulo 2" x 1/8" | D28: ml | E28: =95000/6 -> $ 15,833
B29: M-021 | C29: Angulo de cuelga | D29: un | E29: $ 6,400
B30: M-022 | C30: Angulo perimetral | D30: ml | E30: $ 3,000
B31: M-023 | C31: Anticorrosivo | D31: gal | E31: $ 53,000
B32: M-024 | C32: Arena | D32: m3 | E32: $ 95,000
B33: M-025 | C33: Aviso luminoso "salida", iltec, con sus respectivos accesorios | D33: un | E33: $ 75,750
B34: M-026 | C34: Baldosa grano marmol tipo alfa | D34: M3 | E34: $ 65,000
B35: M-027 | C35: Barra de apoyo movilidad reducida apoyada en muro barra de apoyo movilidad reducida apoya | D35: un | E35: $ 85,000
B36: M-028 | C36: Barra de apoyo movilidad reducida apoyada en muro y piso | D36: un | E36: $ 300,000
B37: M-029 | C37: Base granular | D37: M3 | E37: $ 73,000
B38: M-030 | C38: Bisagra cobrizada común | D38: un | E38: $ 8,000
B39: M-031 | C39: Bocel de madera de 1/2" x 1/2" x 3 m | D39: un | E39: $ 3,000
B40: M-032 | C40: Boquilla | D40: kg | E40: $ 15,000
B41: M-033 | C41: Breaker bipolar de 2 x 20 amp | D41: un | E41: $ 72,000
B42: M-034 | C42: Breaker industrial de 3 x 160 amp | D42: un | E42: $ 360,000
B43: M-035 | C43: Breaker monopolar de 204x304 | D43: un | E43: $ 14,000
B44: M-036 | C44: Breaker monopolar de 40 amp | D44: un | E44: $ 14,000
B45: M-037 | C45: Breaker seccionado 3 x 150amp | D45: un | E45: $ 360,000
B46: M-038 | C46: Breaker tripolar de 1 x 30 amp | D46: un | E46: $ 72,000
B47: M-039 | C47: Breaker tripolar de 3 x 20amp | D47: un | E47: $ 72,000
B48: M-040 | C48: Brocha cerda mona 4 | D48: un | E48: $ 14,421
B49: M-041 | C49: Bucin EMT Ø 1/2" | D49: un | E49: $ 760
B50: M-042 | C50: Bucin EMT Ø 3/4"" | D50: un | E50: $ 980
B51: M-043 | C51: Cable de cobre # 8 libre de halogenos | D51: ml | E51: $ 1,650
B52: M-044 | C52: Cable de cobre # 10 libre de halogenos | D52: ml | E52: $ 3,156
B53: M-045 | C53: Cable de cobre # 12 libre de halogenos | D53: ml | E53: $ 2,250
B54: M-046 | C54: Cable de cobre # 12 trenzado 3 colores libre de halogenos | D54: un | E54: $ 6,750
B55: M-047 | C55: Cable encauchetado 6 x16 | D55: ml | E55: $ 4,800
B56: M-048 | C56: Cable encuachetado 3 x 16 | D56: ml | E56: $ 4,800
B57: M-049 | C57: Caja electrica de paso | D57: un | E57: $ 72,000
B58: M-050 | C58: Caja electrica galvanizada 10x10x10 | D58: un | E58: $ 6,900
B59: M-051 | C59: Caja electrica galvanizada octogonal | D59: un | E59: $ 3,800
B60: M-052 | C60: Caja electrica metalica 4 x 4 | D60: un | E60: $ 2,900
B61: M-053 | C61: Caja electrica plastica 2 x 4 | D61: un | E61: $ 480
B62: M-054 | C62: Caja electrica pvc 4 x 4 | D62: un | E62: $ 3,200
B63: M-055 | C63: Caja electrica PVC octogonal | D63: un | E63: $ 1,400
B64: M-056 | C64: Caja PVC conduit 10x10x10 | D64: un | E64: $ 7,200
B65: M-057 | C65: Canal en lámina galvanizada cal 22, desarrollo de 40 cm | D65: ml | E65: $ 40,000
B66: M-058 | C66: Canaleta electrica PVC 100 x 45 mm | D66: ml | E66: $ 26,000
B67: M-059 | C67: Cemento blanco | D67: kg | E67: $ 1,350
B68: M-060 | C68: Cemento gris | D68: kg | E68: $ 640
B69: M-061 | C69: Cerámica para muro blanca de 25 x 30 cm | D69: m2 | E69: $ 38,500
B70: M-062 | C70: Cerámica para piso T5 de 0.61 x 0.51 mt o similar | D70: M2 | E70: $ 38,500
B71: M-063 | C71: Cerradura yale oficina (5304) o similar | D71: un | E71: $ 65,000
B72: M-064 | C72: Chazo de expansión de 3" | D72: un | E72: $ 3,500
B73: M-065 | C73: Chazos 1/4" para instalacion perfileria superboard | D73: un | E73: $ 600
B74: M-066 | C74: Cielo raso PVC color blanco | D74: m2 | E74: $ 39,500
B75: M-067 | C75: Cinta aislante (3 m) | D75: un | E75: $ 7,200
B76: M-068 | C76: Cinta aluminio industrial | D76: un | E76: $ 111,000
B77: M-069 | C77: Cinta autofundente 3m x 5m | D77: un | E77: $ 36,000
B78: M-070 | C78: Cinta de colores | D78: un | E78: $ 2,200
B79: M-071 | C79: Cinta de enmascarar 1" | D79: un | E79: $ 7,000
B80: M-072 | C80: Cinta malla | D80: un | E80: $ 6,000
B81: M-073 | C81: Cinta teflón (10 m) | D81: un | E81: $ 3,000
B82: M-074 | C82: Clavija aerea salida iluminacion cpt | D82: un | E82: $ 1,500
B83: M-075 | C83: Clavos de acero | D83: lb | E83: $ 5,600
B84: M-076 | C84: Codo presión de Ø 1/2" x 90° | D84: un | E84: $ 784
B85: M-077 | C85: Codo presión galvanizado de Ø 1/2" X 90° | D85: un | E85: $ 2,500
B86: M-078 | C86: Codo PVC sanitario de Ø 2 x 90° | D86: un | E86: $ 4,970
B87: M-232 | C87: Codo PVC sanitario de Ø 4" x 45° | D87: un | E87: $ 18,265
B88: M-079 | C88: Codo PVC sanitario de Ø 4 x 90° | D88: un | E88: $ 20,016
B89: M-080 | C89: Collar de derivación de Ø 3" x Ø 1" para acometida | D89: un | E89: $ 59,100
B90: M-081 | C90: Conductor de cobre 1/0 libre de halogenos | D90: ml | E90: $ 25,460
B91: M-082 | C91: Conductor de cobre 2/0 libre de halogenos | D91: ml | E91: $ 49,000
B92: M-083 | C92: Conectores de resorte 3m | D92: un | E92: $ 1,200
B93: M-084 | C93: Cuarton de otobo de 2" x 4" x 3 m | D93: un | E93: $ 12,000
B94: M-085 | C94: Curva EMT Ø 3/4" | D94: un | E94: $ 2,150
B95: M-086 | C95: Curva EMT Ø 3/4" | D95: un | E95: $ 2,150
B96: M-087 | C96: Curva IMC Ø 2" | D96: un | E96: $ 8,200
B97: M-088 | C97: Curva PVC conduit Ø 1/2" | D97: un | E97: $ 700
B98: M-089 | C98: Curva PVC conduit Ø 2" | D98: un | E98: $ 5,600
B99: M-090 | C99: Curva PVC conduit Ø 3/4" | D99: un | E99: $ 736
B100: M-091 | C100: Dilatación PVC | D100: ml | E100: $ 2,200
B101: M-092 | C101: Dispensador para papel higienico de acero inoxidable | D101: un | E101: $ 297,563
B102: M-093 | C102: Dispensador plastico para toallas de papel en rollo tipo familia. | D102: un | E102: $ 429,813
B103: M-094 | C103: Dosificador de jabon en acero inoxidable para pared | D103: un | E103: $ 288,305
B104: M-095 | C104: Ducha lava-ojos | D104: un | E104: $ 1,850,000
B105: M-096 | C105: Elementos para aseo (traperos, escobas, jabon, wipe, etc) | D105: un | E105: $ 35,000
B106: M-097 | C106: Elementos para soporte entre barras de apoyo y muro(chazos, soportes, silicona, etc) | D106: un | E106: $ 20,000
B107: M-098 | C107: Empalmadores plasticos | D107: un | E107: $ 1,000
B108: M-099 | C108: Emulsión asfáltica tipo crl-1 | D108: gal | E108: $ 13,000
B109: M-100 | C109: Espejo flotado biselado con moldura madera pintado, de 0.50 x 0.60 m | D109: un | E109: $ 80,000
B110: M-101 | C110: Estuco plástico | D110: kg | E110: $ 5,000
B111: M-102 | C111: Fluxómetro y accesorios | D111: un | E111: $ 160,000
B112: M-103 | C112: Granito | D112: kg | E112: $ 5,000
B113: M-104 | C113: Griferia cuello de ganso de 8" con mezclador | D113: un | E113: $ 75,000
B114: M-105 | C114: Herrajes para instalacion de canal en lámina | D114: un | E114: $ 5,000
B115: M-106 | C115: Identificadores plasticos para circuitos | D115: un | E115: $ 1,000
B116: M-107 | C116: Impermeabilizante para mortero | D116: kg | E116: $ 12,400
B117: M-108 | C117: Interruptor conmutable doble | D117: un | E117: $ 14,000
B118: M-109 | C118: Interruptor conmutable sencillo | D118: un | E118: $ 9,500
B119: M-110 | C119: Interruptor doble | D119: un | E119: $ 9,000
B120: M-111 | C120: Interruptor sencillo | D120: un | E120: $ 7,600
B121: M-112 | C121: Interruptor triple | D121: un | E121: $ 12,000
B122: M-113 | C122: Ladrillo común | D122: un | E122: $ 600
B123: M-114 | C123: Lamina alfajor de 1/8" de dimensiones 1.00 x 3.00 m | D123: un | E123: $ 450,000
B124: M-115 | C124: Lámina en superboard de 8mm | D124: un | E124: $ 60,000
B125: M-116 | C125: Lámina policarbonato de 6mm | D125: un | E125: $ 320,000
B126: M-117 | C126: Lavamanos línea blanca, incluye accesorios y grifería | D126: un | E126: $ 90,000
B127: M-118 | C127: Lija | D127: un | E127: $ 1,800
B128: M-119 | C128: Limpiador PVC ( 1/4 gal) | D128: un | E128: $ 60,000
B129: M-120 | C129: Limpiador pvc 1/32 | D129: un | E129: $ 10,500
B130: M-121 | C130: Limpiador pvc 1/8 | D130: un | E130: $ 33,000
B131: M-122 | C131: Liston 2x300 otobo | D131: un | E131: $ 8,000
B132: M-123 | C132: Luminaria de emergencia alena 600l 2x2w, iltec, con sus respectivos accesorios | D132: un | E132: $ 87,000
B133: M-124 | C133: Luminaria iltelux grid d38 | D133: un | E133: $ 232,514
B134: M-125 | C134: Luminaria iltelux grid e13 1220x300x85 sobreponer, kit | D134: un | E134: $ 178,474
B135: M-126 | C135: Malla electrosoldada 15x15x4mm (2,35x6m) | D135: un | E135: $ 159,000
B136: M-127 | C136: Marco en lamina calibre 18 pintado con aticorrosivo py pintura de aceite | D136: un | E136: $ 200,000
B137: M-128 | C137: Marmolina blanca | D137: kg | E137: $ 5,000
B138: M-129 | C138: Masilla para canal en lámina 1/4 | D138: un | E138: $ 19,000
B139: M-130 | C139: Masilla plastica (interiores) | D139: cuñ | E139: $ 60,000
B140: M-131 | C140: Masilla plástica sello junta | D140: gal | E140: $ 29,800
B141: M-132 | C141: Material de sub-base clase a | D141: m3 | E141: $ 75,000
B142: M-133 | C142: Mezcla densa en caliente tipo mdc-19 | D142: m3 | E142: $ 500,000
B143: M-134 | C143: Mineral rojo | D143: kg | E143: $ 8,500
B144: M-135 | C144: Niple presión galvanizado 1/2 x 5 cm | D144: un | E144: $ 3,000
B145: M-136 | C145: Orinal línea blanca movilidad reducida, incluye accesorios | D145: un | E145: $ 580,000
B146: M-137 | C146: Pegacor - pegante ceramica | D146: kg | E146: $ 1,600
B147: M-138 | C147: Perfil canal estructural para lámina fibrocemento en sistemas livianos cal 32, para muro e | D147: ml | E147: $ 24,000
B148: M-139 | C148: Perfil en H para cubierta de policarbonato | D148: ml | E148: $ 5,000
B149: M-140 | C149: Perfil en U para cubierta de policarbonato | D149: ml | E149: $ 8,000
B150: M-141 | C150: Perfil omega | D150: un | E150: $ 6,300
B151: M-142 | C151: Perfil vertical | D151: un | E151: $ 7,800
B152: M-143 | C152: Perímetro de sujeción | D152: ml | E152: $ 2,600
B153: M-144 | C153: Pintura acrílica | D153: gal | E153: $ 95,000
B154: M-145 | C154: Pintura esmalte doméstico (1/4 gal) | D154: un | E154: $ 18,000
B155: M-146 | C155: Pintura para exteriores (koraza) | D155: gal | E155: $ 77,000
B156: M-147 | C156: Pintura vinilo | D156: gal | E156: $ 52,200
B157: M-148 | C157: Piola gruesa | D157: rollo | E157: $ 3,500
B158: M-149 | C158: Prensa estopa | D158: ml | E158: $ 1,200
B159: M-150 | C159: Puerta entamborada, estructura en madera y caras en tripex de 4 mm en 60 - 100 x 200 m | D159: un | E159: $ 180,000
B160: M-151 | C160: Puerta tipo cortafuego hoja sencilla | D160: un | E160: $ 4,000,000
B161: M-152 | C161: Puntilla | D161: lb | E161: $ 3,604
B162: M-153 | C162: Registro de corte 1" | D162: un | E162: $ 73,000
B163: M-154 | C163: Registro de incorporación | D163: un | E163: $ 75,000
B164: M-155 | C164: Rejilla para puzuelo | D164: un | E164: $ 25,000
B165: M-156 | C165: Rodillo felpa | D165: un | E165: $ 5,408
B166: M-157 | C166: Salida circular | D166: un | E166: $ 460
B167: M-158 | C167: Sanitario línea blanca movilidad reducida, incluye griferia de fluxometro. | D167: un | E167: $ 1,800,000
B168: M-159 | C168: Silicona líquida | D168: un | E168: $ 13,500
B169: M-160 | C169: Soldadura 6011 | D169: kg | E169: $ 17,000
B170: M-161 | C170: Soldadura líquida (1/4 gal) | D170: un | E170: $ 124,000
B171: M-162 | C171: Soldadura PVC (1/16 gal) | D171: un | E171: $ 43,000
B172: M-163 | C172: Soldadura PVC (1/4 gal) | D172: un | E172: $ 124,000
B173: M-164 | C173: Soldadura PVC (1/8 gal) | D173: un | E173: $ 64,000
B174: M-231 | C174: Soportes metalicos para sujecion de la tuberia incluido clavos o chazos. | D174: un | E174: $ 1,500
B175: M-165 | C175: Suministro e instalación de poceta de empotrar en acero inoxidable de 0.53 x 0.43 m | D175: un | E175: $ 230,000
B176: M-166 | C176: Suplemento 2 x 4 | D176: un | E176: $ 286
B177: M-167 | C177: Suplemento plastico 4 x 2 | D177: un | E177: $ 286
B178: M-168 | C178: Tabla común de 3x0,2x0,02 | D178: un | E178: $ 10,000
B179: M-169 | C179: Tablero de 6 circuitos bifasico 125 amp, puerta, portatarjeta. | D179: un | E179: $ 36,000
B180: M-170 | C180: Tablero de potencia de 225 amp 42 circuitos con protecciñn de 3x 150 amp, tapa, llave, ta | D180: un | E180: $ 620,800
B181: M-171 | C181: Tablon comun de otobo de 3. 00m | D181: un | E181: $ 15,000
B182: M-172 | C182: Taco de guadua de 5 m | D182: un | E182: $ 12,000
B183: M-173 | C183: Tapa circular | D183: un | E183: $ 520
B184: M-174 | C184: Tapon inicial canaleta 100 x 45 mm | D184: un | E184: $ 4,800
B185: M-175 | C185: Tapón PVC roscado presión de Ø 1/2"" | D185: un | E185: $ 520
B186: M-176 | C186: Tapon terminacion canaleta 100 x 45 mm | D186: un | E186: $ 4,800
B187: M-177 | C187: Tarjeta identificadora | D187: un | E187: $ 1,000
B188: M-178 | C188: Tee canaleta 100 x 45mm | D188: un | E188: $ 4,800
B189: M-179 | C189: Tee PVC sanitaria de Ø 2" | D189: un | E189: $ 7,000
B190: M-180 | C190: Tee PVC sanitaria de Ø 4"" | D190: un | E190: $ 18,100
B191: M-181 | C191: Teja max trapezoidal a360 azul-blanca 12x0.82mt termoacústica | D191: m2 | E191: $ 65,000
B192: M-182 | C192: Tela fibra tejida h= 2,10 m | D192: ml | E192: $ 2,500
B193: M-183 | C193: Thinner | D193: gal | E193: $ 24,000
B194: M-184 | C194: Toma aereo | D194: un | E194: $ 3,200
B195: M-185 | C195: Toma doble con polo a tierra | D195: un | E195: $ 12,600
B196: M-186 | C196: Toma doble con polo a tierra 15 amp | D196: un | E196: $ 12,600
B197: M-187 | C197: Toma especial codelca 25 amp en t | D197: un | E197: $ 18,600
B198: M-188 | C198: Toma gfci 20 amp | D198: un | E198: $ 42,000
B199: M-189 | C199: Toma trifasico 3x50 amp | D199: un | E199: $ 10,800
B200: M-190 | C200: Tornillo autoperforante de 3/4x3/16 | D200: un | E200: $ 298
B201: M-191 | C201: Tornillo de 7 x 7/16"" | D201: un | E201: $ 70
B202: M-192 | C202: Tornillo extraplano | D202: un | E202: $ 70
B203: M-193 | C203: Tornillo p/lamina autop. 1/2-14x3/4 cabeza exa 5/16-arandela | D203: un | E203: $ 710
B204: M-194 | C204: Tornillo para lamina autoperforante.1/4-14x7/8 | D204: un | E204: $ 710
B205: M-195 | C205: Tornillo para placa | D205: un | E205: $ 70
... 110 more rows

Sheet para materiales mayo 15 (2) (hidden)
C4: ANALISIS DE PRECIOS UNITARIOS
C6: INFRAESTRUCTURA ELÉCTRICA
B8: CODIGO | C8: METERIAL | D8: UND | E8: UNITARIO
B9: B100 | C9: Cable CU TIPO ENCAUCHETADO 3X12 AWG | D9: m | E9: =[2]MATERIALES!$E$100 -> $8,600
B10: B105 | C10: Tubo EMT de 1/2" (Incluye accesorios) x 3 m | D10: un | E10: =[2]MATERIALES!$E$105 -> $19,200
B11: B106 | C11: Tubo EMT de 3/4" (Incluye accesorios) x 3 m | D11: un | E11: =[2]MATERIALES!$E$106 -> $36,100
B12: B107 | C12: Tubo EMT de 1" (Incluye accesorios) x 3 m | D12: un | E12: $48,000
B13: B108 | C13: Tubo PVC conduit de 1/2" (Incluye accesorios) x 3 m | D13: un | E13: =[2]MATERIALES!$E$108 -> $6,100
B14: B109 | C14: Tubo PVC conduit de 3/4" (Incluye accesorios) x 3 m | D14: un | E14: =[2]MATERIALES!$E$109 -> $9,100
B15: B110 | C15: Tubo PVC conduit de 1" (Incluye accesorios) x 3 m | D15: un | E15: =[2]MATERIALES!$E$110 -> $17,200
B16: B112 | C16: Curva EMT DE 3/4" | D16: un | E16: =[2]MATERIALES!$E$112 -> 0
B17: B113 | C17: Curva EMT DE 1" | D17: un | E17: =[2]MATERIALES!$E$90 -> $3,900
B18: B116 | C18: Curva PVC DE 1" | D18: un | E18: =[2]MATERIALES!$E$90 -> $3,900
B19: B117 | C19: Caja PVC de 2 X 4" RETIE | D19: Gbl | E19: =[2]MATERIALES!$E$117 -> $1,240
B20: B118 | C20: Caja PVC de 4 X 4 " RETIE | D20: un | E20: =[2]MATERIALES!$E$118 -> $1,200
B21: B123 | C21: Toma doble Leviton polo a tierra aislado, 15A, 125V, 5262-IG color Naranja | D21: m | E21: =[2]MATERIALES!$E$132 -> $11,200
B22: B126 | C22: Marcación de toma eléctrica en cinta adhesiva impresa | D22: un | E22: =[2]MATERIALES!$E$126 -> $1,120
B23: B127 | C23: Marcación de interruptor en cinta adhesiva impresa | D23: un | E23: =[2]MATERIALES!$E$127 -> $1,120
B24: B129 | C24: Toma doble Leviton polo a tierra normal 15 A 5320- color Blanca | D24: un | E24: =[2]MATERIALES!$E$129 -> $18,200
B25: B130 | C25: Toma doble Leviton polo a tierra CFGI 15 A | D25: m | E25: =[2]MATERIALES!$E$132 -> $11,200
B26: B131 | C26: Interruptor sencillo sin luz piloto | D26: m | E26: =[2]MATERIALES!$E$131 -> $4,200
B27: B132 | C27: Interruptor doble sin luz piloto | D27: m | E27: =[2]MATERIALES!$E$132 -> $11,200
B28: B134 | C28: Interruptor conmutable sencillo sin luz piloto | D28: m | E28: =[2]MATERIALES!$E$132 -> $11,200
B29: B137 | C29: Clavija Leviton de 3 polos tipo 5-15 | D29: un | E29: =[2]MATERIALES!$E$137 -> $5,600
B30: B139 | C30: Conectores de resorte tipo 3M | D30: un | E30: =[2]MATERIALES!$E$139 -> $830
B31: B142 | C31: tablero distribución trifásico 42 ctos (tls) tq-cp-225 AMP Schneider con puerta y espacio para totalizador | D31: m | E31: =[2]MATERIALES!$E$142 -> $872,000
B32: B143 | C32: Suministro e instalación tablero distribución trifásico Tablero trifásico 240 V 18 CTOS con puerta sin espacio para totalizador 10KA 200 A, Retie acorde a IEC 60439-3Schneider | D32: un | E32: =[2]MATERIALES!$E$143 -> $520,000
B33: B144 | C33: Suministro e instalación tablero distribución bifásico 6 ctos con riel y puerta para red regulada. | D33: m | E33: =[2]MATERIALES!$E$144 -> $89,200
B34: B145 | C34: Breaker Industrial ABB Formula 150A Capacidad de Ruptura 50KA - A2C - Ref: 1SDA068780R1 | D34: un | E34: =+[2]MATERIALES!E145 -> $462,000
B35: B146 | C35: Breaker Industrial ABB Formula 40A Capacidad de Ruptura 50 KA - A1N BIPOLAR - Ref: 1SDA066500R1 | D35: un | E35: =[2]MATERIALES!$E$146 -> $165,000
B36: B147 | C36: BREAKERS 1X 15 AMP | D36: un | E36: =+[2]MATERIALES!E147 -> $18,000
B37: B148 | C37: BREAKERS 1X 20 AMP | D37: un | E37: =+[2]MATERIALES!E148 -> $18,000
B38: B149 | C38: BREAKERS 1X 25 AMP | D38: un | E38: =+[2]MATERIALES!E149 -> $18,000
B39: B150 | C39: BREAKERS 1X 30 AMP | D39: un | E39: =[2]MATERIALES!$E$150 -> $18,000
B40: B151 | C40: BREAKERS 2X 20 AMP | D40: un | E40: =[2]MATERIALES!$E$151 -> $36,000
B41: B153 | C41: BREAKERS 3X 20 AMP | D41: un | E41: =[2]MATERIALES!$E$153 -> $62,000
B42: B154 | C42: BREAKERS 3X 30 AMP | D42: un | E42: =[2]MATERIALES!$E$154 -> $72,000
B43: B155 | C43: BREAKERS 1X 20 AMP enchufable para caja minipregma | D43: un | E43: =[2]MATERIALES!$E$155 -> $18,000
B44: B157 | C44: Bandeja portacable tipo Tipo Malla Ez 60 Mm X 200 Mm 3.00 m Incluye Union | D44: un | E44: =[2]MATERIALES!$E$157 -> $110,000
B45: B158 | C45: Curva de 90° para bandeja portacables tipo malla EZ 60mmx200mm | D45: un | E45: =[2]MATERIALES!$E$158 -> $45,000
B46: B160 | C46: Accesorio de union para bandeja | D46: un | E46: =[2]MATERIALES!$E$160 -> $4,370
B47: B161 | C47: Varilla roscada de 3/8" | D47: un | E47: =[2]MATERIALES!$E$161 -> $9,306
B48: B162 | C48: Marquilla en acrilico | D48: un | E48: =[2]MATERIALES!$E$162 -> $1,165
B49: B166 | C49: Tuberia y accesorios conduit EMT, diametro 3/4",instalada | D49: un | E49: =[2]MATERIALES!$E$166 -> $34,800
B50: B185 | C50: Tubería Conduit EMT 3/4 | D50: un | E50: =+[2]MATERIALES!E185 -> $32,200
B51: B186 | C51: Curva Conduit de 3/4" | D51: un | E51: =+[2]MATERIALES!E186 -> $9,900
B52: B187 | C52: Unión Conduit de 3/4" | D52: un | E52: =+[2]MATERIALES!E187 -> $4,850
B53: B202 | C53: Caja PVC de 4x4 | D53: un | E53: =[2]MATERIALES!$E$202 -> $1,190
B54: B214 | C54: UPS APC Smart-ups srt, 4250watts / 5000 va, con transformador Reductor De 208/240V A 120 V, Incluye: DC Con Software, CD De Documentación, Guía De Instalación, Gestión De Redes Integrada, Pies Desmontable | D54: m | E54: =[2]MATERIALES!$E$214 -> $14,000,000
B55: B217 | C55: Toma corriente especial para UPS | D55: Gbl | E55: =[2]MATERIALES!$E$217 -> $143,000
B56: B217 | C56: Toma corriente especial para UPS | D56: un | E56: =[2]MATERIALES!$E$217 -> $143,000
B57: B218 | C57: Toma corriente especial para Equipos laboratorio | D57: Gbl | E57: =[2]MATERIALES!$E$218 -> $65,000
B58: B219 | C58: Luminaria ilte clea owen lens L11X610 X95 con marco- LED 4 1R2FT 1100 Lm 6.2 W REFERENCIA 210502E3006 TIPO CL, con sus respectivos accesorios de soporte y fijación. | D58: m | E58: =[2]MATERIALES!$E$219 -> $490,000
B59: B220 | C59: Luminaria ilte Albar lens L11605X605X70 con marco - 2 1R2FT 3200Lm 18.3W REF: 02410E3000 TIPO AL1, con sus respectivos accesorios de soporte y fijación. | D59: m | E59: =[2]MATERIALES!$E$220 -> $310,000
B60: B221 | C60: Luminaria ilte Albar lens L11605X605X70 con marco - 2 1R2FT 2200Lm 13.4W REF: 024102E3000 TIPO AL2, con sus respectivos accesorios de soporte y fijación. | D60: m | E60: =[2]MATERIALES!$E$221 -> $350,000
B61: B222 | C61: Luminaria ilte IT 100AQ LENS E10 1260X 120X92 SOBREPONER- 2LPT8 2100 Lm 18W Ref: 250403E3000 TIPO IT, con sus respectivos accesorios de soporte y fijación. | D61: m | E61: =[2]MATERIALES!$E$222 -> $160,000
B62: B223 | C62: Luminaria SATURNO TEC LENS 146X46 LED-MODCIRCULAR 1307 Lm GSCL15WN143 TIPO S, con sus respectivos accesorios de soporte y fijación. | D62: m | E62: =[2]MATERIALES!$E$223 -> $168,000
B63: B224 | C63: Luminaria de emergencia ALENA 600L 90E 185X50X108 SOBREPONE 2-BL 2W ( circuito independiente), con sus respectivos accesorios de soporte y fijación. | D63: m | E63: =[2]MATERIALES!$E$224 -> $105,000
B64: B225 | C64: Aviso luminoso "salida", iltec, EMERGENCIA SALIDA 90 E 300X185X 45 SOBREPONER (circuito independiente), REF : 5U0703E3000 TIPO E2, con sus respectivos accesorios de soporte y fijación. | D64: m | E64: =[2]MATERIALES!$E$225 -> $90,000
B65: B226 | C65: Caja Dexon Derivación Plástica Gris 10X10X5 | D65: un | E65: =+[2]MATERIALES!E226 -> $13,500
B66: B227 | C66: Gabinete O Rack 7 Rms 0.37 m alto X 0.52 m ancho X 0.40 m fondo | D66: un | E66: =+[2]MATERIALES!E227 -> $280,000
B67: B84 | C67: Cintas de colores para identificación de lineas | D67: un | E67: =[2]MATERIALES!$E$84 -> $4,471
B68: B85 | C68: Marquillas autoadhesivas para identificación de lineas | D68: un | E68: =[2]MATERIALES!$E$85 -> $4,471
B69: B86 | C69: Cable CU # 2/0 AWG THHN/THWN libre de halogenos | D69: m | E69: =[2]MATERIALES!$E$86 -> $24,141
B70: B88 | C70: Cable CU # 6 AWG THHN/THWN libre de halogenos | D70: m | E70: =[2]MATERIALES!$E$88 -> $7,021
B71: B89 | C71: Cable CU # 8 AWG THHN/THWN libre de halogenos | D71: m | E71: =[2]MATERIALES!$E$89 -> $8,100
B72: B90 | C72: Cable CU # 10 AWG THHN/THWN libre de halogenos | D72: m | E72: =[2]MATERIALES!$E$90 -> $3,900
B73: B91 | C73: Cable CU # 12 AWG THHN/THWN libre de halogenos | D73: m | E73: =[2]MATERIALES!$E$91 -> $2,890
B74: B92 | C74: Cable TRENZADO CU # 12 AWG THHN/THWN libre de halogenos | D74: m | E74: =[2]MATERIALES!$E$92 -> $7,600
B75: B93 | C75: Borna 2/0 AWG terminal 1/H 30015 3M | D75: un | E75: =[2]MATERIALES!$E$93 -> $8,129
B76: B96 | C76: Borna 6 AWG terminal 1/H 30015 3M | D76: un | E76: =[2]MATERIALES!$E$96 -> $3,200
B77: B97 | C77: Borna 8 AWG terminal 1/H 30015 3M | D77: un | E77: =[2]MATERIALES!$E$97 -> $2,800
B78: B98 | C78: Borna 10 AWG terminal 1/H 30015 3M | D78: un | E78: =[2]MATERIALES!$E$98 -> $2,300
B79: B99 | C79: Borna 12 AWG terminal 1/H 31036 3M | D79: un | E79: =[2]MATERIALES!$E$99 -> $710
C80: Curva EMT DE 3/4" | D80: un | E80: =[2]MATERIALES!$E$112 -> 0

Sheet EQUIPO Y TRANSP.
C2: =DATOS!B2 -> CENTRO DE DESARROLLO TECNOLÓGICO PARA LA INNOVACIÓN DE LA INFRAESTRUCTURA VIAL
C6: CUADRO DE EQUIPOS
B9: Código | C9: Descripcion | D9: Unidad | E9: Precio guía
B10: E010 | C10: Andamio metálico tubular y elementos de protección para trabajo en alturas | D10: un/dia | E10: $ 7,000
B11: E011 | C11: Compactador | D11: hr | E11: $ 80,000
B12: E013 | C12: Compresor 120 hp, con martillo | D12: hr | E12: $ 76,895
B13: E012 | C13: Compresor para pintura | D13: hr | E13: $ 20,000
B14: E014 | C14: Cortadora de concreto | D14: hr | E14: $ 16,000
B15: E015 | C15: Equipo para soldadura (soldador+oxicorte+pulidora) | D15: hr | E15: $ 12,500
B16: E000 | C16: Herramienta Menor (5 % de la M.O) | D16: 5% | E16: $ 1
B17: E017 | C17: Mezcladora a gasolina 1.5 sacos | D17: dia | E17: $ 70,000
B18: E018 | C18: Motosierra | D18: dia | E18: $ 35,000
B19: E019 | C19: Pulidora | D19: Hr | E19: $ 5,000
B20: E020 | C20: Pulidora con piedra o disco | D20: dia | E20: $ 45,000
B21: E021 | C21: Pulidora piso 2 ejes | D21: dia | E21: $ 20,850
B22: E022 | C22: Soldador eléctrico | D22: dia | E22: $ 25,000
B23: E023 | C23: Vibrador electrico para concreto | D23: dia | E23: $ 55,000
B24: E024 | C24: Vibrocompactador tipo saltarin | D24: dia | E24: $ 80,000
B25: E025 | C25: Volqueta 5 m3 | D25: Vje | E25: $ 100,000
B26: E026 | C26: Transporte de materiales | D26: un | E26: $ 1,500
C28: FIRMA

Sheet APU
E2: =DATOS!B2 -> CENTRO DE DESARROLLO TECNOLÓGICO PARA LA INNOVACIÓN DE LA INFRAESTRUCTURA VIAL
E7: ANÁLISIS DE PRECIOS UNITARIOS
C9: =+PRESUPUESTO!B13 -> 1 | D9: =+PRESUPUESTO!C13 -> Laboratorio
C10: =+PRESUPUESTO!B14 -> 1.1 | D10: =+PRESUPUESTO!C14 -> Preliminares
C12: Item | D12: CENTRO DE DESARROLLO TECNOLÓGICO PARA LA INNOVACIÓN DE LA INFRAESTRUCTURA VIAL | G12: ANALISIS DE PRECIOS UNITARIOS
C13: =+PRESUPUESTO!B15 -> 1.1.1 | D13: =+_xlfn.XLOOKUP(C13,PRESUPUESTO!$B$13:$B$200,PRESUPUESTO!$C$13:$C$200) -> Localización y replanteo | H13: Unidad
H14: =+_xlfn.XLOOKUP(C13,PRESUPUESTO!$B$13:$B$200,PRESUPUESTO!$E$13:$E$200) -> m2
C16: MATERIALES | E16: UNIDAD | F16: CANTIDAD | G16: PRECIO UNIT | H16: VALOR UNIT
C17: M-122 | D17: =+_xlfn.XLOOKUP(C17,INSUMOS[codigo],INSUMOS[descripcion]) -> Liston 2x300 otobo | E17: =+_xlfn.XLOOKUP(C17,INSUMOS[codigo],INSUMOS[unidad]) -> un | F17: 0.11 | G17: =+_xlfn.XLOOKUP(C17,INSUMOS[codigo],INSUMOS[vr/unitario]) -> $ 8,000 | H17: =+F17*G17 -> $ 880
C18: M-134 | D18: =+_xlfn.XLOOKUP(C18,INSUMOS[codigo],INSUMOS[descripcion]) -> Mineral rojo | E18: =+_xlfn.XLOOKUP(C18,INSUMOS[codigo],INSUMOS[unidad]) -> kg | F18: 0.005 | G18: =+_xlfn.XLOOKUP(C18,INSUMOS[codigo],INSUMOS[vr/unitario]) -> $ 8,500 | H18: =+F18*G18 -> $ 43
C19: M-148 | D19: =+_xlfn.XLOOKUP(C19,INSUMOS[codigo],INSUMOS[descripcion]) -> Piola gruesa | E19: =+_xlfn.XLOOKUP(C19,INSUMOS[codigo],INSUMOS[unidad]) -> rollo | F19: 0.05 | G19: =+_xlfn.XLOOKUP(C19,INSUMOS[codigo],INSUMOS[vr/unitario]) -> $ 3,500 | H19: =+F19*G19 -> $ 175
C20: M-152 | D20: =+_xlfn.XLOOKUP(C20,INSUMOS[codigo],INSUMOS[descripcion]) -> Puntilla | E20: =+_xlfn.XLOOKUP(C20,INSUMOS[codigo],INSUMOS[unidad]) -> lb | F20: 0.02 | G20: =+_xlfn.XLOOKUP(C20,INSUMOS[codigo],INSUMOS[vr/unitario]) -> $ 3,604 | H20: =+F20*G20 -> $ 72
G21: Subtotal Materiales | H21: =SUM(H17:H20) -> $ 1,170
C23: MANO DE OBRA | E23: UNIDAD | F23: RENDIMIENTO | G23: JORNAL/SALARIO | H23: VALOR UNIT
C24: CUAD-03 | D24: =+_xlfn.XLOOKUP(C24,Tabla3[NOMBRE],Tabla3[[TIPO Y COMPOSICION]:[UND]]) -> Cuadrilla AA (Albañilería) 1Of y 1 Ay | E24: h-C | F24: 0.09 | G24: =+_xlfn.XLOOKUP(C24,Tabla3[NOMBRE],Tabla3[UNITARIO]) -> $ 33,372 | H24: =+F24*G24 -> $ 3,003
G25: Subtotal Mano Obra | H25: =SUM(H24) -> $ 3,003
C27: HERRAMIENTA Y EQUIPO | E27: UNIDAD | F27: RENDIMIENTO | G27: TARIFA | H27: VALOR UNIT
C28: =+_xlfn.XLOOKUP(D28,'[3]EQUIPO Y TRANSP.'!$C$10:$C$25,'[3]EQUIPO Y TRANSP.'!$B$10:$B$25) -> E000 | D28: Herramienta Menor (5 % de la M.O) | E28: =+_xlfn.XLOOKUP(C28,'[3]EQUIPO Y TRANSP.'!$B$10:$B$25,'[3]EQUIPO Y TRANSP.'!$E$10:$E$25) -> 5% (M.O) | F28: =+H25 -> 3,003 | G28: $ 1 | H28: =+F28*E28 -> $ 150
G29: Subtotal Equipos | H29: =SUM(H28) -> $ 150
G31: COSTO DIRECTO | H31: =ROUND(SUM(H29,H25,H21),0) -> $ 4,323
C34: Item | D34: CENTRO DE DESARROLLO TECNOLÓGICO PARA LA INNOVACIÓN DE LA INFRAESTRUCTURA VIAL | G34: ANALISIS DE PRECIOS UNITARIOS
C35: =+PRESUPUESTO!B16 -> 1.1.2 | D35: =+_xlfn.XLOOKUP(C35,PRESUPUESTO!$B$13:$B$200,PRESUPUESTO!$C$13:$C$200) -> Suministro e instalación cerramiento tela fibra tejida h= 2,10, soporte en madera común, cada 3 metros, para ser instalada en el corredor de laboratorio de materiales y el acceso al de suelos. | H35: Unidad
H36: =+_xlfn.XLOOKUP(C35,PRESUPUESTO!$B$13:$B$200,PRESUPUESTO!$E$13:$E$200) -> ml
C38: MATERIALES | E38: UNIDAD | F38: CANTIDAD | G38: PRECIO UNIT | H38: VALOR UNIT
C39: M-016 | D39: =+_xlfn.XLOOKUP(C39,INSUMOS[codigo],INSUMOS[descripcion]) -> Alambre galvanizado No. 18 | E39: =+_xlfn.XLOOKUP(C39,INSUMOS[codigo],INSUMOS[unidad]) -> kg | F39: 0.2 | G39: =+_xlfn.XLOOKUP(C39,INSUMOS[codigo],INSUMOS[vr/unitario]) -> $ 8,122 | H39: =+F39*G39 -> $ 1,624
C40: M-172 | D40: =+_xlfn.XLOOKUP(C40,INSUMOS[codigo],INSUMOS[descripcion]) -> Taco de guadua de 5 m | E40: =+_xlfn.XLOOKUP(C40,INSUMOS[codigo],INSUMOS[unidad]) -> un | F40: 0.5 | G40: =+_xlfn.XLOOKUP(C40,INSUMOS[codigo],INSUMOS[vr/unitario]) -> $ 12,000 | H40: =+F40*G40 -> $ 6,000
C41: M-152 | D41: =+_xlfn.XLOOKUP(C41,INSUMOS[codigo],INSUMOS[descripcion]) -> Puntilla | E41: =+_xlfn.XLOOKUP(C41,INSUMOS[codigo],INSUMOS[unidad]) -> lb | F41: 0.1 | G41: =+_xlfn.XLOOKUP(C41,INSUMOS[codigo],INSUMOS[vr/unitario]) -> $ 3,604 | H41: =+F41*G41 -> $ 360
C42: M-182 | D42: =+_xlfn.XLOOKUP(C42,INSUMOS[codigo],INSUMOS[descripcion]) -> Tela fibra tejida h= 2,10 m | E42: =+_xlfn.XLOOKUP(C42,INSUMOS[codigo],INSUMOS[unidad]) -> ml | F42: 1.03 | G42: =+_xlfn.XLOOKUP(C42,INSUMOS[codigo],INSUMOS[vr/unitario]) -> $ 2,500 | H42: =+F42*G42 -> $ 2,575
H43: =SUM(H39:H42) -> $ 10,560
C45: MANO DE OBRA | E45: UNIDAD | F45: RENDIMIENTO | G45: JORNAL/SALARIO | H45: VALOR UNIT
C46: CUAD-03 | D46: =+_xlfn.XLOOKUP(C46,Tabla3[NOMBRE],Tabla3[[TIPO Y COMPOSICION]:[UND]]) -> Cuadrilla AA (Albañilería) 1Of y 1 Ay | E46: h-C | F46: 0.07 | G46: =+_xlfn.XLOOKUP(C46,Tabla3[NOMBRE],Tabla3[UNITARIO]) -> $ 33,372 | H46: =+F46*G46 -> $ 2,336
H47: =SUM(H46) -> $ 2,336
C49: HERRAMIENTA Y EQUIPO | E49: UNIDAD | F49: RENDIMIENTO | G49: TARIFA | H49: VALOR UNIT
C50: =+_xlfn.XLOOKUP(D50,'[3]EQUIPO Y TRANSP.'!$C$10:$C$25,'[3]EQUIPO Y TRANSP.'!$B$10:$B$25) -> E000 | D50: Herramienta Menor (5 % de la M.O) | E50: =+_xlfn.XLOOKUP(C50,'[3]EQUIPO Y TRANSP.'!$B$10:$B$25,'[3]EQUIPO Y TRANSP.'!$E$10:$E$25) -> 5% (M.O) | F50: =+H47 -> 2,336 | G50: $ 1 | H50: =+F50*E50 -> $ 117
H51: =SUM(H50) -> $ 117
G53: COSTO DIRECTO | H53: =ROUND(SUM(H51,H47,H43),0) -> $ 13,013
C56: Item | D56: CENTRO DE DESARROLLO TECNOLÓGICO PARA LA INNOVACIÓN DE LA INFRAESTRUCTURA VIAL | G56: ANALISIS DE PRECIOS UNITARIOS
C57: =+PRESUPUESTO!B17 -> 1.1.3 | D57: =+_xlfn.XLOOKUP(C57,PRESUPUESTO!$B$13:$B$200,PRESUPUESTO!$C$13:$C$200) -> Desmonte de cielo raso existente, incluye transporte interno a sitio indicado por la interventoría | H57: Unidad
H58: =+_xlfn.XLOOKUP(C57,PRESUPUESTO!$B$13:$B$200,PRESUPUESTO!$E$13:$E$200) -> m2
C60: MATERIALES | E60: UNIDAD | F60: CANTIDAD | G60: PRECIO UNIT | H60: VALOR UNIT
C64: MANO DE OBRA | E64: UNIDAD | F64: RENDIMIENTO | G64: JORNAL/SALARIO | H64: VALOR UNIT
C65: CUAD-03 | D65: =+_xlfn.XLOOKUP(C65,Tabla3[NOMBRE],Tabla3[[TIPO Y COMPOSICION]:[UND]]) -> Cuadrilla AA (Albañilería) 1Of y 1 Ay | E65: h-C | F65: 0.25 | G65: =+_xlfn.XLOOKUP(C65,Tabla3[NOMBRE],Tabla3[UNITARIO]) -> $ 33,372 | H65: =+F65*G65 -> $ 8,343
H66: =SUM(H65) -> $ 8,343
C68: HERRAMIENTA Y EQUIPO | E68: UNIDAD | F68: RENDIMIENTO | G68: TARIFA | H68: VALOR UNIT
C69: =+_xlfn.XLOOKUP(D69,'[3]EQUIPO Y TRANSP.'!$C$10:$C$25,'[3]EQUIPO Y TRANSP.'!$B$10:$B$25) -> E000 | D69: Herramienta Menor (5 % de la M.O) | E69: =+_xlfn.XLOOKUP(C69,'[3]EQUIPO Y TRANSP.'!$B$10:$B$25,'[3]EQUIPO Y TRANSP.'!$E$10:$E$25) -> 5% (M.O) | F69: =+H66 -> 8,343 | G69: $ 1 | H69: =+F69*E69 -> $ 417
C70: E010 | D70: =+_xlfn.XLOOKUP($C70,Tabla2[[Código ]],Tabla2[Descripcion]) -> Andamio metálico tubular y elementos de protección para trabajo en alturas | E70: =+_xlfn.XLOOKUP($C70,Tabla2[[Código ]],Tabla2[Unidad]) -> un/dia | F70: 0.2 | G70: =+_xlfn.XLOOKUP($C70,Tabla2[[Código ]],Tabla2[Precio guía]) -> $ 7,000 | H70: =+F70*G70 -> $ 1,400
H71: =SUM(H69:H70) -> $ 1,817
G73: COSTO DIRECTO | H73: =ROUND(SUM(H71,H66),0) -> $ 10,160
C76: Item | D76: CENTRO DE DESARROLLO TECNOLÓGICO PARA LA INNOVACIÓN DE LA INFRAESTRUCTURA VIAL | G76: ANALISIS DE PRECIOS UNITARIOS
C77: =+PRESUPUESTO!B18 -> 1.1.4 | D77: =+_xlfn.XLOOKUP(C77,PRESUPUESTO!$B$13:$B$200,PRESUPUESTO!$C$13:$C$200) -> Desmonte de puerta con marco y nave en madera, incluye transporte interno a sitio indicado por la interventoría, correspondiente a la oficina de coordinación de laboratorio de suelos FIC | H77: Unidad
H78: =+_xlfn.XLOOKUP(C77,PRESUPUESTO!$B$13:$B$200,PRESUPUESTO!$E$13:$E$200) -> un
C80: MATERIALES | E80: UNIDAD | F80: CANTIDAD | G80: PRECIO UNIT | H80: VALOR UNIT
C84: MANO DE OBRA | E84: UNIDAD | F84: RENDIMIENTO | G84: JORNAL/SALARIO | H84: VALOR UNIT
C85: CUAD-01 | D85: =+_xlfn.XLOOKUP(C85,Tabla3[NOMBRE],Tabla3[[TIPO Y COMPOSICION]:[UND]]) -> Cuadrilla AA (Albañilería) 1 Ayudante | E85: h-C | F85: 1.75 | G85: =+_xlfn.XLOOKUP(C85,Tabla3[NOMBRE],Tabla3[UNITARIO]) -> $ 11,673 | H85: =+F85*G85 -> $ 20,428
H86: =SUM(H85) -> $ 20,428
C88: HERRAMIENTA Y EQUIPO | E88: UNIDAD | F88: RENDIMIENTO | G88: TARIFA | H88: VALOR UNIT
C89: =+_xlfn.XLOOKUP(D89,'EQUIPO Y TRANSP.'!$C$10:$C$25,'EQUIPO Y TRANSP.'!$B$10:$B$25) -> E000 | D89: Herramienta Menor (5 % de la M.O) | E89: =+_xlfn.XLOOKUP(C89,'EQUIPO Y TRANSP.'!$B$10:$B$25,'EQUIPO Y TRANSP.'!$D$10:$D$25) -> 5% (M.O) | F89: =+H86 -> 20,428 | G89: $ 1 | H89: =+F89*E89 -> $ 1,021
H90: =SUM(H89) -> $ 1,021
G92: COSTO DIRECTO | H92: =ROUND(SUM(H90,H86),0) -> $ 21,449
C95: Item | D95: CENTRO DE DESARROLLO TECNOLÓGICO PARA LA INNOVACIÓN DE LA INFRAESTRUCTURA VIAL | G95: ANALISIS DE PRECIOS UNITARIOS
C96: =+PRESUPUESTO!B19 -> 1.1.5 | D96: =+_xlfn.XLOOKUP(C96,PRESUPUESTO!$B$13:$B$200,PRESUPUESTO!$C$13:$C$200) -> Desmonte de puertas en madera con marco metálico, incluye retiro a un lugar de la obra indicado por la interventoría, correspondientes a la del ingreso al salón Triaxial Dinámico, y entre esta y el almacén. | H96: Unidad
H97: =+_xlfn.XLOOKUP(C96,PRESUPUESTO!$B$13:$B$200,PRESUPUESTO!$E$13:$E$200) -> un
C99: MATERIALES | E99: UNIDAD | F99: CANTIDAD | G99: PRECIO UNIT | H99: VALOR UNIT
C103: MANO DE OBRA | E103: UNIDAD | F103: RENDIMIENTO | G103: JORNAL/SALARIO | H103: VALOR UNIT
C104: CUAD-03 | D104: =+_xlfn.XLOOKUP(C104,Tabla3[NOMBRE],Tabla3[[TIPO Y COMPOSICION]:[UND]]) -> Cuadrilla AA (Albañilería) 1Of y 1 Ay | E104: h-C | F104: 0.9 | G104: =+_xlfn.XLOOKUP(C104,Tabla3[NOMBRE],Tabla3[UNITARIO]) -> $ 33,372 | H104: =+F104*G104 -> $ 30,035
H105: =SUM(H104) -> $ 30,035
C107: HERRAMIENTA Y EQUIPO | E107: UNIDAD | F107: RENDIMIENTO | G107: TARIFA | H107: VALOR UNIT
C108: =+_xlfn.XLOOKUP(D108,'EQUIPO Y TRANSP.'!$C$10:$C$25,'EQUIPO Y TRANSP.'!$B$10:$B$25) -> E000 | D108: Herramienta Menor (5 % de la M.O) | E108: =+_xlfn.XLOOKUP(C108,'EQUIPO Y TRANSP.'!$B$10:$B$25,'EQUIPO Y TRANSP.'!$D$10:$D$25) -> 5% (M.O) | F108: =+H105 -> 30,035 | G108: $ 1 | H108: =+F108*E108 -> $ 1,502
H109: =SUM(H108) -> $ 1,502
G111: COSTO DIRECTO | H111: =ROUND(SUM(H109,H105),0) -> $ 31,537
C114: Item | D114: CENTRO DE DESARROLLO TECNOLÓGICO PARA LA INNOVACIÓN DE LA INFRAESTRUCTURA VIAL | G114: ANALISIS DE PRECIOS UNITARIOS
C115: =+PRESUPUESTO!B20 -> 1.1.6 | D115: =+_xlfn.XLOOKUP(C115,PRESUPUESTO!$B$13:$B$200,PRESUPUESTO!$C$13:$C$200) -> Retiro de ventanas metálicas con vidrio y retiro de la misma a lugar de acopio indicado por la interventoría. | H115: Unidad
H116: =+_xlfn.XLOOKUP(C115,PRESUPUESTO!$B$13:$B$200,PRESUPUESTO!$E$13:$E$200) -> m2
C118: MATERIALES | E118: UNIDAD | F118: CANTIDAD | G118: PRECIO UNIT | H118: VALOR UNIT
C122: MANO DE OBRA | E122: UNIDAD | F122: RENDIMIENTO | G122: JORNAL/SALARIO | H122: VALOR UNIT
C123: CUAD-03 | D123: =+_xlfn.XLOOKUP(C123,Tabla3[NOMBRE],Tabla3[[TIPO Y COMPOSICION]:[UND]]) -> Cuadrilla AA (Albañilería) 1Of y 1 Ay | E123: h-C | F123: 0.5 | G123: =+_xlfn.XLOOKUP(C123,Tabla3[NOMBRE],Tabla3[UNITARIO]) -> $ 33,372 | H123: =+F123*G123 -> $ 16,686
H124: =SUM(H123) -> $ 16,686
C126: HERRAMIENTA Y EQUIPO | E126: UNIDAD | F126: RENDIMIENTO | G126: TARIFA | H126: VALOR UNIT
C127: =+_xlfn.XLOOKUP(D127,'EQUIPO Y TRANSP.'!$C$10:$C$25,'EQUIPO Y TRANSP.'!$B$10:$B$25) -> E000 | D127: Herramienta Menor (5 % de la M.O) | E127: =+_xlfn.XLOOKUP(C127,'EQUIPO Y TRANSP.'!$B$10:$B$25,'EQUIPO Y TRANSP.'!$D$10:$D$25) -> 5% (M.O) | F127: =+H124 -> 16,686 | G127: $ 1 | H127: =+F127*E127 -> $ 834
C128: E010 | D128: =+_xlfn.XLOOKUP($C128,Tabla2[[Código ]],Tabla2[Descripcion]) -> Andamio metálico tubular y elementos de protección para trabajo en alturas | E128: =+_xlfn.XLOOKUP($C128,Tabla2[[Código ]],Tabla2[Unidad]) -> un/dia | F128: 0.2 | G128: =+_xlfn.XLOOKUP($C128,Tabla2[[Código ]],Tabla2[Precio guía]) -> $ 7,000 | H128: =+F128*G128 -> $ 1,400
H129: =SUM(H127:H128) -> $ 2,234
G131: COSTO DIRECTO | H131: =ROUND(SUM(H129,H124),0) -> $ 18,920
C134: Item | D134: CENTRO DE DESARROLLO TECNOLÓGICO PARA LA INNOVACIÓN DE LA INFRAESTRUCTURA VIAL | G134: ANALISIS DE PRECIOS UNITARIOS
C135: =+PRESUPUESTO!B21 -> 1.1.7 | D135: =+_xlfn.XLOOKUP(C135,PRESUPUESTO!$B$13:$B$200,PRESUPUESTO!$C$13:$C$200) -> Demolición de baldosa existente y traslado de escombros a sitio de acopio aprobado por la interventoría | H135: Unidad
H136: =+_xlfn.XLOOKUP(C135,PRESUPUESTO!$B$13:$B$200,PRESUPUESTO!$E$13:$E$200) -> m2
C138: MATERIALES | E138: UNIDAD | F138: CANTIDAD | G138: PRECIO UNIT | H138: VALOR UNIT
C142: MANO DE OBRA | E142: UNIDAD | F142: RENDIMIENTO | G142: JORNAL/SALARIO | H142: VALOR UNIT
C143: CUAD-01 | D143: =+_xlfn.XLOOKUP(C143,Tabla3[NOMBRE],Tabla3[[TIPO Y COMPOSICION]:[UND]]) -> Cuadrilla AA (Albañilería) 1 Ayudante | E143: h-C | F143: 1.1 | G143: =+_xlfn.XLOOKUP(C143,Tabla3[NOMBRE],Tabla3[UNITARIO]) -> $ 11,673 | H143: =+F143*G143 -> $ 12,840
H144: =ROUND(SUM(H143),0) -> $ 12,840
C146: HERRAMIENTA Y EQUIPO | E146: UNIDAD | F146: RENDIMIENTO | G146: TARIFA | H146: VALOR UNIT
C147: =+_xlfn.XLOOKUP(D147,'EQUIPO Y TRANSP.'!$C$10:$C$25,'EQUIPO Y TRANSP.'!$B$10:$B$25) -> E000 | D147: Herramienta Menor (5 % de la M.O) | E147: =+_xlfn.XLOOKUP(C147,'EQUIPO Y TRANSP.'!$B$10:$B$25,'EQUIPO Y TRANSP.'!$D$10:$D$25) -> 5% (M.O) | F147: =+H144 -> 12,840 | G147: $ 1 | H147: =+F147*E147 -> $ 642
H148: =SUM(H147) -> $ 642
G150: COSTO DIRECTO | H150: =ROUND(SUM(H148,H144),0) -> $ 13,482
C153: Item | D153: CENTRO DE DESARROLLO TECNOLÓGICO PARA LA INNOVACIÓN DE LA INFRAESTRUCTURA VIAL | G153: ANALISIS DE PRECIOS UNITARIOS
C154: =+PRESUPUESTO!B22 -> 1.1.8 | D154: =+_xlfn.XLOOKUP(C154,PRESUPUESTO!$B$13:$B$200,PRESUPUESTO!$C$13:$C$200) -> Demolición de guarda escoba existente y traslado de escombros a sitio de acopio aprobado por la interventoría | H154: Unidad
H155: =+_xlfn.XLOOKUP(C154,PRESUPUESTO!$B$13:$B$200,PRESUPUESTO!$E$13:$E$200) -> ml
C157: MATERIALES | E157: UNIDAD | F157: CANTIDAD | G157: PRECIO UNIT | H157: VALOR UNIT
C161: MANO DE OBRA | E161: UNIDAD | F161: RENDIMIENTO | G161: JORNAL/SALARIO | H161: VALOR UNIT
C162: CUAD-01 | D162: =+_xlfn.XLOOKUP(C162,Tabla3[NOMBRE],Tabla3[[TIPO Y COMPOSICION]:[UND]]) -> Cuadrilla AA (Albañilería) 1 Ayudante | E162: h-C | F162: 0.16 | G162: =+_xlfn.XLOOKUP(C162,Tabla3[NOMBRE],Tabla3[UNITARIO]) -> $ 11,673 | H162: =+F162*G162 -> $ 1,868
H163: =SUM(H162) -> $ 1,868
C165: HERRAMIENTA Y EQUIPO | E165: UNIDAD | F165: RENDIMIENTO | G165: TARIFA | H165: VALOR UNIT
C166: =+_xlfn.XLOOKUP(D166,'EQUIPO Y TRANSP.'!$C$10:$C$25,'EQUIPO Y TRANSP.'!$B$10:$B$25) -> E000 | D166: Herramienta Menor (5 % de la M.O) | E166: =+_xlfn.XLOOKUP(C166,'EQUIPO Y TRANSP.'!$B$10:$B$25,'EQUIPO Y TRANSP.'!$D$10:$D$25) -> 5% (M.O) | F166: =+H163 -> 1,868 | G166: $ 1 | H166: =+F166*E166 -> $ 93
H167: =SUM(H166) -> $ 93
G169: COSTO DIRECTO | H169: =ROUND(SUM(H167,H163),0) -> $ 1,961
C172: Item | D172: CENTRO DE DESARROLLO TECNOLÓGICO PARA LA INNOVACIÓN DE LA INFRAESTRUCTURA VIAL | G172: ANALISIS DE PRECIOS UNITARIOS
C173: =+PRESUPUESTO!B23 -> 1.1.9 | D173: =+_xlfn.XLOOKUP(C173,PRESUPUESTO!$B$13:$B$200,PRESUPUESTO!$C$13:$C$200) -> Demolición de mesón existente de 1.15 x 0.65 x 0.90 m en el salón triaxial dinámico. y traslado de escombros a sitio de acopio aprobado por la interventoría | H173: Unidad
H174: =+_xlfn.XLOOKUP(C173,PRESUPUESTO!$B$13:$B$200,PRESUPUESTO!$E$13:$E$200) -> un
C176: MATERIALES | E176: UNIDAD | F176: CANTIDAD | G176: PRECIO UNIT | H176: VALOR UNIT
C180: MANO DE OBRA | E180: UNIDAD | F180: RENDIMIENTO | G180: JORNAL/SALARIO | H180: VALOR UNIT
C181: CUAD-01 | D181: =+_xlfn.XLOOKUP(C181,Tabla3[NOMBRE],Tabla3[[TIPO Y COMPOSICION]:[UND]]) -> Cuadrilla AA (Albañilería) 1 Ayudante | E181: h-C | F181: 3.1 | G181: =+_xlfn.XLOOKUP(C181,Tabla3[NOMBRE],Tabla3[UNITARIO]) -> $ 11,673 | H181: =+F181*G181 -> $ 36,186
H182: =SUM(H181) -> $ 36,186
C184: HERRAMIENTA Y EQUIPO | E184: UNIDAD | F184: RENDIMIENTO | G184: TARIFA | H184: VALOR UNIT
C185: =+_xlfn.XLOOKUP(D185,'EQUIPO Y TRANSP.'!$C$10:$C$25,'EQUIPO Y TRANSP.'!$B$10:$B$25) -> E000 | D185: Herramienta Menor (5 % de la M.O) | E185: =+_xlfn.XLOOKUP(C185,'EQUIPO Y TRANSP.'!$B$10:$B$25,'EQUIPO Y TRANSP.'!$D$10:$D$25) -> 5% (M.O) | F185: =+H182 -> 36,186 | G185: $ 1 | H185: =+F185*E185 -> $ 1,809
H186: =SUM(H185) -> $ 1,809
G188: COSTO DIRECTO | H188: =ROUND(SUM(H186,H182),0) -> $ 37,996
C191: Item | D191: CENTRO DE DESARROLLO TECNOLÓGICO PARA LA INNOVACIÓN DE LA INFRAESTRUCTURA VIAL | G191: ANALISIS DE PRECIOS UNITARIOS
C192: =+PRESUPUESTO!B24 -> 1.1.10 | D192: =+_xlfn.XLOOKUP(C192,PRESUPUESTO!$B$13:$B$200,PRESUPUESTO!$C$13:$C$200) -> Demolición de mesón existente de 1.90 x 0.70 x 0.90 m en el salón triaxial dinámico y traslado de escombros a sitio de acopio aprobado por la interventoría | H192: Unidad
H193: =+_xlfn.XLOOKUP(C192,PRESUPUESTO!$B$13:$B$200,PRESUPUESTO!$E$13:$E$200) -> un
C195: MATERIALES | E195: UNIDAD | F195: CANTIDAD | G195: PRECIO UNIT | H195: VALOR UNIT
C199: MANO DE OBRA | E199: UNIDAD | F199: RENDIMIENTO | G199: JORNAL/SALARIO | H199: VALOR UNIT
C200: CUAD-03 | D200: =+_xlfn.XLOOKUP(C200,Tabla3[NOMBRE],Tabla3[[TIPO Y COMPOSICION]:[UND]]) -> Cuadrilla AA (Albañilería) 1Of y 1 Ay | E200: h-C | F200: 2 | G200: =+_xlfn.XLOOKUP(C200,Tabla3[NOMBRE],Tabla3[UNITARIO]) -> $ 33,372 | H200: =+F200*G200 -> $ 66,744
H201: =SUM(H200) -> $ 66,744
C203: HERRAMIENTA Y EQUIPO | E203: UNIDAD | F203: RENDIMIENTO | G203: TARIFA | H203: VALOR UNIT
C204: =+_xlfn.XLOOKUP(D204,'EQUIPO Y TRANSP.'!$C$10:$C$25,'EQUIPO Y TRANSP.'!$B$10:$B$25) -> E000 | D204: Herramienta Menor (5 % de la M.O) | E204: =+_xlfn.XLOOKUP(C204,'EQUIPO Y TRANSP.'!$B$10:$B$25,'EQUIPO Y TRANSP.'!$D$10:$D$25) -> 5% (M.O) | F204: =+H201 -> 66,744 | G204: $ 1 | H204: =+F204*E204 -> $ 3,337
H205: =SUM(H204) -> $ 3,337
G207: COSTO DIRECTO | H207: =ROUND(SUM(H205,H201),0) -> $ 70,081
C210: Item | D210: CENTRO DE DESARROLLO TECNOLÓGICO PARA LA INNOVACIÓN DE LA INFRAESTRUCTURA VIAL | G210: ANALISIS DE PRECIOS UNITARIOS
C211: =+PRESUPUESTO!B25 -> 1.1.11 | D211: =+_xlfn.XLOOKUP(C211,PRESUPUESTO!$B$13:$B$200,PRESUPUESTO!$C$13:$C$200) -> Demolición bases en concreto de 0.13 m de espesor en los salones y traslado de escombros a sitio de acopio aprobado por la interventoría | H211: Unidad
H212: =+_xlfn.XLOOKUP(C211,PRESUPUESTO!$B$13:$B$200,PRESUPUESTO!$E$13:$E$200) -> m2
C214: MATERIALES | E214: UNIDAD | F214: CANTIDAD | G214: PRECIO UNIT | H214: VALOR UNIT
C218: MANO DE OBRA | E218: UNIDAD | F218: RENDIMIENTO | G218: JORNAL/SALARIO | H218: VALOR UNIT
C219: CUAD-01 | D219: =+_xlfn.XLOOKUP(C219,Tabla3[NOMBRE],Tabla3[[TIPO Y COMPOSICION]:[UND]]) -> Cuadrilla AA (Albañilería) 1 Ayudante | E219: h-C | F219: 2 | G219: =+_xlfn.XLOOKUP(C219,Tabla3[NOMBRE],Tabla3[UNITARIO]) -> $ 11,673 | H219: =+F219*G219 -> $ 23,346
H220: =SUM(H219) -> $ 23,346
C222: HERRAMIENTA Y EQUIPO | E222: UNIDAD | F222: RENDIMIENTO | G222: TARIFA | H222: VALOR UNIT
C223: =+_xlfn.XLOOKUP(D223,'EQUIPO Y TRANSP.'!$C$10:$C$25,'EQUIPO Y TRANSP.'!$B$10:$B$25) -> E000 | D223: Herramienta Menor (5 % de la M.O) | E223: =+_xlfn.XLOOKUP(C223,'EQUIPO Y TRANSP.'!$B$10:$B$25,'EQUIPO Y TRANSP.'!$D$10:$D$25) -> 5% (M.O) | F223: =+H220 -> 23,346 | G223: $ 1 | H223: =+F223*E223 -> $ 1,167
H224: =SUM(H223) -> $ 1,167
G226: COSTO DIRECTO | H226: =ROUND(SUM(H224,H220),0) -> $ 24,513
C229: Item | D229: CENTRO DE DESARROLLO TECNOLÓGICO PARA LA INNOVACIÓN DE LA INFRAESTRUCTURA VIAL | G229: ANALISIS DE PRECIOS UNITARIOS
C230: =+PRESUPUESTO!B26 -> 1.1.12 | D230: =+_xlfn.XLOOKUP(C230,PRESUPUESTO!$B$13:$B$200,PRESUPUESTO!$C$13:$C$200) -> Demolición de muro en ladrillo existente y traslado de escombros a sitio de acopio indicado por la interventoría | H230: Unidad
H231: =+_xlfn.XLOOKUP(C230,PRESUPUESTO!$B$13:$B$200,PRESUPUESTO!$E$13:$E$200) -> m2
C233: MATERIALES | E233: UNIDAD | F233: CANTIDAD | G233: PRECIO UNIT | H233: VALOR UNIT
C237: MANO DE OBRA | E237: UNIDAD | F237: RENDIMIENTO | G237: JORNAL/SALARIO | H237: VALOR UNIT
C238: CUAD-01 | D238: =+_xlfn.XLOOKUP(C238,Tabla3[NOMBRE],Tabla3[[TIPO Y COMPOSICION]:[UND]]) -> Cuadrilla AA (Albañilería) 1 Ayudante | E238: h-C | F238: 1.16 | G238: =+_xlfn.XLOOKUP(C238,Tabla3[NOMBRE],Tabla3[UNITARIO]) -> $ 11,673 | H238: =+F238*G238 -> $ 13,541
H239: =SUM(H238) -> $ 13,541
C241: HERRAMIENTA Y EQUIPO | E241: UNIDAD | F241: RENDIMIENTO | G241: TARIFA | H241: VALOR UNIT
C242: =+_xlfn.XLOOKUP(D242,'EQUIPO Y TRANSP.'!$C$10:$C$25,'EQUIPO Y TRANSP.'!$B$10:$B$25) -> E000 | D242: Herramienta Menor (5 % de la M.O) | E242: =+_xlfn.XLOOKUP(C242,'EQUIPO Y TRANSP.'!$B$10:$B$25,'EQUIPO Y TRANSP.'!$D$10:$D$25) -> 5% (M.O) | F242: =+H239 -> 13,541 | G242: $ 1 | H242: =+F242*E242 -> $ 677
H243: =SUM(H242) -> $ 677
G245: COSTO DIRECTO | H245: =ROUND(SUM(H243,H239),0) -> $ 14,218
C248: Item | D248: CENTRO DE DESARROLLO TECNOLÓGICO PARA LA INNOVACIÓN DE LA INFRAESTRUCTURA VIAL | G248: ANALISIS DE PRECIOS UNITARIOS
C249: =+PRESUPUESTO!B27 -> 1.1.13 | D249: =+_xlfn.XLOOKUP(C249,PRESUPUESTO!$B$13:$B$200,PRESUPUESTO!$C$13:$C$200) -> Corte y desenraizado de arboles frutales existentes en la parte trasera del laboratorio. Incluye retiro a la calzada contigua tras de la malla existente para ser recogida y trasladada a una escombrera aprobada por la alcaldía municipal | H249: Unidad
H250: =+_xlfn.XLOOKUP(C249,PRESUPUESTO!$B$13:$B$200,PRESUPUESTO!$E$13:$E$200) -> un
C252: MATERIALES | E252: UNIDAD | F252: CANTIDAD | G252: PRECIO UNIT | H252: VALOR UNIT
C256: MANO DE OBRA | E256: UNIDAD | F256: RENDIMIENTO | G256: JORNAL/SALARIO | H256: VALOR UNIT
C257: CUAD-03 | D257: =+_xlfn.XLOOKUP(C257,Tabla3[NOMBRE],Tabla3[[TIPO Y COMPOSICION]:[UND]]) -> Cuadrilla AA (Albañilería) 1Of y 1 Ay | E257: h-C | F257: 5 | G257: =+_xlfn.XLOOKUP(C257,Tabla3[NOMBRE],Tabla3[UNITARIO]) -> $ 33,372 | H257: =+F257*G257 -> $ 166,860
H258: =SUM(H257) -> $ 166,860
C260: HERRAMIENTA Y EQUIPO | E260: UNIDAD | F260: RENDIMIENTO | G260: TARIFA | H260: VALOR UNIT
C261: =+_xlfn.XLOOKUP(D261,'EQUIPO Y TRANSP.'!$C$10:$C$25,'EQUIPO Y TRANSP.'!$B$10:$B$25) -> E000 | D261: Herramienta Menor (5 % de la M.O) | E261: =+_xlfn.XLOOKUP(C261,'EQUIPO Y TRANSP.'!$B$10:$B$25,'EQUIPO Y TRANSP.'!$D$10:$D$25) -> 5% (M.O) | F261: =+H258 -> 166,860 | G261: $ 1 | H261: =+F261*E261 -> $ 8,343
C262: E018 | D262: =+_xlfn.XLOOKUP($C262,Tabla2[[Código ]],Tabla2[Descripcion]) -> Motosierra | E262: =+_xlfn.XLOOKUP($C262,Tabla2[[Código ]],Tabla2[Unidad]) -> dia | F262: 1 | G262: =+_xlfn.XLOOKUP($C262,Tabla2[[Código ]],Tabla2[Precio guía]) -> $ 35,000 | H262: =+F262*G262 -> $ 35,000
H263: =SUM(H261:H262) -> $ 43,343
G265: COSTO DIRECTO | H265: =ROUND(SUM(H263,H258),0) -> $ 210,203
C266: =+PRESUPUESTO!B28 -> 1.2 | D266: =+PRESUPUESTO!C28 -> Cimentación
C268: Item | D268: CENTRO DE DESARROLLO TECNOLÓGICO PARA LA INNOVACIÓN DE LA INFRAESTRUCTURA VIAL | G268: ANALISIS DE PRECIOS UNITARIOS
C269: =+PRESUPUESTO!B29 -> 1.2.1 | D269: =+_xlfn.XLOOKUP(C269,PRESUPUESTO!$B$13:$B$200,PRESUPUESTO!$C$13:$C$200) -> Excavación manual en material común, hasta 1 m de profundidad, para cimentaciones | H269: Unidad
H270: =+_xlfn.XLOOKUP(C269,PRESUPUESTO!$B$13:$B$200,PRESUPUESTO!$E$13:$E$200) -> m3
C272: MATERIALES | E272: UNIDAD | F272: CANTIDAD | G272: PRECIO UNIT | H272: VALOR UNIT
C276: MANO DE OBRA | E276: UNIDAD | F276: RENDIMIENTO | G276: JORNAL/SALARIO | H276: VALOR UNIT
C277: CUAD-01 | D277: =+_xlfn.XLOOKUP(C277,Tabla3[NOMBRE],Tabla3[[TIPO Y COMPOSICION]:[UND]]) -> Cuadrilla AA (Albañilería) 1 Ayudante | E277: h-C | F277: 1.4 | G277: =+_xlfn.XLOOKUP(C277,Tabla3[NOMBRE],Tabla3[UNITARIO]) -> $ 11,673 | H277: =+F277*G277 -> $ 16,342
H278: =ROUND(SUM(H277),0) -> $ 16,342
C280: HERRAMIENTA Y EQUIPO | E280: UNIDAD | F280: RENDIMIENTO | G280: TARIFA | H280: VALOR UNIT
C281: =+_xlfn.XLOOKUP(D281,'EQUIPO Y TRANSP.'!$C$10:$C$25,'EQUIPO Y TRANSP.'!$B$10:$B$25) -> E000 | D281: Herramienta Menor (5 % de la M.O) | E281: =+_xlfn.XLOOKUP(C281,'EQUIPO Y TRANSP.'!$B$10:$B$25,'EQUIPO Y TRANSP.'!$D$10:$D$25) -> 5% (M.O) | F281: =+H278 -> 16,342 | G281: $ 1 | H281: =+F281*E281 -> $ 817
H282: =ROUND(SUM(H281),0) -> $ 817
G284: COSTO DIRECTO | H284: =ROUND(SUM(H282,H278),0) -> $ 17,159
C287: Item | D287: CENTRO DE DESARROLLO TECNOLÓGICO PARA LA INNOVACIÓN DE LA INFRAESTRUCTURA VIAL | G287: ANALISIS DE PRECIOS UNITARIOS
C288: =+PRESUPUESTO!B30 -> 1.2.2 | D288: =+_xlfn.XLOOKUP(C288,PRESUPUESTO!$B$13:$B$200,PRESUPUESTO!$C$13:$C$200) -> Concreto p/solado de limpieza, f'c= 14 Mpa, e=0.05 m para zapatas o vigas de cimentación | H288: Unidad
H289: =+_xlfn.XLOOKUP(C288,PRESUPUESTO!$B$13:$B$200,PRESUPUESTO!$E$13:$E$200) -> m2
C291: MATERIALES | E291: UNIDAD | F291: CANTIDAD | G291: PRECIO UNIT | H291: VALOR UNIT
C292: CCT-14MP | D292: =+_xlfn.XLOOKUP(C292,Tabla4[CODIGO],Tabla4[[CONCRETOS O MORTEROS]:[UND]]) -> Concreto f'c= 14 Mpa | E292: m3 | F292: 0.0525 | G292: =+_xlfn.XLOOKUP(C292,Tabla4[CODIGO],Tabla4[VALOR]) -> $ 283,692 | H292: =+F292*G292 -> $ 14,894 | K292: M3 | L292: 0.0525 | M292: 315385 | N292: 16557.7125
H293: =SUM(H292) -> $ 14,894
C295: MANO DE OBRA | E295: UNIDAD | F295: RENDIMIENTO | G295: JORNAL/SALARIO | H295: VALOR UNIT
C296: CUAD-03 | D296: =+_xlfn.XLOOKUP(C296,Tabla3[NOMBRE],Tabla3[[TIPO Y COMPOSICION]:[UND]]) -> Cuadrilla AA (Albañilería) 1Of y 1 Ay | E296: h-C | F296: 0.2 | G296: =+_xlfn.XLOOKUP(C296,Tabla3[NOMBRE],Tabla3[UNITARIO]) -> $ 33,372 | H296: =+F296*G296 -> $ 6,674
H297: =SUM(H296) -> $ 6,674
C299: HERRAMIENTA Y EQUIPO | E299: UNIDAD | F299: RENDIMIENTO | G299: TARIFA | H299: VALOR UNIT
C300: E000 | D300: Herramienta Menor (5 % de la M.O) | E300: =+_xlfn.XLOOKUP(C300,'EQUIPO Y TRANSP.'!$B$10:$B$25,'EQUIPO Y TRANSP.'!$D$10:$D$25) -> 5% (M.O) | F300: =+H297 -> 6,674 | G300: $ 1 | H300: =+F300*E300 -> $ 334
H301: =SUM(H300) -> $ 334
G303: COSTO DIRECTO | H303: =ROUND(SUM(H301,H297,H293),0) -> $ 21,902
C306: Item | D306: CENTRO DE DESARROLLO TECNOLÓGICO PARA LA INNOVACIÓN DE LA INFRAESTRUCTURA VIAL | G306: ANALISIS DE PRECIOS UNITARIOS
C307: =+PRESUPUESTO!B31 -> 1.2.3 | D307: =+_xlfn.XLOOKUP(C307,PRESUPUESTO!$B$13:$B$200,PRESUPUESTO!$C$13:$C$200) -> Construcción zapata en concreto reforzado de f'c= 21 Mpa de 0.40 x 0.30 m, refuerzo incluido de acuerdo a planos de diseño. | H307: Unidad
H308: =+_xlfn.XLOOKUP(C307,PRESUPUESTO!$B$13:$B$200,PRESUPUESTO!$E$13:$E$200) -> ml
C310: MATERIALES | E310: UNIDAD | F310: CANTIDAD | G310: PRECIO UNIT | H310: VALOR UNIT
C311: CCT-21MP | D311: =+_xlfn.XLOOKUP(C311,Tabla4[CODIGO],Tabla4[[CONCRETOS O MORTEROS]:[UND]]) -> Concreto f'c= 21 Mpa | E311: m3 | F311: 0.09 | G311: =+_xlfn.XLOOKUP(C311,Tabla4[CODIGO],Tabla4[VALOR]) -> $ 391,385 | H311: =+F311*G311 -> $ 35,225
C312: M-003 | D312: =+_xlfn.XLOOKUP(C312,INSUMOS[codigo],INSUMOS[descripcion]) -> Acero fy=420 mpa | E312: =+_xlfn.XLOOKUP(C312,INSUMOS[codigo],INSUMOS[unidad]) -> kg | F312: 5.05 | G312: =+_xlfn.XLOOKUP(C312,INSUMOS[codigo],INSUMOS[vr/unitario]) -> $ 6,000 | H312: =+F312*G312 -> $ 30,300
C313: M-017 | D313: =+_xlfn.XLOOKUP(C313,INSUMOS[codigo],INSUMOS[descripcion]) -> Alambre negro N° 18 para amarre de acero de refuerzo | E313: =+_xlfn.XLOOKUP(C313,INSUMOS[codigo],INSUMOS[unidad]) -> kg | F313: 0.05 | G313: =+_xlfn.XLOOKUP(C313,INSUMOS[codigo],INSUMOS[vr/unitario]) -> $ 6,300 | H313: $ 315
C314: M-122 | D314: =+_xlfn.XLOOKUP(C314,INSUMOS[codigo],INSUMOS[descripcion]) -> Liston 2x300 otobo | E314: =+_xlfn.XLOOKUP(C314,INSUMOS[codigo],INSUMOS[unidad]) -> un | F314: 0.5 | G314: =+_xlfn.XLOOKUP(C314,INSUMOS[codigo],INSUMOS[vr/unitario]) -> $ 8,000 | H314: $ 4,000
C315: M-152 | D315: =+_xlfn.XLOOKUP(C315,INSUMOS[codigo],INSUMOS[descripcion]) -> Puntilla | E315: =+_xlfn.XLOOKUP(C315,INSUMOS[codigo],INSUMOS[unidad]) -> lb | F315: 0.25 | G315: =+_xlfn.XLOOKUP(C315,INSUMOS[codigo],INSUMOS[vr/unitario]) -> $ 3,604 | H315: $ 901
C316: M-168 | D316: =+_xlfn.XLOOKUP(C316,INSUMOS[codigo],INSUMOS[descripcion]) -> Tabla común de 3x0,2x0,02 | E316: =+_xlfn.XLOOKUP(C316,INSUMOS[codigo],INSUMOS[unidad]) -> un | F316: 0.6 | G316: =+_xlfn.XLOOKUP(C316,INSUMOS[codigo],INSUMOS[vr/unitario]) -> $ 10,000 | H316: $ 6,000
H317: =SUM(H311:H316) -> $ 76,741
C319: MANO DE OBRA | E319: UNIDAD | F319: RENDIMIENTO | G319: JORNAL/SALARIO | H319: VALOR UNIT
C320: CUAD-04 | D320: =+_xlfn.XLOOKUP(C320,Tabla3[NOMBRE],Tabla3[[TIPO Y COMPOSICION]:[UND]]) -> Cuadrilla AA (Albañilería) 1Of+2Ay | E320: h-C | F320: 0.23 | G320: =+_xlfn.XLOOKUP(C320,Tabla3[NOMBRE],Tabla3[UNITARIO]) -> $ 42,012 | H320: =+F320*G320 -> $ 9,663
H321: =SUM(H320) -> $ 9,663
C323: HERRAMIENTA Y EQUIPO | E323: UNIDAD | F323: RENDIMIENTO | G323: TARIFA | H323: VALOR UNIT
... 2206 more rows

Sheet CONCRETOS Y MORTEROS
D3: CENTRO DE DESARROLLO TECNOLÓGICO PARA LA INNOVACIÓN DE LA INFRAESTRUCTURA VIAL
D8: MORTEROS Y CONCRETOS
B10: Cod | C10: Material | F10: Unidad | G10: Valor unitario
B11: =+_xlfn.XLOOKUP(C11,INSUMOS!$C$9:$C$240,INSUMOS!$B$9:$B$240) -> M-015 | C11: Agua | F11: =+_xlfn.XLOOKUP(B11,INSUMOS!$B$9:$B$259,INSUMOS!$D$9:$D$259) -> lt | G11: =+_xlfn.XLOOKUP(B11,INSUMOS!$B$9:$B$259,INSUMOS!$E$9:$E$259) -> $ 20
B12: =+_xlfn.XLOOKUP(C12,INSUMOS!$C$9:$C$240,INSUMOS!$B$9:$B$240) -> M-024 | C12: Arena | F12: =+_xlfn.XLOOKUP(B12,INSUMOS!$B$9:$B$259,INSUMOS!$D$9:$D$259) -> m3 | G12: =+_xlfn.XLOOKUP(B12,INSUMOS!$B$9:$B$259,INSUMOS!$E$9:$E$259) -> $ 95,000
B13: =+_xlfn.XLOOKUP(C13,INSUMOS!$C$9:$C$240,INSUMOS!$B$9:$B$240) -> M-060 | C13: Cemento gris | F13: =+_xlfn.XLOOKUP(B13,INSUMOS!$B$9:$B$259,INSUMOS!$D$9:$D$259) -> kg | G13: =+_xlfn.XLOOKUP(B13,INSUMOS!$B$9:$B$259,INSUMOS!$E$9:$E$259) -> $ 640
B14: =+_xlfn.XLOOKUP(C14,INSUMOS!$C$9:$C$240,INSUMOS!$B$9:$B$240) -> M-197 | C14: Triturado | F14: =+_xlfn.XLOOKUP(B14,INSUMOS!$B$9:$B$259,INSUMOS!$D$9:$D$259) -> m3 | G14: =+_xlfn.XLOOKUP(B14,INSUMOS!$B$9:$B$259,INSUMOS!$E$9:$E$259) -> $ 100,000
B17: Item | C17: CENTRO DE DESARROLLO TECNOLÓGICO PARA LA INNOVACIÓN DE LA INFRAESTRUCTURA VIAL | F17: ANALISIS DE PRECIOS UNITARIOS
B18: =+B129 -> CCT-14MP | C18: =+_xlfn.XLOOKUP(B18,'CONCRETOS Y MORTEROS'!$B$129:$B$133,'CONCRETOS Y MORTEROS'!$C$129:$C$133) -> Concreto f'c= 14 Mpa | G18: Unidad
G19: =+_xlfn.XLOOKUP(B18,'CONCRETOS Y MORTEROS'!$B$129:$B$133,'CONCRETOS Y MORTEROS'!$D$129:$D$133) -> m3
B21: MATERIALES | D21: UNIDAD | E21: CANTIDAD | F21: PRECIO UNIT | G21: VALOR UNIT
B22: =+_xlfn.XLOOKUP(C22,INSUMOS!$C$9:$C$240,INSUMOS!$B$9:$B$240) -> M-015 | C22: Agua | D22: =+_xlfn.XLOOKUP(B22,INSUMOS!$B$9:$B$259,INSUMOS!$D$9:$D$259) -> lt | E22: 148 | F22: =+_xlfn.XLOOKUP(B22,INSUMOS!$B$9:$B$259,INSUMOS!$E$9:$E$259) -> $ 20 | G22: =+E22*F22 -> $ 2,960
B23: =+_xlfn.XLOOKUP(C23,INSUMOS!$C$9:$C$240,INSUMOS!$B$9:$B$240) -> M-024 | C23: Arena | D23: =+_xlfn.XLOOKUP(B23,INSUMOS!$B$9:$B$259,INSUMOS!$D$9:$D$259) -> m3 | E23: 0.56 | F23: =+_xlfn.XLOOKUP(B23,INSUMOS!$B$9:$B$259,INSUMOS!$E$9:$E$259) -> $ 95,000 | G23: =+E23*F23 -> $ 53,200
B24: =+_xlfn.XLOOKUP(C24,INSUMOS!$C$9:$C$240,INSUMOS!$B$9:$B$240) -> M-060 | C24: Cemento gris | D24: =+_xlfn.XLOOKUP(B24,INSUMOS!$B$9:$B$259,INSUMOS!$D$9:$D$259) -> kg | E24: 175 | F24: =+_xlfn.XLOOKUP(B24,INSUMOS!$B$9:$B$259,INSUMOS!$E$9:$E$259) -> $ 640 | G24: =+E24*F24 -> $ 112,000
B25: =+_xlfn.XLOOKUP(C25,INSUMOS!$C$9:$C$240,INSUMOS!$B$9:$B$240) -> M-197 | C25: Triturado | D25: =+_xlfn.XLOOKUP(B25,INSUMOS!$B$9:$B$259,INSUMOS!$D$9:$D$259) -> m3 | E25: 0.97 | F25: =+_xlfn.XLOOKUP(B25,INSUMOS!$B$9:$B$259,INSUMOS!$E$9:$E$259) -> $ 100,000 | G25: =+E25*F25 -> $ 97,000
G26: =SUM(G22:G25) -> $ 265,160
B28: MANO DE OBRA | D28: UNIDAD | E28: RENDIMIENTO | F28: JORNAL/SALARIO | G28: VALOR UNIT
B29: CUAD13 | C29: Cuadrilla CC (Preparacion concretos) 1 Of Y 4 Ay | D29: H-H | E29: 0.65 | F29: =+F52 -> $ 14,332 | G29: =+E29*F29 -> $ 9,316
G30: =SUM(G29) -> $ 9,316
B32: HERRAMIENTA Y EQUIPO | D32: UNIDAD | E32: RENDIMIENTO | F32: TARIFA | G32: VALOR UNIT
B33: E017 | C33: Mezcladora a gasolina 1.5 sacos | D33: DIA | E33: 0.125 | F33: $ 70,000 | G33: =+E33*F33 -> $ 8,750
B34: E000 | C34: Herramienta Menor (5 % de la M.O) | D34: =+ROUND(G30*0.05,0) -> 466 | E34: 1 | G34: =+E34*D34 -> $ 466
G35: =SUM(G33:G34) -> $ 9,216
F37: COSTO DIRECTO | G37: =SUM(G35,G30,G26) -> $ 283,692
B40: Item | C40: CENTRO DE DESARROLLO TECNOLÓGICO PARA LA INNOVACIÓN DE LA INFRAESTRUCTURA VIAL | F40: ANALISIS DE PRECIOS UNITARIOS
B41: =+B130 -> CCT-21MP | C41: =+_xlfn.XLOOKUP(B41,'CONCRETOS Y MORTEROS'!$B$129:$B$133,'CONCRETOS Y MORTEROS'!$C$129:$C$133) -> Concreto f'c= 21 Mpa | G41: Unidad
G42: =+_xlfn.XLOOKUP(B41,'CONCRETOS Y MORTEROS'!$B$129:$B$133,'CONCRETOS Y MORTEROS'!$D$129:$D$133) -> m3
B44: MATERIALES | D44: UNIDAD | E44: CANTIDAD | F44: PRECIO UNIT | G44: VALOR UNIT
B45: =+_xlfn.XLOOKUP(C45,INSUMOS!$C$9:$C$240,INSUMOS!$B$9:$B$240) -> M-015 | C45: Agua | D45: =+_xlfn.XLOOKUP(B45,INSUMOS!$B$9:$B$259,INSUMOS!$D$9:$D$259) -> lt | E45: 150 | F45: =+_xlfn.XLOOKUP(B45,INSUMOS!$B$9:$B$259,INSUMOS!$E$9:$E$259) -> $ 20 | G45: =+E45*F45 -> $ 3,000
B46: =+_xlfn.XLOOKUP(C46,INSUMOS!$C$9:$C$240,INSUMOS!$B$9:$B$240) -> M-024 | C46: Arena | D46: =+_xlfn.XLOOKUP(B46,INSUMOS!$B$9:$B$259,INSUMOS!$D$9:$D$259) -> m3 | E46: 0.555 | F46: =+_xlfn.XLOOKUP(B46,INSUMOS!$B$9:$B$259,INSUMOS!$E$9:$E$259) -> $ 95,000 | G46: =+E46*F46 -> $ 52,725
B47: =+_xlfn.XLOOKUP(C47,INSUMOS!$C$9:$C$240,INSUMOS!$B$9:$B$240) -> M-060 | C47: Cemento gris | D47: =+_xlfn.XLOOKUP(B47,INSUMOS!$B$9:$B$259,INSUMOS!$D$9:$D$259) -> kg | E47: 350 | F47: =+_xlfn.XLOOKUP(B47,INSUMOS!$B$9:$B$259,INSUMOS!$E$9:$E$259) -> $ 640 | G47: =+E47*F47 -> $ 224,000
B48: =+_xlfn.XLOOKUP(C48,INSUMOS!$C$9:$C$240,INSUMOS!$B$9:$B$240) -> M-197 | C48: Triturado | D48: =+_xlfn.XLOOKUP(B48,INSUMOS!$B$9:$B$259,INSUMOS!$D$9:$D$259) -> m3 | E48: 0.835 | F48: =+_xlfn.XLOOKUP(B48,INSUMOS!$B$9:$B$259,INSUMOS!$E$9:$E$259) -> $ 100,000 | G48: =+E48*F48 -> $ 83,500
G49: =SUM(G45:G48) -> $ 363,225
B51: MANO DE OBRA | D51: UNIDAD | E51: RENDIMIENTO | F51: JORNAL/SALARIO | G51: VALOR UNIT
B52: CUAD13 | C52: Cuadrilla CC (Preparacion concretos) 1 Of Y 4 Ay | D52: H-H | E52: 0.941 | F52: =+CUADRILLAS!G159 -> $ 14,332 | G52: =+E52*F52 -> $ 13,486
G53: =SUM(G52) -> $ 13,486
B55: HERRAMIENTA Y EQUIPO | D55: UNIDAD | E55: RENDIMIENTO | F55: TARIFA | G55: VALOR UNIT
B56: E017 | C56: Mezcladora a gasolina 1.5 sacos | D56: DIA | E56: 0.2 | F56: $ 70,000 | G56: =+E56*F56 -> $ 14,000
B57: E000 | C57: Herramienta Menor (5 % de la M.O) | D57: =+ROUND(G53*0.05,0) -> 674 | E57: 1 | G57: =+E57*D57 -> $ 674
G58: =SUM(G56:G57) -> $ 14,674
F60: COSTO DIRECTO | G60: =SUM(G58,G53,G49) -> $ 391,385
B63: Item | C63: CENTRO DE DESARROLLO TECNOLÓGICO PARA LA INNOVACIÓN DE LA INFRAESTRUCTURA VIAL | F63: ANALISIS DE PRECIOS UNITARIOS
B64: =+B131 -> CCT-21MP-M | C64: =+_xlfn.XLOOKUP(B64,'CONCRETOS Y MORTEROS'!$B$129:$B$133,'CONCRETOS Y MORTEROS'!$C$129:$C$133) -> Concreto f'c= 21 Mpa - Mezclado a mano | G64: Unidad
G65: =+_xlfn.XLOOKUP(B64,'CONCRETOS Y MORTEROS'!$B$129:$B$133,'CONCRETOS Y MORTEROS'!$D$129:$D$133) -> m3
B67: MATERIALES | D67: UNIDAD | E67: CANTIDAD | F67: PRECIO UNIT | G67: VALOR UNIT
B68: =+_xlfn.XLOOKUP(C68,INSUMOS!$C$9:$C$240,INSUMOS!$B$9:$B$240) -> M-015 | C68: Agua | D68: =+_xlfn.XLOOKUP(B68,INSUMOS!$B$9:$B$259,INSUMOS!$D$9:$D$259) -> lt | E68: 150 | F68: =+_xlfn.XLOOKUP(B68,INSUMOS!$B$9:$B$259,INSUMOS!$E$9:$E$259) -> $ 20 | G68: =+E68*F68 -> $ 3,000
B69: =+_xlfn.XLOOKUP(C69,INSUMOS!$C$9:$C$240,INSUMOS!$B$9:$B$240) -> M-024 | C69: Arena | D69: =+_xlfn.XLOOKUP(B69,INSUMOS!$B$9:$B$259,INSUMOS!$D$9:$D$259) -> m3 | E69: 0.555 | F69: =+_xlfn.XLOOKUP(B69,INSUMOS!$B$9:$B$259,INSUMOS!$E$9:$E$259) -> $ 95,000 | G69: =+E69*F69 -> $ 52,725
B70: =+_xlfn.XLOOKUP(C70,INSUMOS!$C$9:$C$240,INSUMOS!$B$9:$B$240) -> M-060 | C70: Cemento gris | D70: =+_xlfn.XLOOKUP(B70,INSUMOS!$B$9:$B$259,INSUMOS!$D$9:$D$259) -> kg | E70: 350 | F70: =+_xlfn.XLOOKUP(B70,INSUMOS!$B$9:$B$259,INSUMOS!$E$9:$E$259) -> $ 640 | G70: =+E70*F70 -> $ 224,000
B71: =+_xlfn.XLOOKUP(C71,INSUMOS!$C$9:$C$240,INSUMOS!$B$9:$B$240) -> M-197 | C71: Triturado | D71: =+_xlfn.XLOOKUP(B71,INSUMOS!$B$9:$B$259,INSUMOS!$D$9:$D$259) -> m3 | E71: 0.835 | F71: =+_xlfn.XLOOKUP(B71,INSUMOS!$B$9:$B$259,INSUMOS!$E$9:$E$259) -> $ 100,000 | G71: =+E71*F71 -> $ 83,500
G72: =SUM(G68:G71) -> $ 363,225
B74: MANO DE OBRA | D74: UNIDAD | E74: RENDIMIENTO | F74: JORNAL/SALARIO | G74: VALOR UNIT
G76: =SUM(G75) -> 0
B78: HERRAMIENTA Y EQUIPO | D78: UNIDAD | E78: RENDIMIENTO | F78: TARIFA | G78: VALOR UNIT
G80: =SUM(G79:G79) -> 0
F82: COSTO DIRECTO | G82: =SUM(G80,G76,G72) -> $ 363,225
B85: Item | C85: CENTRO DE DESARROLLO TECNOLÓGICO PARA LA INNOVACIÓN DE LA INFRAESTRUCTURA VIAL | F85: ANALISIS DE PRECIOS UNITARIOS
B86: =+B132 -> MORT-13 | C86: =+_xlfn.XLOOKUP(B86,'CONCRETOS Y MORTEROS'!$B$129:$B$133,'CONCRETOS Y MORTEROS'!$C$129:$C$133) -> Mortero 1:3 | G86: Unidad
G87: =+_xlfn.XLOOKUP(B86,'CONCRETOS Y MORTEROS'!$B$129:$B$133,'CONCRETOS Y MORTEROS'!$D$129:$D$133) -> m3
B89: MATERIALES | D89: UNIDAD | E89: CANTIDAD | F89: PRECIO UNIT | G89: VALOR UNIT
B90: =+_xlfn.XLOOKUP(C90,INSUMOS!$C$9:$C$240,INSUMOS!$B$9:$B$240) -> M-015 | C90: Agua | D90: =+_xlfn.XLOOKUP(B90,INSUMOS!$B$9:$B$259,INSUMOS!$D$9:$D$259) -> lt | E90: 100 | F90: =+_xlfn.XLOOKUP(B90,INSUMOS!$B$9:$B$259,INSUMOS!$E$9:$E$259) -> $ 20 | G90: =+E90*F90 -> $ 2,000
B91: =+_xlfn.XLOOKUP(C91,INSUMOS!$C$9:$C$240,INSUMOS!$B$9:$B$240) -> M-024 | C91: Arena | D91: =+_xlfn.XLOOKUP(B91,INSUMOS!$B$9:$B$259,INSUMOS!$D$9:$D$259) -> m3 | E91: 1.09 | F91: =+_xlfn.XLOOKUP(B91,INSUMOS!$B$9:$B$259,INSUMOS!$E$9:$E$259) -> $ 95,000 | G91: =+E91*F91 -> $ 103,550
B92: =+_xlfn.XLOOKUP(C92,INSUMOS!$C$9:$C$240,INSUMOS!$B$9:$B$240) -> M-060 | C92: Cemento gris | D92: =+_xlfn.XLOOKUP(B92,INSUMOS!$B$9:$B$259,INSUMOS!$D$9:$D$259) -> kg | E92: 454 | F92: =+_xlfn.XLOOKUP(B92,INSUMOS!$B$9:$B$259,INSUMOS!$E$9:$E$259) -> $ 640 | G92: =+E92*F92 -> $ 290,560
G94: =SUM(G90:G93) -> $ 396,110
B96: MANO DE OBRA | D96: UNIDAD | E96: RENDIMIENTO | F96: JORNAL/SALARIO | G96: VALOR UNIT
G98: =SUM(G97) -> 0
B100: HERRAMIENTA Y EQUIPO | D100: UNIDAD | E100: RENDIMIENTO | F100: TARIFA | G100: VALOR UNIT
F104: COSTO DIRECTO | G104: =SUM(G102,G98,G94) -> $ 396,110
B107: Item | C107: CENTRO DE DESARROLLO TECNOLÓGICO PARA LA INNOVACIÓN DE LA INFRAESTRUCTURA VIAL | F107: ANALISIS DE PRECIOS UNITARIOS
B108: =+B133 -> MORT-14 | C108: =+_xlfn.XLOOKUP(B108,'CONCRETOS Y MORTEROS'!$B$129:$B$133,'CONCRETOS Y MORTEROS'!$C$129:$C$133) -> Mortero 1:4 | G108: Unidad
G109: =+_xlfn.XLOOKUP(B108,'CONCRETOS Y MORTEROS'!$B$129:$B$133,'CONCRETOS Y MORTEROS'!$D$129:$D$133) -> m3
B111: MATERIALES | D111: UNIDAD | E111: CANTIDAD | F111: PRECIO UNIT | G111: VALOR UNIT
B112: =+_xlfn.XLOOKUP(C112,INSUMOS!$C$9:$C$240,INSUMOS!$B$9:$B$240) -> M-015 | C112: Agua | D112: =+_xlfn.XLOOKUP(B112,INSUMOS!$B$9:$B$259,INSUMOS!$D$9:$D$259) -> lt | E112: 180 | F112: =+_xlfn.XLOOKUP(B112,INSUMOS!$B$9:$B$259,INSUMOS!$E$9:$E$259) -> $ 20 | G112: =+E112*F112 -> $ 3,600
B113: =+_xlfn.XLOOKUP(C113,INSUMOS!$C$9:$C$240,INSUMOS!$B$9:$B$240) -> M-024 | C113: Arena | D113: =+_xlfn.XLOOKUP(B113,INSUMOS!$B$9:$B$259,INSUMOS!$D$9:$D$259) -> m3 | E113: 1.16 | F113: =+_xlfn.XLOOKUP(B113,INSUMOS!$B$9:$B$259,INSUMOS!$E$9:$E$259) -> $ 95,000 | G113: =+E113*F113 -> $ 110,200
B114: =+_xlfn.XLOOKUP(C114,INSUMOS!$C$9:$C$240,INSUMOS!$B$9:$B$240) -> M-060 | C114: Cemento gris | D114: =+_xlfn.XLOOKUP(B114,INSUMOS!$B$9:$B$259,INSUMOS!$D$9:$D$259) -> kg | E114: 364 | F114: =+_xlfn.XLOOKUP(B114,INSUMOS!$B$9:$B$259,INSUMOS!$E$9:$E$259) -> $ 640 | G114: =+E114*F114 -> $ 232,960
G116: =SUM(G112:G115) -> $ 346,760
B118: MANO DE OBRA | D118: UNIDAD | E118: RENDIMIENTO | F118: JORNAL/SALARIO | G118: VALOR UNIT
G120: =SUM(G119) -> 0
B122: HERRAMIENTA Y EQUIPO | D122: UNIDAD | E122: RENDIMIENTO | F122: TARIFA | G122: VALOR UNIT
F126: COSTO DIRECTO | G126: =SUM(G124,G120,G116) -> $ 346,760
B128: CODIGO | C128: CONCRETOS O MORTEROS | D128: UND | E128: VALOR
B129: CCT-14MP | C129: Concreto f'c= 14 Mpa | D129: m3 | E129: =+G37 -> $ 283,692
B130: CCT-21MP | C130: Concreto f'c= 21 Mpa | D130: m3 | E130: =+G60 -> $ 391,385
B131: CCT-21MP-M | C131: Concreto f'c= 21 Mpa - Mezclado a mano | D131: m3 | E131: =+G82 -> $ 363,225
B132: MORT-13 | C132: Mortero 1:3 | D132: m3 | E132: =+G104 -> $ 396,110
B133: MORT-14 | C133: Mortero 1:4 | D133: m3 | E133: =+G126 -> $ 346,760

Sheet MEMORIAS CANTIDADES cap 1.1
C2: =DATOS!B2 -> CENTRO DE DESARROLLO TECNOLÓGICO PARA LA INNOVACIÓN DE LA INFRAESTRUCTURA VIAL
C7: =UPPER("Memorias de CALCULO cantidades de obra") -> MEMORIAS DE CALCULO CANTIDADES DE OBRA
B9: Area | C9: =+PRESUPUESTO!$B$13 -> 1 | D9: =+PRESUPUESTO!$C$13 -> Laboratorio
B10: Capítulo | C10: =+PRESUPUESTO!$B$14 -> 1.1 | D10: =+PRESUPUESTO!$C$14 -> Preliminares
B11: Ítem: | C11: =+PRESUPUESTO!B15 -> 1.1.1 | D11: =+VLOOKUP($C11,PRESUPUESTO!$B$13:$E$264,2,FALSE) -> Localización y replanteo | I11: Unidad | J11: =+VLOOKUP($C11,PRESUPUESTO!$B$13:$E$264,4,FALSE) -> m2
B13: Área/lugar/elemento | C13: Longitud (m) | E13: Ancho (m) | F13: Alto (m) | G13: Peso (kg) | H13: Cant. de elementos | I13: Total | J13: DIAGRAMA/FOTO
B14: Area de localizacion del cuarto de compresores | C14: 2.65 | E14: 2.75 | H14: 1.00 | I14: =+ROUND(C14*E14*H14,2) -> 7.29
B29: Total | I29: =SUM(I14:I28) -> 7.29
B31: Observaciones
B36: Area | C36: =+$C$9 -> 1 | D36: =+$D$9 -> Laboratorio
B37: Capítulo | C37: =+$C$10 -> 1.1 | D37: =+$D$10 -> Preliminares
B38: Ítem: | C38: =+PRESUPUESTO!B16 -> 1.1.2 | D38: =+VLOOKUP($C38,PRESUPUESTO!$B$13:$E$264,2,FALSE) -> Suministro e instalación cerramiento tela fibra tejida h= 2,10, soporte en madera común, cada 3 metros, para ser instalada en el corredor de laboratorio de materiales y el acceso al de suelos. | I38: Unidad | J38: =+VLOOKUP($C38,PRESUPUESTO!$B$13:$E$264,4,FALSE) -> ml
B40: Área/lugar/elemento | C40: Longitud (m) | E40: Ancho (m) | F40: Alto (m) | G40: Peso (kg) | H40: Cant. de elementos | I40: Total | J40: DIAGRAMA
B41: Longitud 1 | C41: 5.00 | H41: 1.00 | I41: =+ROUND(C41*H41,2) -> 5.00
B42: Longitud 2 | C42: 15.00 | H42: 1.00 | I42: =+ROUND(C42*H42,2) -> 15.00
I43: =+ROUND(C43*E43*F43*H43,2) -> 0
I44: 0
B53: Total | I53: =SUM(I41:I52) -> 20.00
B55: Observaciones
B59: Area | C59: =+$C$9 -> 1 | D59: =+$D$9 -> Laboratorio
B60: Capítulo | C60: =+$C$10 -> 1.1 | D60: =+$D$10 -> Preliminares
B61: Ítem: | C61: =+PRESUPUESTO!B17 -> 1.1.3 | D61: =+VLOOKUP($C61,PRESUPUESTO!$B$13:$E$264,2,FALSE) -> Desmonte de cielo raso existente, incluye transporte interno a sitio indicado por la interventoría | I61: Unidad | J61: =+VLOOKUP($C61,PRESUPUESTO!$B$13:$E$264,4,FALSE) -> m2
B63: Área/lugar/elemento | C63: Longitud (m) | E63: Ancho (m) | F63: Alto (m) | G63: Peso (kg) | H63: Cant. de elementos | I63: Total | J63: DIAGRAMA
B64: =+D61 -> Desmonte de cielo raso existente, incluye transporte interno a sitio indicado por la interventoría | C64: 6.28 | E64: 5.77 | H64: 2.00 | I64: =+C64*E64*H64 -> 72.47
B71: Total | I71: =SUM(I64:I70) -> 72.47
B73: Observaciones
B77: Area | C77: =+$C$9 -> 1 | D77: =+$D$9 -> Laboratorio
B78: Capítulo | C78: =+$C$10 -> 1.1 | D78: =+$D$10 -> Preliminares
B79: Ítem: | C79: =+PRESUPUESTO!B18 -> 1.1.4 | D79: =+VLOOKUP($C79,PRESUPUESTO!$B$13:$E$264,2,FALSE) -> Desmonte de puerta con marco y nave en madera, incluye transporte interno a sitio indicado por la interventoría, correspondiente a la oficina de coordinación de laboratorio de suelos FIC | I79: Unidad | J79: =+VLOOKUP($C79,PRESUPUESTO!$B$13:$E$264,4,FALSE) -> un
B81: Área/lugar/elemento | C81: Longitud (m) | E81: Ancho (m) | F81: Alto (m) | G81: Peso (kg) | H81: Cant. de elementos | I81: Total | J81: DIAGRAMA
B82: Desmonte de puerta con marco y nave en madera | H82: 1.00 | I82: =+H82 -> 1.00
I83: =+ROUND(C83*((E83+F83)/2)*H83,2) -> 0
B94: Total | I94: =SUM(I82:I93) -> 1.00
B96: Observaciones
B100: Area | C100: =+$C$9 -> 1 | D100: =+$D$9 -> Laboratorio
B101: Capítulo | C101: =+$C$10 -> 1.1 | D101: =+$D$10 -> Preliminares
B102: Ítem: | C102: =+PRESUPUESTO!B19 -> 1.1.5 | D102: =+VLOOKUP($C102,PRESUPUESTO!$B$13:$E$264,2,FALSE) -> Desmonte de puertas en madera con marco metálico, incluye retiro a un lugar de la obra indicado por la interventoría, correspondientes a la del ingreso al salón Triaxial Dinámico, y entre esta y el almacén. | I102: Unidad | J102: =+VLOOKUP($C102,PRESUPUESTO!$B$13:$E$264,4,FALSE) -> un
B104: Área/lugar/elemento | C104: Longitud (m) | E104: Ancho (m) | F104: Alto (m) | G104: Peso (kg) | H104: Cant. de elementos | I104: Total | J104: DIAGRAMA
B105: Desmonte de puertas en madera con marco metálico | H105: 2.00 | I105: =+H105 -> 2.00
I106: =+ROUND(C106*E106*F106*H106,2) -> 0
B113: Total | I113: =SUM(I105:I112) -> 2.00
B115: Observaciones
B119: Area | C119: =+$C$9 -> 1 | D119: =+$D$9 -> Laboratorio
B120: Capítulo | C120: =+$C$10 -> 1.1 | D120: =+$D$10 -> Preliminares
B121: Ítem: | C121: =+PRESUPUESTO!B20 -> 1.1.6 | D121: =+VLOOKUP($C121,PRESUPUESTO!$B$13:$E$264,2,FALSE) -> Retiro de ventanas metálicas con vidrio y retiro de la misma a lugar de acopio indicado por la interventoría. | I121: Unidad | J121: =+VLOOKUP($C121,PRESUPUESTO!$B$13:$E$264,4,FALSE) -> m2
B123: Área/lugar/elemento | C123: Longitud (m) | E123: Ancho (m) | F123: Alto (m) | G123: Peso (kg) | H123: Cant. de elementos | I123: Total | J123: DIAGRAMA
B124: ventana 1 | C124: 3.00 | F124: 1.00 | H124: =+I94 -> 1.00 | I124: =+H124*F124*C124 -> 3.00
B125: ventana 1 | C125: 2.60 | F125: 1.20 | H125: 1.00 | I125: =+H125*F125*C125 -> 3.12
C126: 3.00 | F126: 1.20 | H126: 1.00 | I126: =+H126*F126*C126 -> 3.60
B135: Total | I135: =SUM(I124:I134) -> 9.72
B137: Observaciones
B141: Area | C141: =+$C$9 -> 1 | D141: =+$D$9 -> Laboratorio
B142: Capítulo | C142: =+$C$10 -> 1.1 | D142: =+$D$10 -> Preliminares
B143: Ítem: | C143: =+PRESUPUESTO!B21 -> 1.1.7 | D143: =+VLOOKUP($C143,PRESUPUESTO!$B$13:$E$264,2,FALSE) -> Demolición de baldosa existente y traslado de escombros a sitio de acopio aprobado por la interventoría | I143: Unidad | J143: =+VLOOKUP($C143,PRESUPUESTO!$B$13:$E$264,4,FALSE) -> m2
B145: Área/lugar/elemento | C145: Longitud (m) | E145: Ancho (m) | F145: Alto (m) | G145: Peso (kg) | H145: Cant. de elementos | I145: Total | J145: DIAGRAMA
B146: Triaxial | C146: 5.90 | E146: 3.58 | H146: 1.00 | I146: =+H146*E146*C146 -> 21.12
B147: Bodega actual | C147: 8.57 | E147: 5.90 | H147: 1.00 | I147: =+H147*E147*C147 -> 50.56
B148: Corredor externo | C148: 7.23 | E148: 5.89 | H148: 1.00 | I148: =+H148*E148*C148 -> 42.58
B152: Total | I152: =SUM(I146:I151) -> 114.27
B154: Observaciones
B158: Area | C158: =+$C$9 -> 1 | D158: =+$D$9 -> Laboratorio
B159: Capítulo | C159: =+$C$10 -> 1.1 | D159: =+$D$10 -> Preliminares
B160: Ítem: | C160: =+PRESUPUESTO!B22 -> 1.1.8 | D160: =+VLOOKUP($C160,PRESUPUESTO!$B$13:$E$264,2,FALSE) -> Demolición de guarda escoba existente y traslado de escombros a sitio de acopio aprobado por la interventoría | I160: Unidad | J160: =+VLOOKUP($C160,PRESUPUESTO!$B$13:$E$264,4,FALSE) -> ml
B162: Área/lugar/elemento | C162: Longitud (m) | E162: Ancho (m) | F162: Alto (m) | G162: Peso (kg) | H162: Cant. de elementos | I162: Total | J162: DIAGRAMA
B163: Guardescobas | C163: =3.58+12.36+8.57+4.7+4.7+4.7+4.93+5.89+1.31 -> 50.74 | H163: 1.00 | I163: =+H163*C163 -> 50.74
I164: =+ROUND(C164*E164*H164,2) -> 0
I165: 0
I166: 0
B172: Total | I172: =SUM(I163:I171) -> 50.74
B174: Observaciones
B178: Area | C178: =+$C$9 -> 1 | D178: =+$D$9 -> Laboratorio
B179: Capítulo | C179: =+$C$10 -> 1.1 | D179: =+$D$10 -> Preliminares
B180: Ítem: | C180: =+PRESUPUESTO!B23 -> 1.1.9 | D180: =+VLOOKUP($C180,PRESUPUESTO!$B$13:$E$264,2,FALSE) -> Demolición de mesón existente de 1.15 x 0.65 x 0.90 m en el salón triaxial dinámico. y traslado de escombros a sitio de acopio aprobado por la interventoría | I180: Unidad | J180: =+VLOOKUP($C180,PRESUPUESTO!$B$13:$E$264,4,FALSE) -> un
B182: Área/lugar/elemento | C182: Longitud (m) | E182: Ancho (m) | F182: Alto (m) | G182: Peso (kg) | H182: Cant. de elementos | I182: Total | J182: DIAGRAMA
B183: Demolicion de meson en laboratorio de Triaxial de 1.15 x 0.65 x 0.90 m | H183: 1.00 | I183: 1.00
I184: =+ROUND(C184*E184*F184*H184,2) -> 0
I185: 0
I186: 0
I187: 0
I188: =+ROUND(C188*E188*F188*H188,2) -> 0
B193: Total | I193: =SUM(I183:I192) -> 1.00
B195: Observaciones
B199: Area | C199: =+$C$9 -> 1 | D199: =+$D$9 -> Laboratorio
B200: Capítulo | C200: =+$C$10 -> 1.1 | D200: =+$D$10 -> Preliminares
B201: Ítem: | C201: =+PRESUPUESTO!B24 -> 1.1.10 | D201: =+VLOOKUP($C201,PRESUPUESTO!$B$13:$E$264,2,FALSE) -> Demolición de mesón existente de 1.90 x 0.70 x 0.90 m en el salón triaxial dinámico y traslado de escombros a sitio de acopio aprobado por la interventoría | I201: Unidad | J201: =+VLOOKUP($C201,PRESUPUESTO!$B$13:$E$264,4,FALSE) -> un
B203: Área/lugar/elemento | C203: Longitud (m) | E203: Ancho (m) | F203: Alto (m) | G203: Peso (kg) | H203: Cant. de elementos | I203: Total | J203: DIAGRAMA
B204: Demolicion de meson en laboratorio de Triaxial de 1.90 x 0.70 x 0.90 m | H204: 1.00 | I204: 1.00
I205: =+ROUND(C205*E205*F205*H205,2) -> 0
I206: =+ROUND(C206*E206*F206*H206,2) -> 0
I207: =+ROUND(C207*E207*F207*H207,2) -> 0
I208: 0
I209: =+ROUND(C209*E209*F209*H209,2) -> 0
B213: Total | I213: =SUM(I204:I212) -> 1.00
B215: Observaciones
B219: Area | C219: =+$C$9 -> 1 | D219: =+$D$9 -> Laboratorio
B220: Capítulo | C220: =+$C$10 -> 1.1 | D220: =+$D$10 -> Preliminares
B221: Ítem: | C221: =+PRESUPUESTO!B25 -> 1.1.11 | D221: =+VLOOKUP($C221,PRESUPUESTO!$B$13:$E$264,2,FALSE) -> Demolición bases en concreto de 0.13 m de espesor en los salones y traslado de escombros a sitio de acopio aprobado por la interventoría | I221: Unidad | J221: =+VLOOKUP($C221,PRESUPUESTO!$B$13:$E$264,4,FALSE) -> m2
B223: Área/lugar/elemento | C223: Longitud (m) | E223: Area (m2) | F223: Alto (m) | G223: Peso (kg) | H223: Cant. de elementos | I223: Total | J223: DIAGRAMA
B224: base en concretp de 0.10 m espesor | E224: 3.73 | H224: 1.00 | I224: =+H224*E224 -> 3.73
I225: =+ROUND(C225*E225*F225*H225,2) -> 0
I226: =+ROUND(C226*E226*F226*H226,2) -> 0
I227: =+ROUND(C227*E227*F227*H227,2) -> 0
I228: 0
I229: =+ROUND(C229*E229*F229*H229,2) -> 0
B233: Total | I233: =SUM(I224:I232) -> 3.73
B235: Observaciones
B239: Area | C239: =+$C$9 -> 1 | D239: =+$D$9 -> Laboratorio
B240: Capítulo | C240: =+$C$10 -> 1.1 | D240: =+$D$10 -> Preliminares
B241: Ítem: | C241: =+PRESUPUESTO!B26 -> 1.1.12 | D241: =+VLOOKUP($C241,PRESUPUESTO!$B$13:$E$264,2,FALSE) -> Demolición de muro en ladrillo existente y traslado de escombros a sitio de acopio indicado por la interventoría | I241: Unidad | J241: =+VLOOKUP($C241,PRESUPUESTO!$B$13:$E$264,4,FALSE) -> m2
B243: Área/lugar/elemento | C243: Longitud (m) | E243: Ancho (m) | F243: Alto (m) | G243: Peso (kg) | H243: Cant. de elementos | I243: Total | J243: DIAGRAMA
B244: Apertura ventana oficina director | E244: 1.00 | F244: 1.40 | H244: 1.00 | I244: =+H244*F244*E244 -> 1.40
B245: Puerta de emergencia | E245: 1.40 | F245: 2.10 | H245: 2.00 | I245: =+H245*F245*E245 -> 5.88
B252: Total | I252: =SUM(I244:I251) -> 7.28
B254: Observaciones | C254: El muro a demoler de la puerta es un muro en tizon por lo que se mide dos veces.
B258: Area | C258: =+$C$9 -> 1 | D258: =+$D$9 -> Laboratorio
B259: Capítulo | C259: =+$C$10 -> 1.1 | D259: =+$D$10 -> Preliminares
B260: Ítem: | C260: =+PRESUPUESTO!B27 -> 1.1.13 | D260: =+VLOOKUP($C260,PRESUPUESTO!$B$13:$E$264,2,FALSE) -> Corte y desenraizado de arboles frutales existentes en la parte trasera del laboratorio. Incluye retiro a la calzada contigua tras de la malla existente para ser recogida y trasladada a una escombrera aprobada por la alcaldía municipal | I260: Unidad | J260: =+VLOOKUP($C260,PRESUPUESTO!$B$13:$E$264,4,FALSE) -> un
B262: Área/lugar/elemento | C262: Longitud (m) | E262: Ancho (m) | F262: Alto (m) | G262: Peso (kg) | H262: Cant. de elementos | I262: Total | J262: DIAGRAMA
B263: Corte de arboles de la parte trasera del laboratorio | H263: 4.00 | I263: =+H263 -> 4.00
I264: =+ROUND(C264*E264*F264*H264,2) -> 0
I265: 0
I266: =+ROUND(C266*E266*F266*H266,2) -> 0
B273: Total | I273: =SUM(I263:I272) -> 4.00
B275: Observaciones

Sheet RED ELECTRICA (hidden)
D2: =D12 -> PLACA POLIDEPORTIVA CUBIERTA
B8: Capítulo 5 | D8: =PRESUPUESTO!#REF! -> 
B10: Ítem | D10: =PRESUPUESTO!#REF! ->  | E10: =PRESUPUESTO!#REF! -> 
D11: A.P.U. | G11: Unidad
D12: PLACA POLIDEPORTIVA CUBIERTA
G13: un
B14: Materiales | D14: Unidad | E14: Cantidad | F14: Valor unitario | G14: Valor total
B15: 1 | C15: Alambre de cobre thwn No 12 | D15: m | E15: 9.00 | F15: =INSUMOS!E52 -> $ 3,156.00 | G15: =+ROUND(E15*F15,0) -> $ 28,404.00
B16: 2 | C16: Tubo conduit EMT 3/4" | D16: m | E16: 9.00 | F16: =INSUMOS!E53 -> $ 2,250.00 | G16: $ 20,250.00
B17: 3 | C17: Boquilla terminal EMT de 3/4" | D17: un | E17: 2.00 | F17: =INSUMOS!E54 -> $ 6,750.00 | G17: $ 13,500.00
B18: 4 | C18: unión EMT 3/4" | D18: un | E18: 3.00 | F18: =INSUMOS!E55 -> $ 4,800.00 | G18: $ 14,400.00
B19: 5 | C19: Caja octagonal | D19: un | E19: 1.00 | F19: =INSUMOS!E56 -> $ 4,800.00 | G19: $ 4,800.00
B20: 6 | C20: Caja 5800 | D20: un | E20: 1.00 | F20: =INSUMOS!E57 -> $ 72,000.00 | G20: $ 72,000.00
B21: 7 | C21: Cinta aislante | D21: un | E21: 0.05 | F21: =INSUMOS!E58 -> $ 6,900.00 | G21: $ 345.00
B22: 8 | C22: Aislador de rosca para empalme | D22: un | E22: 3.00 | F22: =INSUMOS!E59 -> $ 3,800.00 | G22: $ 11,400.00
B23: 9 | C23: Tapa salida cordón caja octagonal | D23: un | E23: 1.00 | F23: =INSUMOS!E60 -> $ 2,900.00 | G23: $ 2,900.00
B24: 10 | C24: Abrazadera de 3/4" | D24: un | E24: 3.00 | F24: =INSUMOS!E61 -> $ 480.00 | G24: $ 1,440.00
B25: 11 | C25: Perno de tiro | D25: un | E25: 3.00 | F25: =INSUMOS!E62 -> $ 3,200.00 | G25: $ 9,600.00
B26: 12 | C26: Pólvora para perno | D26: un | E26: 3.00 | F26: =INSUMOS!E63 -> $ 1,400.00 | G26: $ 4,200.00
B27: 13 | C27: Desperdicio 3% de Materiales | D27: % | E27: 0.03 | F27: =SUM(G15:G26) -> $ 183,239.00 | G27: $ 5,497.00
E28: Subtotal materiales | G28: =SUM(G15:G27) -> $ 188,736
B30: Equipos y herramientas | D30: Unidad | E30: Rendimiento | F30: Valor unitario | G30: Valor total
B31: 1 | C31: Herramienta menor (% Mano de obra) | D31: glb | E31: 10% | F31: =+G40*E31 ->  | G31: =+ROUND(F31,0) -> 
E32: Subtotal equipos | G32: =SUM(G31:G31) -> 
B34: Transporte | D34: Unidad | E34: Distancia km | F34: VR. UN. ($/ m³*km) | G34: Valor total
B35: 1 | C35: No aplica | G35: =+ROUND(E35*F35,0) -> 0
E36: Subtotal transporte | G36: =SUM(G35:G35) -> 0.00
B38: Mano de obra | D38: Unidad | E38: Rendimiento | F38: Valor/hora | G38: Valor total
B39: 1 | C39: Cuadrilla FF (Electrico) 1 je, 1 Of y 1 Ay | D39: h | E39: =20246/34844.22+2813.9/34844.22 -> 0.66 | F39: =#REF! ->  | G39: =+ROUND(E39*F39,0) -> 
E40: Subtotal mano de obra | G40: =SUM(G39:G39) -> 
E41: Costo directo | G41: =+G40+G36+G32+G28 -> 
B46: Ítem | D46: =PRESUPUESTO!#REF! ->  | E46: =PRESUPUESTO!#REF! -> 
D47: A.P.U. | G47: Unidad
D48: PLACA POLIDEPORTIVA CUBIERTA
G49: un
B50: Materiales | D50: Unidad | E50: Cantidad | F50: Valor unitario | G50: Valor total
B51: 1 | C51: Toma de caucho (aérea) con polo | D51: un | E51: 1 | F51: =INSUMOS!E64 -> $ 7,200.00 | G51: =+ROUND(E51*F51,0) -> $ 7,200.00
B52: 2 | C52: Aislador de rosca para empalme | D52: un | E52: 3 | F52: =INSUMOS!E65 -> $ 40,000.00 | G52: =+ROUND(E52*F52,0) -> $ 120,000.00
B53: 3 | C53: Encauchetado 3x14 | D53: m | E53: 1 | F53: =INSUMOS!E66 -> $ 26,000.00 | G53: =+ROUND(E53*F53,0) -> $ 26,000.00
B54: 4 | C54: Clavija de caucho (aérea) con polo | D54: un | E54: 1 | F54: =INSUMOS!E67 -> $ 1,350.00 | G54: =+ROUND(E54*F54,0) -> $ 1,350.00
B55: 5 | C55: Desperdicio 3% de Materiales | D55: % | E55: 0.03 | F55: =SUM(G51:G54) -> $ 154,550.00 | G55: =+ROUND(E55*F55,0) -> $ 4,637.00
E56: Subtotal materiales | G56: =SUM(G51:G55) -> $ 159,187
B58: Equipos y herramientas | D58: Unidad | E58: Rendimiento | F58: Valor unitario | G58: Valor total
B59: 1 | C59: Herramienta menor (% Mano de obra) | D59: glb | E59: 10% | F59: =+G68*E59 ->  | G59: =+ROUND(F59,0) -> 
E60: Subtotal equipos | G60: =SUM(G59:G59) -> 
B62: Transporte | D62: Unidad | E62: Distancia km | F62: VR. UN. ($/ m³*km) | G62: Valor total
B63: 1 | C63: No aplica | G63: =+ROUND(E63*F63,0) -> 0
E64: Subtotal transporte | G64: =SUM(G63:G63) -> 0.00
B66: Mano de obra | D66: Unidad | E66: Rendimiento | F66: Valor/hora | G66: Valor total
B67: 1 | C67: Cuadrilla FF (Electrico) 1 je, 1 Of y 1 Ay | D67: h | E67: 0.40 | F67: =#REF! ->  | G67: =+ROUND(E67*F67,0) -> 
E68: Subtotal mano de obra | G68: =SUM(G67:G67) -> 
E69: Costo directo | G69: =+G68+G64+G60+G56 -> 
B72: Ítem | D72: =PRESUPUESTO!#REF! ->  | E72: =PRESUPUESTO!#REF! -> 
D73: A.P.U. | G73: Unidad
D74: PLACA POLIDEPORTIVA CUBIERTA
G75: un
B76: Materiales | D76: Unidad | E76: Cantidad | F76: Valor unitario | G76: Valor total
B77: 1 | C77: Alambre de cobre thwn No 12 | D77: m | E77: 13.00 | F77: =INSUMOS!E52 -> $ 3,156.00 | G77: =+ROUND(E77*F77,0) -> $ 41,028.00
B78: 2 | C78: Tubo conduit EMT 3/4" | D78: m | E78: 6.00 | F78: =INSUMOS!E53 -> $ 2,250.00 | G78: $ 13,500.00
B79: 3 | C79: Boquilla terminal EMT de 3/4" | D79: un | E79: 2.00 | F79: =INSUMOS!E54 -> $ 6,750.00 | G79: $ 13,500.00
B80: 4 | C80: unión EMT 3/4" | D80: un | E80: 2.00 | F80: =INSUMOS!E55 -> $ 4,800.00 | G80: $ 9,600.00
B81: 5 | C81: Caja 5800 | D81: un | E81: 1.00 | F81: =INSUMOS!E57 -> $ 72,000.00 | G81: $ 72,000.00
B82: 6 | C82: Toma Monofásica doble con polo | D82: un | E82: 1.00 | F82: =INSUMOS!E68 -> $ 640.00 | G82: $ 640.00
B83: 7 | C83: Cinta aislante | D83: un | E83: 0.05 | F83: =INSUMOS!E58 -> $ 6,900.00 | G83: $ 345.00
B84: 8 | C84: Aislador de rosca para empalme | D84: un | E84: 3.00 | F84: =INSUMOS!E59 -> $ 3,800.00 | G84: $ 11,400.00
B85: 9 | C85: Marquilla en acrílico | D85: un | E85: 1.00 | F85: =INSUMOS!E69 -> $ 38,500.00 | G85: $ 38,500.00
B86: 10 | C86: Abrazadera de 3/4" | D86: un | E86: 3.00 | F86: =INSUMOS!E61 -> $ 480.00 | G86: $ 1,440.00
B87: 11 | C87: Perno de tiro | D87: un | E87: 3.00 | F87: =INSUMOS!E62 -> $ 3,200.00 | G87: $ 9,600.00
B88: 12 | C88: Pólvora para perno | D88: un | E88: 3.00 | F88: =INSUMOS!E63 -> $ 1,400.00 | G88: $ 4,200.00
B89: 13 | C89: Desperdicio 3% de Materiales | D89: % | E89: 0.03 | F89: =SUM(G77:G88) -> $ 215,753.00 | G89: $ 6,473.00
E90: Subtotal materiales | G90: =SUM(G77:G89) -> $ 222,226
B92: Equipos y herramientas | D92: Unidad | E92: Rendimiento | F92: Valor unitario | G92: Valor total
B93: 1 | C93: Herramienta menor (% Mano de obra) | D93: glb | E93: 10% | F93: =+G102*E93 ->  | G93: =+ROUND(F93,0) -> 
E94: Subtotal equipos | G94: =SUM(G93:G93) -> 
B96: Transporte | D96: Unidad | E96: Distancia km | F96: VR. UN. ($/ m³*km) | G96: Valor total
B97: 1 | C97: No aplica | G97: =+ROUND(E97*F97,0) -> 0
E98: Subtotal transporte | G98: =SUM(G97:G97) -> 0.00
B100: Mano de obra | D100: Unidad | E100: Rendimiento | F100: Valor/hora | G100: Valor total
B101: 1 | C101: Cuadrilla FF (Electrico) 1 je, 1 Of y 1 Ay | D101: h | E101: 0.30 | F101: =+#REF! ->  | G101: =+ROUND(E101*F101,0) -> 
E102: Subtotal mano de obra | G102: =SUM(G101:G101) -> 
E103: Costo directo | G103: =+G102+G98+G94+G90 -> 
B106: Ítem | D106: =PRESUPUESTO!#REF! ->  | E106: =PRESUPUESTO!#REF! -> 
D107: A.P.U. | G107: Unidad
D108: PLACA POLIDEPORTIVA CUBIERTA
G109: un
B110: Materiales | D110: Unidad | E110: Cantidad | F110: Valor unitario | G110: Valor total
B111: 1 | C111: Cable vehicular No 16 | D111: m | E111: 28.00 | F111: =INSUMOS!E71 -> $ 65,000.00 | G111: =+ROUND(E111*F111,0) -> $ 1,820,000.00
B112: 2 | C112: Tubo conduit EMT 3/4" | D112: m | E112: 7.00 | F112: =INSUMOS!E53 -> $ 2,250.00 | G112: $ 15,750.00
B113: 3 | C113: Boquilla terminal EMT de 3/4" | D113: un | E113: 2.00 | F113: =INSUMOS!E54 -> $ 6,750.00 | G113: $ 13,500.00
B114: 4 | C114: unión EMT 3/4" | D114: un | E114: 2.00 | F114: =INSUMOS!E55 -> $ 4,800.00 | G114: $ 9,600.00
B115: 5 | C115: Caja octagonal | D115: un | E115: 1.00 | F115: =INSUMOS!E56 -> $ 4,800.00 | G115: $ 4,800.00
B116: 6 | C116: Caja 5800 | D116: un | E116: 1.00 | F116: =INSUMOS!E57 -> $ 72,000.00 | G116: $ 72,000.00
B117: 7 | C117: Cinta aislante | D117: un | E117: 0.05 | F117: =INSUMOS!E58 -> $ 6,900.00 | G117: $ 345.00
B118: 8 | C118: Aislador de rosca para empalme | D118: un | E118: 2.00 | F118: =INSUMOS!E65 -> $ 40,000.00 | G118: $ 80,000.00
B119: 9 | C119: Amarre plástico (zuncho) | D119: un | E119: 5.00 | F119: =INSUMOS!E70 -> $ 38,500.00 | G119: $ 192,500.00
B120: 10 | C120: Botón de timbre | D120: un | E120: 1.00 | F120: =INSUMOS!E73 -> $ 600.00 | G120: $ 600.00
B121: 11 | C121: Desperdicio 3% de Materiales | D121: % | E121: 0.03 | F121: =SUM(G111:G120) -> $ 2,209,095.00 | G121: $ 66,273.00
E122: Subtotal materiales | G122: =SUM(G111:G121) -> $ 2,275,368
B124: Equipos y herramientas | D124: Unidad | E124: Rendimiento | F124: Valor unitario | G124: Valor total
B125: 1 | C125: Herramienta menor (% Mano de obra) | D125: glb | E125: 10% | F125: =+G134*E125 ->  | G125: =+ROUND(F125,0) -> 
E126: Subtotal equipos | G126: =SUM(G125:G125) -> 
B128: Transporte | D128: Unidad | E128: Distancia km | F128: VR. UN. ($/ m³*km) | G128: Valor total
B129: 1 | C129: No aplica | G129: =+ROUND(E129*F129,0) -> 0
E130: Subtotal transporte | G130: =SUM(G129:G129) -> 0.00
B132: Mano de obra | D132: Unidad | E132: Rendimiento | F132: Valor/hora | G132: Valor total
B133: 1 | C133: Cuadrilla FF (Electrico) 1 je, 1 Of y 1 Ay | D133: h | E133: =16594.45/F133 ->  | F133: =+#REF! ->  | G133: =+ROUND(E133*F133,0) -> 
E134: Subtotal mano de obra | G134: =SUM(G133:G133) -> 
E135: Costo directo | G135: =ROUND(G134+G130+G126+G122,0) -> 
B140: Ítem | D140: =PRESUPUESTO!B229 -> 0 | E140: =PRESUPUESTO!C229 -> 0
D141: A.P.U. | G141: Unidad
D142: PLACA POLIDEPORTIVA CUBIERTA
G143: un
B144: Materiales | D144: Unidad | E144: Cantidad | F144: Valor unitario | G144: Valor total
B145: 1 | C145: Automático tipo riel 1x15, 1x20 o 1x30 A | D145: un | E145: 1.00 | F145: =+INSUMOS!E74 -> $ 39,500.00 | G145: =+ROUND(E145*F145,0) -> $ 39,500.00
E146: Subtotal materiales | G146: =SUM(G145:G145) -> $ 39,500
B148: Equipos y herramientas | D148: Unidad | E148: Rendimiento | F148: Valor unitario | G148: Valor total
B149: 1 | C149: Herramienta menor (% Mano de obra) | D149: glb | E149: 10% | F149: =+G158*E149 ->  | G149: =+ROUND(F149,0) -> 
E150: Subtotal equipos | G150: =SUM(G149:G149) -> 
B152: Transporte | D152: Unidad | E152: Distancia km | F152: VR. UN. ($/ m³*km) | G152: Valor total
B153: 1 | C153: No aplica | G153: =+ROUND(E153*F153,0) -> 0
E154: Subtotal transporte | G154: =SUM(G153:G153) -> 0.00
B156: Mano de obra | D156: Unidad | E156: Rendimiento | F156: Valor/hora | G156: Valor total
B157: 1 | C157: Cuadrilla FF (Electrico) 1 je, 1 Of y 1 Ay | D157: h | E157: 0.10 | F157: =+#REF! ->  | G157: =+ROUND(E157*F157,0) -> 
E158: Subtotal mano de obra | G158: =SUM(G157:G157) -> 
E159: Costo directo | G159: =ROUND(G158+G154+G150+G146,0) -> 
B162: Ítem | D162: =PRESUPUESTO!B230 -> 0 | E162: =PRESUPUESTO!C230 -> 0
D163: A.P.U. | G163: Unidad
D164: PLACA POLIDEPORTIVA CUBIERTA
G165: un
B166: Materiales | D166: Unidad | E166: Cantidad | F166: Valor unitario | G166: Valor total
B167: 1 | C167: Automático tipo riel 2x20 o 2x30 A | D167: un | E167: 1.00 | F167: =+INSUMOS!E75 -> $ 7,200.00 | G167: =+ROUND(E167*F167,0) -> $ 7,200.00
E168: Subtotal materiales | G168: =SUM(G167:G167) -> $ 7,200
B170: Equipos y herramientas | D170: Unidad | E170: Rendimiento | F170: Valor unitario | G170: Valor total
B171: 1 | C171: Herramienta menor (% Mano de obra) | D171: glb | E171: 10% | F171: =+G180*E171 ->  | G171: =+ROUND(F171,0) -> 
E172: Subtotal equipos | G172: =SUM(G171:G171) -> 
B174: Transporte | D174: Unidad | E174: Distancia km | F174: VR. UN. ($/ m³*km) | G174: Valor total
B175: 1 | C175: No aplica | G175: =+ROUND(E175*F175,0) -> 0
E176: Subtotal transporte | G176: =SUM(G175:G175) -> 0.00
B178: Mano de obra | D178: Unidad | E178: Rendimiento | F178: Valor/hora | G178: Valor total
B179: 1 | C179: Cuadrilla FF (Electrico) 1 je, 1 Of y 1 Ay | D179: h | E179: 0.10 | F179: =+#REF! ->  | G179: =+ROUND(E179*F179,0) -> 
E180: Subtotal mano de obra | G180: =SUM(G179:G179) -> 
E181: Costo directo | G181: =ROUND(G180+G176+G172+G168,0) -> 
B186: Ítem | D186: =PRESUPUESTO!B231 -> 0 | E186: =PRESUPUESTO!C231 -> 0
D187: A.P.U. | G187: Unidad
D188: PLACA POLIDEPORTIVA CUBIERTA
G189: un
B190: Materiales | D190: Unidad | E190: Cantidad | F190: Valor unitario | G190: Valor total
B191: 1 | C191: Tablero Minipragma de 12 circuitos | D191: un | E191: 1 | F191: =INSUMOS!E76 -> $ 111,000.00 | G191: =+ROUND(E191*F191,0) -> $ 111,000.00
B192: 2 | C192: Espárrago para anclaje | D192: un | E192: 8 | F192: =INSUMOS!E77 -> $ 36,000.00 | G192: =+ROUND(E192*F192,0) -> $ 288,000.00
B193: 3 | C193: Tuercas de fijación | D193: un | E193: 16 | F193: =INSUMOS!E78 -> $ 2,200.00 | G193: =+ROUND(E193*F193,0) -> $ 35,200.00
E194: Subtotal materiales | G194: =SUM(G191:G193) -> $ 434,200
B196: Equipos y herramientas | D196: Unidad | E196: Rendimiento | F196: Valor unitario | G196: Valor total
B197: 1 | C197: Herramienta menor (% Mano de obra) | D197: glb | E197: 10% | F197: =+G206*E197 ->  | G197: =+ROUND(F197,0) -> 
E198: Subtotal equipos | G198: =SUM(G197:G197) -> 
B200: Transporte | D200: Unidad | E200: Distancia km | F200: VR. UN. ($/ m³*km) | G200: Valor total
B201: 1 | C201: No aplica | G201: =+ROUND(E201*F201,0) -> 0
E202: Subtotal transporte | G202: =SUM(G201:G201) -> 0.00
B204: Mano de obra | D204: Unidad | E204: Rendimiento | F204: Valor/hora | G204: Valor total
B205: 1 | C205: Cuadrilla FF (Electrico) 1 je, 1 Of y 1 Ay | D205: h | E205: 2.50 | F205: =+#REF! ->  | G205: =+ROUND(E205*F205,0) -> 
E206: Subtotal mano de obra | G206: =SUM(G205:G205) -> 
E207: Costo directo | G207: =ROUND(G206+G202+G198+G194,0) -> 
B210: Ítem | D210: =PRESUPUESTO!B232 -> 0 | E210: =PRESUPUESTO!C232 -> 0
D211: A.P.U. | G211: Unidad
D212: PLACA POLIDEPORTIVA CUBIERTA
G213: un
B214: Materiales | D214: Unidad | E214: Cantidad | F214: Valor unitario | G214: Valor total
B215: 1 | C215: Telerruptor bipolar 120V - 16 amperios | D215: un | E215: 1 | F215: =INSUMOS!E79 -> $ 7,000.00 | G215: =+ROUND(E215*F215,0) -> $ 7,000.00
E216: Subtotal materiales | G216: =SUM(G215:G215) -> $ 7,000
B218: Equipos y herramientas | D218: Unidad | E218: Rendimiento | F218: Valor unitario | G218: Valor total
B219: 1 | C219: Herramienta menor (% Mano de obra) | D219: glb | E219: 10% | F219: =+G228*E219 ->  | G219: =+ROUND(F219,0) -> 
E220: Subtotal equipos | G220: =SUM(G219:G219) -> 
B222: Transporte | D222: Unidad | E222: Distancia km | F222: VR. UN. ($/ m³*km) | G222: Valor total
B223: 1 | C223: No aplica | G223: =+ROUND(E223*F223,0) -> 0
E224: Subtotal transporte | G224: =SUM(G223:G223) -> 0.00
B226: Mano de obra | D226: Unidad | E226: Rendimiento | F226: Valor/hora | G226: Valor total
B227: 1 | C227: Cuadrilla FF (Electrico) 1 je, 1 Of y 1 Ay | D227: h | E227: 0.80 | F227: =+#REF! ->  | G227: =+ROUND(E227*F227,0) -> 
E228: Subtotal mano de obra | G228: =SUM(G227:G227) -> 
E229: Costo directo | G229: =ROUND(G228+G224+G220+G216,0) -> 
B234: Ítem | D234: =PRESUPUESTO!B233 -> 0 | E234: =PRESUPUESTO!C233 -> 0
D235: A.P.U. | G235: Unidad
D236: PLACA POLIDEPORTIVA CUBIERTA
G237: m
B238: Materiales | D238: Unidad | E238: Cantidad | F238: Valor unitario | G238: Valor total
B239: 1 | C239: Cable de cobre No 8 thwn | D239: m | E239: 3.15 | F239: =INSUMOS!E80 -> $ 6,000.00 | G239: =+ROUND(E239*F239,0) -> $ 18,900.00
B240: 2 | C240: Cable de cobre No 10 thwn | D240: m | E240: 1.05 | F240: =INSUMOS!E81 -> $ 3,000.00 | G240: $ 3,150.00
B241: 3 | C241: Terminal cobre No 8 | D241: un | E241: 0.1 | F241: =INSUMOS!E82 -> $ 1,500.00 | G241: $ 150.00
B242: 4 | C242: Terminal cobre No 10 | D242: un | E242: 0.1 | F242: =INSUMOS!E83 -> $ 5,600.00 | G242: $ 560.00
B243: 5 | C243: Amarre plástico (zuncho) | D243: un | E243: 1 | F243: =INSUMOS!E72 -> $ 3,500.00 | G243: $ 3,500.00
B244: 6 | C244: Desperdicio 3% de Materiales | D244: % | E244: 3% | F244: =SUM(G239:G243) -> $ 26,260.00 | G244: $ 788.00
E245: Subtotal materiales | G245: =SUM(G239:G244) -> $ 27,048
B247: Equipos y herramientas | D247: Unidad | E247: Rendimiento | F247: Valor unitario | G247: Valor total
B248: 1 | C248: Herramienta menor (% Mano de obra) | D248: glb | E248: 10% | F248: =+G257*E248 ->  | G248: =+ROUND(F248,0) -> 
E249: Subtotal equipos | G249: =SUM(G248:G248) -> 
B251: Transporte | D251: Unidad | E251: Distancia km | F251: VR. UN. ($/ m³*km) | G251: Valor total
B252: 1 | C252: No aplica | G252: =+ROUND(E252*F252,0) -> 0
E253: Subtotal transporte | G253: =SUM(G252:G252) -> 0.00
B255: Mano de obra | D255: Unidad | E255: Rendimiento | F255: Valor/hora | G255: Valor total
B256: 1 | C256: Cuadrilla FF (Electrico) 1 je, 1 Of y 1 Ay | D256: h | E256: 0.10 | F256: =+#REF! ->  | G256: =+ROUND(E256*F256,0) -> 
E257: Subtotal mano de obra | G257: =SUM(G256:G256) -> 
E258: Costo directo | G258: =ROUND(G257+G253+G249+G245,0) -> 
... 172 more rows

Sheet MEMORIAS CANTIDADES cap 1.2
C2: =DATOS!B2 -> CENTRO DE DESARROLLO TECNOLÓGICO PARA LA INNOVACIÓN DE LA INFRAESTRUCTURA VIAL
C7: =UPPER("Memorias de CALCULO cantidades de obra") -> MEMORIAS DE CALCULO CANTIDADES DE OBRA
B9: Area | C9: =+PRESUPUESTO!$B$13 -> 1 | D9: =+PRESUPUESTO!$C$13 -> Laboratorio
B10: Capítulo | C10: =+PRESUPUESTO!B28 -> 1.2 | D10: =+PRESUPUESTO!C28 -> Cimentación
B11: Ítem: | C11: =+PRESUPUESTO!B29 -> 1.2.1 | D11: =+VLOOKUP($C11,PRESUPUESTO!$B$13:$E$264,2,FALSE) -> Excavación manual en material común, hasta 1 m de profundidad, para cimentaciones | I11: Unidad | J11: =+VLOOKUP($C11,PRESUPUESTO!$B$13:$E$264,4,FALSE) -> m3
B13: Área/lugar/elemento | C13: Longitud (m) | E13: Ancho (m) | F13: Alto (m) | G13: Peso (kg) | H13: Cant. de elementos | I13: Total | J13: DIAGRAMA/FOTO
B14: Excavaciones varias | C14: 25.00 | E14: 0.50 | F14: 1.20 | H14: 1.00 | I14: =+F14*E14*C14 -> 15.00
B29: Total | I29: =SUM(I14:I28) -> 15.00
B31: Observaciones
B36: Area | C36: =+$C$9 -> 1 | D36: =+$D$9 -> Laboratorio
B37: Capítulo | C37: =+$C$10 -> 1.2 | D37: =+$D$10 -> Cimentación
B38: Ítem: | C38: =+PRESUPUESTO!B30 -> 1.2.2 | D38: =+VLOOKUP($C38,PRESUPUESTO!$B$13:$E$264,2,FALSE) -> Concreto p/solado de limpieza, f'c= 14 Mpa, e=0.05 m para zapatas o vigas de cimentación | I38: Unidad | J38: =+VLOOKUP($C38,PRESUPUESTO!$B$13:$E$264,4,FALSE) -> m2
B40: Área/lugar/elemento | C40: Longitud (m) | E40: Ancho (m) | F40: Alto (m) | G40: Peso (kg) | H40: Cant. de elementos | I40: Total | J40: DIAGRAMA
B41: solado | C41: 2.95 | E41: 0.30 | H41: 2.00 | I41: =+ROUND(C41*H41,2)*E41 -> 1.77
C42: 2.45 | E42: 0.30 | H42: 2.00 | I42: =+ROUND(C42*H42,2)*E42 -> 1.47
I43: =+ROUND(C43*E43*F43*H43,2) -> 0
I44: 0
B53: Total | I53: =SUM(I41:I52) -> 3.24
B55: Observaciones
B59: Area | C59: =+$C$9 -> 1 | D59: =+$D$9 -> Laboratorio
B60: Capítulo | C60: =+$C$10 -> 1.2 | D60: =+$D$10 -> Cimentación
B61: Ítem: | C61: =+PRESUPUESTO!B31 -> 1.2.3 | D61: =+VLOOKUP($C61,PRESUPUESTO!$B$13:$E$264,2,FALSE) -> Construcción zapata en concreto reforzado de f'c= 21 Mpa de 0.40 x 0.30 m, refuerzo incluido de acuerdo a planos de diseño. | I61: Unidad | J61: =+VLOOKUP($C61,PRESUPUESTO!$B$13:$E$264,4,FALSE) -> ml
B63: Área/lugar/elemento | C63: Longitud (m) | E63: Ancho (m) | F63: Alto (m) | G63: Peso (kg) | H63: Cant. de elementos | I63: Total | J63: DIAGRAMA
B64: =+D61 -> Construcción zapata en concreto reforzado de f'c= 21 Mpa de 0.40 x 0.30 m, refuerzo incluido de acuerdo a planos de diseño. | C64: 2.95 | H64: 2.00 | I64: =+H64*C64 -> 5.90
C65: 2.45 | H65: 2.00 | I65: =+H65*C65 -> 4.90
B71: Total | I71: =SUM(I64:I70) -> 10.80
B73: Observaciones
B77: Area | C77: =+$C$9 -> 1 | D77: =+$D$9 -> Laboratorio
B78: Capítulo | C78: =+$C$10 -> 1.2 | D78: =+$D$10 -> Cimentación
B79: Ítem: | C79: =+PRESUPUESTO!B32 -> 1.2.4 | D79: =+VLOOKUP($C79,PRESUPUESTO!$B$13:$E$264,2,FALSE) -> Relleno compactado con material seleccionado de la misma excavación aprobado por la interventoría | I79: Unidad | J79: =+VLOOKUP($C79,PRESUPUESTO!$B$13:$E$264,4,FALSE) -> m3
B81: Área/lugar/elemento | C81: Longitud (m) | E81: Ancho (m) | F81: Alto (m) | G81: Peso (kg) | H81: Cant. de elementos | I81: Total | J81: DIAGRAMA
B82: Relleno compactado | C82: 13.40 | E82: 0.75 | F82: 1.20 | H82: 1.00 | I82: =+H82*F82*E82*C82 -> 12.06
I83: =+ROUND(C83*((E83+F83)/2)*H83,2) -> 0
B94: Total | I94: =ROUND(SUM(I82:I93),0) -> 12.00
B96: Observaciones

Sheet MEMORIAS CANTIDADES cap 1.3
C2: =DATOS!B2 -> CENTRO DE DESARROLLO TECNOLÓGICO PARA LA INNOVACIÓN DE LA INFRAESTRUCTURA VIAL
C7: =UPPER("Memorias de CALCULO cantidades de obra") -> MEMORIAS DE CALCULO CANTIDADES DE OBRA
B9: Area | C9: =+PRESUPUESTO!$B$13 -> 1 | D9: =+PRESUPUESTO!$C$13 -> Laboratorio
B10: Capítulo | C10: =+PRESUPUESTO!B33 -> 1.3 | D10: =+PRESUPUESTO!C33 -> Acometidas y domiciliarias
B11: Ítem: | C11: =+PRESUPUESTO!B34 -> 1.3.1 | D11: =+VLOOKUP($C11,PRESUPUESTO!$B$13:$E$264,2,FALSE) -> Demolición de carpeta asfáltica para instalaciones domiciliarias - aguas lluvias y residuales | I11: Unidad | J11: =+VLOOKUP($C11,PRESUPUESTO!$B$13:$E$264,4,FALSE) -> m2
B13: Área/lugar/elemento | C13: Longitud (m) | E13: Ancho (m) | F13: Alto (m) | G13: Peso (kg) | H13: Cant. de elementos | I13: Total | J13: DIAGRAMA/FOTO
B14: Para la calle incluye anden y carpeta all, an y domicilaria | C14: 12.00 | E14: 0.80 | H14: 3.00 | I14: =+ROUND(C14*E14*H14,2) -> 28.80 | L14: se cambio 07 x 0.8
B29: Total | I29: =SUM(I14:I28) -> 28.80
B31: Observaciones
B36: Area | C36: =+$C$9 -> 1 | D36: =+$D$9 -> Laboratorio
B37: Capítulo | C37: =+$C$10 -> 1.3 | D37: =+$D$10 -> Acometidas y domiciliarias
B38: Ítem: | C38: =+PRESUPUESTO!B35 -> 1.3.2 | D38: =+VLOOKUP($C38,PRESUPUESTO!$B$13:$E$264,2,FALSE) -> Excavación manual en material común, entre uno y 2 m de profundidad, incluye entibado o apuntalamientos en madera y elementos de protección, de acuerdo a recomendaciones de la interventoría. | I38: Unidad | J38: =+VLOOKUP($C38,PRESUPUESTO!$B$13:$E$264,4,FALSE) -> m3
B40: Área/lugar/elemento | C40: Longitud (m) | E40: Ancho (m) | F40: Alto (m) | G40: Peso (kg) | H40: Cant. de elementos | I40: Total | J40: DIAGRAMA
B41: aguas lluvias y negras domiciliarias | C41: 16.00 | E41: 0.80 | F41: 2.00 | H41: 2.00 | I41: =+H41*F41*E41*C41 -> 51.20
B42: acometida | C42: 16.00 | E42: 0.70 | F42: 1.50 | H42: 1.00 | I42: =+H42*F42*E42*C42 -> 16.80
B43: bajo anden | C43: 15.00 | E43: 0.50 | F43: 1.50 | H43: 1.00 | I43: =+ROUND(C43*E43*F43*H43,2) -> 11.25
B44: cajas | C44: 1.00 | E44: 1.00 | F44: 1.70 | H44: 6.00 | I44: 10.20
B53: Total | I53: =SUM(I41:I52) -> 89.45
B55: Observaciones
B59: Area | C59: =+$C$9 -> 1 | D59: =+$D$9 -> Laboratorio
B60: Capítulo | C60: =+$C$10 -> 1.3 | D60: =+$D$10 -> Acometidas y domiciliarias
B61: Ítem: | C61: =+PRESUPUESTO!B36 -> 1.3.3 | D61: =+VLOOKUP($C61,PRESUPUESTO!$B$13:$E$264,2,FALSE) -> Suministro e instalación de acometida domiciliaria con reduccion de 3" a 1". | I61: Unidad | J61: =+VLOOKUP($C61,PRESUPUESTO!$B$13:$E$264,4,FALSE) -> un
B63: Área/lugar/elemento | C63: Longitud (m) | E63: Ancho (m) | F63: Alto (m) | G63: Peso (kg) | H63: Cant. de elementos | I63: Total | J63: DIAGRAMA
B64: =+D61 -> Suministro e instalación de acometida domiciliaria con reduccion de 3" a 1". | H64: 1.00 | I64: 1.00
B71: Total | I71: =SUM(I64:I70) -> 1.00
B73: Observaciones
B77: Area | C77: =+$C$9 -> 1 | D77: =+$D$9 -> Laboratorio
B78: Capítulo | C78: =+$C$10 -> 1.3 | D78: =+$D$10 -> Acometidas y domiciliarias
B79: Ítem: | C79: =+PRESUPUESTO!B37 -> 1.3.4 | D79: =+VLOOKUP($C79,PRESUPUESTO!$B$13:$E$264,2,FALSE) -> Suministro e instalación tubería PVC sanitaria Ø 4", incluye accesorios, para instalaciones interiores de baños | I79: Unidad | J79: =+VLOOKUP($C79,PRESUPUESTO!$B$13:$E$264,4,FALSE) -> ml
B81: Área/lugar/elemento | C81: Longitud (m) | E81: Ancho (m) | F81: Alto (m) | G81: Peso (kg) | H81: Cant. de elementos | I81: Total | J81: DIAGRAMA
B82: Tuberia PVC sanitaria 4" para instalaciones de baño | C82: 8.00 | H82: 1.00 | I82: =+H82*C82 -> 8.00
I83: =+ROUND(C83*((E83+F83)/2)*H83,2) -> 0
B94: Total | I94: =SUM(I82:I93) -> 8.00
B96: Observaciones
B100: Area | C100: =+$C$9 -> 1 | D100: =+$D$9 -> Laboratorio
B101: Capítulo | C101: =+$C$10 -> 1.3 | D101: =+$D$10 -> Acometidas y domiciliarias
B102: Ítem: | C102: =+PRESUPUESTO!B38 -> 1.3.5 | D102: =+VLOOKUP($C102,PRESUPUESTO!$B$13:$E$264,2,FALSE) -> Suministro e instalación tubería Novafort o de similares características ø 4" | I102: Unidad | J102: =+VLOOKUP($C102,PRESUPUESTO!$B$13:$E$264,4,FALSE) -> ml
B104: Área/lugar/elemento | C104: Longitud (m) | E104: Ancho (m) | F104: Alto (m) | G104: Peso (kg) | H104: Cant. de elementos | I104: Total | J104: DIAGRAMA
B105: INTERNAS Y EXTERNAS DE AGUAS NEGRAS Y AGUAS LLUVIAS(INCLUYE LONGITUD PARA AJUSTES) | C105: =0.76+4.39+1.1+4.79+15+10+3.8+10+14.92+3.41+2.25+1.97+25.11+10 -> 107.50 | H105: 1.00 | I105: =+H105*C105 -> 107.50
I106: =+ROUND(C106*E106*F106*H106,2) -> 0
B113: Total | I113: =SUM(I105:I112) -> 107.50
B115: Observaciones
B119: Area | C119: =+$C$9 -> 1 | D119: =+$D$9 -> Laboratorio
B120: Capítulo | C120: =+$C$10 -> 1.3 | D120: =+$D$10 -> Acometidas y domiciliarias
B121: Ítem: | C121: =+PRESUPUESTO!B39 -> 1.3.6 | D121: =+VLOOKUP($C121,PRESUPUESTO!$B$13:$E$264,2,FALSE) -> Suministro e instalación tubería PVC sanitaria Ø 2", incluye accesorios | I121: Unidad | J121: =+VLOOKUP($C121,PRESUPUESTO!$B$13:$E$264,4,FALSE) -> ml
B123: Área/lugar/elemento | C123: Longitud (m) | E123: Ancho (m) | F123: Alto (m) | G123: Peso (kg) | H123: Cant. de elementos | I123: Total | J123: DIAGRAMA
B124: tuberia PVC sanitaria de 2" | C124: =1.13+0.3+0.5+0.53+4.35+4.64+5 -> 16.45 | H124: 1.00 | I124: =+H124*C124 -> 16.45
B135: Total | I135: =SUM(I124:I134) -> 16.45
B137: Observaciones
B141: Area | C141: =+$C$9 -> 1 | D141: =+$D$9 -> Laboratorio
B142: Capítulo | C142: =+$C$10 -> 1.3 | D142: =+$D$10 -> Acometidas y domiciliarias
B143: Ítem: | C143: =+PRESUPUESTO!B40 -> 1.3.7 | D143: =+VLOOKUP($C143,PRESUPUESTO!$B$13:$E$264,2,FALSE) -> Suministro e instalación tubería PVC aguas lluvias Ø 4", para bajantes, incluye accesorios | I143: Unidad | J143: =+VLOOKUP($C143,PRESUPUESTO!$B$13:$E$264,4,FALSE) -> un
B145: Área/lugar/elemento | C145: Longitud (m) | E145: Ancho (m) | F145: Alto (m) | G145: Peso (kg) | H145: Cant. de elementos | I145: Total | J145: DIAGRAMA
B146: bajantes de aguas lluvias | H146: 8.00 | I146: 8.00
I147: =+ROUND(C147*E147*F147*H147,2) -> 0
I148: =+ROUND(C148*E148*F148*H148,2) -> 0
I149: 0
B152: Total | I152: =SUM(I146:I151) -> 8.00
B154: Observaciones
B158: Area | C158: =+$C$9 -> 1 | D158: =+$D$9 -> Laboratorio
B159: Capítulo | C159: =+$C$10 -> 1.3 | D159: =+$D$10 -> Acometidas y domiciliarias
B160: Ítem: | C160: =+PRESUPUESTO!B41 -> 1.3.8 | D160: =+VLOOKUP($C160,PRESUPUESTO!$B$13:$E$264,2,FALSE) -> Construcción caja de inspección en concreto reforzado, f'c= 21 Mpa de 0,60 x 0,60 m libres, altura= 0,60 m, incluye cañuela y tapa en concreto reforzado, f'c= 21 Mpa, e= 0,10 m, varillas d= 3/8", fy= 420 Mpa, según diseño y planos | I160: Unidad | J160: =+VLOOKUP($C160,PRESUPUESTO!$B$13:$E$264,4,FALSE) -> un
B162: Área/lugar/elemento | C162: Longitud (m) | E162: Ancho (m) | F162: Alto (m) | G162: Peso (kg) | H162: Cant. de elementos | I162: Total | J162: DIAGRAMA
B163: cajas de inspeccion en concreto | H163: 6.00 | I163: 6.00
I164: =+ROUND(C164*E164*H164,2) -> 0
I165: 0
I166: 0
B172: Total | I172: =SUM(I163:I171) -> 6.00
B174: Observaciones
B178: Area | C178: =+$C$9 -> 1 | D178: =+$D$9 -> Laboratorio
B179: Capítulo | C179: =+$C$10 -> 1.3 | D179: =+$D$10 -> Acometidas y domiciliarias
B180: Ítem: | C180: =+PRESUPUESTO!B44 -> 1.3.11 | D180: =+VLOOKUP($C180,PRESUPUESTO!$B$13:$E$264,2,FALSE) -> Suministro, riego y compactación de subbase mecánico clase a | I180: Unidad | J180: =+VLOOKUP($C180,PRESUPUESTO!$B$13:$E$264,4,FALSE) -> m3
B182: Área/lugar/elemento | C182: Longitud (m) | E182: Ancho (m) | F182: Alto (m) | G182: Peso (kg) | H182: Cant. de elementos | I182: Total | J182: DIAGRAMA
B183: subbase domiciliarias | C183: 15.00 | E183: 0.80 | F183: 0.25 | H183: 2.00 | I183: =+ROUND(C183*E183*F183*H183,2) -> 6.00
B184: subbase acometida | C184: 12.00 | E184: 0.80 | F184: 0.25 | H184: 1.00 | I184: =+ROUND(C184*E184*F184*H184,2) -> 2.40
I185: 0
I186: 0
I187: 0
I188: 0
B193: Total | I193: =SUM(I183:I192) -> 8.40
B195: Observaciones
B199: Area | C199: =+$C$9 -> 1 | D199: =+$D$9 -> Laboratorio
B200: Capítulo | C200: =+$C$10 -> 1.3 | D200: =+$D$10 -> Acometidas y domiciliarias
B201: Ítem: | C201: =+PRESUPUESTO!B45 -> 1.3.12 | D201: =+VLOOKUP($C201,PRESUPUESTO!$B$13:$E$264,2,FALSE) -> Suministro, riego y compactación de base mecánico clase a | I201: Unidad | J201: =+VLOOKUP($C201,PRESUPUESTO!$B$13:$E$264,4,FALSE) -> m3
B203: Área/lugar/elemento | C203: Longitud (m) | E203: Ancho (m) | F203: Alto (m) | G203: Peso (kg) | H203: Cant. de elementos | I203: Total | J203: DIAGRAMA
B204: base domiciliarias | C204: 15.00 | E204: 0.70 | F204: 0.20 | H204: 2.00 | I204: =+ROUND(C204*E204*F204*H204,2) -> 4.20
B205: base acometida | C205: 12.00 | E205: 0.70 | F205: 0.20 | H205: 1.00 | I205: =+ROUND(C205*E205*F205*H205,2) -> 1.68
I206: =+ROUND(C206*E206*F206*H206,2) -> 0
I207: =+ROUND(C207*E207*F207*H207,2) -> 0
I208: 0
I209: =+ROUND(C209*E209*F209*H209,2) -> 0
B213: Total | I213: =SUM(I204:I212) -> 5.88
B215: Observaciones
B219: Area | C219: =+$C$9 -> 1 | D219: =+$D$9 -> Laboratorio
B220: Capítulo | C220: =+$C$10 -> 1.3 | D220: =+$D$10 -> Acometidas y domiciliarias
B221: Ítem: | C221: =+PRESUPUESTO!B46 -> 1.3.13 | D221: =+VLOOKUP($C221,PRESUPUESTO!$B$13:$E$264,2,FALSE) -> Imprimación con emulsión asfáltica tipo crl-1 | I221: Unidad | J221: =+VLOOKUP($C221,PRESUPUESTO!$B$13:$E$264,4,FALSE) -> m2
B223: Área/lugar/elemento | C223: Longitud (m) | E223: Ancho (m) | F223: Alto (m) | G223: Peso (kg) | H223: Cant. de elementos | I223: Total | J223: DIAGRAMA
B224: emulsion asfaltico | C224: 15.00 | E224: 0.80 | F224: 1.00 | H224: 2.00 | I224: =+ROUND(C224*E224*F224*H224,2) -> 24.00
C225: 12.00 | E225: 0.80 | F225: 1.00 | H225: 1.00 | I225: =+ROUND(C225*E225*F225*H225,2) -> 9.60
I226: =+ROUND(C226*E226*F226*H226,2) -> 0
I227: 0
I228: 0
I229: =+ROUND(C229*E229*F229*H229,2) -> 0
B233: Total | I233: =SUM(I224:I232) -> 33.60
B235: Observaciones
B239: Area | C239: =+$C$9 -> 1 | D239: =+$D$9 -> Laboratorio
B240: Capítulo | C240: =+$C$10 -> 1.3 | D240: =+$D$10 -> Acometidas y domiciliarias
B241: Ítem: | C241: =+PRESUPUESTO!B47 -> 1.3.14 | D241: =+VLOOKUP($C241,PRESUPUESTO!$B$13:$E$264,2,FALSE) -> Suministro, riego y compactación de mezcla asfáltica tipo mdc-19 | I241: Unidad | J241: =+VLOOKUP($C241,PRESUPUESTO!$B$13:$E$264,4,FALSE) -> m3
B243: Área/lugar/elemento | C243: Longitud (m) | E243: Ancho (m) | F243: Alto (m) | G243: Peso (kg) | H243: Cant. de elementos | I243: Total | J243: DIAGRAMA
B244: base domiciliarias | C244: 15.00 | E244: 0.80 | F244: 0.08 | H244: 2.00 | I244: =+ROUND(C244*E244*F244*H244,2) -> 1.80
B245: base acometida | C245: 12.00 | E245: 0.80 | F245: 0.08 | H245: 1.00 | I245: =+ROUND(C245*E245*F245*H245,2) -> 0.72
B252: Total | I252: =SUM(I244:I251) -> 2.52
B254: Observaciones

Sheet MEMORIAS CANTIDADES cap 1.4
C2: =DATOS!B2 -> CENTRO DE DESARROLLO TECNOLÓGICO PARA LA INNOVACIÓN DE LA INFRAESTRUCTURA VIAL
C7: =UPPER("Memorias de CALCULO cantidades de obra") -> MEMORIAS DE CALCULO CANTIDADES DE OBRA
B9: Area | C9: =+PRESUPUESTO!$B$13 -> 1 | D9: =+PRESUPUESTO!$C$13 -> Laboratorio
B10: Capítulo | C10: =+PRESUPUESTO!B48 -> 1.4 | D10: =+PRESUPUESTO!C48 -> Estructura en concreto
B11: Ítem: | C11: =+PRESUPUESTO!B49 -> 1.4.1 | D11: =+VLOOKUP($C11,PRESUPUESTO!$B$13:$E$264,2,FALSE) -> Construcción columna en ccto de 21 Mpa de (0.20 x 0.20) m, incluye acero de refuerzo de acuerdo a diseño- | I11: Unidad | J11: =+VLOOKUP($C11,PRESUPUESTO!$B$13:$E$264,4,FALSE) -> ml
B13: Área/lugar/elemento | C13: Longitud (m) | E13: Ancho (m) | F13: Alto (m) | G13: Peso (kg) | H13: Cant. de elementos | I13: Total | J13: DIAGRAMA/FOTO
B14: Columnas en concreto | C14: 2.85 | H14: 5.00 | I14: =+H14*C14 -> 14.25
L19: 0.2 | N19: 0.15
L20: 0.2 | N20: 0.2
L21: =+L20*L19 -> 0.04 | N21: =+N20*N19 -> 0.03
B29: Total | I29: =SUM(I14:I28) -> 14.25
B31: Observaciones
B36: Area | C36: =+$C$9 -> 1 | D36: =+$D$9 -> Laboratorio
B37: Capítulo | C37: =+$C$10 -> 1.4 | D37: =+$D$10 -> Estructura en concreto
B38: Ítem: | C38: =+PRESUPUESTO!B50 -> 1.4.2 | D38: =+VLOOKUP($C38,PRESUPUESTO!$B$13:$E$264,2,FALSE) -> Construcción de viga de amarre de 0,20 x 0,20 m, incluye acero, formaleta y andamios, , según diseño y planos. | I38: Unidad | J38: =+VLOOKUP($C38,PRESUPUESTO!$B$13:$E$264,4,FALSE) -> ml
B40: Área/lugar/elemento | C40: Longitud (m) | E40: Ancho (m) | F40: Alto (m) | G40: Peso (kg) | H40: Cant. de elementos | I40: Total | J40: DIAGRAMA
B41: viga de amarre | C41: 2.95 | H41: 2.00 | I41: =+ROUND(C41*H41,2) -> 5.90
B42: viga de amarre | C42: 2.45 | H42: 2.00 | I42: =+ROUND(C42*H42,2) -> 4.90
I43: =+ROUND(C43*E43*F43*H43,2) -> 0
I44: 0
B53: Total | I53: =SUM(I41:I52) -> 10.80
B55: Observaciones

Sheet MEMORIAS CANTIDADES cap 1.5
C2: =DATOS!B2 -> CENTRO DE DESARROLLO TECNOLÓGICO PARA LA INNOVACIÓN DE LA INFRAESTRUCTURA VIAL
C7: =UPPER("Memorias de CALCULO cantidades de obra") -> MEMORIAS DE CALCULO CANTIDADES DE OBRA
B9: Area | C9: =+PRESUPUESTO!$B$13 -> 1 | D9: =+PRESUPUESTO!$C$13 -> Laboratorio
B10: Capítulo | C10: =+PRESUPUESTO!B51 -> 1.5 | D10: =+PRESUPUESTO!C51 -> Mampostería y repellos
B11: Ítem: | C11: =+PRESUPUESTO!B52 -> 1.5.1 | D11: =+VLOOKUP($C11,PRESUPUESTO!$B$13:$E$264,2,FALSE) -> Mampostería en ladrillo común con mortero de pega 1:4 en sitios donde se desmontaron ventanas y en cuarto de compresores | I11: Unidad | J11: =+VLOOKUP($C11,PRESUPUESTO!$B$13:$E$264,4,FALSE) -> m2
B13: Área/lugar/elemento | C13: Longitud (m) | E13: Ancho (m) | F13: Alto (m) | G13: Peso (kg) | H13: Cant. de elementos | I13: Total | J13: DIAGRAMA/FOTO
B14: vano ventanas | C14: 1.50 | F14: 3.02 | H14: 2.00 | I14: =+H14*F14*C14 -> 9.06
C15: 1.20 | F15: 2.60 | H15: 1.00 | I15: =+H15*F15*C15 -> 3.12
B16: puerta | C16: 1.00 | D16: 1.00 | F16: 2.20 | H16: 1.00 | I16: 2.20
B17: muros cuarto de compresores | C17: 2.60 | F17: 1.98 | H17: 2.00 | I17: 10.30
C18: 2.60 | F18: =+(0.51+0.32)/2 -> 0.42 | H18: 1.00 | I18: 1.08
C19: 2.50 | F19: 2.10 | H19: 2.00 | I19: 10.50
C20: 2.50 | F20: 0.55 | H20: 1.00 | I20: 1.38
C21: 2.50 | F21: 0.31 | H21: 1.00 | I21: 0.78
B22: puerta | C22: 1.00 | F22: 0.50 | H22: (1.00) | I22: (0.50)
B23: ventada | C23: 2.50 | F23: 0.31 | H23: (1.00) | I23: (0.78)
B29: Total | I29: =SUM(I14:I28) -> 37.13
B31: Observaciones
B36: Area | C36: =+$C$9 -> 1 | D36: =+$D$9 -> Laboratorio
B37: Capítulo | C37: =+$C$10 -> 1.5 | D37: =+$D$10 -> Mampostería y repellos
B38: Ítem: | C38: =+PRESUPUESTO!B53 -> 1.5.2 | D38: =+VLOOKUP($C38,PRESUPUESTO!$B$13:$E$264,2,FALSE) -> Repello en muros con mortero 1:3, incluye filos y dilataciones donde hubiere. | I38: Unidad | J38: =+VLOOKUP($C38,PRESUPUESTO!$B$13:$E$264,4,FALSE) -> m2
B40: Área/lugar/elemento | C40: Longitud (m) | E40: Ancho (m) | F40: Alto (m) | G40: Peso (kg) | H40: Cant. de elementos | I40: Total | J40: DIAGRAMA
B41: Muros caseta | C41: 2.60 | F41: =+(2.49+2.7)/2 -> 2.60 | H41: 4.00 | I41: =+ROUND(C41*H41,2)*F41 -> 26.99
C42: 2.80 | F42: 2.61 | H42: 2.00 | I42: =+ROUND(C42*H42,2)*F42 -> 14.62
C43: 2.80 | F43: 2.85 | H43: 2.00 | I43: 15.96
C44: 1.00 | F44: 0.50 | H44: 2.00 | I44: 1.00
C45: 1.00 | F45: 2.00 | H45: 2.00 | I45: 4.00
B46: Muros cierre vanos | C46: 1.50 | F46: 3.02 | H46: 4.00 | I46: 18.12
C47: 1.20 | F47: 2.60 | H47: 2.00 | I47: 6.24
C48: 1.00 | D48: 1.00 | F48: 2.20 | H48: 2.00 | I48: 4.40
B53: Total | I53: =SUM(I41:I52) -> 91.32
B55: Observaciones
B59: Area | C59: =+$C$9 -> 1 | D59: =+$D$9 -> Laboratorio
B60: Capítulo | C60: =+$C$10 -> 1.5 | D60: =+$D$10 -> Mampostería y repellos
B61: Ítem: | C61: =+PRESUPUESTO!B54 -> 1.5.3 | D61: =+VLOOKUP($C61,PRESUPUESTO!$B$13:$E$264,2,FALSE) -> Construcción de muro en superboard doble cara, e= 8 mm, espesor de muro= 0,15 m, según diseño, planos y recomendaciones del proveedor. | I61: Unidad | J61: =+VLOOKUP($C61,PRESUPUESTO!$B$13:$E$264,4,FALSE) -> m2
B63: Área/lugar/elemento | C63: Longitud (m) | E63: Ancho (m) | F63: Alto (m) | G63: Peso (kg) | H63: Cant. de elementos | I63: Total | J63: DIAGRAMA
B64: recepcion cafetin y baño | C64: 17.18 | F64: 2.43 | H64: 1.00 | I64: =+H64*F64*C64 -> 41.75
B65: descuentos ventanas | E65: 0.97 | F65: 1.20 | H65: (1.00) | I65: =+H65*F65*E65 -> (1.16)
B66: descuentos ventanas | E66: 1.47 | F66: 1.20 | H66: (1.00) | I66: (1.76)
B67: descuentos ventanas | E67: 1.42 | F67: 2.10 | H67: (1.00) | I67: (2.98)
B68: descuentos ventanas | E68: 1.37 | F68: 2.10 | H68: (1.00) | I68: (2.88)
B69: director | E69: 3.00 | F69: 1.50 | H69: 1.00 | I69: 4.50
E70: 3.57 | F70: 2.43 | H70: 1.00 | I70: 8.68
B71: descuentos ventanas | E71: 1.00 | F71: 1.20 | H71: (1.00) | I71: (1.20)
B72: descuentos ventanas | E72: 0.95 | F72: 2.10 | H72: (1.00) | I72: (2.00)
B73: almacen | E73: 5.80 | F73: 2.45 | H73: 1.00 | I73: 14.21
E74: 1.42 | F74: 2.10 | H74: (1.00) | I74: (2.98)
B78: Total | I78: =SUM(I64:I77) -> 54.17
B80: Observaciones

Sheet MEMORIAS CANTIDADES cap 1.6
C2: =DATOS!B2 -> CENTRO DE DESARROLLO TECNOLÓGICO PARA LA INNOVACIÓN DE LA INFRAESTRUCTURA VIAL
C7: =UPPER("Memorias de CALCULO cantidades de obra") -> MEMORIAS DE CALCULO CANTIDADES DE OBRA
B9: Area | C9: =+PRESUPUESTO!$B$13 -> 1 | D9: =+PRESUPUESTO!$C$13 -> Laboratorio
B10: Capítulo | C10: =+PRESUPUESTO!B55 -> 1.6 | D10: =+PRESUPUESTO!C51 -> Mampostería y repellos
B11: Ítem: | C11: =+PRESUPUESTO!B56 -> 1.6.1 | D11: =+VLOOKUP($C11,PRESUPUESTO!$B$13:$E$264,2,FALSE) -> Suministro e instalación teja termoacústica Max trapezoidal a360 de 12 x 0.82 m del color que se defina en obra con la interventoría. Incluye todos los accesorios indispensables para su correcta fijación. | I11: Unidad | J11: =+VLOOKUP($C11,PRESUPUESTO!$B$13:$E$264,4,FALSE) -> m2
B13: Área/lugar/elemento | C13: Longitud (m) | E13: Ancho (m) | F13: Alto (m) | G13: Peso (kg) | H13: Cant. de elementos | I13: Total | J13: DIAGRAMA/FOTO
B14: Teja termoacustica | C14: 3.71 | E14: 3.60 | H14: 1.00 | I14: =+ROUND(C14*E14*H14,2) -> 13.36
B29: Total | I29: =SUM(I14:I28) -> 13.36
B31: Observaciones
B36: Area | C36: =+$C$9 -> 1 | D36: =+$D$9 -> Laboratorio
B37: Capítulo | C37: =+$C$10 -> 1.6 | D37: =+$D$10 -> Mampostería y repellos
B38: Ítem: | C38: =+PRESUPUESTO!B57 -> 1.6.2 | D38: =+VLOOKUP($C38,PRESUPUESTO!$B$13:$E$264,2,FALSE) -> Suministro e instalación de canal en lámina cal 22, longitud de desarrollo= 0,40 m. de acuerdo a plano | I38: Unidad | J38: =+VLOOKUP($C38,PRESUPUESTO!$B$13:$E$264,4,FALSE) -> ml
B40: Área/lugar/elemento | C40: Longitud (m) | E40: Ancho (m) | F40: Alto (m) | G40: Peso (kg) | H40: Cant. de elementos | I40: Total | J40: DIAGRAMA
B41: canal en lamina caseta | C41: 3.60 | H41: 1.00 | I41: =+ROUND(C41*H41,2) -> 3.60
B42: canal en lamina pergola | C42: 3.30 | H42: 1.00 | I42: =+ROUND(C42*H42,2) -> 3.30
C43: 7.70 | H43: 1.00 | I43: =+ROUND(C43*H43,2) -> 7.70
I44: =+ROUND(C44*E44*F44*H44,2) -> 0
B53: Total | I53: =SUM(I41:I52) -> 14.60
B55: Observaciones
B59: Area | C59: =+$C$9 -> 1 | D59: =+$D$9 -> Laboratorio
B60: Capítulo | C60: =+$C$10 -> 1.6 | D60: =+$D$10 -> Mampostería y repellos
B61: Ítem: | C61: =+PRESUPUESTO!B58 -> 1.6.3 | D61: =+VLOOKUP($C61,PRESUPUESTO!$B$13:$E$264,2,FALSE) -> Suministro e instalación de cubierta en teja policarbonato alveolar, e= 6mm sobre pérgola de acuerdo a diseño y recomendaciones de instalación del del fabricante. | I61: Unidad | J61: =+VLOOKUP($C61,PRESUPUESTO!$B$13:$E$264,4,FALSE) -> m2
B63: Área/lugar/elemento | C63: Longitud (m) | E63: Ancho (m) | F63: Alto (m) | G63: Peso (kg) | H63: Cant. de elementos | I63: Total | J63: DIAGRAMA
B64: teja policarbonato | C64: 5.50 | E64: 1.90 | H64: 1.00 | I64: =+C64*E64*H64 -> 10.45
B65: teja policarbonato | C65: 6.00 | E65: 2.20 | H65: 1.00 | I65: =+C65*E65*H65 -> 13.20
B71: Total | I71: =SUM(I64:I70) -> 23.65
B73: Observaciones
B77: Area | C77: =+$C$9 -> 1 | D77: =+$D$9 -> Laboratorio
B78: Capítulo | C78: =+$C$10 -> 1.6 | D78: =+$D$10 -> Mampostería y repellos
B79: Ítem: | C79: =+PRESUPUESTO!B59 -> 1.6.4 | D79: =+VLOOKUP($C79,PRESUPUESTO!$B$13:$E$264,2,FALSE) -> Suministro e instalación de estructura metálica según diseño para cubierta del cuarto de compresores y estructura de la pérgola. | I79: Unidad | J79: =+VLOOKUP($C79,PRESUPUESTO!$B$13:$E$264,4,FALSE) -> kg
B81: Área/lugar/elemento | C81: Longitud (m) | E81: Ancho (m) | F81: Alto (m) | G81: Peso (kg) | H81: Cant. de elementos | I81: Total | J81: DIAGRAMA
B82: Acero estrctural para cubierta caseta bombas y estrctura pergola sobre rampa acceso | G82: 500.00 | H82: 1.00 | I82: =+H82*G82 -> 500.00
B89: Total | I89: =SUM(I82:I88) -> 500.00
B91: Observaciones

Sheet MEMORIAS CANTIDADES cap 1.7
C2: =DATOS!B2 -> CENTRO DE DESARROLLO TECNOLÓGICO PARA LA INNOVACIÓN DE LA INFRAESTRUCTURA VIAL
C7: =UPPER("Memorias de CALCULO cantidades de obra") -> MEMORIAS DE CALCULO CANTIDADES DE OBRA
B9: Area | C9: =+PRESUPUESTO!$B$13 -> 1 | D9: =+PRESUPUESTO!$C$13 -> Laboratorio
B10: Capítulo | C10: =+PRESUPUESTO!B60 -> 1.7 | D10: =+PRESUPUESTO!C60 -> Carpintería metálica y de madera
B11: Ítem: | C11: =+PRESUPUESTO!B61 -> 1.7.1 | D11: =+VLOOKUP($C11,PRESUPUESTO!$B$13:$E$264,2,FALSE) -> Suministro e instalación de puerta de madera entamborada y pintada con esmalte domestico para baños oficina o entrada principal. Incluye marco en lamina pintado o aluminio cuando el muro sea superboard, bisagras, cerradura de pomo para oficinas y baño, y de seguridad en entrada principal, y los elementos que se requieran para su correcta instalación y funcionamiento, previos visto bueno de la interventoría | I11: Unidad | J11: =+VLOOKUP($C11,PRESUPUESTO!$B$13:$E$264,4,FALSE) -> un
B13: Área/lugar/elemento | C13: Longitud (m) | E13: Ancho (m) | F13: Alto (m) | G13: Peso (kg) | H13: Cant. de elementos | I13: Total | J13: DIAGRAMA/FOTO
B14: Puertas | H14: 5.00 | I14: 5.00
B29: Total | I29: =SUM(I14:I28) -> 5.00
B31: Observaciones
B36: Area | C36: =+$C$9 -> 1 | D36: =+$D$9 -> Laboratorio
B37: Capítulo | C37: =+$C$10 -> 1.7 | D37: =+$D$10 -> Carpintería metálica y de madera
B38: Ítem: | C38: =+PRESUPUESTO!B62 -> 1.7.2 | D38: =+VLOOKUP($C38,PRESUPUESTO!$B$13:$E$264,2,FALSE) -> Puerta cortafuego hoja sencilla rf-120 min - según normas: nfpa 80: standard for Firedoors and Other Opening Protectives Nsr 10. Fabricación: hoja con sistema estructural tipo cortafuego fabricado en lámina de acero calibre 16 . Acabado: pintura electrostática color a definir. Marco batiente metálico en lámina de acero cal.16. Aislante térmico para trabajo continúo a 1200°c. Bisagras tipo cápsula trabajo pesado acero calibrado. Sello perimetral intumescente importado y certificado UL. Brazo hidráulico cierra puertas: trabajo pesado tipo 1 certificado UL para 3 horas de incendio idóneo para puertas cortafuego hasta 150kg. Operador, manija exterior UL barra antipánico certificada con cilindro y 03 llaves. cerradura cortafuego antipánico cortafuego hoja activa con 01 mecanismo horizontal tipo push bar con resistencia al fuego de 03 horas, certificada y aprobada por organismos internacionales UL-ANSI- BHMA | I38: Unidad | J38: =+VLOOKUP($C38,PRESUPUESTO!$B$13:$E$264,4,FALSE) -> un
B40: Área/lugar/elemento | C40: Longitud (m) | E40: Ancho (m) | F40: Alto (m) | G40: Peso (kg) | H40: Cant. de elementos | I40: Total | J40: DIAGRAMA
B41: Puerta emergencia en el laboratorio | H41: 1.00 | I41: 1.00
I42: =+ROUND(C42*H42,2) -> 0
I43: =+ROUND(C43*E43*F43*H43,2) -> 0
I44: 0
B53: Total | I53: =SUM(I41:I52) -> 1.00
B55: Observaciones

Sheet MEMORIAS CANTIDADES cap 1.8
C2: =DATOS!B2 -> CENTRO DE DESARROLLO TECNOLÓGICO PARA LA INNOVACIÓN DE LA INFRAESTRUCTURA VIAL
C7: =UPPER("Memorias de CALCULO cantidades de obra") -> MEMORIAS DE CALCULO CANTIDADES DE OBRA
B9: Area | C9: =+PRESUPUESTO!$B$13 -> 1 | D9: =+PRESUPUESTO!$C$13 -> Laboratorio
B10: Capítulo | C10: =+PRESUPUESTO!B63 -> 1.8 | D10: =+PRESUPUESTO!C63 -> Ventaneria en aluminio
B11: Ítem: | C11: =+PRESUPUESTO!B64 -> 1.8.1 | D11: =+VLOOKUP($C11,PRESUPUESTO!$B$13:$E$264,2,FALSE) -> Suministro e instalación de ventana en aluminio ref. 5020 anoloc bronce con vidrio incoloro de 4 mm de 1.40 x 1.50 de acuerdo a diseño | I11: Unidad | J11: =+VLOOKUP($C11,PRESUPUESTO!$B$13:$E$264,4,FALSE) -> un
B13: Área/lugar/elemento | C13: Longitud (m) | E13: Ancho (m) | F13: Alto (m) | G13: Peso (kg) | H13: Cant. de elementos | I13: Total | J13: DIAGRAMA/FOTO
B14: Ventana de aluminio | E14: 1.40 | F14: 1.50 | H14: 1.00 | I14: 1.00
B29: Total | I29: =SUM(I14:I28) -> 1.00
B31: Observaciones
B36: Area | C36: =+$C$9 -> 1 | D36: =+$D$9 -> Laboratorio
B37: Capítulo | C37: =+$C$10 -> 1.8 | D37: =+$D$10 -> Ventaneria en aluminio
B38: Ítem: | C38: =+PRESUPUESTO!B65 -> 1.8.2 | D38: =+VLOOKUP($C38,PRESUPUESTO!$B$13:$E$264,2,FALSE) -> Suministro e instalación de ventana en aluminio ref. 5020 anoloc bronce con vidrio incoloro de 4 mm de 1.00 x 1.40 de acuerdo a diseño | I38: Unidad | J38: =+VLOOKUP($C38,PRESUPUESTO!$B$13:$E$264,4,FALSE) -> un
B40: Área/lugar/elemento | C40: Longitud (m) | E40: Ancho (m) | F40: Alto (m) | G40: Peso (kg) | H40: Cant. de elementos | I40: Total | J40: DIAGRAMA
B41: Ventana aluminio | E41: 1.00 | F41: 1.40 | H41: 3.00 | I41: =+H41 -> 3.00
H42: 1.00 | I42: =+ROUND(C42*H42,2) -> 0
I43: =+ROUND(C43*E43*F43*H43,2) -> 0
I44: 0
B53: Total | I53: =SUM(I41:I52) -> 3.00
B55: Observaciones
B59: Area | C59: =+$C$9 -> 1 | D59: =+$D$9 -> Laboratorio
B60: Capítulo | C60: =+$C$10 -> 1.8 | D60: =+$D$10 -> Ventaneria en aluminio
B61: Ítem: | C61: =+PRESUPUESTO!B66 -> 1.8.3 | D61: =+VLOOKUP($C61,PRESUPUESTO!$B$13:$E$264,2,FALSE) -> Suministro e instalación de ventana persiana en aluminio anoloc bronce de 1.00 x 0.50 m | I61: Unidad | J61: =+VLOOKUP($C61,PRESUPUESTO!$B$13:$E$264,4,FALSE) -> un
B63: Área/lugar/elemento | C63: Longitud (m) | E63: Ancho (m) | F63: Alto (m) | G63: Peso (kg) | H63: Cant. de elementos | I63: Total | J63: DIAGRAMA
B64: Vnetana topo persina alumunio | E64: 0.50 | F64: 1.00 | H64: 1.00 | I64: 1.00
B71: Total | I71: =SUM(I64:I70) -> 1.00
B73: Observaciones

Sheet MEMORIAS CANTIDADES cap 1.9
C2: =DATOS!B2 -> CENTRO DE DESARROLLO TECNOLÓGICO PARA LA INNOVACIÓN DE LA INFRAESTRUCTURA VIAL
C7: =UPPER("Memorias de CALCULO cantidades de obra") -> MEMORIAS DE CALCULO CANTIDADES DE OBRA
B9: Area | C9: =+PRESUPUESTO!$B$13 -> 1 | D9: =+PRESUPUESTO!$C$13 -> Laboratorio
B10: Capítulo | C10: =+PRESUPUESTO!B67 -> 1.9 | D10: =+PRESUPUESTO!C67 -> Instalaciones hidráulicas y sanitarias internas
B11: Ítem: | C11: =+PRESUPUESTO!B68 -> 1.9.1 | D11: =+VLOOKUP($C11,PRESUPUESTO!$B$13:$E$264,2,FALSE) -> Excavación manual en material común, hasta 1 m de profundidad, para instalaciones interiores, hidrosanitarias | I11: Unidad | J11: =+VLOOKUP($C11,PRESUPUESTO!$B$13:$E$264,4,FALSE) -> m3
B13: Área/lugar/elemento | C13: Longitud (m) | E13: Ancho (m) | F13: Alto (m) | G13: Peso (kg) | H13: Cant. de elementos | I13: Total | J13: DIAGRAMA/FOTO
B14: Excavaciones internas para instalaciones a menos de 1.00 m | C14: 30.00 | E14: 0.50 | F14: 0.80 | H14: 1.00 | I14: =+ROUND(C14*E14*H14,2) -> 15.00
B29: Total | I29: =SUM(I14:I28) -> 15.00
B31: Observaciones
B36: Area | C36: =+$C$9 -> 1 | D36: =+$D$9 -> Laboratorio
B37: Capítulo | C37: =+$C$10 -> 1.9 | D37: =+$D$10 -> Instalaciones hidráulicas y sanitarias internas
B38: Ítem: | C38: =+PRESUPUESTO!B69 -> 1.9.2 | D38: =+VLOOKUP($C38,PRESUPUESTO!$B$13:$E$264,2,FALSE) -> Suministro e instalación tubería PVC presión ø1", rde 21, incluye accesorios | I38: Unidad | J38: =+VLOOKUP($C38,PRESUPUESTO!$B$13:$E$264,4,FALSE) -> ml
B40: Área/lugar/elemento | C40: Longitud (m) | E40: Ancho (m) | F40: Alto (m) | G40: Peso (kg) | H40: Cant. de elementos | I40: Total | J40: DIAGRAMA
B41: Tuberia PVC precion de 1" | C41: =12+1.85+1.68+1.7+1.3 -> 18.53 | H41: 1.00 | I41: =+ROUND(C41*H41,2) -> 18.53
H42: 1.00 | I42: =+ROUND(C42*H42,2) -> 0
I43: =+ROUND(C43*E43*F43*H43,2) -> 0
I44: 0
B53: Total | I53: =SUM(I41:I52) -> 18.53
B55: Observaciones
B59: Area | C59: =+$C$9 -> 1 | D59: =+$D$9 -> Laboratorio
B60: Capítulo | C60: =+$C$10 -> 1.9 | D60: =+$D$10 -> Instalaciones hidráulicas y sanitarias internas
B61: Ítem: | C61: =+PRESUPUESTO!B70 -> 1.9.3 | D61: =+VLOOKUP($C61,PRESUPUESTO!$B$13:$E$264,2,FALSE) -> Suministro e instalación tubería PVC presión ø3/4", rde 21, incluye accesorios | I61: Unidad | J61: =+VLOOKUP($C61,PRESUPUESTO!$B$13:$E$264,4,FALSE) -> ml
B63: Área/lugar/elemento | C63: Longitud (m) | E63: Ancho (m) | F63: Alto (m) | G63: Peso (kg) | H63: Cant. de elementos | I63: Total | J63: DIAGRAMA
B64: Tuberia PVC presion de 3/4" | C64: =2.56+12.27+0.42+1.15+0.15+0.53+1.76+0.26+0.78 -> 19.88 | H64: 1.00 | I64: =+C64 -> 19.88
B71: Total | I71: =SUM(I64:I70) -> 19.88
B73: Observaciones
B77: Area | C77: =+$C$9 -> 1 | D77: =+$D$9 -> Laboratorio
B78: Capítulo | C78: =+$C$10 -> 1.9 | D78: =+$D$10 -> Instalaciones hidráulicas y sanitarias internas
B79: Ítem: | C79: =+PRESUPUESTO!B71 -> 1.9.4 | D79: =+VLOOKUP($C79,PRESUPUESTO!$B$13:$E$264,2,FALSE) -> Suministro e instalación tubería PVC presión ø1/2'', rde 21, incluye accesorios | I79: Unidad | J79: =+VLOOKUP($C79,PRESUPUESTO!$B$13:$E$264,4,FALSE) -> ml
B81: Área/lugar/elemento | C81: Longitud (m) | E81: Ancho (m) | F81: Alto (m) | G81: Peso (kg) | H81: Cant. de elementos | I81: Total | J81: DIAGRAMA
B82: Tuberia OVC presion de 1/2" | C82: =4.94+0.15+0.34+4.13+0.3 -> 9.86 | H82: 1.00 | I82: =+C82 -> 9.86
H83: 1.00 | I83: =+ROUND(C83*((E83+F83)/2)*H83,2) -> 0
B94: Total | I94: =SUM(I82:I93) -> 9.86
B96: Observaciones
B100: Area | C100: =+$C$9 -> 1 | D100: =+$D$9 -> Laboratorio
B101: Capítulo | C101: =+$C$10 -> 1.9 | D101: =+$D$10 -> Instalaciones hidráulicas y sanitarias internas
B102: Ítem: | C102: =+PRESUPUESTO!B72 -> 1.9.5 | D102: =+VLOOKUP($C102,PRESUPUESTO!$B$13:$E$264,2,FALSE) -> Punto hidráulico 1/2" en hg | I102: Unidad | J102: =+VLOOKUP($C102,PRESUPUESTO!$B$13:$E$264,4,FALSE) -> un
B104: Área/lugar/elemento | C104: Longitud (m) | E104: Ancho (m) | F104: Alto (m) | G104: Peso (kg) | H104: Cant. de elementos | I104: Total | J104: DIAGRAMA
B105: Puntos en 1/2" | H105: 5.00 | I105: =+H105 -> 5.00
H106: 1.00 | I106: =+ROUND(C106*E106*F106*H106,2) -> 0
B113: Total | I113: =SUM(I105:I112) -> 5.00
B115: Observaciones
B119: Area | C119: =+$C$9 -> 1 | D119: =+$D$9 -> Laboratorio
B120: Capítulo | C120: =+$C$10 -> 1.9 | D120: =+$D$10 -> Instalaciones hidráulicas y sanitarias internas
B121: Ítem: | C121: =+PRESUPUESTO!B73 -> 1.9.6 | D121: =+VLOOKUP($C121,PRESUPUESTO!$B$13:$E$264,2,FALSE) -> Suministro e instalación de llave de paso directo ø3/4" | I121: Unidad | J121: =+VLOOKUP($C121,PRESUPUESTO!$B$13:$E$264,4,FALSE) -> un
B123: Área/lugar/elemento | C123: Longitud (m) | E123: Ancho (m) | F123: Alto (m) | G123: Peso (kg) | H123: Cant. de elementos | I123: Total | J123: DIAGRAMA
B124: llave de paso directo | H124: 5.00 | I124: =+H124 -> 5.00
B135: Total | I135: =SUM(I124:I134) -> 5.00
B137: Observaciones
B141: Area | C141: =+$C$9 -> 1 | D141: =+$D$9 -> Laboratorio
B142: Capítulo | C142: =+$C$10 -> 1.9 | D142: =+$D$10 -> Instalaciones hidráulicas y sanitarias internas
B143: Ítem: | C143: =+PRESUPUESTO!B74 -> 1.9.7 | D143: =+VLOOKUP($C143,PRESUPUESTO!$B$13:$E$264,2,FALSE) -> Punto sanitario en PVC de ø2" | I143: Unidad | J143: =+VLOOKUP($C143,PRESUPUESTO!$B$13:$E$264,4,FALSE) -> un
B145: Área/lugar/elemento | C145: Longitud (m) | E145: Ancho (m) | F145: Alto (m) | G145: Peso (kg) | H145: Cant. de elementos | I145: Total | J145: DIAGRAMA
B146: punto sanitario de 2" | H146: 8.00 | I146: 8.00
I147: =+ROUND(C147*E147*F147*H147,2) -> 0
I148: =+ROUND(C148*E148*F148*H148,2) -> 0
I149: 0
B152: Total | I152: =SUM(I146:I151) -> 8.00
B154: Observaciones
B158: Area | C158: =+$C$9 -> 1 | D158: =+$D$9 -> Laboratorio
B159: Capítulo | C159: =+$C$10 -> 1.9 | D159: =+$D$10 -> Instalaciones hidráulicas y sanitarias internas
B160: Ítem: | C160: =+PRESUPUESTO!B75 -> 1.9.8 | D160: =+VLOOKUP($C160,PRESUPUESTO!$B$13:$E$264,2,FALSE) -> Punto sanitario en PVC de ø4" | I160: Unidad | J160: =+VLOOKUP($C160,PRESUPUESTO!$B$13:$E$264,4,FALSE) -> un
B162: Área/lugar/elemento | C162: Longitud (m) | E162: Ancho (m) | F162: Alto (m) | G162: Peso (kg) | H162: Cant. de elementos | I162: Total | J162: DIAGRAMA
B163: Punto sanitario PVC de 4" | H163: 1.00 | I163: 1.00
I164: =+ROUND(C164*E164*H164,2) -> 0
I165: 0
I166: 0
B172: Total | I172: =SUM(I163:I171) -> 1.00
B174: Observaciones
B178: Area | C178: =+$C$9 -> 1 | D178: =+$D$9 -> Laboratorio
B179: Capítulo | C179: =+$C$10 -> 1.9 | D179: =+$D$10 -> Instalaciones hidráulicas y sanitarias internas
B180: Ítem: | C180: =+PRESUPUESTO!#REF! ->  | D180: =+VLOOKUP($C180,PRESUPUESTO!$B$13:$E$264,2,FALSE) ->  | I180: Unidad | J180: =+VLOOKUP($C180,PRESUPUESTO!$B$13:$E$264,4,FALSE) -> 
B182: Área/lugar/elemento | C182: Longitud (m) | E182: Ancho (m) | F182: Alto (m) | G182: Peso (kg) | H182: Cant. de elementos | I182: Total | J182: DIAGRAMA
I183: =+ROUND(C183*E183*F183*H183,2) -> 0
I184: =+ROUND(C184*E184*F184*H184,2) -> 0
I185: 0
I186: 0
I187: 0
I188: 0
B193: Total | I193: =SUM(I183:I192) -> 0
B195: Observaciones

Sheet MEMORIAS CANTIDADES cap 1.10
C2: =DATOS!B2 -> CENTRO DE DESARROLLO TECNOLÓGICO PARA LA INNOVACIÓN DE LA INFRAESTRUCTURA VIAL
C7: =UPPER("Memorias de CALCULO cantidades de obra") -> MEMORIAS DE CALCULO CANTIDADES DE OBRA
B9: Area | C9: =+PRESUPUESTO!$B$13 -> 1 | D9: =+PRESUPUESTO!$C$13 -> Laboratorio
B10: Capítulo | C10: =+PRESUPUESTO!B76 -> 1.10 | D10: =+PRESUPUESTO!C76 -> Instalaciones eléctricas
B11: Sub capitulo | C11: =+PRESUPUESTO!B77 -> 1.10.1 | D11: =+PRESUPUESTO!C77 -> Alimentadores
B12: Ítem: | C12: =+PRESUPUESTO!B78 -> 1.10.1.1 | D12: =+VLOOKUP($C12,PRESUPUESTO!$B$13:$E$264,2,FALSE) -> Alimentador trifásico desde el tablero de distribución general ubicado en el cuarto eléctrico de la facultad de ingenierías hasta el tablero general de potencia diseñado a ubicar en el laboratorio, tablero gral de 42 circuitos.. Conductores en cable de cobre aislado 3#2/0 F + 1#2/0 N + 1#6 T AWG libre de halógenos. Incluye bandeja tipo escalera de 80 x 150x 240 mm, con sus respectivos accesorios. Mano de obra donde sea necesario de: regata, entubado, resane, cableado, aparateado, aseo. | I12: Unidad | J12: =+VLOOKUP($C12,PRESUPUESTO!$B$13:$E$264,4,FALSE) -> un
B14: Área/lugar/elemento | C14: Longitud (m) | E14: Ancho (m) | F14: Alto (m) | G14: Peso (kg) | H14: Cant. de elementos | I14: Total | J14: DIAGRAMA/FOTO
B15: Alimentador trifasico | C15: 179.00 | H15: 1.00 | I15: =+H15*C15 -> 179.00
B30: Total | I30: =SUM(I15:I29) -> 179.00
B32: Observaciones
B37: Area | C37: =+$C$9 -> 1 | D37: =+$D$9 -> Laboratorio
B38: Capítulo | C38: =+$C$10 -> 1.10 | D38: =+$D$10 -> Instalaciones eléctricas
B39: Sub capitulo | C39: =+PRESUPUESTO!B77 -> 1.10.1 | D39: =+PRESUPUESTO!C77 -> Alimentadores
B40: Ítem: | C40: =+PRESUPUESTO!B79 -> 1.10.1.2 | D40: =+VLOOKUP($C40,PRESUPUESTO!$B$13:$E$264,2,FALSE) -> Alimentador trifásico desde el tablero de distribución general del laboratorio hasta el tablero de compresores. Conductores en cable de cobre aislado 3#8 F + 1#8/0 N + 1#10 T AWG libre de halógenos. Incluye ductos, tubería IMC y PVC Ø1", con sus respectivos accesorios. Mano de obra donde sea necesario de: regata, entubado, resane, cableado, aparateado, aseo. Incluir totalizador industrial 3x40 A en el tablero de distribución general del laboratorio. | I40: Unidad | J40: =+VLOOKUP($C40,PRESUPUESTO!$B$13:$E$264,4,FALSE) -> un
B42: Área/lugar/elemento | C42: Longitud (m) | E42: Ancho (m) | F42: Alto (m) | G42: Peso (kg) | H42: Cant. de elementos | I42: Total | J42: DIAGRAMA
B43: Alimentador trifasico | C43: 30.00 | H43: 1.00 | I43: 30.00
I44: =+ROUND(C44*H44,2) -> 0
I45: =+ROUND(C45*E45*F45*H45,2) -> 0
I46: 0
B55: Total | I55: =SUM(I43:I54) -> 30.00
B57: Observaciones
B61: Area | C61: =+$C$9 -> 1 | D61: =+$D$9 -> Laboratorio
B62: Capítulo | C62: =+$C$10 -> 1.10 | D62: =+$D$10 -> Instalaciones eléctricas
B63: Sub capitulo | C63: =+PRESUPUESTO!B82 -> 1.10.2 | D63: =+PRESUPUESTO!C82 -> Tableros de distribución
B64: Ítem: | C64: =+PRESUPUESTO!B83 -> 1.10.2.1 | D64: =+VLOOKUP($C64,PRESUPUESTO!$B$13:$E$264,2,FALSE) -> Suministro e instalación tablero distribución trifásico 42 ctos (tls) tq-cp-225 AMP Schneider con puerta y espacio para totalizador. Incluye protecciones termomagnéticas según diseño (2-1X15 A, 5-1x20A, 1-1X25 A, 6-1x30A, 1-2X20A, 4-3x20A, 2-3x30A, 1-3X40). Totalizador industrial Schneider 3x150A. Debe entregarse etiquetado indicando los circuitos que maneja y demás normas Retie. | I64: Unidad | J64: =+VLOOKUP($C64,PRESUPUESTO!$B$13:$E$264,4,FALSE) -> un
B66: Área/lugar/elemento | C66: Longitud (m) | E66: Ancho (m) | F66: Alto (m) | G66: Peso (kg) | H66: Cant. de elementos | I66: Total | J66: DIAGRAMA
B67: Tablero dedistribución | H67: 1.00 | I67: 1.00
B74: Total | I74: =SUM(I67:I73) -> 1.00
B76: Observaciones
B80: Area | C80: =+$C$9 -> 1 | D80: =+$D$9 -> Laboratorio
B81: Capítulo | C81: =+$C$10 -> 1.10 | D81: =+$D$10 -> Instalaciones eléctricas
B82: Sub capitulo | C82: =+PRESUPUESTO!B82 -> 1.10.2 | D82: =+PRESUPUESTO!C82 -> Tableros de distribución
B83: Ítem: | C83: =+PRESUPUESTO!B84 -> 1.10.2.2 | D83: =+VLOOKUP($C83,PRESUPUESTO!$B$13:$E$264,2,FALSE) -> Suministro e instalación tablero distribución trifásico Tablero trifásico 240 V 18 CTOS con puerta sin espacio para totalizador 10KA 200 A, Retie acorde a IEC 60439-3Schneider . Incluye protecciones termomagnéticas según diseño (2-1X15 A, 3-3x20A). Debe entregarse etiquetado indicando los circuitos que maneja y demás normas Retie. | I83: Unidad | J83: =+VLOOKUP($C83,PRESUPUESTO!$B$13:$E$264,4,FALSE) -> un
B85: Área/lugar/elemento | C85: Longitud (m) | E85: Ancho (m) | F85: Alto (m) | G85: Peso (kg) | H85: Cant. de elementos | I85: Total | J85: DIAGRAMA
B86: Tablero dedistribución | H86: 1.00 | I86: 1.00
I87: =+ROUND(C87*((E87+F87)/2)*H87,2) -> 0
B98: Total | I98: =SUM(I86:I97) -> 1.00
B100: Observaciones
B104: Area | C104: =+$C$9 -> 1 | D104: =+$D$9 -> Laboratorio
B105: Capítulo | C105: =+$C$10 -> 1.10 | D105: =+$D$10 -> Instalaciones eléctricas
B106: Sub capitulo | C106: =+PRESUPUESTO!$B$86 -> 1.10.3 | D106: =+PRESUPUESTO!$C$86 -> Salidas de iluminación y tomas
B107: Ítem: | C107: =+PRESUPUESTO!B87 -> 1.10.3.1 | D107: =+VLOOKUP($C107,PRESUPUESTO!$B$13:$E$264,2,FALSE) -> Salida de iluminación 120 voltios en tubería Conduit emt ø 1/2" (PVC o EMT donde se requiera) y demás accesorios. Conductores en cable de cobre #12 AWG libre de halógenos. Incluye empalmes con conectores de resorte tipo 3M, tapa ciega circular, prensa estopa, cola en cable encauchetado 3x16 (±1.5m), tomacorriente y clavija aérea con polo a tierra para conexión de la luminaria. Mano de obra donde sea necesario de: regata, entubado, resane, cableado, aparateado, aseo. | I107: Unidad | J107: =+VLOOKUP($C107,PRESUPUESTO!$B$13:$E$264,4,FALSE) -> un
B109: Área/lugar/elemento | C109: Longitud (m) | E109: Ancho (m) | F109: Alto (m) | G109: Peso (kg) | H109: Cant. de elementos | I109: Total | J109: DIAGRAMA
B110: salida iluminacion | H110: 30.00 | I110: 30.00
I111: =+ROUND(C111*E111*F111*H111,2) -> 0
B118: Total | I118: =SUM(I110:I117) -> 30.00
B120: Observaciones
B124: Area | C124: =+$C$9 -> 1 | D124: =+$D$9 -> Laboratorio
B125: Capítulo | C125: =+$C$10 -> 1.10 | D125: =+$D$10 -> Instalaciones eléctricas
B126: Sub capitulo | C126: =+PRESUPUESTO!$B$86 -> 1.10.3 | D126: =+PRESUPUESTO!$C$86 -> Salidas de iluminación y tomas
B127: Ítem: | C127: =+PRESUPUESTO!B88 -> 1.10.3.2 | D127: =+VLOOKUP($C127,PRESUPUESTO!$B$13:$E$264,2,FALSE) -> Salida para interruptor sencillo en tubería Conduit PVC ø 1/2’’ (y emt ø1/2’’ donde se requiera). Incluye interruptor sencillo 15 Amp con polo a tierra. Conductores en cable de cobre #12 AWG libre de halógenos (utilizar color negro para retornos), accesorios. Mano de obra donde sea necesario de: regata, entubado, resane, cableado, aparateado, aseo. | I127: Unidad | J127: =+VLOOKUP($C127,PRESUPUESTO!$B$13:$E$264,4,FALSE) -> un
B129: Área/lugar/elemento | C129: Longitud (m) | E129: Ancho (m) | F129: Alto (m) | G129: Peso (kg) | H129: Cant. de elementos | I129: Total | J129: DIAGRAMA
B130: Salida interruptor sencillo | H130: 5.00 | I130: 5.00
I131: =+ROUND(C131*E131*F131*H131,2) -> 0
B138: Total | I138: =SUM(I130:I137) -> 5.00
B140: Observaciones
B144: Area | C144: =+$C$9 -> 1 | D144: =+$D$9 -> Laboratorio
B145: Capítulo | C145: =+$C$10 -> 1.10 | D145: =+$D$10 -> Instalaciones eléctricas
B146: Sub capitulo | C146: =+PRESUPUESTO!$B$86 -> 1.10.3 | D146: =+PRESUPUESTO!$C$86 -> Salidas de iluminación y tomas
B147: Ítem: | C147: =+PRESUPUESTO!B89 -> 1.10.3.3 | D147: =+VLOOKUP($C147,PRESUPUESTO!$B$13:$E$264,2,FALSE) -> Salida para interruptor doble en tubería Conduit PVC ø 1/2’’ (y emt ø1/2’’ donde se requiera). Incluye interruptor doble 15 Amp con polo a tierra. Conductores en cable de cobre #12 AWG libre de halógenos (utilizar color negro para retornos), accesorios. Mano de obra donde sea necesario de: regata, entubado, resane, cableado, aparateado, aseo. | I147: Unidad | J147: =+VLOOKUP($C147,PRESUPUESTO!$B$13:$E$264,4,FALSE) -> un
B149: Área/lugar/elemento | C149: Longitud (m) | E149: Ancho (m) | F149: Alto (m) | G149: Peso (kg) | H149: Cant. de elementos | I149: Total | J149: DIAGRAMA
B150: salida interruptor doble | H150: 3.00 | I150: 3.00
I151: =+ROUND(C151*E151*F151*H151,2) -> 0
B158: Total | I158: =SUM(I150:I157) -> 3.00
B160: Observaciones
B164: Area | C164: =+$C$9 -> 1 | D164: =+$D$9 -> Laboratorio
B165: Capítulo | C165: =+$C$10 -> 1.10 | D165: =+$D$10 -> Instalaciones eléctricas
B166: Sub capitulo | C166: =+PRESUPUESTO!$B$86 -> 1.10.3 | D166: =+PRESUPUESTO!$C$86 -> Salidas de iluminación y tomas
B167: Ítem: | C167: =+PRESUPUESTO!B90 -> 1.10.3.4 | D167: =+VLOOKUP($C167,PRESUPUESTO!$B$13:$E$264,2,FALSE) -> Salida para interruptor conmutable sencillo en tubería Conduit PVC ø 1/2’’ (y emt ø1/2’’ donde se requiera). Incluye interruptor conmutable sencillo 15 Amp con polo a tierra. Conductores en cable de cobre #12 AWG libre de halógenos (utilizar color negro para retornos), accesorios. Mano de obra donde sea necesario de: regata, entubado, resane, cableado, aparateado, aseo | I167: Unidad | J167: =+VLOOKUP($C167,PRESUPUESTO!$B$13:$E$264,4,FALSE) -> un
B169: Área/lugar/elemento | C169: Longitud (m) | E169: Ancho (m) | F169: Alto (m) | G169: Peso (kg) | H169: Cant. de elementos | I169: Total | J169: DIAGRAMA
B170: Salida interruptor triple | H170: 1.00 | I170: 1.00
I171: =+ROUND(C171*E171*F171*H171,2) -> 0
B178: Total | I178: =SUM(I170:I177) -> 1.00
B180: Observaciones
B184: Area | C184: =+$C$9 -> 1 | D184: =+$D$9 -> Laboratorio
B185: Capítulo | C185: =+$C$10 -> 1.10 | D185: =+$D$10 -> Instalaciones eléctricas
B186: Sub capitulo | C186: =+PRESUPUESTO!$B$86 -> 1.10.3 | D186: =+PRESUPUESTO!$C$86 -> Salidas de iluminación y tomas
B187: Ítem: | C187: =+PRESUPUESTO!B91 -> 1.10.3.5 | D187: =+VLOOKUP($C187,PRESUPUESTO!$B$13:$E$264,2,FALSE) -> Salida para toma normal doble monofásico con polo a tierra en tubería Conduit PVC ø 1/2’’. Incluye tomacorriente de acuerdo a las características de la clavija de los equipos a instalar, caja PVC de 2x4" y demás accesorios. Conductores en cable de cobre #12 AWG libre de halógenos. El toma debe quedar etiquetado con banda plástica indicando el circuito al cual pertenece. Mano de obra donde sea necesario de: regata, entubado, resane, cableado, aparateado, aseo. | I187: Unidad | J187: =+VLOOKUP($C187,PRESUPUESTO!$B$13:$E$264,4,FALSE) -> un
B189: Área/lugar/elemento | C189: Longitud (m) | E189: Ancho (m) | F189: Alto (m) | G189: Peso (kg) | H189: Cant. de elementos | I189: Total | J189: DIAGRAMA
B190: interruptor conmutable sencillo | H190: 2.00 | I190: 2.00
I191: =+ROUND(C191*E191*F191*H191,2) -> 0
B198: Total | I198: =SUM(I190:I197) -> 2.00
B200: Observaciones
B204: Area | C204: =+$C$9 -> 1 | D204: =+$D$9 -> Laboratorio
B205: Capítulo | C205: =+$C$10 -> 1.10 | D205: =+$D$10 -> Instalaciones eléctricas
B206: Sub capitulo | C206: =+PRESUPUESTO!$B$86 -> 1.10.3 | D206: =+PRESUPUESTO!$C$86 -> Salidas de iluminación y tomas
B207: Ítem: | C207: =+PRESUPUESTO!B92 -> 1.10.3.6 | D207: =+VLOOKUP($C207,PRESUPUESTO!$B$13:$E$264,2,FALSE) -> Salida para toma gfci doble monofásico con polo a tierra en tubería Conduit PVC ø 1/2’’. Incluye tomacorriente doble GFCI 20A con polo a tierra Leviton, caja PVC de 2x4" y demás accesorios. Conductores en cable de cobre #12 AWG libre de halógenos. El toma debe quedar etiquetado con banda plástica indicando el circuito al cual pertenece. Mano de obra donde sea necesario de: regata, entubado, resane, cableado, aparateado, aseo. | I207: Unidad | J207: =+VLOOKUP($C207,PRESUPUESTO!$B$13:$E$264,4,FALSE) -> un
B209: Área/lugar/elemento | C209: Longitud (m) | E209: Ancho (m) | F209: Alto (m) | G209: Peso (kg) | H209: Cant. de elementos | I209: Total | J209: DIAGRAMA
B210: Interruptor conmutable doble | H210: 2.00 | I210: 2.00
I211: =+ROUND(C211*E211*F211*H211,2) -> 0
B218: Total | I218: =SUM(I210:I217) -> 2.00
B220: Observaciones
B224: Area | C224: =+$C$9 -> 1 | D224: =+$D$9 -> Laboratorio
B225: Capítulo | C225: =+$C$10 -> 1.10 | D225: =+$D$10 -> Instalaciones eléctricas
B226: Sub capitulo | C226: =+PRESUPUESTO!$B$86 -> 1.10.3 | D226: =+PRESUPUESTO!$C$86 -> Salidas de iluminación y tomas
B227: Ítem: | C227: =+PRESUPUESTO!B93 -> 1.10.3.7 | D227: =+VLOOKUP($C227,PRESUPUESTO!$B$13:$E$264,2,FALSE) -> Salida para toma regulado monofásico en tubería PVC ø 1/2". incluye toma 15a levitón tierra aislada IG debidamente instalado, caja PVC de 2x4" y demás accesorios. Conductores trenzado de fábrica 3x12 AWG/THHN, color de fase según circuito. El toma debe quedar etiquetado con banda plástica indicando el circuito al cual pertenece. Mano de obra donde sea necesario de: regata, entubado, resane, cableado, aparateado, aseo. | I227: Unidad | J227: =+VLOOKUP($C227,PRESUPUESTO!$B$13:$E$264,4,FALSE) -> un
B229: Área/lugar/elemento | C229: Longitud (m) | E229: Ancho (m) | F229: Alto (m) | G229: Peso (kg) | H229: Cant. de elementos | I229: Total | J229: DIAGRAMA
B230: Toma normal doble monofasico | H230: 15.00 | I230: 15.00
B231: Toma normal doble monofasico bajo meson concreto | H231: 6.00 | I231: 6.00
B238: Total | I238: =SUM(I230:I237) -> 21.00
B240: Observaciones
B244: Area | C244: =+$C$9 -> 1 | D244: =+$D$9 -> Laboratorio
B245: Capítulo | C245: =+$C$10 -> 1.10 | D245: =+$D$10 -> Instalaciones eléctricas
B246: Sub capitulo | C246: =+PRESUPUESTO!$B$86 -> 1.10.3 | D246: =+PRESUPUESTO!$C$86 -> Salidas de iluminación y tomas
B247: Ítem: | C247: =+PRESUPUESTO!#REF! ->  | D247: =+VLOOKUP($C247,PRESUPUESTO!$B$13:$E$264,2,FALSE) ->  | I247: Unidad | J247: =+VLOOKUP($C247,PRESUPUESTO!$B$13:$E$264,4,FALSE) -> 
B249: Área/lugar/elemento | C249: Longitud (m) | E249: Ancho (m) | F249: Alto (m) | G249: Peso (kg) | H249: Cant. de elementos | I249: Total | J249: DIAGRAMA
B250: Toma Normal doble monofasico | H250: 8.00 | I250: 8.00
I251: =+ROUND(C251*E251*F251*H251,2) -> 0
B258: Total | I258: =SUM(I250:I257) -> 8.00
B260: Observaciones
B264: Area | C264: =+$C$9 -> 1 | D264: =+$D$9 -> Laboratorio
B265: Capítulo | C265: =+$C$10 -> 1.10 | D265: =+$D$10 -> Instalaciones eléctricas
B266: Sub capitulo | C266: =+PRESUPUESTO!$B$86 -> 1.10.3 | D266: =+PRESUPUESTO!$C$86 -> Salidas de iluminación y tomas
B267: Ítem: | C267: =+PRESUPUESTO!#REF! ->  | D267: =+VLOOKUP($C267,PRESUPUESTO!$B$13:$E$264,2,FALSE) ->  | I267: Unidad | J267: =+VLOOKUP($C267,PRESUPUESTO!$B$13:$E$264,4,FALSE) -> 
B269: Área/lugar/elemento | C269: Longitud (m) | E269: Ancho (m) | F269: Alto (m) | G269: Peso (kg) | H269: Cant. de elementos | I269: Total | J269: DIAGRAMA
B270: Salida para toma gfci doble monofásico con polo a tierra | H270: 1.00 | I270: 1.00
I271: =+ROUND(C271*E271*F271*H271,2) -> 0
B278: Total | I278: =SUM(I270:I277) -> 1.00
B280: Observaciones
B284: Area | C284: =+$C$9 -> 1 | D284: =+$D$9 -> Laboratorio
B285: Capítulo | C285: =+$C$10 -> 1.10 | D285: =+$D$10 -> Instalaciones eléctricas
B286: Sub capitulo | C286: =+PRESUPUESTO!$B$86 -> 1.10.3 | D286: =+PRESUPUESTO!$C$86 -> Salidas de iluminación y tomas
B287: Ítem: | C287: =+PRESUPUESTO!#REF! ->  | D287: =+VLOOKUP($C287,PRESUPUESTO!$B$13:$E$264,2,FALSE) ->  | I287: Unidad | J287: =+VLOOKUP($C287,PRESUPUESTO!$B$13:$E$264,4,FALSE) -> 
B289: Área/lugar/elemento | C289: Longitud (m) | E289: Ancho (m) | F289: Alto (m) | G289: Peso (kg) | H289: Cant. de elementos | I289: Total | J289: DIAGRAMA
B290: Salida lampara emergencia | H290: 3.00 | I290: 3.00
I291: =+ROUND(C291*E291*F291*H291,2) -> 0
B298: Total | I298: =SUM(I290:I297) -> 3.00
B300: Observaciones
B304: Area | C304: =+$C$9 -> 1 | D304: =+$D$9 -> Laboratorio
B305: Capítulo | C305: =+$C$10 -> 1.10 | D305: =+$D$10 -> Instalaciones eléctricas
B306: Sub capitulo | C306: =+PRESUPUESTO!$B$86 -> 1.10.3 | D306: =+PRESUPUESTO!$C$86 -> Salidas de iluminación y tomas
B307: Ítem: | C307: =+PRESUPUESTO!#REF! ->  | D307: =+VLOOKUP($C307,PRESUPUESTO!$B$13:$E$264,2,FALSE) ->  | I307: Unidad | J307: =+VLOOKUP($C307,PRESUPUESTO!$B$13:$E$264,4,FALSE) -> 
B309: Área/lugar/elemento | C309: Longitud (m) | E309: Ancho (m) | F309: Alto (m) | G309: Peso (kg) | H309: Cant. de elementos | I309: Total | J309: DIAGRAMA
B310: Salida espacial trifasica | H310: 8.00 | I310: 8.00
I311: =+ROUND(C311*E311*F311*H311,2) -> 0
B318: Total | I318: =SUM(I310:I317) -> 8.00
B320: Observaciones
B324: Area | C324: =+$C$9 -> 1 | D324: =+$D$9 -> Laboratorio
B325: Capítulo | C325: =+$C$10 -> 1.10 | D325: =+$D$10 -> Instalaciones eléctricas
B326: Sub capitulo | C326: =+PRESUPUESTO!$B$86 -> 1.10.3 | D326: =+PRESUPUESTO!$C$86 -> Salidas de iluminación y tomas
B327: Ítem: | C327: =+PRESUPUESTO!#REF! ->  | D327: =+VLOOKUP($C327,PRESUPUESTO!$B$13:$E$264,2,FALSE) ->  | I327: Unidad | J327: =+VLOOKUP($C327,PRESUPUESTO!$B$13:$E$264,4,FALSE) -> 
B329: Área/lugar/elemento | C329: Longitud (m) | E329: Ancho (m) | F329: Alto (m) | G329: Peso (kg) | H329: Cant. de elementos | I329: Total | J329: DIAGRAMA
B330: Toma regulado | H330: 14.00 | I330: 14.00
I331: =+ROUND(C331*E331*F331*H331,2) -> 0
B338: Total | I338: =SUM(I330:I337) -> 14.00
B340: Observaciones
B344: Area | C344: =+$C$9 -> 1 | D344: =+$D$9 -> Laboratorio
B345: Capítulo | C345: =+$C$10 -> 1.10 | D345: =+$D$10 -> Instalaciones eléctricas
B346: Sub capitulo | C346: =+PRESUPUESTO!B94 -> 1.10.4 | D346: =+PRESUPUESTO!$C$86 -> Salidas de iluminación y tomas
B347: Ítem: | C347: =+PRESUPUESTO!B95 -> 1.10.4.1 | D347: =+VLOOKUP($C347,PRESUPUESTO!$B$13:$E$264,2,FALSE) -> Suministro e instalación UPS APC smart-ups srt, 4250watts / 5000 va, con transformador Reductor De 208/240V A 120 V, Incluye: DC Con Software, CD De Documentación, Guía De Instalación, Gestión De Redes Integrada, Pies Desmontables , Sonda De Temperatura.3 Años De Garantía. Incluye Servicio De Instalación A 0 Metros. | I347: Unidad | J347: =+VLOOKUP($C347,PRESUPUESTO!$B$13:$E$264,4,FALSE) -> un
B349: Área/lugar/elemento | C349: Longitud (m) | E349: Ancho (m) | F349: Alto (m) | G349: Peso (kg) | H349: Cant. de elementos | I349: Total | J349: DIAGRAMA
B350: UPS | H350: 1.00 | I350: 1.00
H351: 1.00 | I351: =+ROUND(C351*E351*F351*H351,2) -> 0
B358: Total | I358: =SUM(I350:I357) -> 1.00
B360: Observaciones

Sheet MEMORIAS CANTIDADES cap 1.11
C2: =DATOS!B2 -> CENTRO DE DESARROLLO TECNOLÓGICO PARA LA INNOVACIÓN DE LA INFRAESTRUCTURA VIAL
C7: =UPPER("Memorias de CALCULO cantidades de obra") -> MEMORIAS DE CALCULO CANTIDADES DE OBRA
B9: Area | C9: =+PRESUPUESTO!$B$13 -> 1 | D9: =+PRESUPUESTO!$C$13 -> Laboratorio
B10: Capítulo | C10: =+PRESUPUESTO!B123 -> 1.11 | D10: =+PRESUPUESTO!C123 -> Pisos
B11: Ítem: | C11: =+PRESUPUESTO!B124 -> 1.11.1 | D11: =+VLOOKUP($C11,PRESUPUESTO!$B$13:$E$264,2,FALSE) -> Suministro e instalación de piso en baldosa grano de mármol blanco huila de 33x33 cm, de acuerdo a distribución de planos e indicaciones de la interventoría. incluye destronque, pulida, brillada y sellada, y dilataciones de bronce | I11: Unidad | J11: =+VLOOKUP($C11,PRESUPUESTO!$B$13:$E$264,4,FALSE) -> m2
B13: Área/lugar/elemento | C13: Longitud (m) | E13: Ancho (m) | F13: Alto (m) | G13: Peso (kg) | H13: Cant. de elementos | I13: Total | J13: DIAGRAMA/FOTO
B14: Triaxial | C14: 5.90 | E14: 3.60 | H14: 1.00 | I14: =+ROUND(C14*E14*H14,0) -> 21.00
B15: Bodega actual | C15: 8.60 | E15: 5.90 | H15: 1.00 | I15: =+ROUND(C15*E15*H15,0) -> 51.00
B16: Corredor externo | C16: 7.30 | E16: 5.90 | H16: 1.00 | I16: =+ROUND(C16*E16*H16,0) -> 43.00
B17: Descuento piso baño | C17: 2.80 | D17: 2.84 | E17: 1.70 | H17: (1.00) | I17: =+ROUND(C17*E17*H17,0) -> (5.00)
B29: Total | I29: =ROUND(SUM(I14:I28),1) -> 110.00
B31: Observaciones
B36: Area | C36: =+$C$9 -> 1 | D36: =+$D$9 -> Laboratorio
B37: Capítulo | C37: =+$C$10 -> 1.11 | D37: =+$D$10 -> Pisos
B38: Ítem: | C38: =+PRESUPUESTO!B125 -> 1.11.2 | D38: =+VLOOKUP($C38,PRESUPUESTO!$B$13:$E$264,2,FALSE) -> Suministro e instalación de guarda escoba recto en granito pulido | I38: Unidad | J38: =+VLOOKUP($C38,PRESUPUESTO!$B$13:$E$264,4,FALSE) -> ml
B40: Área/lugar/elemento | C40: Longitud (m) | E40: Ancho (m) | F40: Alto (m) | G40: Peso (kg) | H40: Cant. de elementos | I40: Total | J40: DIAGRAMA
B41: guardescoba - recepcion | C41: =5.93+3.95+3.21+2.84+0.3+1.88+0.32 -> 18.43 | H41: 1.00 | I41: =+ROUND(C41*H41,0) -> 18.00
B42: Oficina | C42: =3.58+4.59+4.59+2.55 -> 15.31 | H42: 1.00 | I42: =+ROUND(C42*H42,0) -> 15.00
B43: Laboratorio + hall acceso | C43: =12.46+5+5.11+2.43+4.7+2.7 -> 32.40 | H43: 1.00 | I43: =+ROUND(C43*H43,0) -> 32.00
I44: =+ROUND(C44*E44*F44*H44,2) -> 0
B53: Total | I53: =SUM(I41:I52) -> 65.00
B55: Observaciones
B59: Area | C59: =+$C$9 -> 1 | D59: =+$D$9 -> Laboratorio
B60: Capítulo | C60: =+$C$10 -> 1.11 | D60: =+$D$10 -> Pisos
B61: Ítem: | C61: =+PRESUPUESTO!B126 -> 1.11.3 | D61: =+VLOOKUP($C61,PRESUPUESTO!$B$13:$E$264,2,FALSE) -> Suministro y colocación de subbase granular, e= 0.15 m, tipo invias | I61: Unidad | J61: =+VLOOKUP($C61,PRESUPUESTO!$B$13:$E$264,4,FALSE) -> m2
B63: Área/lugar/elemento | C63: Longitud (m) | E63: Ancho (m) | F63: Alto (m) | G63: Peso (kg) | H63: Cant. de elementos | I63: Total | J63: DIAGRAMA
B64: =+D61 -> Suministro y colocación de subbase granular, e= 0.15 m, tipo invias | C64: 4.10 | E64: 6.60 | F64: 0.20 | H64: 1.00 | I64: =+C64*E64*H64 -> 27.06
C65: 13.00 | E65: 1.60 | F65: 0.20 | H65: 1.00 | I65: =+C65*E65*H65 -> 20.80
B71: Total | I71: =ROUND(SUM(I64:I70),1) -> 47.90
B73: Observaciones
B77: Area | C77: =+$C$9 -> 1 | D77: =+$D$9 -> Laboratorio
B78: Capítulo | C78: =+$C$10 -> 1.11 | D78: =+$D$10 -> Pisos
B79: Ítem: | C79: =+PRESUPUESTO!B127 -> 1.11.4 | D79: =+VLOOKUP($C79,PRESUPUESTO!$B$13:$E$264,2,FALSE) -> Construcción de piso en concreto de f'c= 21 Mpa, afinado, e=0.12 m, para cuarto de compresores y zona de manipulación de muestras | I79: Unidad | J79: =+VLOOKUP($C79,PRESUPUESTO!$B$13:$E$264,4,FALSE) -> m2
B81: Área/lugar/elemento | C81: Longitud (m) | E81: Ancho (m) | F81: Alto (m) | G81: Peso (kg) | H81: Cant. de elementos | I81: Total | J81: DIAGRAMA
B82: piso en concreto | C82: 4.10 | E82: 6.60 | F82: 0.15 | H82: 1.00 | I82: =+C82*E82*H82 -> 27.06
C83: 13.00 | E83: 1.60 | F83: 0.15 | H83: 1.00 | I83: =+C83*E83*H83 -> 20.80
B84: sobre anden | C84: 12.00 | E84: 1.40 | F84: 0.15 | H84: 1.00 | I84: =+C84*E84*H84 -> 16.80
B94: Total | I94: =ROUND(SUM(I82:I93),1) -> 64.70
B96: Observaciones

Sheet MEMORIAS CANTIDADES cap 1.12
C2: =DATOS!B2 -> CENTRO DE DESARROLLO TECNOLÓGICO PARA LA INNOVACIÓN DE LA INFRAESTRUCTURA VIAL
C7: =UPPER("Memorias de CALCULO cantidades de obra") -> MEMORIAS DE CALCULO CANTIDADES DE OBRA
B9: Area | C9: =+PRESUPUESTO!$B$13 -> 1 | D9: =+PRESUPUESTO!$C$13 -> Laboratorio
B10: Capítulo | C10: =+PRESUPUESTO!B128 -> 1.12 | D10: =+VLOOKUP($C10,PRESUPUESTO!$B$13:$E$264,2,FALSE) -> Mesones y enchapes
B11: Ítem: | C11: =+PRESUPUESTO!B129 -> 1.12.1 | D11: =+VLOOKUP($C11,PRESUPUESTO!$B$13:$E$264,2,FALSE) -> Construcción de mesón en concreto f´c=210 k/cm2 reforzado de dimensiones 1.20 x 4.80 m, acabado superficie de e= 0,10 m en granito pulido, soportada en muro soga pañete y pintados, de acuerdo a planos | I11: Unidad | J11: =+VLOOKUP($C11,PRESUPUESTO!$B$13:$E$264,4,FALSE) -> un
B13: Área/lugar/elemento | C13: Longitud (m) | E13: Ancho (m) | F13: Alto (m) | G13: Peso (kg) | H13: Cant. de elementos | I13: Total | J13: DIAGRAMA/FOTO
B14: meson en concreto | H14: 1.50 | I14: 1.50
B29: Total | I29: =SUM(I14:I28) -> 1.50
B31: Observaciones
B36: Area | C36: =+$C$9 -> 1 | D36: =+$D$9 -> Laboratorio
B37: Capítulo | C37: =+$C$10 -> 1.12 | D37: =+$D$10 -> Mesones y enchapes
B38: Ítem: | C38: =+PRESUPUESTO!B130 -> 1.12.2 | D38: =+VLOOKUP($C38,PRESUPUESTO!$B$13:$E$264,2,FALSE) -> Suministro e instalación de poceta de empotrar en acero inoxidable de 0.53 x 0.43 x 0.16 | I38: Unidad | J38: =+VLOOKUP($C38,PRESUPUESTO!$B$13:$E$264,4,FALSE) -> un
B40: Área/lugar/elemento | C40: Longitud (m) | E40: Ancho (m) | F40: Alto (m) | G40: Peso (kg) | H40: Cant. de elementos | I40: Total | J40: DIAGRAMA
B41: Pceta para empotrar en meson | H41: 2.00 | I41: 2.00
I42: =+ROUND(C42*H42,2) -> 0
I43: =+ROUND(C43*E43*F43*H43,2) -> 0
I44: 0
B53: Total | I53: =SUM(I41:I52) -> 2.00
B55: Observaciones
B59: Area | C59: =+$C$9 -> 1 | D59: =+$D$9 -> Laboratorio
B60: Capítulo | C60: =+$C$10 -> 1.12 | D60: =+$D$10 -> Mesones y enchapes
B61: Ítem: | C61: =+PRESUPUESTO!B131 -> 1.12.3 | D61: =+VLOOKUP($C61,PRESUPUESTO!$B$13:$E$264,2,FALSE) -> Suministro e instalación de grifería cuello de ganso de 8" con mezclador | I61: Unidad | J61: =+VLOOKUP($C61,PRESUPUESTO!$B$13:$E$264,4,FALSE) -> un
B63: Área/lugar/elemento | C63: Longitud (m) | E63: Ancho (m) | F63: Alto (m) | G63: Peso (kg) | H63: Cant. de elementos | I63: Total | J63: DIAGRAMA
B64: =+D61 -> Suministro e instalación de grifería cuello de ganso de 8" con mezclador | H64: 2.00 | I64: 2.00
B71: Total | I71: =SUM(I64:I70) -> 2.00
B73: Observaciones
B77: Area | C77: =+$C$9 -> 1 | D77: =+$D$9 -> Laboratorio
B78: Capítulo | C78: =+$C$10 -> 1.12 | D78: =+$D$10 -> Mesones y enchapes
B79: Ítem: | C79: =+PRESUPUESTO!B132 -> 1.12.4 | D79: =+VLOOKUP($C79,PRESUPUESTO!$B$13:$E$264,2,FALSE) -> Suministro e instalación de canastilla y sifón para pozuelo de acuerdo a especificaciones | I79: Unidad | J79: =+VLOOKUP($C79,PRESUPUESTO!$B$13:$E$264,4,FALSE) -> un
B81: Área/lugar/elemento | C81: Longitud (m) | E81: Ancho (m) | F81: Alto (m) | G81: Peso (kg) | H81: Cant. de elementos | I81: Total | J81: DIAGRAMA
B82: Canstilla y sifon para pozuelo | H82: 2.00 | I82: 2.00
I83: =+ROUND(C83*((E83+F83)/2)*H83,2) -> 0
B94: Total | I94: =SUM(I82:I93) -> 2.00
B96: Observaciones
B100: Area | C100: =+$C$9 -> 1 | D100: =+$D$9 -> Laboratorio
B101: Capítulo | C101: =+$C$10 -> 1.12 | D101: =+$D$10 -> Mesones y enchapes
B102: Ítem: | C102: =+PRESUPUESTO!B133 -> 1.12.5 | D102: =+VLOOKUP($C102,PRESUPUESTO!$B$13:$E$264,2,FALSE) -> Enchape de muro en cerámica de 25 x 30 cm para baño mixto y de discapacitados | I102: Unidad | J102: =+VLOOKUP($C102,PRESUPUESTO!$B$13:$E$264,4,FALSE) -> m2
B104: Área/lugar/elemento | C104: Longitud (m) | E104: Ancho (m) | F104: Alto (m) | G104: Peso (kg) | H104: Cant. de elementos | I104: Total | J104: DIAGRAMA
B105: enchapes muros | C105: 2.85 | E105: 2.00 | H105: 2.00 | I105: =+ROUND(C105*((E105+F105)/2)*H105,2) -> 5.70
C106: 1.70 | E106: 2.00 | H106: 1.00 | I106: =+ROUND(C106*((E106+F106)/2)*H106,2) -> 1.70
C107: 0.50 | E107: 2.00 | H107: 1.00 | I107: =+ROUND(C107*((E107+F107)/2)*H107,2) -> 0.50
B117: Total | I117: =SUM(I105:I116) -> 7.90
B119: Observaciones

Sheet MEMORIAS CANTIDADES cap 1.13
C2: =DATOS!B2 -> CENTRO DE DESARROLLO TECNOLÓGICO PARA LA INNOVACIÓN DE LA INFRAESTRUCTURA VIAL
C7: =UPPER("Memorias de CALCULO cantidades de obra") -> MEMORIAS DE CALCULO CANTIDADES DE OBRA
B9: Area | C9: =+PRESUPUESTO!$B$13 -> 1 | D9: =+PRESUPUESTO!$C$13 -> Laboratorio
B10: Capítulo | C10: =+PRESUPUESTO!B134 -> 1.13 | D10: =+VLOOKUP($C10,PRESUPUESTO!$B$13:$E$264,2,FALSE) -> Cielos
B11: Ítem: | C11: =+PRESUPUESTO!B135 -> 1.13.1 | D11: =+VLOOKUP($C11,PRESUPUESTO!$B$13:$E$264,2,FALSE) -> Suministro e instalación de cielo raso en PVC color mate, incluye estructura de fijación | I11: Unidad | J11: =+VLOOKUP($C11,PRESUPUESTO!$B$13:$E$264,4,FALSE) -> m2
B13: Área/lugar/elemento | C13: Longitud (m) | E13: Ancho (m) | F13: Alto (m) | G13: Peso (kg) | H13: Cant. de elementos | I13: Total | J13: DIAGRAMA/FOTO
B14: cielo raso PVC | C14: 7.00 | E14: 6.35 | H14: 1.00 | I14: =+ROUND(C14*E14*H14,2) -> 44.45
C15: 7.00 | E15: 2.51 | H15: 1.00 | I15: =+ROUND(C15*E15*H15,2) -> 17.57
B16: Oficina | C16: 7.00 | E16: 3.74 | H16: 1.00 | I16: =+ROUND(C16*E16*H16,2) -> 26.18
B29: Total | I29: =SUM(I14:I28) -> 88.20
B31: Observaciones

Sheet MEMORIAS CANTIDADES cap 1.14
C2: =DATOS!B2 -> CENTRO DE DESARROLLO TECNOLÓGICO PARA LA INNOVACIÓN DE LA INFRAESTRUCTURA VIAL
C7: =UPPER("Memorias de CALCULO cantidades de obra") -> MEMORIAS DE CALCULO CANTIDADES DE OBRA
B9: Area | C9: =+PRESUPUESTO!$B$13 -> 1 | D9: =+PRESUPUESTO!$C$13 -> Laboratorio
B10: Capítulo | C10: =+PRESUPUESTO!#REF! ->  | D10: =+VLOOKUP($C10,PRESUPUESTO!$B$13:$E$264,2,FALSE) -> 
B11: Ítem: | C11: =+PRESUPUESTO!#REF! ->  | D11: =+VLOOKUP($C11,PRESUPUESTO!$B$13:$E$264,2,FALSE) ->  | I11: Unidad | J11: =+VLOOKUP($C11,PRESUPUESTO!$B$13:$E$264,4,FALSE) -> 
B13: Área/lugar/elemento | C13: Longitud (m) | E13: Ancho (m) | F13: Alto (m) | G13: Peso (kg) | H13: Cant. de elementos | I13: Total | J13: DIAGRAMA/FOTO
B14: luminaria iltelux grid d38 608x602x85 con marco | H14: 17.00 | I14: 17.00
B29: Total | I29: =SUM(I14:I28) -> 17.00
B31: Observaciones
B36: Area | C36: =+$C$9 -> 1 | D36: =+$D$9 -> Laboratorio
B37: Capítulo | C37: =+$C$10 ->  | D37: =+$D$10 -> 
B38: Ítem: | C38: =+PRESUPUESTO!#REF! ->  | D38: =+VLOOKUP($C38,PRESUPUESTO!$B$13:$E$264,2,FALSE) ->  | I38: Unidad | J38: =+VLOOKUP($C38,PRESUPUESTO!$B$13:$E$264,4,FALSE) -> 
B40: Área/lugar/elemento | C40: Longitud (m) | E40: Ancho (m) | F40: Alto (m) | G40: Peso (kg) | H40: Cant. de elementos | I40: Total | J40: DIAGRAMA
B41: luminaria iltelux grid e13 1220x300x85 sobreponer | H41: 17.00 | I41: 17.00
I42: =+ROUND(C42*H42,2) -> 0
I43: =+ROUND(C43*E43*F43*H43,2) -> 0
I44: 0
B53: Total | I53: =SUM(I41:I52) -> 17.00
B55: Observaciones
B59: Area | C59: =+$C$9 -> 1 | D59: =+$D$9 -> Laboratorio
B60: Capítulo | C60: =+$C$10 ->  | D60: =+$D$10 -> 
B61: Ítem: | C61: =+PRESUPUESTO!#REF! ->  | D61: =+VLOOKUP($C61,PRESUPUESTO!$B$13:$E$264,2,FALSE) ->  | I61: Unidad | J61: =+VLOOKUP($C61,PRESUPUESTO!$B$13:$E$264,4,FALSE) -> 
B63: Área/lugar/elemento | C63: Longitud (m) | E63: Ancho (m) | F63: Alto (m) | G63: Peso (kg) | H63: Cant. de elementos | I63: Total | J63: DIAGRAMA
B64: luminaria de emergencia | H64: 3.00 | I64: 3.00
B71: Total | I71: =SUM(I64:I70) -> 3.00
B73: Observaciones
B77: Area | C77: =+$C$9 -> 1 | D77: =+$D$9 -> Laboratorio
B78: Capítulo | C78: =+$C$10 ->  | D78: =+$D$10 -> 
B79: Ítem: | C79: =+PRESUPUESTO!#REF! ->  | D79: =+VLOOKUP($C79,PRESUPUESTO!$B$13:$E$264,2,FALSE) ->  | I79: Unidad | J79: =+VLOOKUP($C79,PRESUPUESTO!$B$13:$E$264,4,FALSE) -> 
B81: Área/lugar/elemento | C81: Longitud (m) | E81: Ancho (m) | F81: Alto (m) | G81: Peso (kg) | H81: Cant. de elementos | I81: Total | J81: DIAGRAMA
B82: aviso luminoso de salida | H82: 2.00 | I82: 2.00
I83: =+ROUND(C83*((E83+F83)/2)*H83,2) -> 0
B94: Total | I94: =SUM(I82:I93) -> 2.00
B96: Observaciones

Sheet MEMORIAS CANTIDADES cap 1.15
C2: =DATOS!B2 -> CENTRO DE DESARROLLO TECNOLÓGICO PARA LA INNOVACIÓN DE LA INFRAESTRUCTURA VIAL
C7: =UPPER("Memorias de CALCULO cantidades de obra") -> MEMORIAS DE CALCULO CANTIDADES DE OBRA
B9: Area | C9: =+PRESUPUESTO!$B$13 -> 1 | D9: =+PRESUPUESTO!$C$13 -> Laboratorio
B10: Capítulo | C10: =+PRESUPUESTO!B136 -> 1.14 | D10: =+VLOOKUP($C10,PRESUPUESTO!$B$13:$E$264,2,FALSE) -> Pintura muros y cielos
B11: Ítem: | C11: =+PRESUPUESTO!B137 -> 1.14.1 | D11: =+VLOOKUP($C11,PRESUPUESTO!$B$13:$E$264,2,FALSE) -> Suministro y aplicación de estuco plástico sobre pañete en muros, incluye filos, dilat. | I11: Unidad | J11: =+VLOOKUP($C11,PRESUPUESTO!$B$13:$E$264,4,FALSE) -> m2
B13: Área/lugar/elemento | C13: Longitud (m) | E13: Ancho (m) | F13: Alto (m) | G13: Peso (kg) | H13: Cant. de elementos | I13: Total | J13: DIAGRAMA/FOTO
B14: Muros caseta | C14: 2.60 | F14: =+(2.49+2.7)/2 -> 2.60 | H14: 4.00 | I14: =+ROUND(H14*F14*C14,0) -> 27.00
C15: 2.80 | F15: 2.61 | H15: 2.00 | I15: 15.00
C16: 2.80 | F16: 2.85 | H16: 2.00 | I16: 16.00
C17: 1.00 | F17: 0.50 | H17: (2.00) | I17: (1.00)
C18: 1.00 | F18: 2.00 | H18: (2.00) | I18: (4.00)
B19: Muros cierre vanos | C19: 1.50 | F19: 3.02 | H19: 4.00 | I19: 18.00
C20: 1.20 | F20: 2.60 | H20: 2.00 | I20: 6.00
C21: 1.00 | D21: 1.00 | F21: 2.20 | H21: 2.00 | I21: 4.00
B29: Total | I29: =SUM(I14:I28) -> 81.00
B31: Observaciones
B36: Area | C36: =+$C$9 -> 1 | D36: =+$D$9 -> Laboratorio
B37: Capítulo | C37: =+$C$10 -> 1.14 | D37: =+$D$10 -> Pintura muros y cielos
B38: Ítem: | C38: =+PRESUPUESTO!B138 -> 1.14.2 | D38: =+VLOOKUP($C38,PRESUPUESTO!$B$13:$E$264,2,FALSE) -> Suministro y aplicación de pintura tipo 1, tres manos para muros y cielos internos. Incluye resanes donde se requiera | I38: Unidad | J38: =+VLOOKUP($C38,PRESUPUESTO!$B$13:$E$264,4,FALSE) -> m3
B40: Área/lugar/elemento | C40: Longitud (m) | E40: Ancho (m) | F40: Alto (m) | G40: Area (M2) | H40: Cant. de elementos | I40: Total | J40: DIAGRAMA
B41: Muros | G41: =+PRESUPUESTO!F53 -> 91.32 | H41: 2.00 | I41: =+ROUND(H41*G41,0) -> 183.00
B42: Cielos | C42: 7.30 | E42: 5.90 | H42: 1.00 | I42: =ROUND(+H42*E42*C42,0) -> 43.00
B43: Repellos | G43: =+PRESUPUESTO!F137 -> 81.00 | H43: 1.00 | I43: =+H43*G43 -> 81.00
I44: =+ROUND(C44*E44*F44*H44,2) -> 0
B53: Total | I53: =SUM(I41:I52) -> 307.00
B55: Observaciones
B59: Area | C59: =+$C$9 -> 1 | D59: =+$D$9 -> Laboratorio
B60: Capítulo | C60: =+$C$10 -> 1.14 | D60: =+$D$10 -> Pintura muros y cielos
B61: Ítem: | C61: =+PRESUPUESTO!B139 -> 1.14.3 | D61: =+VLOOKUP($C61,PRESUPUESTO!$B$13:$E$264,2,FALSE) -> Suministro y aplicación de pintura tipo 1, dos manos p/muros en superboard internos. Incluye resanes donde se requiera | I61: Unidad | J61: =+VLOOKUP($C61,PRESUPUESTO!$B$13:$E$264,4,FALSE) -> m3
B63: Área/lugar/elemento | C63: Longitud (m) | E63: Ancho (m) | F63: Alto (m) | G63: Area (M2) | H63: Cant. de elementos | I63: Total | J63: DIAGRAMA
B64: Pintuar muros superboard | G64: =+PRESUPUESTO!F54 -> 54.17 | H64: 2.00 | I64: =ROUND(+H64*G64,0) -> 108.00
B71: Total | I71: =SUM(I64:I70) -> 108.00
B73: Observaciones
B77: Area | C77: =+$C$9 -> 1 | D77: =+$D$9 -> Laboratorio
B78: Capítulo | C78: =+$C$10 -> 1.14 | D78: =+$D$10 -> Pintura muros y cielos
B79: Ítem: | C79: =+PRESUPUESTO!B140 -> 1.14.4 | D79: =+VLOOKUP($C79,PRESUPUESTO!$B$13:$E$264,2,FALSE) -> Suministro y aplicación de pintura para exteriores resistente a la intemperie, tipo Koraza Suministro y aplicación de pintura para exteriores resistente a la intemperie, tipo Koraza, en fachadas exteriores hasta laboratorio de suelos, y cuarto de compresores sobre pañete. | I79: Unidad | J79: =+VLOOKUP($C79,PRESUPUESTO!$B$13:$E$264,4,FALSE) -> m2
B81: Área/lugar/elemento | C81: Longitud (m) | E81: Ancho (m) | F81: Alto (m) | G81: Peso (kg) | H81: Cant. de elementos | I81: Total | J81: DIAGRAMA
B82: fachadas posteriores | C82: 6.40 | F82: 3.60 | H82: 1.00 | I82: =+ROUND(H82*F82*C82,0) -> 23.00
C83: 11.30 | F83: 3.60 | H83: 1.00 | I83: =+ROUND(H83*F83*C83,0) -> 41.00
C84: 6.00 | F84: 4.00 | H84: 1.00 | I84: =+H84*F84*C84 -> 24.00
B85: Sobre pergola | C85: 12.50 | F85: 3.60 | H85: 1.00 | I85: =+H85*F85*C85 -> 45.00
B94: Total | I94: =SUM(I82:I93) -> 133.00
B96: Observaciones

Sheet MEMORIAS CANTIDADES cap 1.16
C2: =DATOS!B2 -> CENTRO DE DESARROLLO TECNOLÓGICO PARA LA INNOVACIÓN DE LA INFRAESTRUCTURA VIAL
C7: =UPPER("Memorias de CALCULO cantidades de obra") -> MEMORIAS DE CALCULO CANTIDADES DE OBRA
B9: Area | C9: =+PRESUPUESTO!$B$13 -> 1 | D9: =+PRESUPUESTO!$C$13 -> Laboratorio
B10: Capítulo | C10: =+PRESUPUESTO!B141 -> 1.15 | D10: =+VLOOKUP($C10,PRESUPUESTO!$B$13:$E$264,2,FALSE) -> Aparatos y accesorios sanitarios
B11: Ítem: | C11: =+PRESUPUESTO!B142 -> 1.15.1 | D11: =+VLOOKUP($C11,PRESUPUESTO!$B$13:$E$264,2,FALSE) -> Suministro e instalación de aparato sanitario línea blanca movilidad reducida, incluye fluxómetro, barras de apoyo, accesorios y refuerzo para barras apoyadas en muro superboard | I11: Unidad | J11: =+VLOOKUP($C11,PRESUPUESTO!$B$13:$E$264,4,FALSE) -> un
B13: Área/lugar/elemento | C13: Longitud (m) | E13: Ancho (m) | F13: Alto (m) | G13: Peso (kg) | H13: Cant. de elementos | I13: Total | J13: DIAGRAMA/FOTO
B14: Sanitario | H14: 1.00 | I14: 1.00
B29: Total | I29: =SUM(I14:I28) -> 1.00
B31: Observaciones
B36: Area | C36: =+$C$9 -> 1 | D36: =+$D$9 -> Laboratorio
B37: Capítulo | C37: =+$C$10 -> 1.15 | D37: =+$D$10 -> Aparatos y accesorios sanitarios
B38: Ítem: | C38: =+PRESUPUESTO!B143 -> 1.15.2 | D38: =+VLOOKUP($C38,PRESUPUESTO!$B$13:$E$264,2,FALSE) -> Suministro e instalación de orinal línea blanca movilidad reducida, incluye barras de apoyo, accesorios y refuerzo para barras apoyadas en muro superboard | I38: Unidad | J38: =+VLOOKUP($C38,PRESUPUESTO!$B$13:$E$264,4,FALSE) -> un
B40: Área/lugar/elemento | C40: Longitud (m) | E40: Ancho (m) | F40: Alto (m) | G40: Peso (kg) | H40: Cant. de elementos | I40: Total | J40: DIAGRAMA
B41: Orinal linea blanca | H41: 2.00 | I41: 2.00
I42: =+ROUND(C42*H42,2) -> 0
I43: =+ROUND(C43*E43*F43*H43,2) -> 0
I44: 0
B53: Total | I53: =SUM(I41:I52) -> 2.00
B55: Observaciones
B59: Area | C59: =+$C$9 -> 1 | D59: =+$D$9 -> Laboratorio
B60: Capítulo | C60: =+$C$10 -> 1.15 | D60: =+$D$10 -> Aparatos y accesorios sanitarios
B61: Ítem: | C61: =+PRESUPUESTO!B144 -> 1.15.3 | D61: =+VLOOKUP($C61,PRESUPUESTO!$B$13:$E$264,2,FALSE) -> Suministro e instalación de lavamanos línea blanca, (incluye accesorios) | I61: Unidad | J61: =+VLOOKUP($C61,PRESUPUESTO!$B$13:$E$264,4,FALSE) -> un
B63: Área/lugar/elemento | C63: Longitud (m) | E63: Ancho (m) | F63: Alto (m) | G63: Peso (kg) | H63: Cant. de elementos | I63: Total | J63: DIAGRAMA
B64: lavamanos linea blanca | H64: 1.00 | I64: 1.00
B71: Total | I71: =SUM(I64:I70) -> 1.00
B73: Observaciones
B77: Area | C77: =+$C$9 -> 1 | D77: =+$D$9 -> Laboratorio
B78: Capítulo | C78: =+$C$10 -> 1.15 | D78: =+$D$10 -> Aparatos y accesorios sanitarios
B79: Ítem: | C79: =+PRESUPUESTO!B145 -> 1.15.4 | D79: =+VLOOKUP($C79,PRESUPUESTO!$B$13:$E$264,2,FALSE) -> Suministro e instalación de ducha lava-ojos y accesorios de acuerdo a especificaciones | I79: Unidad | J79: =+VLOOKUP($C79,PRESUPUESTO!$B$13:$E$264,4,FALSE) -> un
B81: Área/lugar/elemento | C81: Longitud (m) | E81: Ancho (m) | F81: Alto (m) | G81: Peso (kg) | H81: Cant. de elementos | I81: Total | J81: DIAGRAMA
B82: Ducha lava-ojos | H82: 1.00 | I82: 1.00
I83: =+ROUND(C83*((E83+F83)/2)*H83,2) -> 0
B94: Total | I94: =SUM(I82:I93) -> 1.00
B96: Observaciones
B100: Area | C100: =+PRESUPUESTO!$B$13 -> 1 | D100: =+PRESUPUESTO!$C$13 -> Laboratorio
B101: Capítulo | C101: =+$C$10 -> 1.15 | D101: =+VLOOKUP($C101,PRESUPUESTO!$B$13:$E$264,2,FALSE) -> Aparatos y accesorios sanitarios
B102: Ítem: | C102: =+PRESUPUESTO!B146 -> 1.15.5 | D102: =+VLOOKUP($C102,PRESUPUESTO!$B$13:$E$264,2,FALSE) -> Suministro e instalación de dosificador en acero inoxidable para jabón líquido. | I102: Unidad | J102: =+VLOOKUP($C102,PRESUPUESTO!$B$13:$E$264,4,FALSE) -> un
B104: Área/lugar/elemento | C104: Longitud (m) | E104: Ancho (m) | F104: Alto (m) | G104: Peso (kg) | H104: Cant. de elementos | I104: Total | J104: DIAGRAMA/FOTO
B105: Dosificador jabon | H105: 1.00 | I105: 1.00
B120: Total | I120: =SUM(I105:I119) -> 1.00
B122: Observaciones
B127: Area | C127: =+$C$9 -> 1 | D127: =+$D$9 -> Laboratorio
B128: Capítulo | C128: =+$C$10 -> 1.15 | D128: =+$D$10 -> Aparatos y accesorios sanitarios
B129: Ítem: | C129: =+PRESUPUESTO!B147 -> 1.15.6 | D129: =+VLOOKUP($C129,PRESUPUESTO!$B$13:$E$264,2,FALSE) -> Suministro e instalación de dispensador en acero inoxidable para papel higiénico | I129: Unidad | J129: =+VLOOKUP($C129,PRESUPUESTO!$B$13:$E$264,4,FALSE) -> un
B131: Área/lugar/elemento | C131: Longitud (m) | E131: Ancho (m) | F131: Alto (m) | G131: Peso (kg) | H131: Cant. de elementos | I131: Total | J131: DIAGRAMA
B132: Dispensador papeh higienico | H132: 1.00 | I132: 1.00
I133: =+ROUND(C133*H133,2) -> 0
I134: =+ROUND(C134*E134*F134*H134,2) -> 0
I135: 0
B144: Total | I144: =SUM(I132:I143) -> 1.00
B146: Observaciones
B150: Area | C150: =+$C$9 -> 1 | D150: =+$D$9 -> Laboratorio
B151: Capítulo | C151: =+$C$10 -> 1.15 | D151: =+$D$10 -> Aparatos y accesorios sanitarios
B152: Ítem: | C152: =+PRESUPUESTO!B148 -> 1.15.7 | D152: =+VLOOKUP($C152,PRESUPUESTO!$B$13:$E$264,2,FALSE) -> Suministro e instalación de dispensador plástico para toallas papel tipo familia rollo | I152: Unidad | J152: =+VLOOKUP($C152,PRESUPUESTO!$B$13:$E$264,4,FALSE) -> un
B154: Área/lugar/elemento | C154: Longitud (m) | E154: Ancho (m) | F154: Alto (m) | G154: Peso (kg) | H154: Cant. de elementos | I154: Total | J154: DIAGRAMA
B155: Dispensador tohallas | H155: 1.00 | I155: 1.00
B162: Total | I162: =SUM(I155:I161) -> 1.00
B164: Observaciones
B168: Area | C168: =+$C$9 -> 1 | D168: =+$D$9 -> Laboratorio
B169: Capítulo | C169: =+$C$10 -> 1.15 | D169: =+$D$10 -> Aparatos y accesorios sanitarios
B170: Ítem: | C170: =+PRESUPUESTO!B149 -> 1.15.8 | D170: =+VLOOKUP($C170,PRESUPUESTO!$B$13:$E$264,2,FALSE) -> Suministro e instalación de espejo flotado biselado 0.5 x 0.60 moldura en madera pintado. | I170: Unidad | J170: =+VLOOKUP($C170,PRESUPUESTO!$B$13:$E$264,4,FALSE) -> un
B172: Área/lugar/elemento | C172: Longitud (m) | E172: Ancho (m) | F172: Alto (m) | G172: Peso (kg) | H172: Cant. de elementos | I172: Total | J172: DIAGRAMA
B173: Espejo | H173: 1.00 | I173: 1.00
I174: =+ROUND(C174*((E174+F174)/2)*H174,2) -> 0
B185: Total | I185: =SUM(I173:I184) -> 1.00
B187: Observaciones

Sheet MEMORIAS CANTIDADES cap 1.17
C2: =DATOS!B2 -> CENTRO DE DESARROLLO TECNOLÓGICO PARA LA INNOVACIÓN DE LA INFRAESTRUCTURA VIAL
C7: =UPPER("Memorias de CALCULO cantidades de obra") -> MEMORIAS DE CALCULO CANTIDADES DE OBRA
B9: Area | C9: =+PRESUPUESTO!$B$13 -> 1 | D9: =+PRESUPUESTO!$C$13 -> Laboratorio
B10: Capítulo | C10: =+PRESUPUESTO!B150 -> 1.16 | D10: =+VLOOKUP($C10,PRESUPUESTO!$B$13:$E$264,2,FALSE) -> Rampas
B11: Ítem: | C11: =+PRESUPUESTO!B151 -> 1.16.1 | D11: =+VLOOKUP($C11,PRESUPUESTO!$B$13:$E$264,2,FALSE) -> Construcción de rampa en concreto de f´c=21 Mpa espesor 0.12 m, escobillado con estrías como se indica en planos. . | I11: Unidad | J11: =+VLOOKUP($C11,PRESUPUESTO!$B$13:$E$264,4,FALSE) -> m2
B13: Área/lugar/elemento | C13: Longitud (m) | E13: Ancho (m) | F13: Alto (m) | G13: Peso (kg) | H13: Cant. de elementos | I13: Total | J13: DIAGRAMA/FOTO
B14: Rampa en concreto | C14: 3.20 | E14: 1.30 | H14: 1.00 | I14: =+ROUND(C14*E14*H14,2) -> 4.16
C15: 8.30 | E15: 1.30 | H15: 1.00 | I15: =+ROUND(C15*E15*H15,2) -> 10.79
B29: Total | I29: =SUM(I14:I28) -> 14.95
B31: Observaciones
B36: Area | C36: =+$C$9 -> 1 | D36: =+$D$9 -> Laboratorio
B37: Capítulo | C37: =+$C$10 -> 1.16 | D37: =+$D$10 -> Rampas
B38: Ítem: | C38: =+PRESUPUESTO!B152 -> 1.16.2 | D38: =+VLOOKUP($C38,PRESUPUESTO!$B$13:$E$264,2,FALSE) -> Cordón en concreto 0.12x0.12 f´c 21 Mpa para bordes de rampa, incluye corte, flejado e instalación de acero de refuerzo de 1/4" en U de L=0.40 m y 2 varillas longitudinales. Este bordillo se construye sobre los bordes de la rampa. Las úes en acero de 1/4" deben quedar ancladas a la losa de la rampa antes de que esta fragüe. | I38: Unidad | J38: =+VLOOKUP($C38,PRESUPUESTO!$B$13:$E$264,4,FALSE) -> ml
B40: Área/lugar/elemento | C40: Longitud (m) | E40: Ancho (m) | F40: Alto (m) | G40: Peso (kg) | H40: Cant. de elementos | I40: Total | J40: DIAGRAMA
B41: cordon en concreto | C41: 8.30 | H41: 1.00 | I41: =+ROUND(C41*H41,2) -> 8.30
C42: 3.20 | H42: 3.00 | I42: =+ROUND(C42*H42,2) -> 9.60
C43: =8.3-1.3 -> 7.00 | H43: 1.00 | I43: =+ROUND(C43*H43,2) -> 7.00
I44: =+ROUND(C44*E44*F44*H44,2) -> 0
B53: Total | I53: =SUM(I41:I52) -> 24.90
B55: Observaciones
B59: Area | C59: =+$C$9 -> 1 | D59: =+$D$9 -> Laboratorio
B60: Capítulo | C60: =+$C$10 -> 1.16 | D60: =+$D$10 -> Rampas
B61: Ítem: | C61: =+PRESUPUESTO!B153 -> 1.16.3 | D61: =+VLOOKUP($C61,PRESUPUESTO!$B$13:$E$264,2,FALSE) -> Suministro e instalación de pasamanos en tubería de acero inoxidable ornamental 304 de diámetro 1 1/4" cal 18. de acuerdo a diseño | I61: Unidad | J61: =+VLOOKUP($C61,PRESUPUESTO!$B$13:$E$264,4,FALSE) -> ml
B63: Área/lugar/elemento | C63: Longitud (m) | E63: Ancho (m) | F63: Alto (m) | G63: Peso (kg) | H63: Cant. de elementos | I63: Total | J63: DIAGRAMA
B64: pasamanos | C64: 8.30 | H64: 1.00 | I64: =+ROUND(C64*H64,2) -> 8.30
C65: 3.20 | H65: 3.00 | I65: =+ROUND(C65*H65,2) -> 9.60
C66: =8.3-1.3 -> 7.00 | H66: 1.00 | I66: =+ROUND(C66*H66,2) -> 7.00
B71: Total | I71: =SUM(I64:I70) -> 24.90
B73: Observaciones

Sheet MEMORIAS CANTIDADES cap 1.18
C2: =DATOS!B2 -> CENTRO DE DESARROLLO TECNOLÓGICO PARA LA INNOVACIÓN DE LA INFRAESTRUCTURA VIAL
C7: =UPPER("Memorias de CALCULO cantidades de obra") -> MEMORIAS DE CALCULO CANTIDADES DE OBRA
B9: Area | C9: =+PRESUPUESTO!$B$13 -> 1 | D9: =+PRESUPUESTO!$C$13 -> Laboratorio
B10: Capítulo | C10: =+PRESUPUESTO!B154 -> 1.17 | D10: =+VLOOKUP($C10,PRESUPUESTO!$B$13:$E$264,2,FALSE) -> Obras exteriores
B11: Ítem: | C11: =+PRESUPUESTO!B155 -> 1.17.1 | D11: =+VLOOKUP($C11,PRESUPUESTO!$B$13:$E$264,2,FALSE) -> Suministro e instalación de tapa para canal de aguas lluvias de 0.80 x 0.50 en lamina Alfajor de 1/8" y dos rieles guía en ángulo de 1 x 1/8", pintado con anticorrosivo color gris plomo. Incluye corte en el anden con pulidora para que esta calce y quede a nivel del mismo. | I11: Unidad | J11: =+VLOOKUP($C11,PRESUPUESTO!$B$13:$E$264,4,FALSE) -> un
B13: Área/lugar/elemento | C13: Longitud (m) | E13: Ancho (m) | F13: Alto (m) | G13: Peso (kg) | H13: Cant. de elementos | I13: Total | J13: DIAGRAMA/FOTO
B14: Tapa metalica | H14: 10.00 | I14: 10.00
B29: Total | I29: =SUM(I14:I28) -> 10.00
B31: Observaciones

Sheet MEMORIAS CANTIDADES cap 1.19
C2: =DATOS!B2 -> CENTRO DE DESARROLLO TECNOLÓGICO PARA LA INNOVACIÓN DE LA INFRAESTRUCTURA VIAL
C7: =UPPER("Memorias de CALCULO cantidades de obra") -> MEMORIAS DE CALCULO CANTIDADES DE OBRA
B9: Area | C9: =+PRESUPUESTO!$B$13 -> 1 | D9: =+PRESUPUESTO!$C$13 -> Laboratorio
B10: Capítulo | C10: =+PRESUPUESTO!B156 -> 1.18 | D10: =+VLOOKUP($C10,PRESUPUESTO!$B$13:$E$264,2,FALSE) -> Aseo y limpieza de la obra
B11: Ítem: | C11: =+PRESUPUESTO!B157 -> 1.18.1 | D11: =+VLOOKUP($C11,PRESUPUESTO!$B$13:$E$264,2,FALSE) -> Aseo general de la obra, incluye, pisos ventanas, vidrios, cuardescobas, exteriores etc. | I11: Unidad | J11: =+VLOOKUP($C11,PRESUPUESTO!$B$13:$E$264,4,FALSE) -> un
B13: Área/lugar/elemento | C13: Longitud (m) | E13: Ancho (m) | F13: Alto (m) | G13: Peso (kg) | H13: Cant. de elementos | I13: Total | J13: DIAGRAMA/FOTO
B14: Aseo | H14: 1.00 | I14: 1.00
B29: Total | I29: =SUM(I14:I28) -> 1.00
B31: Observaciones
B36: Area | C36: =+$C$9 -> 1 | D36: =+$D$9 -> Laboratorio
B37: Capítulo | C37: =+$C$10 -> 1.18 | D37: =+$D$10 -> Aseo y limpieza de la obra
B38: Ítem: | C38: =+PRESUPUESTO!B158 -> 1.18.2 | D38: =+VLOOKUP($C38,PRESUPUESTO!$B$13:$E$264,2,FALSE) -> Cargue a mano y retiro de sobrantes de obra a escombrera autorizada por el municipio de Popayán | I38: Unidad | J38: =+VLOOKUP($C38,PRESUPUESTO!$B$13:$E$264,4,FALSE) -> m3
B40: Área/lugar/elemento | C40: Longitud (m) | E40: Ancho (m) | F40: Alto (m) | G40: Peso (kg) | H40: Cant. de elementos | I40: Total | J40: DIAGRAMA
B41: Cargue a mano y retiro sobrantes | H41: 15.00 | I41: 15.00
I42: =+ROUND(C42*H42,2) -> 0
I43: =+ROUND(C43*E43*F43*H43,2) -> 0
I44: 0
B53: Total | I53: =SUM(I41:I52) -> 15.00
B55: Observaciones

Sheet MEMORIAS CANTIDADES cap 2.1
C2: =DATOS!B2 -> CENTRO DE DESARROLLO TECNOLÓGICO PARA LA INNOVACIÓN DE LA INFRAESTRUCTURA VIAL
C7: =UPPER("Memorias de CALCULO cantidades de obra") -> MEMORIAS DE CALCULO CANTIDADES DE OBRA
B9: Area | C9: =+PRESUPUESTO!B159 -> 2 | D9: =+VLOOKUP($C9,PRESUPUESTO!$B$13:$E$264,2,FALSE) -> Sala de juntas - Segundo nivel
B10: Capítulo | C10: =+PRESUPUESTO!B160 -> 2.1 | D10: =+VLOOKUP($C10,PRESUPUESTO!$B$13:$E$264,2,FALSE) -> Preliminares
B11: Ítem: | C11: =+PRESUPUESTO!B161 -> 2.1.1 | D11: =+VLOOKUP($C11,PRESUPUESTO!$B$13:$E$264,2,FALSE) -> Retiro de ventana metálica con vidrio y retiro de la misma a lugar de acopio indicado por la interventoría. (2.80 x 1.60 | I11: Unidad | J11: =+VLOOKUP($C11,PRESUPUESTO!$B$13:$E$264,4,FALSE) -> m2
B13: Área/lugar/elemento | C13: Longitud (m) | E13: Ancho (m) | F13: Alto (m) | G13: Peso (kg) | H13: Cant. de elementos | I13: Total | J13: DIAGRAMA/FOTO
B14: Ventana metalica | E14: 2.80 | F14: 1.60 | H14: 1.00 | I14: =+H14*F14*E14 -> 4.48
B29: Total | I29: =SUM(I14:I28) -> 4.48
B31: Observaciones
B36: Area | C36: =+$C$9 -> 2 | D36: =+$D$9 -> Sala de juntas - Segundo nivel
B37: Capítulo | C37: =+$C$10 -> 2.1 | D37: =+$D$10 -> Preliminares
B38: Ítem: | C38: =+PRESUPUESTO!B162 -> 2.1.2 | D38: =+VLOOKUP($C38,PRESUPUESTO!$B$13:$E$264,2,FALSE) -> Desmonte de cielo raso existente, incluye transporte interno a sitio indicado por la interventoría. | I38: Unidad | J38: =+VLOOKUP($C38,PRESUPUESTO!$B$13:$E$264,4,FALSE) -> m2
B40: Área/lugar/elemento | C40: Longitud (m) | E40: Ancho (m) | F40: Alto (m) | G40: Peso (kg) | H40: Cant. de elementos | I40: Total | J40: DIAGRAMA
C41: 3.14 | E41: 7.00 | H41: 1.00 | I41: =+ROUND(C41*H41,2)*E41 -> 21.98
I42: =+ROUND(C42*H42,2) -> 0
I43: =+ROUND(C43*E43*F43*H43,2) -> 0
I44: 0
B53: Total | I53: =SUM(I41:I52) -> 21.98
B55: Observaciones
B59: Area | C59: =+$C$9 -> 2 | D59: =+$D$9 -> Sala de juntas - Segundo nivel
B60: Capítulo | C60: =+$C$10 -> 2.1 | D60: =+$D$10 -> Preliminares
B61: Ítem: | C61: =+PRESUPUESTO!B163 -> 2.1.3 | D61: =+VLOOKUP($C61,PRESUPUESTO!$B$13:$E$264,2,FALSE) -> Desmonte de puerta en madera con marco metálico, incluye retiro a un lugar de la obra | I61: Unidad | J61: =+VLOOKUP($C61,PRESUPUESTO!$B$13:$E$264,4,FALSE) -> un
B63: Área/lugar/elemento | C63: Longitud (m) | E63: Ancho (m) | F63: Alto (m) | G63: Peso (kg) | H63: Cant. de elementos | I63: Total | J63: DIAGRAMA
B64: desmonte | H64: 1.00 | I64: 1.00
I65: =+ROUND(C65*H65,2) -> 0
I66: =+ROUND(C66*E66*F66*H66,2) -> 0
I67: 0
B76: Total | I76: =SUM(I64:I75) -> 1.00
B78: Observaciones
B82: Area | C82: =+$C$9 -> 2 | D82: =+$D$9 -> Sala de juntas - Segundo nivel
B83: Capítulo | C83: =+$C$10 -> 2.1 | D83: =+$D$10 -> Preliminares
B84: Ítem: | C84: =+PRESUPUESTO!B164 -> 2.1.4 | D84: =+VLOOKUP($C84,PRESUPUESTO!$B$13:$E$264,2,FALSE) -> Demolición de baldosa existente y traslado de escombros a sitio de acopio aprobado por la interventoría. | I84: Unidad | J84: =+VLOOKUP($C84,PRESUPUESTO!$B$13:$E$264,4,FALSE) -> m2
B86: Área/lugar/elemento | C86: Longitud (m) | E86: Ancho (m) | F86: Alto (m) | G86: Peso (kg) | H86: Cant. de elementos | I86: Total | J86: DIAGRAMA
B87: demolicion | C87: 8.00 | E87: 3.14 | H87: 1.00 | I87: =+ROUND(C87*H87,2)*E87 -> 25.12
I88: =+ROUND(C88*H88,2) -> 0
I89: =+ROUND(C89*E89*F89*H89,2) -> 0
I90: 0
B99: Total | I99: =SUM(I87:I98) -> 25.12
B101: Observaciones
B105: Area | C105: =+$C$9 -> 2 | D105: =+$D$9 -> Sala de juntas - Segundo nivel
B106: Capítulo | C106: =+$C$10 -> 2.1 | D106: =+$D$10 -> Preliminares
B107: Ítem: | C107: =+PRESUPUESTO!B165 -> 2.1.5 | D107: =+VLOOKUP($C107,PRESUPUESTO!$B$13:$E$264,2,FALSE) -> Demolición de guarda escoba existente y traslado de escombros a sitio de acopio aprobado aprobado por la interventoría. | I107: Unidad | J107: =+VLOOKUP($C107,PRESUPUESTO!$B$13:$E$264,4,FALSE) -> ml
B109: Área/lugar/elemento | C109: Longitud (m) | E109: Ancho (m) | F109: Alto (m) | G109: Peso (kg) | H109: Cant. de elementos | I109: Total | J109: DIAGRAMA
B110: demolicion guardescoba | C110: 7.00 | H110: 2.00 | I110: =+ROUND(C110*H110,2) -> 14.00
C111: 2.00 | H111: 1.00 | I111: =+ROUND(C111*H111,2) -> 2.00
C112: 3.14 | H112: 1.00 | I112: =+ROUND(C112*H112,2) -> 3.14
I113: =+ROUND(C113*E113*F113*H113,2) -> 0
B122: Total | I122: =SUM(I110:I121) -> 19.14
B124: Observaciones
B128: Area | C128: =+$C$9 -> 2 | D128: =+$D$9 -> Sala de juntas - Segundo nivel
B129: Capítulo | C129: =+$C$10 -> 2.1 | D129: =+$D$10 -> Preliminares
B130: Ítem: | C130: =+PRESUPUESTO!B166 -> 2.1.6 | D130: =+VLOOKUP($C130,PRESUPUESTO!$B$13:$E$264,2,FALSE) -> Demolición pañete que se encuentre deteriorado por la humedad y retiro de escombros a un lugar aprobado por la interventoría. | I130: Unidad | J130: =+VLOOKUP($C130,PRESUPUESTO!$B$13:$E$264,4,FALSE) -> m2
B132: Área/lugar/elemento | C132: Longitud (m) | E132: Ancho (m) | F132: Alto (m) | G132: Peso (kg) | H132: Cant. de elementos | I132: Total | J132: DIAGRAMA
B133: Demolicion pañete en mal estado | C133: 5.00 | E133: 2.00 | H133: 1.00 | I133: =+ROUND(C133*H133,2)*E133 -> 10.00
I134: =+ROUND(C134*H134,2) -> 0
I135: =+ROUND(C135*E135*F135*H135,2) -> 0
I136: 0
B145: Total | I145: =SUM(I133:I144) -> 10.00
B147: Observaciones

Sheet MEMORIAS CANTIDADES cap 2.2
C2: =DATOS!B2 -> CENTRO DE DESARROLLO TECNOLÓGICO PARA LA INNOVACIÓN DE LA INFRAESTRUCTURA VIAL
C7: =UPPER("Memorias de CALCULO cantidades de obra") -> MEMORIAS DE CALCULO CANTIDADES DE OBRA
B9: Area | C9: =+PRESUPUESTO!B159 -> 2 | D9: =+VLOOKUP($C9,PRESUPUESTO!$B$13:$E$264,2,FALSE) -> Sala de juntas - Segundo nivel
B10: Capítulo | C10: =+PRESUPUESTO!B167 -> 2.2 | D10: =+VLOOKUP($C10,PRESUPUESTO!$B$13:$E$264,2,FALSE) -> Puertas y ventanas
B11: Ítem: | C11: =+PRESUPUESTO!B168 -> 2.2.1 | D11: =+VLOOKUP($C11,PRESUPUESTO!$B$13:$E$264,2,FALSE) -> Suministro e instalación de puerta de madera entamborada y pintada con esmalte domestico. Incluye marco en lamina pintado con anticorrosivo y pintura en esmalte domestico, bisagras, cerradura de seguridad, y los elementos que se requieran para su correcta instalación y funcionamiento, previos visto bueno de la interventoría | I11: Unidad | J11: =+VLOOKUP($C11,PRESUPUESTO!$B$13:$E$264,4,FALSE) -> un
B13: Área/lugar/elemento | C13: Longitud (m) | E13: Ancho (m) | F13: Alto (m) | G13: Peso (kg) | H13: Cant. de elementos | I13: Total | J13: DIAGRAMA/FOTO
B14: Puerta madera acceso | H14: 1.00 | I14: 1.00
B29: Total | I29: =SUM(I14:I28) -> 1.00
B31: Observaciones
B36: Area | C36: =+$C$9 -> 2 | D36: =+$D$9 -> Sala de juntas - Segundo nivel
B37: Capítulo | C37: =+$C$10 -> 2.2 | D37: =+$D$10 -> Puertas y ventanas
B38: Ítem: | C38: =+PRESUPUESTO!B169 -> 2.2.2 | D38: =+VLOOKUP($C38,PRESUPUESTO!$B$13:$E$264,2,FALSE) -> Suministro e instalación de ventana en aluminio de 2.80 x 1.60 m sistema 744 anoloc bronce. Tres cuerpos, uno de ellos corredera con vidrio de 5 mm incoloro templado. | I38: Unidad | J38: =+VLOOKUP($C38,PRESUPUESTO!$B$13:$E$264,4,FALSE) -> un
B40: Área/lugar/elemento | C40: Longitud (m) | E40: Ancho (m) | F40: Alto (m) | G40: Peso (kg) | H40: Cant. de elementos | I40: Total | J40: DIAGRAMA
B41: Ventana aluminio | H41: 1.00 | I41: 1.00
I42: =+ROUND(C42*H42,2) -> 0
I43: =+ROUND(C43*E43*F43*H43,2) -> 0
I44: 0
B53: Total | I53: =SUM(I41:I52) -> 1.00
B55: Observaciones
B59: Area | C59: =+$C$9 -> 2 | D59: =+$D$9 -> Sala de juntas - Segundo nivel
B60: Capítulo | C60: =+$C$10 -> 2.2 | D60: =+$D$10 -> Puertas y ventanas
B61: Ítem: | C61: =+PRESUPUESTO!B170 -> 2.2.3 | D61: =+VLOOKUP($C61,PRESUPUESTO!$B$13:$E$264,2,FALSE) -> Mantenimiento a reja de seguridad. Limpieza, pintura y reinstalación. | I61: Unidad | J61: =+VLOOKUP($C61,PRESUPUESTO!$B$13:$E$264,4,FALSE) -> un
B63: Área/lugar/elemento | C63: Longitud (m) | E63: Ancho (m) | F63: Alto (m) | G63: Peso (kg) | H63: Cant. de elementos | I63: Total | J63: DIAGRAMA
B64: mantenimiento reja | H64: 1.00 | I64: 1.00
I65: =+ROUND(C65*H65,2) -> 0
I66: =+ROUND(C66*E66*F66*H66,2) -> 0
I67: 0
B76: Total | I76: =SUM(I64:I75) -> 1.00
B78: Observaciones

Sheet MEMORIAS CANTIDADES cap 2.3
C2: =DATOS!B2 -> CENTRO DE DESARROLLO TECNOLÓGICO PARA LA INNOVACIÓN DE LA INFRAESTRUCTURA VIAL
C7: =UPPER("Memorias de CALCULO cantidades de obra") -> MEMORIAS DE CALCULO CANTIDADES DE OBRA
B9: Area | C9: =+PRESUPUESTO!B159 -> 2 | D9: =+VLOOKUP($C9,PRESUPUESTO!$B$13:$E$264,2,FALSE) -> Sala de juntas - Segundo nivel
B10: Capítulo | C10: =+PRESUPUESTO!B171 -> 2.3 | D10: =+VLOOKUP($C10,PRESUPUESTO!$B$13:$E$264,2,FALSE) -> Instalaciones eléctricas
B11: Ítem: | C11: =+PRESUPUESTO!#REF! ->  | D11: =+VLOOKUP($C11,PRESUPUESTO!$B$13:$E$264,2,FALSE) ->  | I11: Unidad | J11: =+VLOOKUP($C11,PRESUPUESTO!$B$13:$E$264,4,FALSE) -> 
B13: Área/lugar/elemento | C13: Longitud (m) | E13: Ancho (m) | F13: Alto (m) | G13: Peso (kg) | H13: Cant. de elementos | I13: Total | J13: DIAGRAMA/FOTO
B14: canalizacion | C14: 12.00 | H14: 1.00 | I14: =+H14*C14 -> 12.00
B29: Total | I29: =SUM(I14:I28) -> 12.00
B31: Observaciones
B36: Area | C36: =+$C$9 -> 2 | D36: =+$D$9 -> Sala de juntas - Segundo nivel
B37: Capítulo | C37: =+$C$10 -> 2.3 | D37: =+$D$10 -> Instalaciones eléctricas
B38: Ítem: | C38: =+PRESUPUESTO!#REF! ->  | D38: =+VLOOKUP($C38,PRESUPUESTO!$B$13:$E$264,2,FALSE) ->  | I38: Unidad | J38: =+VLOOKUP($C38,PRESUPUESTO!$B$13:$E$264,4,FALSE) -> 
B40: Área/lugar/elemento | C40: Longitud (m) | E40: Ancho (m) | F40: Alto (m) | G40: Peso (kg) | H40: Cant. de elementos | I40: Total | J40: DIAGRAMA
B41: alimentador | C41: 12.00 | H41: 1.00 | I41: =+ROUND(C41*H41,2) -> 12.00
I42: =+ROUND(C42*H42,2) -> 0
I43: =+ROUND(C43*E43*F43*H43,2) -> 0
I44: 0
B53: Total | I53: =SUM(I41:I52) -> 12.00
B55: Observaciones
B59: Area | C59: =+$C$9 -> 2 | D59: =+$D$9 -> Sala de juntas - Segundo nivel
B60: Capítulo | C60: =+$C$10 -> 2.3 | D60: =+$D$10 -> Instalaciones eléctricas
B61: Ítem: | C61: =+PRESUPUESTO!B172 -> 2.3.1 | D61: =+VLOOKUP($C61,PRESUPUESTO!$B$13:$E$264,2,FALSE) -> Salida de iluminación 120 voltios en tubería Conduit emt ø 1/2" (PVC o EMT donde se requiera) y demás accesorios. Conductores en cable de cobre #12 AWG libre de halógenos. Incluye empalmes con conectores de resorte tipo 3M, tapa ciega circular, prensa estopa, cola en cable encauchetado 3x16 (±1.5m), tomacorriente y clavija aérea con polo a tierra para conexión de la luminaria. Mano de obra donde sea necesario de: regata, entubado, resane, cableado, aparateado, aseo. | I61: Unidad | J61: =+VLOOKUP($C61,PRESUPUESTO!$B$13:$E$264,4,FALSE) -> un
B63: Área/lugar/elemento | C63: Longitud (m) | E63: Ancho (m) | F63: Alto (m) | G63: Peso (kg) | H63: Cant. de elementos | I63: Total | J63: DIAGRAMA
B64: salida iluminacion | H64: 8.00 | I64: =+H64 -> 8.00
I65: =+ROUND(C65*H65,2) -> 0
I66: =+ROUND(C66*E66*F66*H66,2) -> 0
I67: 0
B76: Total | I76: =SUM(I64:I75) -> 8.00
B78: Observaciones
B82: Area | C82: =+$C$9 -> 2 | D82: =+$D$9 -> Sala de juntas - Segundo nivel
B83: Capítulo | C83: =+$C$10 -> 2.3 | D83: =+$D$10 -> Instalaciones eléctricas
B84: Ítem: | C84: =+PRESUPUESTO!B173 -> 2.3.2 | D84: =+VLOOKUP($C84,PRESUPUESTO!$B$13:$E$264,2,FALSE) -> Salida para interruptor doble en tubería Conduit PVC ø 1/2’’ (y emt ø1/2’’ donde se requiera). Incluye interruptor doble 15 Amp con polo a tierra. Conductores en cable de cobre #12 AWG libre de halógenos (utilizar color negro para retornos), accesorios. Mano de obra donde sea necesario de: regata, entubado, resane, cableado, aparateado, aseo. | I84: Unidad | J84: =+VLOOKUP($C84,PRESUPUESTO!$B$13:$E$264,4,FALSE) -> un
B86: Área/lugar/elemento | C86: Longitud (m) | E86: Ancho (m) | F86: Alto (m) | G86: Peso (kg) | H86: Cant. de elementos | I86: Total | J86: DIAGRAMA
B87: Interruptor doble | H87: 6.00 | I87: =+H87 -> 6.00
I88: =+ROUND(C88*H88,2) -> 0
I89: =+ROUND(C89*E89*F89*H89,2) -> 0
I90: 0
B99: Total | I99: =SUM(I87:I98) -> 6.00
B101: Observaciones

Sheet MEMORIAS CANTIDADES cap 2.4
C2: =DATOS!B2 -> CENTRO DE DESARROLLO TECNOLÓGICO PARA LA INNOVACIÓN DE LA INFRAESTRUCTURA VIAL
C7: =UPPER("Memorias de CALCULO cantidades de obra") -> MEMORIAS DE CALCULO CANTIDADES DE OBRA
B9: Area | C9: =+PRESUPUESTO!B159 -> 2 | D9: =+VLOOKUP($C9,PRESUPUESTO!$B$13:$E$264,2,FALSE) -> Sala de juntas - Segundo nivel
B10: Capítulo | C10: =+PRESUPUESTO!B174 -> 2.4 | D10: =+VLOOKUP($C10,PRESUPUESTO!$B$13:$E$264,2,FALSE) -> Repello muros y pintura
B11: Ítem: | C11: =+PRESUPUESTO!B175 -> 2.4.1 | D11: =+VLOOKUP($C11,PRESUPUESTO!$B$13:$E$264,2,FALSE) -> Repello en muros con mortero 1:3 impermeabilizado en reemplazo del retirado a causa de la humedad. | I11: Unidad | J11: =+VLOOKUP($C11,PRESUPUESTO!$B$13:$E$264,4,FALSE) -> m2
B13: Área/lugar/elemento | C13: Longitud (m) | E13: Ancho (m) | F13: Alto (m) | G13: Peso (kg) | H13: Cant. de elementos | I13: Total | J13: DIAGRAMA/FOTO
B14: repello | C14: 5.00 | E14: 2.00 | H14: 1.00 | I14: =+ROUND(C14*E14*H14,2) -> 10.00
B29: Total | I29: =SUM(I14:I28) -> 10.00
B31: Observaciones
B36: Area | C36: =+$C$9 -> 2 | D36: =+$D$9 -> Sala de juntas - Segundo nivel
B37: Capítulo | C37: =+$C$10 -> 2.4 | D37: =+$D$10 -> Repello muros y pintura
B38: Ítem: | C38: =+PRESUPUESTO!B176 -> 2.4.2 | D38: =+VLOOKUP($C38,PRESUPUESTO!$B$13:$E$264,2,FALSE) -> Suministro y aplicación estuco plástico s/repello en muros, incluye filos, dilat., etc. | I38: Unidad | J38: =+VLOOKUP($C38,PRESUPUESTO!$B$13:$E$264,4,FALSE) -> m2
B40: Área/lugar/elemento | C40: Longitud (m) | E40: Ancho (m) | F40: Alto (m) | G40: Peso (kg) | H40: Cant. de elementos | I40: Total | J40: DIAGRAMA
B41: estuco | C41: 5.00 | E41: 2.00 | H41: 1.00 | I41: =+ROUND(C41*H41,2)*E41 -> 10.00
I42: =+ROUND(C42*H42,2) -> 0
I43: =+ROUND(C43*E43*F43*H43,2) -> 0
I44: 0
B53: Total | I53: =SUM(I41:I52) -> 10.00
B55: Observaciones
B59: Area | C59: =+$C$9 -> 2 | D59: =+$D$9 -> Sala de juntas - Segundo nivel
B60: Capítulo | C60: =+$C$10 -> 2.4 | D60: =+$D$10 -> Repello muros y pintura
B61: Ítem: | C61: =+PRESUPUESTO!B177 -> 2.4.3 | D61: =+VLOOKUP($C61,PRESUPUESTO!$B$13:$E$264,2,FALSE) -> Suministro y aplicación de pintura tipo 1, tres manos para muros Incluye resanes donde se requiera | I61: Unidad | J61: =+VLOOKUP($C61,PRESUPUESTO!$B$13:$E$264,4,FALSE) -> m2
B63: Área/lugar/elemento | C63: Longitud (m) | E63: Ancho (m) | F63: Alto (m) | G63: Peso (kg) | H63: Cant. de elementos | I63: Total | J63: DIAGRAMA
B64: pintura vinilo | C64: 7.00 | F64: 2.10 | H64: 2.00 | I64: =+ROUND(C64*H64,2)*F64 -> 29.40
C65: 2.00 | F65: 2.10 | H65: 1.00 | I65: =+ROUND(C65*H65,2) -> 2.00
C66: 3.14 | F66: 0.60 | H66: 1.00 | I66: =+ROUND(C66*H66,2) -> 3.14
I67: =+ROUND(C67*E67*F67*H67,2) -> 0
B76: Total | I76: =SUM(I64:I75) -> 34.54
B78: Observaciones

Sheet MEMORIAS CANTIDADES cap 2.5
C2: =DATOS!B2 -> CENTRO DE DESARROLLO TECNOLÓGICO PARA LA INNOVACIÓN DE LA INFRAESTRUCTURA VIAL
C7: =UPPER("Memorias de CALCULO cantidades de obra") -> MEMORIAS DE CALCULO CANTIDADES DE OBRA
B9: Area | C9: =+PRESUPUESTO!B159 -> 2 | D9: =+VLOOKUP($C9,PRESUPUESTO!$B$13:$E$264,2,FALSE) -> Sala de juntas - Segundo nivel
B10: Capítulo | C10: =+PRESUPUESTO!B178 -> 2.5 | D10: =+VLOOKUP($C10,PRESUPUESTO!$B$13:$E$264,2,FALSE) -> Pisos
B11: Ítem: | C11: =+PRESUPUESTO!B179 -> 2.5.1 | D11: =+VLOOKUP($C11,PRESUPUESTO!$B$13:$E$264,2,FALSE) -> Mortero 1:3 de nivelación espesor 0,04m para enchape en piso | I11: Unidad | J11: =+VLOOKUP($C11,PRESUPUESTO!$B$13:$E$264,4,FALSE) -> m2
B13: Área/lugar/elemento | C13: Longitud (m) | E13: Ancho (m) | F13: Alto (m) | G13: Peso (kg) | H13: Cant. de elementos | I13: Total | J13: DIAGRAMA/FOTO
B14: mortero nivelacion | C14: 8.00 | E14: 3.14 | H14: 1.00 | I14: =+ROUND(C14*E14*H14,2) -> 25.12
B29: Total | I29: =SUM(I14:I28) -> 25.12
B31: Observaciones
B36: Area | C36: =+$C$9 -> 2 | D36: =+$D$9 -> Sala de juntas - Segundo nivel
B37: Capítulo | C37: =+$C$10 -> 2.5 | D37: =+$D$10 -> Pisos
B38: Ítem: | C38: =+PRESUPUESTO!B180 -> 2.5.2 | D38: =+VLOOKUP($C38,PRESUPUESTO!$B$13:$E$264,2,FALSE) -> Suministro e instalación de piso cerámica antideslizante T5 primera calidad, color y textura serán escogidas por la interventoría. | I38: Unidad | J38: =+VLOOKUP($C38,PRESUPUESTO!$B$13:$E$264,4,FALSE) -> m2
B40: Área/lugar/elemento | C40: Longitud (m) | E40: Ancho (m) | F40: Alto (m) | G40: Peso (kg) | H40: Cant. de elementos | I40: Total | J40: DIAGRAMA
B41: piso ceramica | C41: 8.00 | E41: 3.14 | H41: 1.00 | I41: =+H41*E41*C41 -> 25.12
I42: =+ROUND(C42*H42,2) -> 0
I43: =+ROUND(C43*E43*F43*H43,2) -> 0
I44: 0
B53: Total | I53: =SUM(I41:I52) -> 25.12
B55: Observaciones
B59: Area | C59: =+$C$9 -> 2 | D59: =+$D$9 -> Sala de juntas - Segundo nivel
B60: Capítulo | C60: =+$C$10 -> 2.5 | D60: =+$D$10 -> Pisos
B61: Ítem: | C61: =+PRESUPUESTO!B181 -> 2.5.3 | D61: =+VLOOKUP($C61,PRESUPUESTO!$B$13:$E$264,2,FALSE) -> Suministro e instalación de guardaescoba como producto del corte de las tabletas del enchape del piso. | I61: Unidad | J61: =+VLOOKUP($C61,PRESUPUESTO!$B$13:$E$264,4,FALSE) -> ml
B63: Área/lugar/elemento | C63: Longitud (m) | E63: Ancho (m) | F63: Alto (m) | G63: Peso (kg) | H63: Cant. de elementos | I63: Total | J63: DIAGRAMA
B64: guardescoba | C64: 7.00 | H64: 2.00 | I64: =+ROUND(C64*H64,2) -> 14.00
C65: 2.00 | H65: 1.00 | I65: =+ROUND(C65*H65,2) -> 2.00
C66: 3.10 | H66: 1.00 | I66: =+ROUND(C66*H66,2) -> 3.10
I67: =+ROUND(C67*E67*F67*H67,2) -> 0
B76: Total | I76: =SUM(I64:I75) -> 19.10
B78: Observaciones

Sheet MEMORIAS CANTIDADES cap 2.6
C2: =DATOS!B2 -> CENTRO DE DESARROLLO TECNOLÓGICO PARA LA INNOVACIÓN DE LA INFRAESTRUCTURA VIAL
C7: =UPPER("Memorias de CALCULO cantidades de obra") -> MEMORIAS DE CALCULO CANTIDADES DE OBRA
B9: Area | C9: =+PRESUPUESTO!B159 -> 2 | D9: =+VLOOKUP($C9,PRESUPUESTO!$B$13:$E$264,2,FALSE) -> Sala de juntas - Segundo nivel
B10: Capítulo | C10: =+PRESUPUESTO!B182 -> 2.6 | D10: =+VLOOKUP($C10,PRESUPUESTO!$B$13:$E$264,2,FALSE) -> Cielo raso
B11: Ítem: | C11: =+PRESUPUESTO!B183 -> 2.6.1 | D11: =+VLOOKUP($C11,PRESUPUESTO!$B$13:$E$264,2,FALSE) -> Suministro e instalación de cielo raso en PVC color mate, incluye estructura y todo de acuerdo con los manuales de instalación del fabricante | I11: Unidad | J11: =+VLOOKUP($C11,PRESUPUESTO!$B$13:$E$264,4,FALSE) -> m2
B13: Área/lugar/elemento | C13: Longitud (m) | E13: Ancho (m) | F13: Alto (m) | G13: Peso (kg) | H13: Cant. de elementos | I13: Total | J13: DIAGRAMA/FOTO
B14: cielo raso | C14: 7.00 | E14: 3.14 | H14: 1.00 | I14: =+ROUND(C14*E14*H14,2) -> 21.98
B29: Total | I29: =SUM(I14:I28) -> 21.98
B31: Observaciones

Sheet MEMORIAS CANTIDADES cap 2.7
C2: =DATOS!B2 -> CENTRO DE DESARROLLO TECNOLÓGICO PARA LA INNOVACIÓN DE LA INFRAESTRUCTURA VIAL
C7: =UPPER("Memorias de CALCULO cantidades de obra") -> MEMORIAS DE CALCULO CANTIDADES DE OBRA
B9: Area | C9: =+PRESUPUESTO!B159 -> 2 | D9: =+VLOOKUP($C9,PRESUPUESTO!$B$13:$E$264,2,FALSE) -> Sala de juntas - Segundo nivel
B10: Capítulo | C10: =+PRESUPUESTO!B184 -> 2.7 | D10: =+VLOOKUP($C10,PRESUPUESTO!$B$13:$E$264,2,FALSE) -> Luminarias
B11: Ítem: | C11: =+PRESUPUESTO!B185 -> 2.7.1 | D11: =+VLOOKUP($C11,PRESUPUESTO!$B$13:$E$264,2,FALSE) -> Suministro e instalación de luminaria ilte Albar lens L11605X605X70 CON MARCO - 2 1R2FT 3200Lm 18.3W REF: 02410E3000 TIPO AL1, con sus respectivos accesorios de soporte y fijación. | I11: Unidad | J11: =+VLOOKUP($C11,PRESUPUESTO!$B$13:$E$264,4,FALSE) -> un
B13: Área/lugar/elemento | C13: Longitud (m) | E13: Ancho (m) | F13: Alto (m) | G13: Peso (kg) | H13: Cant. de elementos | I13: Total | J13: DIAGRAMA/FOTO
B14: luminarias | H14: 8.00 | I14: =+H14 -> 8.00
B29: Total | I29: =SUM(I14:I28) -> 8.00
B31: Observaciones

Sheet MEMORIAS CANTIDADES cap 2.8
C2: =DATOS!B2 -> CENTRO DE DESARROLLO TECNOLÓGICO PARA LA INNOVACIÓN DE LA INFRAESTRUCTURA VIAL
C7: =UPPER("Memorias de CALCULO cantidades de obra") -> MEMORIAS DE CALCULO CANTIDADES DE OBRA
B9: Area | C9: =+PRESUPUESTO!B159 -> 2 | D9: =+VLOOKUP($C9,PRESUPUESTO!$B$13:$E$264,2,FALSE) -> Sala de juntas - Segundo nivel
B10: Capítulo | C10: =+PRESUPUESTO!B186 -> 2.8 | D10: =+VLOOKUP($C10,PRESUPUESTO!$B$13:$E$264,2,FALSE) -> Aseo y limpieza de salón de juntas
B11: Ítem: | C11: =+PRESUPUESTO!B187 -> 2.8.1 | D11: =+VLOOKUP($C11,PRESUPUESTO!$B$13:$E$264,2,FALSE) -> Aseo general de la obra, incluye, pisos ventanas, vidrios, cuardescobas, cielos muros, me | I11: Unidad | J11: =+VLOOKUP($C11,PRESUPUESTO!$B$13:$E$264,4,FALSE) -> un
B13: Área/lugar/elemento | C13: Longitud (m) | E13: Ancho (m) | F13: Alto (m) | G13: Peso (kg) | H13: Cant. de elementos | I13: Total | J13: DIAGRAMA/FOTO
B14: aseo | H14: 1.00 | I14: 1.00
B29: Total | I29: =SUM(I14:I28) -> 1.00
B31: Observaciones
B36: Area | C36: =+PRESUPUESTO!B159 -> 2 | D36: =+VLOOKUP($C36,PRESUPUESTO!$B$13:$E$264,2,FALSE) -> Sala de juntas - Segundo nivel
B37: Capítulo | C37: =+PRESUPUESTO!B186 -> 2.8 | D37: =+VLOOKUP($C37,PRESUPUESTO!$B$13:$E$264,2,FALSE) -> Aseo y limpieza de salón de juntas
B38: Ítem: | C38: =+PRESUPUESTO!B188 -> 2.8.2 | D38: =+VLOOKUP($C38,PRESUPUESTO!$B$13:$E$264,2,FALSE) -> Cargue a mano y retiro de sobrantes de obra a escombrera autorizada por el municipio de Popayan | I38: Unidad | J38: =+VLOOKUP($C38,PRESUPUESTO!$B$13:$E$264,4,FALSE) -> m3
B40: Área/lugar/elemento | C40: Longitud (m) | E40: Ancho (m) | F40: Alto (m) | G40: Peso (kg) | H40: Cant. de elementos | I40: Total | J40: DIAGRAMA/FOTO
B41: cargue escombros | H41: 0.75 | I41: =+H41 -> 0.75
B56: Total | I56: =SUM(I41:I55) -> 0.75
B58: Observaciones

Sheet MEMORIAS CANTIDADES cap 3.1
C2: =DATOS!B2 -> CENTRO DE DESARROLLO TECNOLÓGICO PARA LA INNOVACIÓN DE LA INFRAESTRUCTURA VIAL
C7: =UPPER("Memorias de CALCULO cantidades de obra") -> MEMORIAS DE CALCULO CANTIDADES DE OBRA
B9: Area | C9: =+PRESUPUESTO!$B$189 -> 3 | D9: =+VLOOKUP($C9,PRESUPUESTO!$B$13:$E$264,2,FALSE) -> Oficinas - Primer nivel
B10: Capítulo | C10: =+PRESUPUESTO!B190 -> 3.1 | D10: =+VLOOKUP($C10,PRESUPUESTO!$B$13:$E$264,2,FALSE) -> Instalaciones eléctricas
B11: Ítem: | C11: =+PRESUPUESTO!#REF! ->  | D11: =+VLOOKUP($C11,PRESUPUESTO!$B$13:$E$264,2,FALSE) ->  | I11: Unidad | J11: =+VLOOKUP($C11,PRESUPUESTO!$B$13:$E$264,4,FALSE) -> 
B13: Área/lugar/elemento | C13: Longitud (m) | E13: Ancho (m) | F13: Alto (m) | G13: Peso (kg) | H13: Cant. de elementos | I13: Total | J13: DIAGRAMA/FOTO
B14: canalizacion electrica | C14: 70.00 | H14: 1.00 | I14: =+H14*C14 -> 70.00
B29: Total | I29: =SUM(I14:I28) -> 70.00
B31: Observaciones
B36: Area | C36: =+$C$9 -> 3 | D36: =+VLOOKUP($C36,PRESUPUESTO!$B$13:$E$264,2,FALSE) -> Oficinas - Primer nivel
B37: Capítulo | C37: =+PRESUPUESTO!$B$190 -> 3.1 | D37: =+VLOOKUP($C37,PRESUPUESTO!$B$13:$E$264,2,FALSE) -> Instalaciones eléctricas
B38: Ítem: | C38: =+PRESUPUESTO!#REF! ->  | D38: =+VLOOKUP($C38,PRESUPUESTO!$B$13:$E$264,2,FALSE) ->  | I38: Unidad | J38: =+VLOOKUP($C38,PRESUPUESTO!$B$13:$E$264,4,FALSE) -> 
B40: Área/lugar/elemento | C40: Longitud (m) | E40: Ancho (m) | F40: Alto (m) | G40: Peso (kg) | H40: Cant. de elementos | I40: Total | J40: DIAGRAMA/FOTO
B41: alomentador | C41: 70.00 | H41: 1.00 | I41: =+H41*C41 -> 70.00
B56: Total | I56: =SUM(I41:I55) -> 70.00
B58: Observaciones
B63: Area | C63: =+$C$9 -> 3 | D63: =+VLOOKUP($C63,PRESUPUESTO!$B$13:$E$264,2,FALSE) -> Oficinas - Primer nivel
B64: Capítulo | C64: =+PRESUPUESTO!$B$190 -> 3.1 | D64: =+VLOOKUP($C64,PRESUPUESTO!$B$13:$E$264,2,FALSE) -> Instalaciones eléctricas
B65: Ítem: | C65: =+PRESUPUESTO!B191 -> 3.1.1 | D65: =+VLOOKUP($C65,PRESUPUESTO!$B$13:$E$264,2,FALSE) -> Salida de iluminación 120 voltios en tubería Conduit emt ø 1/2" (PVC o EMT donde se requiera) y demás accesorios. Conductores en cable de cobre #12 AWG libre de halógenos. Incluye empalmes con conectores de resorte tipo 3M, tapa ciega circular, prensa estopa, cola en cable encauchetado 3x16 (±1.5m), tomacorriente y clavija aérea con polo a tierra para conexión de la luminaria. Mano de obra donde sea necesario de: regata, entubado, resane, cableado, aparateado, aseo. | I65: Unidad | J65: =+VLOOKUP($C65,PRESUPUESTO!$B$13:$E$264,4,FALSE) -> un
B67: Área/lugar/elemento | C67: Longitud (m) | E67: Ancho (m) | F67: Alto (m) | G67: Peso (kg) | H67: Cant. de elementos | I67: Total | J67: DIAGRAMA/FOTO
B68: salidas | H68: 8.00 | I68: =+H68 -> 8.00
B83: Total | I83: =SUM(I68:I82) -> 8.00
B85: Observaciones
B90: Area | C90: =+$C$9 -> 3 | D90: =+VLOOKUP($C90,PRESUPUESTO!$B$13:$E$264,2,FALSE) -> Oficinas - Primer nivel
B91: Capítulo | C91: =+PRESUPUESTO!$B$190 -> 3.1 | D91: =+VLOOKUP($C91,PRESUPUESTO!$B$13:$E$264,2,FALSE) -> Instalaciones eléctricas
B92: Ítem: | C92: =+PRESUPUESTO!B192 -> 3.1.2 | D92: =+VLOOKUP($C92,PRESUPUESTO!$B$13:$E$264,2,FALSE) -> Salida para interruptor doble en tubería Conduit PVC ø 1/2’’ (y emt ø1/2’’ donde se requiera). Incluye interruptor doble 15 Amp con polo a tierra. Conductores en cable de cobre #12 AWG libre de halógenos (utilizar color negro para retornos), accesorios. Mano de obra donde sea necesario de: regata, entubado, resane, cableado, aparateado, aseo. | I92: Unidad | J92: =+VLOOKUP($C92,PRESUPUESTO!$B$13:$E$264,4,FALSE) -> un
B94: Área/lugar/elemento | C94: Longitud (m) | E94: Ancho (m) | F94: Alto (m) | G94: Peso (kg) | H94: Cant. de elementos | I94: Total | J94: DIAGRAMA/FOTO
B95: salida interruptor | H95: 8.00 | I95: =+H95 -> 8.00
B110: Total | I110: =SUM(I95:I109) -> 8.00
B112: Observaciones

Sheet MEMORIAS CANTIDADES cap 3.2
C2: =DATOS!B2 -> CENTRO DE DESARROLLO TECNOLÓGICO PARA LA INNOVACIÓN DE LA INFRAESTRUCTURA VIAL
C7: =UPPER("Memorias de CALCULO cantidades de obra") -> MEMORIAS DE CALCULO CANTIDADES DE OBRA
B9: Area | C9: =+PRESUPUESTO!$B$189 -> 3 | D9: =+VLOOKUP($C9,PRESUPUESTO!$B$13:$E$264,2,FALSE) -> Oficinas - Primer nivel
B10: Capítulo | C10: =+PRESUPUESTO!B193 -> 3.2 | D10: =+VLOOKUP($C10,PRESUPUESTO!$B$13:$E$264,2,FALSE) -> Pintura y mantenimiento
B11: Ítem: | C11: =+PRESUPUESTO!B194 -> 3.2.1 | D11: =+VLOOKUP($C11,PRESUPUESTO!$B$13:$E$264,2,FALSE) -> Suministro y aplicación de pintura tipo 1, tres manos para muros y cielos internos. Incluye resanes donde se requiera | I11: Unidad | J11: =+VLOOKUP($C11,PRESUPUESTO!$B$13:$E$264,4,FALSE) -> m3
B13: Área/lugar/elemento | C13: Longitud (m) | E13: Ancho (m) | F13: Alto (m) | G13: Peso (kg) | H13: Cant. de elementos | I13: Total | J13: DIAGRAMA/FOTO
H14: 1.00 | I14: =+ROUND(C14*E14*H14,2) -> 0
B29: Total | I29: =SUM(I14:I28) -> 0
B31: Observaciones
B36: Area | C36: =+$C$9 -> 3 | D36: =+VLOOKUP($C36,PRESUPUESTO!$B$13:$E$264,2,FALSE) -> Oficinas - Primer nivel
B37: Capítulo | C37: =+PRESUPUESTO!B193 -> 3.2 | D37: =+VLOOKUP($C37,PRESUPUESTO!$B$13:$E$264,2,FALSE) -> Pintura y mantenimiento
B38: Ítem: | C38: =+PRESUPUESTO!B195 -> 3.2.2 | D38: =+VLOOKUP($C38,PRESUPUESTO!$B$13:$E$264,2,FALSE) -> Mantenimiento ventanas, consistente en rasqueteado de pintura antigua, masillado y pintura | I38: Unidad | J38: =+VLOOKUP($C38,PRESUPUESTO!$B$13:$E$264,4,FALSE) -> un
B40: Área/lugar/elemento | C40: Longitud (m) | E40: Ancho (m) | F40: Alto (m) | G40: Peso (kg) | H40: Cant. de elementos | I40: Total | J40: DIAGRAMA/FOTO
B41: mantenimiento | H41: 2.00 | I41: =+H41 -> 2.00
B56: Total | I56: =SUM(I41:I55) -> 2.00
B58: Observaciones

Sheet MEMORIAS CANTIDADES cap 3.3
C2: =DATOS!B2 -> CENTRO DE DESARROLLO TECNOLÓGICO PARA LA INNOVACIÓN DE LA INFRAESTRUCTURA VIAL
C7: =UPPER("Memorias de CALCULO cantidades de obra") -> MEMORIAS DE CALCULO CANTIDADES DE OBRA
B9: Area | C9: =+PRESUPUESTO!$B$189 -> 3 | D9: =+VLOOKUP($C9,PRESUPUESTO!$B$13:$E$264,2,FALSE) -> Oficinas - Primer nivel
B10: Capítulo | C10: =+PRESUPUESTO!B196 -> 3.3 | D10: =+VLOOKUP($C10,PRESUPUESTO!$B$13:$E$264,2,FALSE) -> Luminarias
B11: Ítem: | C11: =+PRESUPUESTO!B197 -> 3.3.1 | D11: =+VLOOKUP($C11,PRESUPUESTO!$B$13:$E$264,2,FALSE) -> Suministro e instalación de luminaria ilte Albar lens L11605X605X70 CON MARCO - 2 1R2FT 3200Lm 18.3W REF: 02410E3000 TIPO AL1, con sus respectivos accesorios de soporte y fijación. | I11: Unidad | J11: =+VLOOKUP($C11,PRESUPUESTO!$B$13:$E$264,4,FALSE) -> un
B13: Área/lugar/elemento | C13: Longitud (m) | E13: Ancho (m) | F13: Alto (m) | G13: Peso (kg) | H13: Cant. de elementos | I13: Total | J13: DIAGRAMA/FOTO
B14: luminarias | H14: 8.00 | I14: =+H14 -> 8.00
B29: Total | I29: =SUM(I14:I28) -> 8.00
B31: Observaciones

Sheet MEMORIAS CANTIDADES cap 3.4
C2: =DATOS!B2 -> CENTRO DE DESARROLLO TECNOLÓGICO PARA LA INNOVACIÓN DE LA INFRAESTRUCTURA VIAL
C7: =UPPER("Memorias de CALCULO cantidades de obra") -> MEMORIAS DE CALCULO CANTIDADES DE OBRA
B9: Area | C9: =+PRESUPUESTO!$B$189 -> 3 | D9: =+VLOOKUP($C9,PRESUPUESTO!$B$13:$E$264,2,FALSE) -> Oficinas - Primer nivel
B10: Capítulo | C10: =+PRESUPUESTO!B198 -> 3.4 | D10: =+VLOOKUP($C10,PRESUPUESTO!$B$13:$E$264,2,FALSE) -> Aseo y limpieza de oficinas
B11: Ítem: | C11: =+PRESUPUESTO!B199 -> 3.4.1 | D11: =+VLOOKUP($C11,PRESUPUESTO!$B$13:$E$264,2,FALSE) -> Aseo general de la obra, incluye, pisos ventanas, vidrios, cuardescobas, cielos muros, etc. | I11: Unidad | J11: =+VLOOKUP($C11,PRESUPUESTO!$B$13:$E$264,4,FALSE) -> un
B13: Área/lugar/elemento | C13: Longitud (m) | E13: Ancho (m) | F13: Alto (m) | G13: Peso (kg) | H13: Cant. de elementos | I13: Total | J13: DIAGRAMA/FOTO
B14: aseo | H14: 1.00 | I14: =+H14 -> 1.00
B29: Total | I29: =SUM(I14:I28) -> 1.00
B31: Observaciones
B36: Area | C36: =+$C$9 -> 3 | D36: =+VLOOKUP($C36,PRESUPUESTO!$B$13:$E$264,2,FALSE) -> Oficinas - Primer nivel
B37: Capítulo | C37: =+PRESUPUESTO!B198 -> 3.4 | D37: =+VLOOKUP($C37,PRESUPUESTO!$B$13:$E$264,2,FALSE) -> Aseo y limpieza de oficinas
B38: Ítem: | C38: =+PRESUPUESTO!B200 -> 3.4.2 | D38: =+VLOOKUP($C38,PRESUPUESTO!$B$13:$E$264,2,FALSE) -> Cargue a mano y retiro de sobrantes de obra a escombrera autorizada por el municipio de popayan | I38: Unidad | J38: =+VLOOKUP($C38,PRESUPUESTO!$B$13:$E$264,4,FALSE) -> m3
B40: Área/lugar/elemento | C40: Longitud (m) | E40: Ancho (m) | F40: Alto (m) | G40: Peso (kg) | H40: Cant. de elementos | I40: Total | J40: DIAGRAMA/FOTO
B41: carguie y transporte | H41: 0.75 | I41: =+H41 -> 0.75
B56: Total | I56: =SUM(I41:I55) -> 0.75
B58: Observaciones

Sheet CRONOGRAMA
D1: =DATOS!B2 -> CENTRO DE DESARROLLO TECNOLÓGICO PARA LA INNOVACIÓN DE LA INFRAESTRUCTURA VIAL
D5: CRONOGRAMA
B10: Capítulo | C10: Descripción de la actividad | D10: Duración (días) | F10: MES 1 | AJ10: MES 2 | BN10: MES 3
B11: =+PRESUPUESTO!B13 -> 1 | C11: Periodo precontractual | F11: 1 | G11: 2 | H11: 3 | I11: 4 | J11: 5 | K11: 6 | L11: 7 | M11: 8 | N11: 9 | O11: 10 | P11: 11 | Q11: 12 | R11: 13 | S11: 14 | T11: 15 | U11: 16 | V11: 17 | W11: 18 | X11: 19 | Y11: 20 | Z11: 21 | AA11: 22 | AB11: 23 | AC11: 24 | AD11: 25 | AE11: 26 | AF11: 27 | AG11: 28 | AH11: 29 | AI11: 30 | AJ11: 31 | AK11: 32 | AL11: 33 | AM11: 34 | AN11: 35 | AO11: 36 | AP11: 37 | AQ11: 38 | AR11: 39 | AS11: 40 | AT11: 41 | AU11: 42 | AV11: 43 | AW11: 44 | AX11: 45 | AY11: 46 | AZ11: 47 | BA11: 48 | BB11: 49 | BC11: 50 | BD11: 51 | BE11: 52 | BF11: 53 | BG11: 54 | BH11: 55 | BI11: 56 | BJ11: 57 | BK11: 58 | BL11: 59 | BM11: 60 | BN11: 61 | BO11: 62 | BP11: 63 | BQ11: 64 | BR11: 65 | BS11: 66 | BT11: 67 | BU11: 68 | BV11: 69 | BW11: 70 | BX11: 71 | BY11: 72 | BZ11: 73 | CA11: 74 | CB11: 75 | CC11: 76 | CD11: 77 | CE11: 78 | CF11: 79 | CG11: 80 | CH11: 81 | CI11: 82 | CJ11: 83 | CK11: 84 | CL11: 85 | CM11: 86 | CN11: 87 | CO11: 88 | CP11: 89 | CQ11: 90
B12: =+PRESUPUESTO!B13 -> 1 | C12: =+PRESUPUESTO!C13 -> Laboratorio | F12: 1 | M12: 2 | U12: 3 | AB12: 4 | AJ12: 5 | AQ12: 6 | AY12: 7 | BF12: 8 | BN12: 9 | BU12: 10 | CC12: 11 | CJ12: 12
B14: =+PRESUPUESTO!B14 -> 1.1 | C14: =+PRESUPUESTO!C14 -> Preliminares | D14: =+COUNT(F14:CQ14) -> 15 | F14: 1 | G14: 2 | H14: 3 | I14: 4 | J14: 5 | K14: 6 | L14: 7 | M14: 8 | N14: 9 | O14: 10 | P14: 11 | Q14: 12 | R14: 13 | S14: 7 | T14: 15
B16: =+PRESUPUESTO!B28 -> 1.2 | C16: =+PRESUPUESTO!C28 -> Cimentación | D16: =+COUNT(F16:CQ16) -> 10 | S16: 1 | T16: 2 | U16: 3 | V16: 4 | W16: 5 | X16: 6 | Y16: 7 | Z16: 8 | AA16: 9 | AB16: 10
B18: =+PRESUPUESTO!B33 -> 1.3 | C18: =+PRESUPUESTO!C33 -> Acometidas y domiciliarias | D18: 12 | AA18: 1 | AB18: 2 | AC18: 3 | AD18: 4 | AE18: 5 | AF18: 6 | AG18: 7 | AH18: 8 | AI18: 9 | AJ18: 10 | AK18: 11 | AL18: 12
B20: =+PRESUPUESTO!B48 -> 1.4 | C20: =+PRESUPUESTO!C48 -> Estructura en concreto | D20: 5 | AC20: 1 | AD20: 2 | AE20: 3 | AF20: 4 | AG20: 5
B22: =+PRESUPUESTO!B51 -> 1.5 | C22: =+PRESUPUESTO!C51 -> Mampostería y repellos | D22: 18 | AH22: 1 | AI22: 2 | AJ22: 3 | AK22: 4 | AL22: 5 | AM22: 6 | AN22: 7 | AO22: 8 | AP22: 9 | AQ22: 10 | AR22: 11 | AS22: 12 | AT22: 13 | AU22: 14 | AV22: 15 | AW22: 16 | AX22: 17 | AY22: 18
B24: =+PRESUPUESTO!B55 -> 1.6 | C24: =+PRESUPUESTO!C55 -> Estructura metalica y Cubiertas | D24: 45 | AC24: 1 | AD24: 2 | AE24: 3 | AF24: 4 | AG24: 5 | AH24: 6 | AI24: 7 | AJ24: 8 | AK24: 9 | AL24: 10 | AM24: 11 | AN24: 12 | AO24: 13 | AP24: 14 | AQ24: 15 | AR24: 16 | AS24: 17 | AT24: 18 | AU24: 19 | AV24: 20 | AW24: 21 | AX24: 22 | AY24: 23 | AZ24: 24 | BA24: 25 | BB24: 26 | BC24: 27 | BD24: 28 | BE24: 29 | BF24: 30 | BG24: 31 | BH24: 32 | BI24: 33 | BJ24: 34 | BK24: 35 | BL24: 36 | BM24: 37 | BN24: 38 | BO24: 39 | BP24: 40 | BQ24: 41 | BR24: 42 | BS24: 43 | BT24: 44 | BU24: 45
B26: =+PRESUPUESTO!B60 -> 1.7 | C26: =+PRESUPUESTO!C60 -> Carpintería metálica y de madera | D26: 15 | AP26: 1 | AQ26: 2 | AR26: 3 | AS26: 4 | AT26: 5 | AU26: 6 | AV26: 7 | AW26: 8 | AX26: 9 | AY26: 10 | AZ26: 11 | BA26: 12 | BB26: 13 | BC26: 14 | BD26: 15
B28: =+PRESUPUESTO!B63 -> 1.8 | C28: =+PRESUPUESTO!C63 -> Ventaneria en aluminio | D28: 15 | AV28: 1 | AW28: 2 | AX28: 3 | AY28: 4 | AZ28: 5 | BA28: 6 | BB28: 7 | BC28: 8 | BD28: 9 | BE28: 10 | BF28: 11 | BG28: 12 | BH28: 13 | BI28: 14 | BJ28: 15
B30: =+PRESUPUESTO!B67 -> 1.9 | C30: =+PRESUPUESTO!C67 -> Instalaciones hidráulicas y sanitarias internas | D30: 10 | AJ30: 1 | AK30: 2 | AL30: 3 | AM30: 4 | AN30: 5 | AO30: 6 | AP30: 7 | AQ30: 8 | AR30: 9 | AS30: 10
B32: =+PRESUPUESTO!B76 -> 1.10 | C32: =+PRESUPUESTO!C76 -> Instalaciones eléctricas | D32: 70 | R32: 1 | S32: 2 | T32: 3 | U32: 4 | V32: 5 | W32: 6 | X32: 7 | Y32: 8 | Z32: 9 | AA32: 10 | AB32: 11 | AC32: 12 | AD32: 13 | AE32: 14 | AF32: 15 | AG32: 16 | AH32: 17 | AI32: 18 | AJ32: 19 | AK32: 20 | AL32: 21 | AM32: 22 | AN32: 23 | AO32: 24 | AP32: 25 | AQ32: 26 | AR32: 27 | AS32: 28 | AT32: 29 | AU32: 30 | AV32: 31 | AW32: 32 | AX32: 33 | AY32: 34 | AZ32: 35 | BA32: 36 | BB32: 37 | BC32: 38 | BD32: 39 | BE32: 40 | BF32: 41 | BG32: 42 | BH32: 43 | BI32: 44 | BJ32: 45 | BK32: 46 | BL32: 47 | BM32: 48 | BN32: 49 | BO32: 50 | BP32: 51 | BQ32: 52 | BR32: 53 | BS32: 54 | BT32: 55 | BU32: 56 | BV32: 57 | BW32: 58 | BX32: 59 | BY32: 60 | BZ32: 61 | CA32: 62 | CB32: 63 | CC32: 64 | CD32: 65 | CE32: 66 | CF32: 67 | CG32: 68 | CH32: 69 | CI32: 70
B34: =+PRESUPUESTO!B123 -> 1.11 | C34: =+PRESUPUESTO!C123 -> Pisos | D34: 20 | AY34: 1 | AZ34: 2 | BA34: 3 | BB34: 4 | BC34: 5 | BD34: 6 | BE34: 7 | BF34: 8 | BG34: 9 | BH34: 10 | BI34: 11 | BJ34: 12 | BK34: 13 | BL34: 14 | BM34: 15 | BN34: 16 | BO34: 17 | BP34: 18 | BQ34: 19 | BR34: 20
B36: =+PRESUPUESTO!B128 -> 1.12 | C36: =+PRESUPUESTO!C128 -> Mesones y enchapes | D36: 15 | BL36: 1 | BM36: 2 | BN36: 3 | BO36: 4 | BP36: 5 | BQ36: 6 | BR36: 7 | BS36: 8 | BT36: 9 | BU36: 10 | BV36: 11 | BW36: 12 | BX36: 13 | BY36: 14 | BZ36: 15
B38: =+PRESUPUESTO!B134 -> 1.13 | C38: =+PRESUPUESTO!C134 -> Cielos | D38: 9 | BU38: 1 | BV38: 2 | BW38: 3 | BX38: 4 | BY38: 5 | BZ38: 6 | CA38: 7 | CB38: 8 | CC38: 9
B40: =+PRESUPUESTO!B136 -> 1.14 | C40: =+PRESUPUESTO!C136 -> Pintura muros y cielos | D40: 15 | AZ40: 1 | BA40: 2 | BB40: 3 | BC40: 4 | BD40: 5 | BE40: 6 | BF40: 7 | BG40: 8 | BH40: 9 | BI40: 10 | BJ40: 11 | BK40: 12 | BL40: 13 | BM40: 14 | BN40: 15
B42: =+PRESUPUESTO!B141 -> 1.15 | C42: =+PRESUPUESTO!C141 -> Aparatos y accesorios sanitarios | D42: 5 | BX42: 1 | BY42: 2 | BZ42: 3 | CA42: 4 | CB42: 5
B44: =+PRESUPUESTO!B150 -> 1.16 | C44: =+PRESUPUESTO!C150 -> Rampas | D44: 17 | AD44: 1 | AE44: 2 | AF44: 3 | AG44: 4 | AH44: 5 | AI44: 6 | AJ44: 7 | AK44: 8 | AL44: 9 | AM44: 10 | AN44: 11 | AO44: 12 | AP44: 13 | AQ44: 14 | AR44: 15 | AS44: 16 | AT44: 17
B46: =+PRESUPUESTO!B154 -> 1.17 | C46: =+PRESUPUESTO!C154 -> Obras exteriores | D46: 12 | CE46: 1 | CF46: 2 | CG46: 3 | CH46: 4 | CI46: 5 | CJ46: 6 | CK46: 7 | CL46: 8 | CM46: 9 | CN46: 10 | CO46: 11 | CP46: 12
B48: =+PRESUPUESTO!B156 -> 1.18 | C48: =+PRESUPUESTO!C156 -> Aseo y limpieza de la obra | D48: 2 | CP48: 1 | CQ48: 2
B50: =+PRESUPUESTO!B159 -> 2 | C50: =+PRESUPUESTO!C159 -> Sala de juntas - Segundo nivel
B52: =+PRESUPUESTO!B160 -> 2.1 | C52: =+PRESUPUESTO!C160 -> Preliminares | D52: =+COUNT(F52:CQ52) -> 5 | AK52: 1 | AL52: 2 | AM52: 3 | AN52: 4 | AO52: 5
B54: =+PRESUPUESTO!B167 -> 2.2 | C54: =+PRESUPUESTO!C167 -> Puertas y ventanas | D54: =+COUNT(F54:CQ54) -> 15 | AN54: 1 | AO54: 2 | AP54: 3 | AQ54: 4 | AR54: 5 | AS54: 6 | AT54: 7 | AU54: 8 | AV54: 9 | AW54: 10 | AX54: 11 | AY54: 12 | AZ54: 13 | BA54: 14 | BB54: 15
B56: =+PRESUPUESTO!B171 -> 2.3 | C56: =+PRESUPUESTO!C171 -> Instalaciones eléctricas | D56: =+COUNT(F56:CQ56) -> 10 | AW56: 1 | AX56: 2 | AY56: 3 | AZ56: 4 | BA56: 5 | BB56: 6 | BC56: 7 | BD56: 8 | BE56: 9 | BF56: 10
B58: =+PRESUPUESTO!B174 -> 2.4 | C58: =+PRESUPUESTO!C174 -> Repello muros y pintura | D58: =+COUNT(F58:CQ58) -> 3 | BE58: 1 | BF58: 2 | BG58: 3
B60: =+PRESUPUESTO!B178 -> 2.5 | C60: =+PRESUPUESTO!C178 -> Pisos | D60: 5 | BF60: 1 | BG60: 2 | BH60: 3 | BI60: 4 | BJ60: 5
B62: =+PRESUPUESTO!B182 -> 2.6 | C62: =+PRESUPUESTO!C182 -> Cielo raso | D62: 5 | BJ62: 1 | BK62: 2 | BL62: 3 | BM62: 4 | BN62: 5
B64: =+PRESUPUESTO!B184 -> 2.7 | C64: =+PRESUPUESTO!C184 -> Luminarias | D64: 3 | BO64: 1 | BP64: 2 | BQ64: 3
B66: =+PRESUPUESTO!B186 -> 2.8 | C66: =+PRESUPUESTO!C186 -> Aseo y limpieza de salón de juntas | D66: 1 | BR66: 1
B68: =+PRESUPUESTO!B189 -> 3 | C68: =+PRESUPUESTO!C189 -> Oficinas - Primer nivel
B70: =+PRESUPUESTO!B190 -> 3.1 | C70: =+PRESUPUESTO!C190 -> Instalaciones eléctricas | D70: =+COUNT(F70:CQ70) -> 4 | BT70: 1 | BU70: 2 | BV70: 3 | BW70: 4
B72: =+PRESUPUESTO!B193 -> 3.2 | C72: =+PRESUPUESTO!C193 -> Pintura y mantenimiento | D72: =+COUNT(F72:CQ72) -> 4 | BX72: 1 | BY72: 2 | BZ72: 3 | CA72: 4
B74: =+PRESUPUESTO!B196 -> 3.3 | C74: =+PRESUPUESTO!C196 -> Luminarias | D74: =+COUNT(F74:CQ74) -> 4 | CB74: 1 | CC74: 2 | CD74: 3 | CE74: 4
B76: =+PRESUPUESTO!B198 -> 3.4 | C76: =+PRESUPUESTO!C198 -> Aseo y limpieza de oficinas | D76: =+COUNT(F76:CQ76) -> 1 | CF76: 1
B80: Notas:
B81: 1. Las actividades planteadas coinciden con las actividades de la cadena de valor definida para el mismo. En el presupuesto del proyecto se usan como Capítulos.
B82: 2. El presente cronograma de actividades corresponde a actividades de obra resumidas en Capítulos. El encargado de la implementación definirá la duración de las actividades complementarias
B83: y deberá definir la duración de la obra con base en las actividades incluidas en este modelo y las que considere para incluir como complementarias, necesarias para la adecuada ejecución de las obras.
B84: 3. Se plantean duraciones estimadas de obra para cada Capítulo con base en programas reales de obra estimados con tiempos de desarrollo normales, para el caso de proyectos similares,
